Workbook

Sheet Home
B1: Design & Prepaired by Pravesh Kumar Sharma, Accountant, please call-9460100093 or write mail to praveshbkn@gmail.com for further query/error/updation/suggestion
B4: Determination of closing balance of Privilege Leave(PL) at End of Service or any other period | L4: Home/Back
B8: PL Calculation | G8: PL Leave Report | L8: Other Key-Calculation
C11: Hint-How to use | G11: View/Update DA Rate
B13: Prepare Leave application in excel format | L13: Treatment of Extraordinary leave for Probation-trainees
B16: Input Data | F16: Fill all the fileds in this sheet. Use proper font and drop down menu, wheres required.
L17: View EOL order and silent points in tabular format
B19: Print Leave Application | F19: Use cell "L1" for take print based on input data, if any updatation requird, go back to sheet "Input Data"
L21: Calculate Maternity Leave under FD order F.1(6)FD(Rules)/2021 dated 23-12-2021
B23: Blank Format | F23: It is bank format of GA 45 , user may take print with or without fill data ,as required
B27: General Notes on PL (Rules) | F27: Some useful key points/information

Sheet Mat Leave
A1: Calculate Maternity Leave under FD order F.1(6)FD(Rules)/2021 dated 23-12-2021 | G1: Home
A3: Child Birth Date | B3: 2021-12-24 | C3: Total Meternity Leave allowed in days | D3: 180
A4: Date of Joining in Service | B4: 2022-03-04
A5: Maternity Leave applied on | B5: 2022-03-07
A6: Result on bais of input data
A7: Key features | B7: Period Start | C7: Period End | D7: Days
A8: Confinement Period | B8: =B3-15 -> 2021-12-09 | C8: =B3-1 -> 2021-12-23 | D8: =1+C8-B8 -> 15
A9: Age of child (before joining of service) | B9: =B3 -> 2021-12-24 | C9: =B4-1 -> 2022-03-03 | D9: =1+C9-B9 -> 70
A10: Maternity Leave applied period | B10: =B4 -> 2022-03-04 | C10: =B5-1 -> 2022-03-06 | D10: =1+C10-B10 -> 3
A11: Total reduced period (in days) | D11: =SUM(D8:D10) -> 88
A12: Admissible Meternity Leave Period | B12: =B5 -> 2022-03-07 | C12: =B12+D12-1 -> 2022-06-06 | D12: =D3-D11 -> 92
A13: Required date for applied Maternity Leave (before) | C13: =B4+15-1 -> 2022-03-18

Sheet PL
B1: Home | F1: PL Leave Report | I1: Home
A2: Design & Prepaired by Pravesh Kumar Sharma, Accountant, please call-9460100093 or write mail to praveshbkn@gmail.com for further query/error/updation/suggestion
A5: Name of Employe | C5: ABCD | F5: Designation | G5: AAO
A7: Determination of P.L. before 01-01-1983
A8: Condt. | B8: Employee Department | C8: Employee Status | D8: Start Date | E8: End Date | F8: Days count | G8: Earned Leave | H8: Total Privilege Leave
A9: A | B9: Others Deptt | C9: Temporary | D9: 1976-01-01 | E9: 1976-06-30 | F9: =IF('Leave Table'!L463>1,'Leave Table'!L463,0) -> 182 | G9: ='Leave Table'!F465 -> 8.272727273
A10: B | B10: Others Deptt | C10: Temporary | D10: 1976-01-01 | E10: 1976-01-01 | F10: =IF('Leave Table'!L471>1,'Leave Table'!L471,0) -> 0 | G10: ='Leave Table'!F473 -> 0.04545454545 | H10: =G9+G10 -> 8.318181818
A11: If acutal balance is differ from calculated P.L. balance (fill the bal. in cell F11 & select condition "YES" in cell G11) | F11: 25 | G11: No | H11: =IF(G11="YES",F11,H10) -> 8.318181818
A12: Determination of P.L. on or after 01-01-1983
A13: Leave Start Date | C13: 1996-02-20 | E13: =CONCATENATE("Opening balance of P.L.(if any) as on ",TEXT(C13,"dd/mm/yyyy")) -> Opening balance of P.L.(if any) as on 20/02/1996 | H13: 0
A14: Leave End Date | C14: 2023-08-31 | E14: Employee Department (Status) | G14: Others Deptt
E15: Maxi. Leave allowed in one month | H15: ='Leave Table'!M6 -> 2.5 Days
A16: =CONCATENATE("Closing Balance of P.L. upto"," ",A14," ",TEXT(C14,"dd/mm/yyyy")," ") -> Closing Balance of P.L. upto Leave End Date 31/08/2023 | F16: ='Leave Table'!V95 -> 315 | G16: =IF(F16=300,"(Max Limit)","") -> 
A17: Find out total Privilege Leave taken/Surr. Leave/Joining Time/ Leave adjut. enared between two periods (year_year) | E17: Data Type | F17: From | G17: To | H17: Total
E18: Leave Taken | F18: 1990-A | G18: 2023-A | H18: ='Leave Table'!BB13 -> 0 | I18: Duplicate/ Double entry in PL taken period (from) | T18: Home
E19: =CONCATENATE(E18," ","From"," ",F18," ","to"," ",G18," ","=>>"," ",H18," Days") -> Leave Taken From 1990-A to 2023-A =>> 0 Days
A20: Privilege Leave (PL) Taken Period | E20: Other Data
A21: S.N. | B21: From | C21: To | D21: No of Days | E21: Object | F21: Period (Year) | G21: No. of Days | H21: Condition
A22: 1 | D22: =IF(C22>0,1+C22-B22,"") ->  | I22: =IFERROR(INDEX($B$22:$B$221,MATCH(0,COUNTIF(I18:I$18,$B$22:$B$221)+IF(COUNTIF($B$22:$B$221,$B$22:$B$221)>1,0,1),0)),"") -> 
A23: =IF(B23>0,A22+1,"") ->  | I23: =IFERROR(INDEX($B$22:$B$221,MATCH(0,COUNTIF(I$18:I22,$B$22:$B$221)+IF(COUNTIF($B$22:$B$221,$B$22:$B$221)>1,0,1),0)),"") -> 
I24: =IFERROR(INDEX($B$22:$B$221,MATCH(0,COUNTIF(I$18:I23,$B$22:$B$221)+IF(COUNTIF($B$22:$B$221,$B$22:$B$221)>1,0,1),0)),"") -> 
I25: =IFERROR(INDEX($B$22:$B$221,MATCH(0,COUNTIF(I$18:I24,$B$22:$B$221)+IF(COUNTIF($B$22:$B$221,$B$22:$B$221)>1,0,1),0)),"") -> 
I26: =IFERROR(INDEX($B$22:$B$221,MATCH(0,COUNTIF(I$18:I25,$B$22:$B$221)+IF(COUNTIF($B$22:$B$221,$B$22:$B$221)>1,0,1),0)),"") -> 
I27: =IFERROR(INDEX($B$22:$B$221,MATCH(0,COUNTIF(I$18:I26,$B$22:$B$221)+IF(COUNTIF($B$22:$B$221,$B$22:$B$221)>1,0,1),0)),"") -> 
I28: =IFERROR(INDEX($B$22:$B$221,MATCH(0,COUNTIF(I$18:I27,$B$22:$B$221)+IF(COUNTIF($B$22:$B$221,$B$22:$B$221)>1,0,1),0)),"") -> 
I29: =IFERROR(INDEX($B$22:$B$221,MATCH(0,COUNTIF(I$18:I28,$B$22:$B$221)+IF(COUNTIF($B$22:$B$221,$B$22:$B$221)>1,0,1),0)),"") -> 
I30: =IFERROR(INDEX($B$22:$B$221,MATCH(0,COUNTIF(I$18:I29,$B$22:$B$221)+IF(COUNTIF($B$22:$B$221,$B$22:$B$221)>1,0,1),0)),"") ->  | J30: Select for clear PL data
I31: =IFERROR(INDEX($B$22:$B$221,MATCH(0,COUNTIF(I$18:I30,$B$22:$B$221)+IF(COUNTIF($B$22:$B$221,$B$22:$B$221)>1,0,1),0)),"") -> 
I32: =IFERROR(INDEX($B$22:$B$221,MATCH(0,COUNTIF(I$18:I31,$B$22:$B$221)+IF(COUNTIF($B$22:$B$221,$B$22:$B$221)>1,0,1),0)),"") -> 
I33: =IFERROR(INDEX($B$22:$B$221,MATCH(0,COUNTIF(I$18:I32,$B$22:$B$221)+IF(COUNTIF($B$22:$B$221,$B$22:$B$221)>1,0,1),0)),"") -> 
I34: End_Line | J34: Select for clear Other data
D54: =IF(C54>0,1+C54-B54,"") -> 
A55: =IF(B55>0,A54+1,"") -> 
D86: =IF(C86>0,1+C86-B86,"") -> 
A87: =IF(B87>0,A86+1,"") -> 
D118: =IF(C118>0,1+C118-B118,"") -> 
A119: =IF(B119>0,A118+1,"") -> 
D150: =IF(C150>0,1+C150-B150,"") -> 
A151: =IF(B151>0,A150+1,"") -> 
D182: =IF(C182>0,1+C182-B182,"") -> 
A183: =IF(B183>0,A182+1,"") -> 
D214: =IF(C214>0,1+C214-B214,"") -> 
A215: =IF(B215>0,A214+1,"") -> 
A222: End_line | B222: End_line | C222: End_line | D222: =SUM(D22:D221) -> 0 | E222: End_line | F222: End_line | G222: End_line | H222: End_line

Sheet Leave Table (hidden)
B2: Leave_Limit | D2: Max_Limit | G2: PL_Limit_Deptt | H2: Annual Leave Limit | I2: CODE | J2: Limit | L2: Monthly Leave Limit | M2: Selected | N2: =PL!$G$14 -> Others Deptt | P2: Calculation of Last day of month | S2: =DATE(YEAR(P4),12,31) -> 2023-12-31 | T2: =S2-$S$4 -> 122 | U2: =IF(T3>=0,S3,S2) -> 2023-12-31 | V2: Date of Birth | W2: =PL!#REF! ->  | AC2: 1 | AG2: Start date | AH2: Month end date | AI2: Days in month | AJ2: Days diff | AK2: 0 | AM2: Start date/code | AN2: Closedate | AO2: Days diff | AP2: Last day of month condt. | AS2: today | CP2: Last name | CQ2: Middle name | CR2: First name
B3: 1951-04-01 | C3: 1991-12-31 | D3: 180 | E3: 180 | F3: 180 | G3: Judicial Deptt. | H3: 12 | I3: A | J3: =TODAY() -> 2023-05-08 | K3: 12 | L3: =H3/12 -> 1 | N3: =INDEX($I$3:$I$6,MATCH($N$2,PL_Limit_Deptt,0)) -> B | P3: Start date | Q3: month | S3: =EOMONTH(S2,-6) -> 2023-06-30 | T3: =S3-$S$4 -> -62 | V3: Date of Rite. | W3: =IF(DAY(W2)>1,DATE(YEAR(W2)+60,MONTH(W2),DAY(EOMONTH(W2,0))),DATE(YEAR(W2)+60,MONTH(W2),DAY(W2))) ->  | Z3: =B12 -> 1996-02-20 | AA3: =INDEX($AJ$7:$AJ$18,MATCH(MONTH(Z3),$AG$7:$AG$18,0))-(EOMONTH(Z3,0)-Z3+1) -> 18 | AB3: =(EOMONTH(Z3,0)-Z3+1) -> 1900-01-10 | AC3: 2 | AG3: =D11 -> 1996-02-20 | AH3: =EOMONTH(AG3,0) -> 1996-02-29 | AI3: =MONTH(AH3) -> 2 | AJ3: =IF(AH3>B10,B10-AG3+1,AH3-AG3+1) -> 10 | AK3: =IFERROR(DATEDIF(B12,C12,"M"),"") -> 4 | AM3: =AG3 -> 1996-02-20 | AN3: =E7 -> 1996-06-30 | AO3: =AN3-AM3+1 -> 132 | AP3: =IF(AM5=AM6,"YES","NO") -> NO | AQ3: =IF(AM6>1,TRUNC(AO3/31,0),TRUNC(AO3/30,0)) -> 4 | AS3: =TODAY() -> 2023-05-08 | CP3: PL_YEAR | CQ3: PL_DAYS | CR3: PL_TYPE | CS3: Last name | CT3: Middle name | CU3: First name
B4: 1992-01-01 | C4: 1997-12-31 | D4: 240 | E4: 240 | F4: 240 | G4: R.A.C Deptt | H4: 42 | I4: B | J4: =TODAY() -> 2023-05-08 | K4: 42 | L4: =H4/12 -> 3.5 | M4: Leave limit | N4: =INDEX($H$3:$H$6,MATCH(N2,PL_Limit_Deptt,0)) -> 30 | P4: =B10 -> 2023-08-31 | Q4: =EOMONTH(P4,-6) -> 2023-02-28 | S4: =P4 -> 2023-08-31 | T4: =S4-$S$4 -> 0 | Z4: =B13 -> 1996-07-01 | AA4: =INDEX($AJ$7:$AJ$18,MATCH(MONTH(Z4),$AG$7:$AG$18,0)) -> 31 | AB4: =N12 -> 10 | AC4: 3 | AG4: =IF(OR(MOD(AG3,400)=0,AND(MOD(AG3,4)=0,MOD(AG3,100)<>0)),"Leap Year", "NOT a Leap Year") -> NOT a Leap Year | AH4: =AJ4/4 -> 4.5 | AI4: =INDEX(AJ7:AJ18,MATCH(MONTH(AH3),AG7:AG18,0)) -> 28 | AJ4: =AI4-AJ3 -> 18 | AK4: =IF(AJ4>0,AK3,AK3+1) -> 4 | AL4: Month Code | AM4: =MONTH(AM3) -> 2 | AN4: =MONTH(AN3) -> 6 | AO4: =AO3-AK4*AM5 -> 20 | CO4: 1 | CP4: =INDEX($BK$12:$BK$56,MATCH(ROWS($CO$4:CO4),$CO$4:$CO$48,0)) ->  | CQ4: =INDEX($BN$12:$BN$56,MATCH(ROWS($CO$4:CP4),$CO$4:$CO$48,0)) -> 0 | CR4: =INDEX($BJ$12:$BJ$56,MATCH(ROWS($CO$4:CQ4),$CO$4:$CO$48,0)) ->  | CS4: =CP4 ->  | CT4: =CQ4 -> 0 | CU4: =CR4 -> 
B5: 1998-01-01 | C5: 2012-12-31 | D5: 300 | E5: 300 | F5: 300 | G5: Vacation Deptt | H5: 15 | I5: A | J5: 1993-12-31 | K5: 8 | L5: =H5/12 -> 1.25 | N5: =INDEX($L$3:$L$6,MATCH(N2,PL_Limit_Deptt,0)) -> 2.5 | AB5: =N13 -> 15 | AC5: 4 | AG5: =IF(AG4="Leap Year",1,0) -> 0 | AH5: =IF(AG5>0,"NO","YES") -> YES | AJ5: Diff in year | AL5: Days in Month | AM5: =INDEX($AJ$7:$AJ$18,MATCH(MONTH(AM3),$AG$7:$AG$18,0)) -> 28 | AN5: =INDEX($AJ$7:$AJ$18,MATCH(MONTH(AN3),$AG$7:$AG$18,0)) -> 30 | AO5: =IF(AO4>0,"YES","NO") -> YES | AQ5: IF(AL3>=AI7,IFERROR(DATEDIF(AI3,AJ3,"M")+1,""), | CO5: 2 | CP5: =INDEX($BK$12:$BK$56,MATCH(ROWS($CO$4:CO5),$CO$4:$CO$48,0)) ->  | CQ5: =INDEX($BN$12:$BN$56,MATCH(ROWS($CO$4:CP5),$CO$4:$CO$48,0)) -> 0 | CR5: =INDEX($BJ$12:$BJ$56,MATCH(ROWS($CO$4:CQ5),$CO$4:$CO$48,0)) ->  | CT5: 0
B6: 2013-01-01 | D6: 315 | E6: 300 | F6: 300 | G6: Others Deptt | H6: 30 | I6: B | J6: =TODAY() -> 2023-05-08 | K6: 30 | L6: =H6/12 -> 2.5 | M6: =CONCATENATE(N5," ","Days", " ") -> 2.5 Days | P6: start date | Q6: =D11 -> 1996-02-20 | T6: 2019-01-01 | U6: 305 | AB6: =N14 -> 15 | AC6: 5 | AG6: Month code | AH6: Month code | AI6: Month name | AJ6: Day-end | AK6: Day-calculted | AL6: Count of Days | AM6: =DAY(AM3) -> 20 | AN6: =DAY(AN3) -> 30 | AO6: =INDEX($AJ$7:$AJ$18,MATCH(MONTH(AM3),$AG$7:$AG$18,0))-(EOMONTH(AM3,0)-AM3+1) -> 18 | AP6: =INDEX($AJ$7:$AJ$18,MATCH(MONTH(AN3),$AG$7:$AG$18,0))-(EOMONTH(AN3,0)-AN3+1) -> 29 | CO6: 3 | CP6: =INDEX($BK$12:$BK$56,MATCH(ROWS($CO$4:CO6),$CO$4:$CO$48,0)) ->  | CQ6: =INDEX($BN$12:$BN$56,MATCH(ROWS($CO$4:CP6),$CO$4:$CO$48,0)) -> 0 | CR6: =INDEX($BJ$12:$BJ$56,MATCH(ROWS($CO$4:CQ6),$CO$4:$CO$48,0)) ->  | CT6: 0
C7: =DATE(YEAR(D11),12,31) -> 1996-12-31 | D7: =C7-$C$9 -> 315 | E7: =IF(D8>0,C8,C7) -> 1996-06-30 | N7: =IFERROR(E39,"NO") -> YES | P7: Limit date | T7: 2019-07-01 | U7: 15 | AB7: =N15 -> 15 | AC7: 6 | AG7: 1 | AH7: 01 | AI7: January | AJ7: 31 | AK7: =AJ18 -> 31 | AL7: Worked Days | AM7: =AM5-AM6+1 -> 9 | AN7: =AN6 -> 30 | AQ7: Leaf Year Condt | CO7: 4 | CP7: =INDEX($BK$12:$BK$56,MATCH(ROWS($CO$4:CO7),$CO$4:$CO$48,0)) ->  | CQ7: =INDEX($BN$12:$BN$56,MATCH(ROWS($CO$4:CP7),$CO$4:$CO$48,0)) -> 0 | CR7: =INDEX($BJ$12:$BJ$56,MATCH(ROWS($CO$4:CQ7),$CO$4:$CO$48,0)) ->  | CT7: 0
C8: =EOMONTH(C7,-6) -> 1996-06-30 | D8: =C8-$C$9 -> 131 | T8: 2019-07-02 | U8: -30 | AC8: 7 | AG8: 2 | AH8: 02 | AI8: February | AJ8: =IF(AG4="Leap Year",29,28) -> 28 | AK8: =AJ7 -> 31 | AL8: Month Diff | AM8: =IFERROR(DAY(AM3),"") -> 20 | AN8: =IFERROR(DATEDIF(AM3,AN3,"M"),"") -> 4 | AO8: =IF(AM9="NO",AN8,IF(AP3="YES",AN8+1,TRUNC(AO3/30,0))) -> 4 | AP8: =MAX($AN$8,$AO$8,$AQ$3) -> 4 | AQ8: =IF(AG4="Leap Year",AP8,IF(AM8<=AM5,AP8+1,AP8)) -> 5 | CO8: 5 | CP8: =INDEX($BK$12:$BK$56,MATCH(ROWS($CO$4:CO8),$CO$4:$CO$48,0)) ->  | CQ8: =INDEX($BN$12:$BN$56,MATCH(ROWS($CO$4:CP8),$CO$4:$CO$48,0)) -> 0 | CR8: =INDEX($BJ$12:$BJ$56,MATCH(ROWS($CO$4:CQ8),$CO$4:$CO$48,0)) ->  | CT8: 0
C9: =D11 -> 1996-02-20 | D9: =C9-$C$9 -> 0 | J9: =MONTH(H86) ->  | U9: =SUM(U6:U8) -> 290 | AC9: 8 | AG9: 3 | AH9: 03 | AI9: March | AJ9: 31 | AK9: 28 | AM9: =IF(AM7-AM5=0,"YES","NO") -> NO | AN9: =IF(AN7>=0,"YES","NO") -> YES | CO9: 6 | CP9: =INDEX($BK$12:$BK$56,MATCH(ROWS($CO$4:CO9),$CO$4:$CO$48,0)) ->  | CQ9: =INDEX($BN$12:$BN$56,MATCH(ROWS($CO$4:CP9),$CO$4:$CO$48,0)) -> 0 | CR9: =INDEX($BJ$12:$BJ$56,MATCH(ROWS($CO$4:CQ9),$CO$4:$CO$48,0)) ->  | CT9: 0
B10: =PL!C14 -> 2023-08-31 | C10: Base End Period | E10: End Period Condition | G10: Final Period | O10: Opening Balance | R10: =IF(PL!H13>0,PL!$H$13,0) -> 0 | S10: Max. Limit | T10: 300 | U10: =VLOOKUP(D11,$B$3:$D$6,3) -> 240 | AC10: 9 | AG10: 4 | AH10: 04 | AI10: April | AJ10: 30 | AK10: 31 | AR10: =EOMONTH(AM5,0)-AM5+1 -> 4 | AS10: =EOMONTH(AN5,0)-AN5+1 -> 2 | BE10: =INDEX($BH$12:$BH$56,MATCH(ROWS($BH10:BH$12),COUNTIF($BH$12:$BH$56,"<="&$BH$12:$BH$56),0)) ->  | CO10: 7 | CP10: =INDEX($BK$12:$BK$56,MATCH(ROWS($CO$4:CO10),$CO$4:$CO$48,0)) ->  | CQ10: =INDEX($BN$12:$BN$56,MATCH(ROWS($CO$4:CP10),$CO$4:$CO$48,0)) -> 0 | CR10: =INDEX($BJ$12:$BJ$56,MATCH(ROWS($CO$4:CQ10),$CO$4:$CO$48,0)) ->  | CT10: 0
B11: Base Start Period | C11: =U2 -> 2023-12-31 | D11: =B12 -> 1996-02-20 | E11: =YEAR(C11) -> 2023 | G11: Start_Period | H11: End_Period | L11: Days Gap | M11: Opening Bal. | N11: Earned Leave | O11: Leave_Base_Year_PL | P11: Leave Taken in Year | Q11: Surrender Leave | R11: Joining Time | S11: Leave Adjustment | T11: Closing Balance (A) | U11: Maxi Leave Limit | V11: Closing Balance (B) | W11: Days in Start Month | X11: Days in End month | Y11: Days Gaps | Z11: No of Months between dates | AA11: Condtion (A) | AB11: Condtion (B) | AC11: Earn limit for Vactional | AD11: Max Limit Tracker | AG11: 5 | AH11: 05 | AI11: May | AJ11: 31 | AK11: 30 | AY11: FIND OUT LEAVE (TYPE) TAKEN IN PARTICULAR PERIOD | BC11: Code | BD11: Object | BF11: Update date | BG11: First base date for regular incre. | BH11: Code | BI11: Code | BJ11: Object | BK11: Period (Year) | BL11: No. of Days | BM11: Condition | BN11: Process | CO11: 8 | CP11: =INDEX($BK$12:$BK$56,MATCH(ROWS($CO$4:CO11),$CO$4:$CO$48,0)) ->  | CQ11: =INDEX($BN$12:$BN$56,MATCH(ROWS($CO$4:CP11),$CO$4:$CO$48,0)) -> 0 | CR11: =INDEX($BJ$12:$BJ$56,MATCH(ROWS($CO$4:CQ11),$CO$4:$CO$48,0)) ->  | CT11: 0
B12: =PL!C13 -> 1996-02-20 | C12: =E7 -> 1996-06-30 | D12: =SMALL(IF(($C$11:$C$94<=$C$11)*($C$11:$C$94>=$D$11),$C$11:$C$94,"A"),ROW(A1)) -> 1996-06-30 | E12: =IF($C$11>=D12,"YES","NO") -> YES | F12: =IFERROR(E12,"NO") -> YES | G12: =B12 -> 1996-02-20 | H12: =IF(F12="YES",D12,$C$11) -> 1996-06-30 | I12: =YEAR(G12) -> 1996 | J12: =IF(I12="","",IF(MONTH(H12)>6,"B","A")) -> A | K12: =CONCATENATE(I12,"-",J12) -> 1996-A | L12: =IF(E12="YES",1+H12-G12,H12-G12) -> 132 | N12: =IF(F12="NO","",IF(L12>0,IF(W12>0,Z12*$N$5,AA12*$N$5))) -> 10 | O12: =IF(F12="NO","",K12) -> 1996-A | P12: =INDEX($L$452:$BD$452,MATCH(O12,$L$453:$BD$453,0)) -> 0 | Q12: =IF(O12="","",IF(ISERROR(MATCH(O12,$AL$19:$AL$56,0)),0,VLOOKUP(O12,$AL$19:$AV$56,2,0))) -> 0 | R12: =IF(ISERROR(MATCH(O12,$AP$19:$AP$56,0)),0,VLOOKUP(O12,$AP$19:$AV$56,2,0)) -> 0 | S12: =IF(H12="","",IF(ISERROR(MATCH(O12,$AT$19:$AT$56,0)),0,VLOOKUP(O12,$AT$19:$AV$56,2,0))) -> 0 | T12: =IF(H12="",0,N12-P12-Q12+R12+S12+R10) -> 10 | U12: =IF($N$3="A",VLOOKUP(B12,$B$3:$E$6,4),VLOOKUP(B12,$B$3:$D$6,3)) -> 240 | V12: =MIN(T12,U10) -> 10 | W12: =IF(B12="","",INDEX($AJ$7:$AJ$18,MATCH(MONTH(B12),$AG$7:$AG$18,0))-(EOMONTH(B12,0)-B12)) -> 19 | X12: =EOMONTH(C12,0)-C12 -> 0 | Y12: =IF(X12>0,TRUNC((L12-DAY(C12))/30,0),Z12+1) -> 5 | Z12: =AP8 -> 4 | AA12: =IF(AO5="YES",AQ8,AP8) -> 5 | AC12: =IF($N$2="Vacation Deptt",IF($J$5>B12,$K$5,$H$5)) -> FALSE | AD12: =IF(B12="","",IF(M12>=U12,"YES","NO")) -> NO | AG12: 6 | AH12: 06 | AI12: June | AJ12: 30 | AK12: 31 | AL12: PL_TYPE | AM12: Surrender Leave | AP12: PL_TYPE | AQ12: Joining Time | AT12: PL_TYPE | AU12: Leave Adjustment | AY12: Start Year | AZ12: =PL!F18 -> 1990-A | BB12: =PL!E18 -> Leave Taken | BC12: 1 | BD12: Surrender Leave | BE12: =COUNTIF($BH$12:$BH$57,"<="&BH12) -> 45 | BF12: =SMALL($BH$12:$BH$22,ROW(A7)) ->  | BG12: =--ISERROR(BH12) -> 1 | BH12: =INDEX($BC$12:$BC$14,MATCH(BJ12,$BD$12:$BD$14,0)) ->  | BI12: =IF(BJ12="","",INDEX($BC$12:$BC$14,MATCH(BJ12,$BD$12:$BD$14,0))) ->  | BJ12: =IF(PL!E22="","",PL!E22) ->  | BK12: =IF(PL!F22="","",PL!F22) ->  | BL12: =IF(PL!G22="","",PL!G22) ->  | BM12: =IF(PL!H22="","",PL!H22) ->  | BN12: =IF(BM12="Yes",BL12,0) -> 0 | CO12: 9 | CP12: =INDEX($BK$12:$BK$56,MATCH(ROWS($CO$4:CO12),$CO$4:$CO$48,0)) ->  | CQ12: =INDEX($BN$12:$BN$56,MATCH(ROWS($CO$4:CP12),$CO$4:$CO$48,0)) -> 0 | CR12: =INDEX($BJ$12:$BJ$56,MATCH(ROWS($CO$4:CQ12),$CO$4:$CO$48,0)) ->  | CT12: 0
B13: =IF(C12="","",IF($B$10=C12,"",C12+1)) -> 1996-07-01 | C13: =IF(B13="","",IF(EOMONTH(B13,5)>$B$10,$B$10,IF($N$3="B",(EOMONTH(B13,5)),(EOMONTH(B13,5))))) -> 1996-12-31 | D13: =IF(B13="","",SMALL(IF(($C$11:$C$94<=$C$11)*($C$11:$C$94>=$D$11),$C$11:$C$94,"A"),ROW(A2))) -> 1996-12-31 | E13: YES | F13: YES | G13: =B13 -> 1996-07-01 | H13: =IF(G13="","",IF(F13="YES",D13,$C$11)) -> 1996-12-31 | I13: =IF(H13="","",YEAR(G13)) -> 1996 | J13: =IF(I13="","",IF(MONTH(H13)>6,"B","A")) -> B | K13: 1996-B | L13: =IF(F13="NO","",IF(E13="YES",1+H13-G13,H13-G13)) -> 184 | M13: =IF(L13="","",IF(V12>300,V12,MIN($T$10,V12))) -> 10 | N13: =IF(F13="NO","",IF(L13>0,MIN(AC13,MAX(Y13:Z13)*$N$5))) -> 15 | O13: 1996-B | P13: =IF(F13="NO","",IF(L12>0,INDEX($M$452:$CO$452,MATCH(O13,$M$453:$CO$453,0)))) -> 0 | Q13: 0 | R13: 0 | S13: 0 | T13: =IF(F13="NO",0,IF(AD13="YES",M13-P13-Q13+R13+S13,M13+N13-P13-Q13+R13+S13)) -> 25 | U13: =IF($N$3="A",VLOOKUP(B13,$B$3:$E$6,4),VLOOKUP(B13,$B$3:$D$6,3)) -> 240 | V13: =IF(F13="NO","",MIN(T13:U13)) -> 25 | W13: =IF(B13="","",INDEX($AJ$7:$AJ$18,MATCH(MONTH(B13),$AG$7:$AG$18,0))-(EOMONTH(B13,0)-B13+1)) -> 0 | X13: =EOMONTH(C13,0)-C13 -> 0 | Y13: =IF(X13>0,TRUNC((L13-DAY(C13))/30,0),Z13+1) -> 6 | Z13: =IFERROR(DATEDIF(B13,C13,"M"),"") -> 5 | AA13: =IF(Y13>=X13,"YES","NO") -> YES | AB13: =IF(AA13="YES",Z13+1,Z13) -> 6 | AC13: =IF($N$2="Vacation Deptt",IF($J$5>B13,$K$5,$H$5)) -> FALSE | AD13: NO | AG13: 7 | AH13: 07 | AI13: July | AJ13: 31 | AK13: 30 | AL13: PL_DAYS | AP13: PL_DAYS | AT13: PL_DAYS | AY13: End Year | AZ13: =PL!G18 -> 2023-A | BB13: =INDEX(BB14:BB17,MATCH(BB12,AY14:AY17,0)) -> 0 | BC13: 2 | BD13: Joining Time | BE13: 45 | BF13: =SMALL($BH$12:$BH$22,ROW(A10)) ->  | BG13: 1 | BJ13: =IF(PL!E23="","",PL!E23) ->  | BK13: =IF(PL!F23="","",PL!F23) ->  | BL13: =IF(PL!G23="","",PL!G23) ->  | BM13: =IF(PL!H23="","",PL!H23) ->  | BN13: 0 | CO13: 10 | CP13: =INDEX($BK$12:$BK$56,MATCH(ROWS($CO$4:CO13),$CO$4:$CO$48,0)) ->  | CQ13: =INDEX($BN$12:$BN$56,MATCH(ROWS($CO$4:CP13),$CO$4:$CO$48,0)) -> 0 | CR13: =INDEX($BJ$12:$BJ$56,MATCH(ROWS($CO$4:CQ13),$CO$4:$CO$48,0)) ->  | CT13: 0
B14: =IF(C13="","",IF($B$10=C13,"",C13+1)) -> 1997-01-01 | C14: =IF(B14="","",IF(EOMONTH(B14,5)>=$B$10,$B$10,IF($N$3="B",(EOMONTH(B14,5)),IF(EOMONTH(B14,11)>$B$10,$B$10,(EOMONTH(B14,11)))))) -> 1997-06-30 | D14: 1997-06-30 | E14: YES | F14: YES | G14: =B14 -> 1997-01-01 | H14: =IF(G14="","",IF(F14="YES",D14,$C$11)) -> 1997-06-30 | I14: =IF(H14="","",YEAR(G14)) -> 1997 | J14: =IF(I14="","",IF(MONTH(H14)>6,"B","A")) -> A | K14: 1997-A | L14: 181 | M14: 25 | N14: 15 | O14: 1997-A | P14: 0 | Q14: 0 | R14: 0 | S14: 0 | T14: 40 | U14: =IF($N$3="A",VLOOKUP(B14,$B$3:$E$6,4),VLOOKUP(B14,$B$3:$D$6,3)) -> 240 | V14: =IF(F14="NO","",MIN(T14:U14)) -> 40 | W14: 0 | X14: =IF(B14="","",EOMONTH(C14,0)-C14) -> 0 | Y14: =IF(X14>0,TRUNC((L14-DAY(C14))/30,0),Z14+1) -> 6 | Z14: =IFERROR(DATEDIF(B14,C14,"M"),"") -> 5 | AA14: =IF(B14="","",IF(Y14>=X14,"YES","NO")) -> YES | AB14: =IF(B14="","",IF(AA14="YES",Z14+1,Z14)) -> 6 | AC14: FALSE | AD14: NO | AG14: 8 | AH14: 08 | AI14: August | AJ14: 31 | AK14: 31 | AL14: PL_YEAR | AP14: PL_YEAR | AT14: PL_YEAR | AY14: Surrender Leave | BB14: =SUMPRODUCT(--(Leave_Base_Year_PL>=$AZ$12), --($AZ$13>=Leave_Base_Year_PL),$Q$12:$Q$94) -> 0 | BC14: 3 | BD14: Leave Adjustment | BE14: 45 | BF14: =SMALL($BH$12:$BH$22,ROW(#REF!)) ->  | BG14: 1 | BJ14: =IF(PL!E24="","",PL!E24) ->  | BK14: =IF(PL!F24="","",PL!F24) ->  | BL14: =IF(PL!G24="","",PL!G24) ->  | BM14: =IF(PL!H24="","",PL!H24) ->  | BN14: 0 | CO14: 11 | CP14: =INDEX($BK$12:$BK$56,MATCH(ROWS($CO$4:CO14),$CO$4:$CO$48,0)) ->  | CQ14: =INDEX($BN$12:$BN$56,MATCH(ROWS($CO$4:CP14),$CO$4:$CO$48,0)) -> 0 | CR14: =INDEX($BJ$12:$BJ$56,MATCH(ROWS($CO$4:CQ14),$CO$4:$CO$48,0)) ->  | CT14: 0
B15: 1997-07-01 | C15: 1997-12-31 | D15: 1997-12-31 | E15: YES | F15: YES | G15: 1997-07-01 | H15: 1997-12-31 | I15: 1997 | J15: B | K15: 1997-B | L15: 184 | M15: 40 | N15: 15 | O15: 1997-B | P15: 0 | Q15: 0 | R15: 0 | S15: 0 | T15: 55 | U15: 240 | V15: 55 | W15: 0 | X15: 0 | Y15: =IF(B15="","",IF(X15>0,TRUNC((L15-DAY(C15))/30,0),Z15+1)) -> 6 | Z15: =IFERROR(DATEDIF(B15,C15,"M"),"") -> 5 | AA15: =IF(B15="","",IF(Y15>=X15,"YES","NO")) -> YES | AB15: =IF(B15="","",IF(AA15="YES",Z15+1,Z15)) -> 6 | AC15: FALSE | AD15: NO | AG15: 9 | AH15: 09 | AI15: September | AJ15: 30 | AK15: 31 | AY15: Joining Time | BB15: =SUMPRODUCT(--(Leave_Base_Year_PL>=$AZ$12), --($AZ$13>=Leave_Base_Year_PL),$R$12:$R$94) -> 0 | BE15: 45 | BF15: =SMALL($BH$12:$BH$22,ROW(A12)) ->  | BG15: 1 | BJ15: =IF(PL!E25="","",PL!E25) ->  | BK15: =IF(PL!F25="","",PL!F25) ->  | BL15: =IF(PL!G25="","",PL!G25) ->  | BM15: =IF(PL!H25="","",PL!H25) ->  | BN15: 0 | CO15: 12 | CP15: =INDEX($BK$12:$BK$56,MATCH(ROWS($CO$4:CO15),$CO$4:$CO$48,0)) ->  | CQ15: =INDEX($BN$12:$BN$56,MATCH(ROWS($CO$4:CP15),$CO$4:$CO$48,0)) -> 0 | CR15: =INDEX($BJ$12:$BJ$56,MATCH(ROWS($CO$4:CQ15),$CO$4:$CO$48,0)) ->  | CT15: 0
B16: 1998-01-01 | C16: 1998-06-30 | D16: 1998-06-30 | E16: YES | F16: YES | G16: 1998-01-01 | H16: 1998-06-30 | I16: 1998 | J16: A | K16: 1998-A | L16: 181 | M16: 55 | N16: 15 | O16: 1998-A | P16: 0 | Q16: 0 | R16: 0 | S16: 0 | T16: 70 | U16: 300 | V16: 70 | W16: 0 | X16: 0 | Y16: 6 | Z16: =IFERROR(DATEDIF(B16,C16,"M"),"") -> 5 | AA16: YES | AB16: 6 | AC16: FALSE | AD16: NO | AG16: 10 | AH16: 10 | AI16: October | AJ16: 31 | AK16: 30 | AY16: Leave Adjustment | BB16: =SUMPRODUCT(--(Leave_Base_Year_PL>=$AZ$12), --($AZ$13>=Leave_Base_Year_PL),$S$12:$S$94) -> 0 | BE16: 45 | BG16: 1 | BJ16: =IF(PL!E26="","",PL!E26) ->  | BK16: =IF(PL!F26="","",PL!F26) ->  | BL16: =IF(PL!G26="","",PL!G26) ->  | BM16: =IF(PL!H26="","",PL!H26) ->  | BN16: 0 | CO16: 13 | CP16: =INDEX($BK$12:$BK$56,MATCH(ROWS($CO$4:CO16),$CO$4:$CO$48,0)) ->  | CQ16: =INDEX($BN$12:$BN$56,MATCH(ROWS($CO$4:CP16),$CO$4:$CO$48,0)) -> 0 | CR16: =INDEX($BJ$12:$BJ$56,MATCH(ROWS($CO$4:CQ16),$CO$4:$CO$48,0)) ->  | CT16: 0
B17: 1998-07-01 | C17: 1998-12-31 | D17: 1998-12-31 | E17: YES | F17: YES | G17: 1998-07-01 | H17: 1998-12-31 | I17: 1998 | J17: B | K17: 1998-B | L17: 184 | M17: 70 | N17: 15 | O17: 1998-B | P17: 0 | Q17: 0 | R17: 0 | S17: 0 | T17: 85 | U17: 300 | V17: 85 | W17: 0 | X17: 0 | Y17: 6 | Z17: 5 | AA17: YES | AB17: 6 | AC17: FALSE | AD17: NO | AG17: 11 | AH17: 11 | AI17: November | AJ17: 30 | AK17: 31 | AL17: Search results | AP17: Search results | AT17: Search results | AY17: Leave Taken | BB17: =SUMPRODUCT(--(Leave_Base_Year_PL>=$AZ$12), --($AZ$13>=Leave_Base_Year_PL),$P$12:$P$94) -> 0 | BE17: 45 | BG17: 1 | BJ17: =IF(PL!E27="","",PL!E27) ->  | BK17: =IF(PL!F27="","",PL!F27) ->  | BL17: =IF(PL!G27="","",PL!G27) ->  | BM17: =IF(PL!H27="","",PL!H27) ->  | BN17: 0 | CO17: 14 | CP17: =INDEX($BK$12:$BK$56,MATCH(ROWS($CO$4:CO17),$CO$4:$CO$48,0)) ->  | CQ17: =INDEX($BN$12:$BN$56,MATCH(ROWS($CO$4:CP17),$CO$4:$CO$48,0)) -> 0 | CR17: =INDEX($BJ$12:$BJ$56,MATCH(ROWS($CO$4:CQ17),$CO$4:$CO$48,0)) ->  | CT17: 0
B18: 1999-01-01 | C18: 1999-06-30 | D18: 1999-06-30 | E18: YES | F18: YES | G18: 1999-01-01 | H18: 1999-06-30 | I18: 1999 | J18: A | K18: 1999-A | L18: 181 | M18: 85 | N18: 15 | O18: 1999-A | P18: 0 | Q18: 0 | R18: 0 | S18: 0 | T18: 100 | U18: 300 | V18: 100 | W18: 0 | X18: 0 | Y18: 6 | Z18: 5 | AA18: YES | AB18: 6 | AC18: FALSE | AD18: NO | AG18: 12 | AH18: 12 | AI18: December | AJ18: 31 | AK18: 30 | AL18: PL_YEAR | AM18: PL_DAYS | AN18: PL_TYPE | AO18: Row | AP18: PL_YEAR | AQ18: PL_DAYS | AR18: PL_TYPE | AS18: Row | AT18: PL_YEAR | AU18: PL_DAYS | AV18: PL_TYPE | AW18: Row | BE18: 45 | BG18: 1 | BJ18: =IF(PL!E28="","",PL!E28) ->  | BK18: =IF(PL!F28="","",PL!F28) ->  | BL18: =IF(PL!G28="","",PL!G28) ->  | BM18: =IF(PL!H28="","",PL!H28) ->  | BN18: 0 | CO18: 15 | CP18: =INDEX($BK$12:$BK$56,MATCH(ROWS($CO$4:CO18),$CO$4:$CO$48,0)) ->  | CQ18: =INDEX($BN$12:$BN$56,MATCH(ROWS($CO$4:CP18),$CO$4:$CO$48,0)) -> 0 | CR18: =INDEX($BJ$12:$BJ$56,MATCH(ROWS($CO$4:CQ18),$CO$4:$CO$48,0)) ->  | CT18: 0
B19: 1999-07-01 | C19: 1999-12-31 | D19: 1999-12-31 | E19: YES | F19: YES | G19: 1999-07-01 | H19: 1999-12-31 | I19: 1999 | J19: B | K19: 1999-B | L19: 184 | M19: 100 | N19: 15 | O19: 1999-B | P19: 0 | Q19: 0 | R19: 0 | S19: 0 | T19: 115 | U19: 300 | V19: 115 | W19: 0 | X19: 0 | Y19: 6 | Z19: 5 | AA19: YES | AB19: 6 | AC19: FALSE | AD19: NO | AL19: =IFERROR(INDEX($CP$4:$CR$48,SMALL(IF((ISERROR(SEARCH($AM$14,PL_YEAR)*SEARCH($AM$14,PL_YEAR)*SEARCH($AM$12,PL_TYPE)))+(COUNTIFS(AL$18:$AL18,PL_YEAR,$AM$18:AM18,PL_DAYS,$AN$18:AN18,PL_TYPE)>0),"",ROW(PL_YEAR)-MIN(ROW(PL_YEAR))+1),1),COLUMN(A7)),"") ->  | AM19: =IFERROR(INDEX($CP$4:$CR$48,SMALL(IF((ISERROR(SEARCH($AM$14,PL_YEAR)*SEARCH($AM$14,PL_YEAR)*SEARCH($AM$12,PL_TYPE)))+(COUNTIFS($AL$18:AM18,PL_YEAR,$AM$18:AN18,PL_DAYS,$AN$18:AO18,PL_TYPE)>0),"",ROW(PL_YEAR)-MIN(ROW(PL_YEAR))+1),1),COLUMN(B7)),"") ->  | AN19: =IFERROR(INDEX($CP$4:$CR$48,SMALL(IF((ISERROR(SEARCH($AM$14,PL_YEAR)*SEARCH($AM$14,PL_YEAR)*SEARCH($AM$12,PL_TYPE)))+(COUNTIFS($AL$18:AN18,PL_YEAR,$AM$18:AO18,PL_DAYS,$AN$18:AP18,PL_TYPE)>0),"",ROW(PL_YEAR)-MIN(ROW(PL_YEAR))+1),1),COLUMN(C7)),"") ->  | AO19: =IFERROR(INDEX($CP$4:$CR$48,SMALL(IF((ISERROR(SEARCH($AM$14,PL_YEAR)*SEARCH($AM$14,PL_YEAR)*SEARCH($AM$12,PL_TYPE)))+(COUNTIFS($AL$18:AO18,PL_YEAR,$AM$18:AP18,PL_DAYS,$AN$18:AQ18,PL_TYPE)>0),"",ROW(PL_YEAR)-MIN(ROW(PL_YEAR))+1),1),COLUMN(E7)),"") ->  | AP19: =IFERROR(INDEX($CP$4:$CR$48,SMALL(IF((ISERROR(SEARCH($AQ$14,PL_YEAR)*SEARCH($AQ$14,PL_YEAR)*SEARCH($AQ$12,PL_TYPE)))+(COUNTIFS($AP$18:AP18,PL_YEAR,$AQ$18:AQ18,PL_DAYS,$AR$18:AR18,PL_TYPE)>0),"",ROW(PL_YEAR)-MIN(ROW(PL_YEAR))+1),1),COLUMN(A7)),"") ->  | AQ19: =IFERROR(INDEX($CP$4:$CR$48,SMALL(IF((ISERROR(SEARCH($AQ$14,PL_YEAR)*SEARCH($AQ$14,PL_YEAR)*SEARCH($AQ$12,PL_TYPE)))+(COUNTIFS($AP$18:AQ18,PL_YEAR,$AQ$18:AR18,PL_DAYS,$AR$18:AS18,PL_TYPE)>0),"",ROW(PL_YEAR)-MIN(ROW(PL_YEAR))+1),1),COLUMN(B7)),"") ->  | AR19: =IFERROR(INDEX($CP$4:$CR$48,SMALL(IF((ISERROR(SEARCH($AQ$14,PL_YEAR)*SEARCH($AQ$14,PL_YEAR)*SEARCH($AQ$12,PL_TYPE)))+(COUNTIFS($AP$18:AR18,PL_YEAR,$AQ$18:AS18,PL_DAYS,$AR$18:AT18,PL_TYPE)>0),"",ROW(PL_YEAR)-MIN(ROW(PL_YEAR))+1),1),COLUMN(C7)),"") ->  | AS19: =IFERROR(INDEX($CP$4:$CR$48,SMALL(IF((ISERROR(SEARCH($AM$14,PL_YEAR)*SEARCH($AM$14,PL_YEAR)*SEARCH($AM$12,PL_TYPE)))+(COUNTIFS($AL$18:AS18,PL_YEAR,$AM$18:AT18,PL_DAYS,$AN$18:AU18,PL_TYPE)>0),"",ROW(PL_YEAR)-MIN(ROW(PL_YEAR))+1),1),COLUMN(E7)),"") ->  | AT19: =IFERROR(INDEX($CP$4:$CR$48,SMALL(IF((ISERROR(SEARCH($AU$14,PL_YEAR)*SEARCH($AU$14,PL_YEAR)*SEARCH($AU$12,PL_TYPE)))+(COUNTIFS($AT$18:AT18,PL_YEAR,$AU$18:AU18,PL_DAYS,$AV$18:AV18,PL_TYPE)>0),"",ROW(PL_YEAR)-MIN(ROW(PL_YEAR))+1),1),COLUMN(A7)),"") ->  | AU19: =IFERROR(INDEX($CP$4:$CR$48,SMALL(IF((ISERROR(SEARCH($AU$14,PL_YEAR)*SEARCH($AU$14,PL_YEAR)*SEARCH($AU$12,PL_TYPE)))+(COUNTIFS($AT$18:AU18,PL_YEAR,$AU$18:AV18,PL_DAYS,$AV$18:AW18,PL_TYPE)>0),"",ROW(PL_YEAR)-MIN(ROW(PL_YEAR))+1),1),COLUMN(B7)),"") ->  | AV19: =IFERROR(INDEX($CP$4:$CR$48,SMALL(IF((ISERROR(SEARCH($AU$14,PL_YEAR)*SEARCH($AU$14,PL_YEAR)*SEARCH($AU$12,PL_TYPE)))+(COUNTIFS($AT$18:AV18,PL_YEAR,$AU$18:AW18,PL_DAYS,$AU$18:AW18,PL_TYPE)>0),"",ROW(PL_YEAR)-MIN(ROW(PL_YEAR))+1),1),COLUMN(C7)),"") ->  | AW19: =IFERROR(INDEX($CP$4:$CR$48,SMALL(IF((ISERROR(SEARCH($AU$14,PL_YEAR)*SEARCH($AU$14,PL_YEAR)*SEARCH($AU$12,PL_TYPE)))+(COUNTIFS($AT$18:AW18,PL_YEAR,$AU$18:AW18,PL_DAYS,$AU$18:AW18,PL_TYPE)>0),"",ROW(PL_YEAR)-MIN(ROW(PL_YEAR))+1),1),COLUMN(E7)),"") ->  | BE19: 45 | BG19: 1 | BJ19: =IF(PL!E29="","",PL!E29) ->  | BK19: =IF(PL!F29="","",PL!F29) ->  | BL19: =IF(PL!G29="","",PL!G29) ->  | BM19: =IF(PL!H29="","",PL!H29) ->  | BN19: 0 | CO19: 16 | CP19: =INDEX($BK$12:$BK$56,MATCH(ROWS($CO$4:CO19),$CO$4:$CO$48,0)) ->  | CQ19: =INDEX($BN$12:$BN$56,MATCH(ROWS($CO$4:CP19),$CO$4:$CO$48,0)) -> 0 | CR19: =INDEX($BJ$12:$BJ$56,MATCH(ROWS($CO$4:CQ19),$CO$4:$CO$48,0)) ->  | CT19: 0
B20: 2000-01-01 | C20: =IF(B20="","",IF(EOMONTH(B20,5)>=$B$10,$B$10,IF($N$3="B",(EOMONTH(B20,5)),IF(EOMONTH(B20,11)>$B$10,$B$10,(EOMONTH(B20,11)))))) -> 2000-06-30 | D20: 2000-06-30 | E20: YES | F20: YES | G20: 2000-01-01 | H20: 2000-06-30 | I20: 2000 | J20: A | K20: 2000-A | L20: 182 | M20: 115 | N20: =IF(F20="NO","",IF(L20>0,MIN(AC20,MAX(Y20:Z20)*$N$5))) -> 15 | O20: 2000-A | P20: 0 | Q20: 0 | R20: 0 | S20: 0 | T20: 130 | U20: 300 | V20: 130 | W20: 0 | X20: 0 | Y20: 6 | Z20: 5 | AA20: YES | AB20: 6 | AC20: FALSE | AD20: NO | AL20: =IFERROR(INDEX($CP$4:$CR$48,SMALL(IF((ISERROR(SEARCH($AM$14,PL_YEAR)*SEARCH($AM$14,PL_YEAR)*SEARCH($AM$12,PL_TYPE)))+(COUNTIFS(AL$18:$AL19,PL_YEAR,$AM$18:AM19,PL_DAYS,$AN$18:AN19,PL_TYPE)>0),"",ROW(PL_YEAR)-MIN(ROW(PL_YEAR))+1),1),COLUMN(A10)),"") ->  | AM20: =IFERROR(INDEX($CP$4:$CR$48,SMALL(IF((ISERROR(SEARCH($AM$14,PL_YEAR)*SEARCH($AM$14,PL_YEAR)*SEARCH($AM$12,PL_TYPE)))+(COUNTIFS($AL$18:AM19,PL_YEAR,$AM$18:AN19,PL_DAYS,$AN$18:AO19,PL_TYPE)>0),"",ROW(PL_YEAR)-MIN(ROW(PL_YEAR))+1),1),COLUMN(B10)),"") ->  | AN20: =IFERROR(INDEX($CP$4:$CR$48,SMALL(IF((ISERROR(SEARCH($AM$14,PL_YEAR)*SEARCH($AM$14,PL_YEAR)*SEARCH($AM$12,PL_TYPE)))+(COUNTIFS($AL$18:AN19,PL_YEAR,$AM$18:AO19,PL_DAYS,$AN$18:AP19,PL_TYPE)>0),"",ROW(PL_YEAR)-MIN(ROW(PL_YEAR))+1),1),COLUMN(C11)),"") ->  | AO20: =IFERROR(INDEX($CP$4:$CR$48,SMALL(IF((ISERROR(SEARCH($AM$14,PL_YEAR)*SEARCH($AM$14,PL_YEAR)*SEARCH($AM$12,PL_TYPE)))+(COUNTIFS($AL$18:AO19,PL_YEAR,$AM$18:AP19,PL_DAYS,$AN$18:AQ19,PL_TYPE)>0),"",ROW(PL_YEAR)-MIN(ROW(PL_YEAR))+1),1),COLUMN(E11)),"") ->  | AP20: =IFERROR(INDEX($CP$4:$CR$48,SMALL(IF((ISERROR(SEARCH($AQ$14,PL_YEAR)*SEARCH($AQ$14,PL_YEAR)*SEARCH($AQ$12,PL_TYPE)))+(COUNTIFS($AP$18:AP19,PL_YEAR,$AQ$18:AQ19,PL_DAYS,$AR$18:AR19,PL_TYPE)>0),"",ROW(PL_YEAR)-MIN(ROW(PL_YEAR))+1),1),COLUMN(A10)),"") ->  | AQ20: =IFERROR(INDEX($CP$4:$CR$48,SMALL(IF((ISERROR(SEARCH($AQ$14,PL_YEAR)*SEARCH($AQ$14,PL_YEAR)*SEARCH($AQ$12,PL_TYPE)))+(COUNTIFS($AP$18:AQ19,PL_YEAR,$AQ$18:AR19,PL_DAYS,$AR$18:AS19,PL_TYPE)>0),"",ROW(PL_YEAR)-MIN(ROW(PL_YEAR))+1),1),COLUMN(B10)),"") ->  | AR20: =IFERROR(INDEX($CP$4:$CR$48,SMALL(IF((ISERROR(SEARCH($AQ$14,PL_YEAR)*SEARCH($AQ$14,PL_YEAR)*SEARCH($AQ$12,PL_TYPE)))+(COUNTIFS($AP$18:AR19,PL_YEAR,$AQ$18:AS19,PL_DAYS,$AR$18:AT19,PL_TYPE)>0),"",ROW(PL_YEAR)-MIN(ROW(PL_YEAR))+1),1),COLUMN(C11)),"") ->  | AS20: =IFERROR(INDEX($CP$4:$CR$48,SMALL(IF((ISERROR(SEARCH($AM$14,PL_YEAR)*SEARCH($AM$14,PL_YEAR)*SEARCH($AM$12,PL_TYPE)))+(COUNTIFS($AL$18:AS19,PL_YEAR,$AM$18:AT19,PL_DAYS,$AN$18:AU19,PL_TYPE)>0),"",ROW(PL_YEAR)-MIN(ROW(PL_YEAR))+1),1),COLUMN(E11)),"") ->  | AT20: =IFERROR(INDEX($CP$4:$CR$48,SMALL(IF((ISERROR(SEARCH($AU$14,PL_YEAR)*SEARCH($AU$14,PL_YEAR)*SEARCH($AU$12,PL_TYPE)))+(COUNTIFS($AT$18:AT19,PL_YEAR,$AU$18:AU19,PL_DAYS,$AV$18:AV19,PL_TYPE)>0),"",ROW(PL_YEAR)-MIN(ROW(PL_YEAR))+1),1),COLUMN(A10)),"") ->  | AU20: =IFERROR(INDEX($CP$4:$CR$48,SMALL(IF((ISERROR(SEARCH($AU$14,PL_YEAR)*SEARCH($AU$14,PL_YEAR)*SEARCH($AU$12,PL_TYPE)))+(COUNTIFS($AT$18:AU19,PL_YEAR,$AU$18:AV19,PL_DAYS,$AV$18:AW19,PL_TYPE)>0),"",ROW(PL_YEAR)-MIN(ROW(PL_YEAR))+1),1),COLUMN(B10)),"") ->  | AV20: =IFERROR(INDEX($CP$4:$CR$48,SMALL(IF((ISERROR(SEARCH($AU$14,PL_YEAR)*SEARCH($AU$14,PL_YEAR)*SEARCH($AU$12,PL_TYPE)))+(COUNTIFS($AT$18:AV19,PL_YEAR,$AU$18:AW19,PL_DAYS,$AU$18:AW19,PL_TYPE)>0),"",ROW(PL_YEAR)-MIN(ROW(PL_YEAR))+1),1),COLUMN(C11)),"") ->  | AW20: =IFERROR(INDEX($CP$4:$CR$48,SMALL(IF((ISERROR(SEARCH($AU$14,PL_YEAR)*SEARCH($AU$14,PL_YEAR)*SEARCH($AU$12,PL_TYPE)))+(COUNTIFS($AT$18:AW19,PL_YEAR,$AU$18:AW19,PL_DAYS,$AU$18:AW19,PL_TYPE)>0),"",ROW(PL_YEAR)-MIN(ROW(PL_YEAR))+1),1),COLUMN(E11)),"") ->  | BE20: 45 | BG20: 1 | BJ20: =IF(PL!E30="","",PL!E30) ->  | BK20: =IF(PL!F30="","",PL!F30) ->  | BL20: =IF(PL!G30="","",PL!G30) ->  | BM20: =IF(PL!H30="","",PL!H30) ->  | BN20: 0 | CO20: 17 | CP20: =INDEX($BK$12:$BK$56,MATCH(ROWS($CO$4:CO20),$CO$4:$CO$48,0)) ->  | CQ20: =INDEX($BN$12:$BN$56,MATCH(ROWS($CO$4:CP20),$CO$4:$CO$48,0)) -> 0 | CR20: =INDEX($BJ$12:$BJ$56,MATCH(ROWS($CO$4:CQ20),$CO$4:$CO$48,0)) ->  | CT20: 0
B21: 2000-07-01 | C21: =IF(B21="","",IF(EOMONTH(B21,5)>=$B$10,$B$10,IF($N$3="B",(EOMONTH(B21,5)),IF(EOMONTH(B21,11)>$B$10,$B$10,(EOMONTH(B21,11)))))) -> 2000-12-31 | D21: =IF(B21="","",SMALL(IF(($C$11:$C$94<=$C$11)*($C$11:$C$94>=$D$11),$C$11:$C$94,"A"),ROW(A10))) -> 2000-12-31 | E21: YES | F21: YES | G21: 2000-07-01 | H21: 2000-12-31 | I21: 2000 | J21: B | K21: 2000-B | L21: 184 | M21: 130 | N21: 15 | O21: 2000-B | P21: 0 | Q21: 0 | R21: 0 | S21: 0 | T21: 145 | U21: 300 | V21: 145 | W21: 0 | X21: 0 | Y21: =IF(B21="","",IF(X21>0,TRUNC((L21-DAY(C21))/30,0),Z21+1)) -> 6 | Z21: 5 | AA21: YES | AB21: 6 | AC21: FALSE | AD21: NO | AL21: =IFERROR(INDEX($CP$4:$CR$48,SMALL(IF((ISERROR(SEARCH($AM$14,PL_YEAR)*SEARCH($AM$14,PL_YEAR)*SEARCH($AM$12,PL_TYPE)))+(COUNTIFS(AL$18:$AL20,PL_YEAR,$AM$18:AM20,PL_DAYS,$AN$18:AN20,PL_TYPE)>0),"",ROW(PL_YEAR)-MIN(ROW(PL_YEAR))+1),1),COLUMN(#REF!)),"") ->  | AM21: =IFERROR(INDEX($CP$4:$CR$48,SMALL(IF((ISERROR(SEARCH($AM$14,PL_YEAR)*SEARCH($AM$14,PL_YEAR)*SEARCH($AM$12,PL_TYPE)))+(COUNTIFS($AL$18:AM20,PL_YEAR,$AM$18:AN20,PL_DAYS,$AN$18:AO20,PL_TYPE)>0),"",ROW(PL_YEAR)-MIN(ROW(PL_YEAR))+1),1),COLUMN(B11)),"") ->  | AN21: =IFERROR(INDEX($CP$4:$CR$48,SMALL(IF((ISERROR(SEARCH($AM$14,PL_YEAR)*SEARCH($AM$14,PL_YEAR)*SEARCH($AM$12,PL_TYPE)))+(COUNTIFS($AL$18:AN20,PL_YEAR,$AM$18:AO20,PL_DAYS,$AN$18:AP20,PL_TYPE)>0),"",ROW(PL_YEAR)-MIN(ROW(PL_YEAR))+1),1),COLUMN(C10)),"") ->  | AO21: =IFERROR(INDEX($CP$4:$CR$48,SMALL(IF((ISERROR(SEARCH($AM$14,PL_YEAR)*SEARCH($AM$14,PL_YEAR)*SEARCH($AM$12,PL_TYPE)))+(COUNTIFS($AL$18:AO20,PL_YEAR,$AM$18:AP20,PL_DAYS,$AN$18:AQ20,PL_TYPE)>0),"",ROW(PL_YEAR)-MIN(ROW(PL_YEAR))+1),1),COLUMN(E10)),"") ->  | AP21: =IFERROR(INDEX($CP$4:$CR$48,SMALL(IF((ISERROR(SEARCH($AQ$14,PL_YEAR)*SEARCH($AQ$14,PL_YEAR)*SEARCH($AQ$12,PL_TYPE)))+(COUNTIFS($AP$18:AP20,PL_YEAR,$AQ$18:AQ20,PL_DAYS,$AR$18:AR20,PL_TYPE)>0),"",ROW(PL_YEAR)-MIN(ROW(PL_YEAR))+1),1),COLUMN(#REF!)),"") ->  | AQ21: =IFERROR(INDEX($CP$4:$CR$48,SMALL(IF((ISERROR(SEARCH($AQ$14,PL_YEAR)*SEARCH($AQ$14,PL_YEAR)*SEARCH($AQ$12,PL_TYPE)))+(COUNTIFS($AP$18:AQ20,PL_YEAR,$AQ$18:AR20,PL_DAYS,$AR$18:AS20,PL_TYPE)>0),"",ROW(PL_YEAR)-MIN(ROW(PL_YEAR))+1),1),COLUMN(B11)),"") ->  | AR21: =IFERROR(INDEX($CP$4:$CR$48,SMALL(IF((ISERROR(SEARCH($AQ$14,PL_YEAR)*SEARCH($AQ$14,PL_YEAR)*SEARCH($AQ$12,PL_TYPE)))+(COUNTIFS($AP$18:AR20,PL_YEAR,$AQ$18:AS20,PL_DAYS,$AR$18:AT20,PL_TYPE)>0),"",ROW(PL_YEAR)-MIN(ROW(PL_YEAR))+1),1),COLUMN(C10)),"") ->  | AS21: =IFERROR(INDEX($CP$4:$CR$48,SMALL(IF((ISERROR(SEARCH($AM$14,PL_YEAR)*SEARCH($AM$14,PL_YEAR)*SEARCH($AM$12,PL_TYPE)))+(COUNTIFS($AL$18:AS20,PL_YEAR,$AM$18:AT20,PL_DAYS,$AN$18:AU20,PL_TYPE)>0),"",ROW(PL_YEAR)-MIN(ROW(PL_YEAR))+1),1),COLUMN(E10)),"") ->  | AT21: =IFERROR(INDEX($CP$4:$CR$48,SMALL(IF((ISERROR(SEARCH($AU$14,PL_YEAR)*SEARCH($AU$14,PL_YEAR)*SEARCH($AU$12,PL_TYPE)))+(COUNTIFS($AT$18:AT20,PL_YEAR,$AU$18:AU20,PL_DAYS,$AV$18:AV20,PL_TYPE)>0),"",ROW(PL_YEAR)-MIN(ROW(PL_YEAR))+1),1),COLUMN(#REF!)),"") ->  | AU21: =IFERROR(INDEX($CP$4:$CR$48,SMALL(IF((ISERROR(SEARCH($AU$14,PL_YEAR)*SEARCH($AU$14,PL_YEAR)*SEARCH($AU$12,PL_TYPE)))+(COUNTIFS($AT$18:AU20,PL_YEAR,$AU$18:AV20,PL_DAYS,$AV$18:AW20,PL_TYPE)>0),"",ROW(PL_YEAR)-MIN(ROW(PL_YEAR))+1),1),COLUMN(B11)),"") ->  | AV21: =IFERROR(INDEX($CP$4:$CR$48,SMALL(IF((ISERROR(SEARCH($AU$14,PL_YEAR)*SEARCH($AU$14,PL_YEAR)*SEARCH($AU$12,PL_TYPE)))+(COUNTIFS($AT$18:AV20,PL_YEAR,$AU$18:AW20,PL_DAYS,$AU$18:AW20,PL_TYPE)>0),"",ROW(PL_YEAR)-MIN(ROW(PL_YEAR))+1),1),COLUMN(C10)),"") ->  | AW21: =IFERROR(INDEX($CP$4:$CR$48,SMALL(IF((ISERROR(SEARCH($AU$14,PL_YEAR)*SEARCH($AU$14,PL_YEAR)*SEARCH($AU$12,PL_TYPE)))+(COUNTIFS($AT$18:AW20,PL_YEAR,$AU$18:AW20,PL_DAYS,$AU$18:AW20,PL_TYPE)>0),"",ROW(PL_YEAR)-MIN(ROW(PL_YEAR))+1),1),COLUMN(E10)),"") ->  | BE21: 45 | BG21: 1 | BJ21: =IF(PL!E31="","",PL!E31) ->  | BK21: =IF(PL!F31="","",PL!F31) ->  | BL21: =IF(PL!G31="","",PL!G31) ->  | BM21: =IF(PL!H31="","",PL!H31) ->  | BN21: 0 | CO21: 18 | CP21: =INDEX($BK$12:$BK$56,MATCH(ROWS($CO$4:CO21),$CO$4:$CO$48,0)) ->  | CQ21: =INDEX($BN$12:$BN$56,MATCH(ROWS($CO$4:CP21),$CO$4:$CO$48,0)) -> 0 | CR21: =INDEX($BJ$12:$BJ$56,MATCH(ROWS($CO$4:CQ21),$CO$4:$CO$48,0)) ->  | CT21: 0
B22: 2001-01-01 | C22: 2001-06-30 | D22: 2001-06-30 | E22: YES | F22: YES | G22: 2001-01-01 | H22: 2001-06-30 | I22: 2001 | J22: A | K22: 2001-A | L22: 181 | M22: 145 | N22: 15 | O22: 2001-A | P22: 0 | Q22: 0 | R22: 0 | S22: 0 | T22: 160 | U22: 300 | V22: 160 | W22: 0 | X22: =IF(B22="","",EOMONTH(C22,0)-C22) -> 0 | Y22: 6 | Z22: 5 | AA22: YES | AB22: 6 | AC22: FALSE | AD22: NO | AL22: =IFERROR(INDEX($CP$4:$CR$48,SMALL(IF((ISERROR(SEARCH($AM$14,PL_YEAR)*SEARCH($AM$14,PL_YEAR)*SEARCH($AM$12,PL_TYPE)))+(COUNTIFS(AL$18:$AL21,PL_YEAR,$AM$18:AM21,PL_DAYS,$AN$18:AN21,PL_TYPE)>0),"",ROW(PL_YEAR)-MIN(ROW(PL_YEAR))+1),1),COLUMN(A12)),"") ->  | AM22: =IFERROR(INDEX($CP$4:$CR$48,SMALL(IF((ISERROR(SEARCH($AM$14,PL_YEAR)*SEARCH($AM$14,PL_YEAR)*SEARCH($AM$12,PL_TYPE)))+(COUNTIFS($AL$18:AM21,PL_YEAR,$AM$18:AN21,PL_DAYS,$AN$18:AO21,PL_TYPE)>0),"",ROW(PL_YEAR)-MIN(ROW(PL_YEAR))+1),1),COLUMN(B12)),"") ->  | AN22: =IFERROR(INDEX($CP$4:$CR$48,SMALL(IF((ISERROR(SEARCH($AM$14,PL_YEAR)*SEARCH($AM$14,PL_YEAR)*SEARCH($AM$12,PL_TYPE)))+(COUNTIFS($AL$18:AN21,PL_YEAR,$AM$18:AO21,PL_DAYS,$AN$18:AP21,PL_TYPE)>0),"",ROW(PL_YEAR)-MIN(ROW(PL_YEAR))+1),1),COLUMN(C12)),"") ->  | AO22: =IFERROR(INDEX($CP$4:$CR$48,SMALL(IF((ISERROR(SEARCH($AM$14,PL_YEAR)*SEARCH($AM$14,PL_YEAR)*SEARCH($AM$12,PL_TYPE)))+(COUNTIFS($AL$18:AO21,PL_YEAR,$AM$18:AP21,PL_DAYS,$AN$18:AQ21,PL_TYPE)>0),"",ROW(PL_YEAR)-MIN(ROW(PL_YEAR))+1),1),COLUMN(E12)),"") ->  | AP22: =IFERROR(INDEX($CP$4:$CR$48,SMALL(IF((ISERROR(SEARCH($AQ$14,PL_YEAR)*SEARCH($AQ$14,PL_YEAR)*SEARCH($AQ$12,PL_TYPE)))+(COUNTIFS($AP$18:AP21,PL_YEAR,$AQ$18:AQ21,PL_DAYS,$AR$18:AR21,PL_TYPE)>0),"",ROW(PL_YEAR)-MIN(ROW(PL_YEAR))+1),1),COLUMN(A12)),"") ->  | AQ22: =IFERROR(INDEX($CP$4:$CR$48,SMALL(IF((ISERROR(SEARCH($AQ$14,PL_YEAR)*SEARCH($AQ$14,PL_YEAR)*SEARCH($AQ$12,PL_TYPE)))+(COUNTIFS($AP$18:AQ21,PL_YEAR,$AQ$18:AR21,PL_DAYS,$AR$18:AS21,PL_TYPE)>0),"",ROW(PL_YEAR)-MIN(ROW(PL_YEAR))+1),1),COLUMN(B12)),"") ->  | AR22: =IFERROR(INDEX($CP$4:$CR$48,SMALL(IF((ISERROR(SEARCH($AQ$14,PL_YEAR)*SEARCH($AQ$14,PL_YEAR)*SEARCH($AQ$12,PL_TYPE)))+(COUNTIFS($AP$18:AR21,PL_YEAR,$AQ$18:AS21,PL_DAYS,$AR$18:AT21,PL_TYPE)>0),"",ROW(PL_YEAR)-MIN(ROW(PL_YEAR))+1),1),COLUMN(C12)),"") ->  | AS22: =IFERROR(INDEX($CP$4:$CR$48,SMALL(IF((ISERROR(SEARCH($AM$14,PL_YEAR)*SEARCH($AM$14,PL_YEAR)*SEARCH($AM$12,PL_TYPE)))+(COUNTIFS($AL$18:AS21,PL_YEAR,$AM$18:AT21,PL_DAYS,$AN$18:AU21,PL_TYPE)>0),"",ROW(PL_YEAR)-MIN(ROW(PL_YEAR))+1),1),COLUMN(E12)),"") ->  | AT22: =IFERROR(INDEX($CP$4:$CR$48,SMALL(IF((ISERROR(SEARCH($AU$14,PL_YEAR)*SEARCH($AU$14,PL_YEAR)*SEARCH($AU$12,PL_TYPE)))+(COUNTIFS($AT$18:AT21,PL_YEAR,$AU$18:AU21,PL_DAYS,$AV$18:AV21,PL_TYPE)>0),"",ROW(PL_YEAR)-MIN(ROW(PL_YEAR))+1),1),COLUMN(A12)),"") ->  | AU22: =IFERROR(INDEX($CP$4:$CR$48,SMALL(IF((ISERROR(SEARCH($AU$14,PL_YEAR)*SEARCH($AU$14,PL_YEAR)*SEARCH($AU$12,PL_TYPE)))+(COUNTIFS($AT$18:AU21,PL_YEAR,$AU$18:AV21,PL_DAYS,$AV$18:AW21,PL_TYPE)>0),"",ROW(PL_YEAR)-MIN(ROW(PL_YEAR))+1),1),COLUMN(B12)),"") ->  | AV22: =IFERROR(INDEX($CP$4:$CR$48,SMALL(IF((ISERROR(SEARCH($AU$14,PL_YEAR)*SEARCH($AU$14,PL_YEAR)*SEARCH($AU$12,PL_TYPE)))+(COUNTIFS($AT$18:AV21,PL_YEAR,$AU$18:AW21,PL_DAYS,$AU$18:AW21,PL_TYPE)>0),"",ROW(PL_YEAR)-MIN(ROW(PL_YEAR))+1),1),COLUMN(C12)),"") ->  | AW22: =IFERROR(INDEX($CP$4:$CR$48,SMALL(IF((ISERROR(SEARCH($AU$14,PL_YEAR)*SEARCH($AU$14,PL_YEAR)*SEARCH($AU$12,PL_TYPE)))+(COUNTIFS($AT$18:AW21,PL_YEAR,$AU$18:AW21,PL_DAYS,$AU$18:AW21,PL_TYPE)>0),"",ROW(PL_YEAR)-MIN(ROW(PL_YEAR))+1),1),COLUMN(E12)),"") ->  | BE22: 45 | BG22: 1 | BJ22: =IF(PL!E32="","",PL!E32) ->  | BK22: =IF(PL!F32="","",PL!F32) ->  | BL22: =IF(PL!G32="","",PL!G32) ->  | BM22: =IF(PL!H32="","",PL!H32) ->  | BN22: 0 | CO22: 19 | CP22: =INDEX($BK$12:$BK$56,MATCH(ROWS($CO$4:CO22),$CO$4:$CO$48,0)) ->  | CQ22: =INDEX($BN$12:$BN$56,MATCH(ROWS($CO$4:CP22),$CO$4:$CO$48,0)) -> 0 | CR22: =INDEX($BJ$12:$BJ$56,MATCH(ROWS($CO$4:CQ22),$CO$4:$CO$48,0)) ->  | CT22: 0
B23: 2001-07-01 | C23: 2001-12-31 | D23: 2001-12-31 | E23: YES | F23: YES | G23: 2001-07-01 | H23: 2001-12-31 | I23: 2001 | J23: B | K23: 2001-B | L23: 184 | M23: 160 | N23: 15 | O23: 2001-B | P23: 0 | Q23: 0 | R23: 0 | S23: 0 | T23: 175 | U23: 300 | V23: 175 | W23: 0 | X23: 0 | Y23: 6 | Z23: 5 | AA23: YES | AB23: 6 | AC23: FALSE | AD23: NO | AL23: =IFERROR(INDEX($CP$4:$CR$48,SMALL(IF((ISERROR(SEARCH($AM$14,PL_YEAR)*SEARCH($AM$14,PL_YEAR)*SEARCH($AM$12,PL_TYPE)))+(COUNTIFS(AL$18:$AL22,PL_YEAR,$AM$18:AM22,PL_DAYS,$AN$18:AN22,PL_TYPE)>0),"",ROW(PL_YEAR)-MIN(ROW(PL_YEAR))+1),1),COLUMN(A13)),"") ->  | AM23: =IFERROR(INDEX($CP$4:$CR$48,SMALL(IF((ISERROR(SEARCH($AM$14,PL_YEAR)*SEARCH($AM$14,PL_YEAR)*SEARCH($AM$12,PL_TYPE)))+(COUNTIFS($AL$18:AM22,PL_YEAR,$AM$18:AN22,PL_DAYS,$AN$18:AO22,PL_TYPE)>0),"",ROW(PL_YEAR)-MIN(ROW(PL_YEAR))+1),1),COLUMN(B13)),"") ->  | AN23: =IFERROR(INDEX($CP$4:$CR$48,SMALL(IF((ISERROR(SEARCH($AM$14,PL_YEAR)*SEARCH($AM$14,PL_YEAR)*SEARCH($AM$12,PL_TYPE)))+(COUNTIFS($AL$18:AN22,PL_YEAR,$AM$18:AO22,PL_DAYS,$AN$18:AP22,PL_TYPE)>0),"",ROW(PL_YEAR)-MIN(ROW(PL_YEAR))+1),1),COLUMN(C13)),"") ->  | AO23: =IFERROR(INDEX($CP$4:$CR$48,SMALL(IF((ISERROR(SEARCH($AM$14,PL_YEAR)*SEARCH($AM$14,PL_YEAR)*SEARCH($AM$12,PL_TYPE)))+(COUNTIFS($AL$18:AO22,PL_YEAR,$AM$18:AP22,PL_DAYS,$AN$18:AQ22,PL_TYPE)>0),"",ROW(PL_YEAR)-MIN(ROW(PL_YEAR))+1),1),COLUMN(E13)),"") ->  | AP23: =IFERROR(INDEX($CP$4:$CR$48,SMALL(IF((ISERROR(SEARCH($AQ$14,PL_YEAR)*SEARCH($AQ$14,PL_YEAR)*SEARCH($AQ$12,PL_TYPE)))+(COUNTIFS($AP$18:AP22,PL_YEAR,$AQ$18:AQ22,PL_DAYS,$AR$18:AR22,PL_TYPE)>0),"",ROW(PL_YEAR)-MIN(ROW(PL_YEAR))+1),1),COLUMN(A13)),"") ->  | AQ23: =IFERROR(INDEX($CP$4:$CR$48,SMALL(IF((ISERROR(SEARCH($AQ$14,PL_YEAR)*SEARCH($AQ$14,PL_YEAR)*SEARCH($AQ$12,PL_TYPE)))+(COUNTIFS($AP$18:AQ22,PL_YEAR,$AQ$18:AR22,PL_DAYS,$AR$18:AS22,PL_TYPE)>0),"",ROW(PL_YEAR)-MIN(ROW(PL_YEAR))+1),1),COLUMN(B13)),"") ->  | AR23: =IFERROR(INDEX($CP$4:$CR$48,SMALL(IF((ISERROR(SEARCH($AQ$14,PL_YEAR)*SEARCH($AQ$14,PL_YEAR)*SEARCH($AQ$12,PL_TYPE)))+(COUNTIFS($AP$18:AR22,PL_YEAR,$AQ$18:AS22,PL_DAYS,$AR$18:AT22,PL_TYPE)>0),"",ROW(PL_YEAR)-MIN(ROW(PL_YEAR))+1),1),COLUMN(C13)),"") ->  | AS23: =IFERROR(INDEX($CP$4:$CR$48,SMALL(IF((ISERROR(SEARCH($AM$14,PL_YEAR)*SEARCH($AM$14,PL_YEAR)*SEARCH($AM$12,PL_TYPE)))+(COUNTIFS($AL$18:AS22,PL_YEAR,$AM$18:AT22,PL_DAYS,$AN$18:AU22,PL_TYPE)>0),"",ROW(PL_YEAR)-MIN(ROW(PL_YEAR))+1),1),COLUMN(E13)),"") ->  | AT23: =IFERROR(INDEX($CP$4:$CR$48,SMALL(IF((ISERROR(SEARCH($AU$14,PL_YEAR)*SEARCH($AU$14,PL_YEAR)*SEARCH($AU$12,PL_TYPE)))+(COUNTIFS($AT$18:AT22,PL_YEAR,$AU$18:AU22,PL_DAYS,$AV$18:AV22,PL_TYPE)>0),"",ROW(PL_YEAR)-MIN(ROW(PL_YEAR))+1),1),COLUMN(A13)),"") ->  | AU23: =IFERROR(INDEX($CP$4:$CR$48,SMALL(IF((ISERROR(SEARCH($AU$14,PL_YEAR)*SEARCH($AU$14,PL_YEAR)*SEARCH($AU$12,PL_TYPE)))+(COUNTIFS($AT$18:AU22,PL_YEAR,$AU$18:AV22,PL_DAYS,$AV$18:AW22,PL_TYPE)>0),"",ROW(PL_YEAR)-MIN(ROW(PL_YEAR))+1),1),COLUMN(B13)),"") ->  | AV23: =IFERROR(INDEX($CP$4:$CR$48,SMALL(IF((ISERROR(SEARCH($AU$14,PL_YEAR)*SEARCH($AU$14,PL_YEAR)*SEARCH($AU$12,PL_TYPE)))+(COUNTIFS($AT$18:AV22,PL_YEAR,$AU$18:AW22,PL_DAYS,$AU$18:AW22,PL_TYPE)>0),"",ROW(PL_YEAR)-MIN(ROW(PL_YEAR))+1),1),COLUMN(C13)),"") ->  | AW23: =IFERROR(INDEX($CP$4:$CR$48,SMALL(IF((ISERROR(SEARCH($AU$14,PL_YEAR)*SEARCH($AU$14,PL_YEAR)*SEARCH($AU$12,PL_TYPE)))+(COUNTIFS($AT$18:AW22,PL_YEAR,$AU$18:AW22,PL_DAYS,$AU$18:AW22,PL_TYPE)>0),"",ROW(PL_YEAR)-MIN(ROW(PL_YEAR))+1),1),COLUMN(E13)),"") ->  | BE23: 45 | BG23: 1 | BJ23: =IF(PL!E33="","",PL!E33) ->  | BK23: =IF(PL!F33="","",PL!F33) ->  | BL23: =IF(PL!G33="","",PL!G33) ->  | BM23: =IF(PL!H33="","",PL!H33) ->  | BN23: 0 | CO23: 20 | CP23: =INDEX($BK$12:$BK$56,MATCH(ROWS($CO$4:CO23),$CO$4:$CO$48,0)) ->  | CQ23: =INDEX($BN$12:$BN$56,MATCH(ROWS($CO$4:CP23),$CO$4:$CO$48,0)) -> 0 | CR23: =INDEX($BJ$12:$BJ$56,MATCH(ROWS($CO$4:CQ23),$CO$4:$CO$48,0)) ->  | CT23: 0
B24: 2002-01-01 | C24: 2002-06-30 | D24: 2002-06-30 | E24: YES | F24: YES | G24: 2002-01-01 | H24: 2002-06-30 | I24: 2002 | J24: A | K24: 2002-A | L24: 181 | M24: 175 | N24: 15 | O24: 2002-A | P24: 0 | Q24: 0 | R24: 0 | S24: 0 | T24: 190 | U24: 300 | V24: 190 | W24: 0 | X24: 0 | Y24: 6 | Z24: 5 | AA24: YES | AB24: 6 | AC24: FALSE | AD24: NO | AL24: =IFERROR(INDEX($CP$4:$CR$48,SMALL(IF((ISERROR(SEARCH($AM$14,PL_YEAR)*SEARCH($AM$14,PL_YEAR)*SEARCH($AM$12,PL_TYPE)))+(COUNTIFS(AL$18:$AL23,PL_YEAR,$AM$18:AM23,PL_DAYS,$AN$18:AN23,PL_TYPE)>0),"",ROW(PL_YEAR)-MIN(ROW(PL_YEAR))+1),1),COLUMN(A14)),"") ->  | AM24: =IFERROR(INDEX($CP$4:$CR$48,SMALL(IF((ISERROR(SEARCH($AM$14,PL_YEAR)*SEARCH($AM$14,PL_YEAR)*SEARCH($AM$12,PL_TYPE)))+(COUNTIFS($AL$18:AM23,PL_YEAR,$AM$18:AN23,PL_DAYS,$AN$18:AO23,PL_TYPE)>0),"",ROW(PL_YEAR)-MIN(ROW(PL_YEAR))+1),1),COLUMN(B14)),"") ->  | AN24: =IFERROR(INDEX($CP$4:$CR$48,SMALL(IF((ISERROR(SEARCH($AM$14,PL_YEAR)*SEARCH($AM$14,PL_YEAR)*SEARCH($AM$12,PL_TYPE)))+(COUNTIFS($AL$18:AN23,PL_YEAR,$AM$18:AO23,PL_DAYS,$AN$18:AP23,PL_TYPE)>0),"",ROW(PL_YEAR)-MIN(ROW(PL_YEAR))+1),1),COLUMN(C14)),"") ->  | AO24: =IFERROR(INDEX($CP$4:$CR$48,SMALL(IF((ISERROR(SEARCH($AM$14,PL_YEAR)*SEARCH($AM$14,PL_YEAR)*SEARCH($AM$12,PL_TYPE)))+(COUNTIFS($AL$18:AO23,PL_YEAR,$AM$18:AP23,PL_DAYS,$AN$18:AQ23,PL_TYPE)>0),"",ROW(PL_YEAR)-MIN(ROW(PL_YEAR))+1),1),COLUMN(E14)),"") ->  | AP24: =IFERROR(INDEX($CP$4:$CR$48,SMALL(IF((ISERROR(SEARCH($AQ$14,PL_YEAR)*SEARCH($AQ$14,PL_YEAR)*SEARCH($AQ$12,PL_TYPE)))+(COUNTIFS($AP$18:AP23,PL_YEAR,$AQ$18:AQ23,PL_DAYS,$AR$18:AR23,PL_TYPE)>0),"",ROW(PL_YEAR)-MIN(ROW(PL_YEAR))+1),1),COLUMN(A14)),"") ->  | AQ24: =IFERROR(INDEX($CP$4:$CR$48,SMALL(IF((ISERROR(SEARCH($AQ$14,PL_YEAR)*SEARCH($AQ$14,PL_YEAR)*SEARCH($AQ$12,PL_TYPE)))+(COUNTIFS($AP$18:AQ23,PL_YEAR,$AQ$18:AR23,PL_DAYS,$AR$18:AS23,PL_TYPE)>0),"",ROW(PL_YEAR)-MIN(ROW(PL_YEAR))+1),1),COLUMN(B14)),"") ->  | AR24: =IFERROR(INDEX($CP$4:$CR$48,SMALL(IF((ISERROR(SEARCH($AQ$14,PL_YEAR)*SEARCH($AQ$14,PL_YEAR)*SEARCH($AQ$12,PL_TYPE)))+(COUNTIFS($AP$18:AR23,PL_YEAR,$AQ$18:AS23,PL_DAYS,$AR$18:AT23,PL_TYPE)>0),"",ROW(PL_YEAR)-MIN(ROW(PL_YEAR))+1),1),COLUMN(C14)),"") ->  | AS24: =IFERROR(INDEX($CP$4:$CR$48,SMALL(IF((ISERROR(SEARCH($AM$14,PL_YEAR)*SEARCH($AM$14,PL_YEAR)*SEARCH($AM$12,PL_TYPE)))+(COUNTIFS($AL$18:AS23,PL_YEAR,$AM$18:AT23,PL_DAYS,$AN$18:AU23,PL_TYPE)>0),"",ROW(PL_YEAR)-MIN(ROW(PL_YEAR))+1),1),COLUMN(E14)),"") ->  | AT24: =IFERROR(INDEX($CP$4:$CR$48,SMALL(IF((ISERROR(SEARCH($AU$14,PL_YEAR)*SEARCH($AU$14,PL_YEAR)*SEARCH($AU$12,PL_TYPE)))+(COUNTIFS($AT$18:AT23,PL_YEAR,$AU$18:AU23,PL_DAYS,$AV$18:AV23,PL_TYPE)>0),"",ROW(PL_YEAR)-MIN(ROW(PL_YEAR))+1),1),COLUMN(A14)),"") ->  | AU24: =IFERROR(INDEX($CP$4:$CR$48,SMALL(IF((ISERROR(SEARCH($AU$14,PL_YEAR)*SEARCH($AU$14,PL_YEAR)*SEARCH($AU$12,PL_TYPE)))+(COUNTIFS($AT$18:AU23,PL_YEAR,$AU$18:AV23,PL_DAYS,$AV$18:AW23,PL_TYPE)>0),"",ROW(PL_YEAR)-MIN(ROW(PL_YEAR))+1),1),COLUMN(B14)),"") ->  | AV24: =IFERROR(INDEX($CP$4:$CR$48,SMALL(IF((ISERROR(SEARCH($AU$14,PL_YEAR)*SEARCH($AU$14,PL_YEAR)*SEARCH($AU$12,PL_TYPE)))+(COUNTIFS($AT$18:AV23,PL_YEAR,$AU$18:AW23,PL_DAYS,$AU$18:AW23,PL_TYPE)>0),"",ROW(PL_YEAR)-MIN(ROW(PL_YEAR))+1),1),COLUMN(C14)),"") ->  | AW24: =IFERROR(INDEX($CP$4:$CR$48,SMALL(IF((ISERROR(SEARCH($AU$14,PL_YEAR)*SEARCH($AU$14,PL_YEAR)*SEARCH($AU$12,PL_TYPE)))+(COUNTIFS($AT$18:AW23,PL_YEAR,$AU$18:AW23,PL_DAYS,$AU$18:AW23,PL_TYPE)>0),"",ROW(PL_YEAR)-MIN(ROW(PL_YEAR))+1),1),COLUMN(E14)),"") ->  | BE24: 45 | BG24: 1 | BJ24: =IF(PL!E34="","",PL!E34) ->  | BK24: =IF(PL!F34="","",PL!F34) ->  | BL24: =IF(PL!G34="","",PL!G34) ->  | BM24: =IF(PL!H34="","",PL!H34) ->  | BN24: 0 | CO24: 21 | CP24: =INDEX($BK$12:$BK$56,MATCH(ROWS($CO$4:CO24),$CO$4:$CO$48,0)) ->  | CQ24: =INDEX($BN$12:$BN$56,MATCH(ROWS($CO$4:CP24),$CO$4:$CO$48,0)) -> 0 | CR24: =INDEX($BJ$12:$BJ$56,MATCH(ROWS($CO$4:CQ24),$CO$4:$CO$48,0)) ->  | CT24: 0
B25: 2002-07-01 | C25: 2002-12-31 | D25: 2002-12-31 | E25: YES | F25: YES | G25: 2002-07-01 | H25: 2002-12-31 | I25: 2002 | J25: B | K25: 2002-B | L25: 184 | M25: 190 | N25: 15 | O25: 2002-B | P25: 0 | Q25: 0 | R25: 0 | S25: 0 | T25: 205 | U25: 300 | V25: 205 | W25: 0 | X25: 0 | Y25: 6 | Z25: 5 | AA25: YES | AB25: 6 | AC25: FALSE | AD25: NO | AL25: =IFERROR(INDEX($CP$4:$CR$48,SMALL(IF((ISERROR(SEARCH($AM$14,PL_YEAR)*SEARCH($AM$14,PL_YEAR)*SEARCH($AM$12,PL_TYPE)))+(COUNTIFS(AL$18:$AL24,PL_YEAR,$AM$18:AM24,PL_DAYS,$AN$18:AN24,PL_TYPE)>0),"",ROW(PL_YEAR)-MIN(ROW(PL_YEAR))+1),1),COLUMN(A15)),"") ->  | AM25: =IFERROR(INDEX($CP$4:$CR$48,SMALL(IF((ISERROR(SEARCH($AM$14,PL_YEAR)*SEARCH($AM$14,PL_YEAR)*SEARCH($AM$12,PL_TYPE)))+(COUNTIFS($AL$18:AM24,PL_YEAR,$AM$18:AN24,PL_DAYS,$AN$18:AO24,PL_TYPE)>0),"",ROW(PL_YEAR)-MIN(ROW(PL_YEAR))+1),1),COLUMN(B15)),"") ->  | AN25: =IFERROR(INDEX($CP$4:$CR$48,SMALL(IF((ISERROR(SEARCH($AM$14,PL_YEAR)*SEARCH($AM$14,PL_YEAR)*SEARCH($AM$12,PL_TYPE)))+(COUNTIFS($AL$18:AN24,PL_YEAR,$AM$18:AO24,PL_DAYS,$AN$18:AP24,PL_TYPE)>0),"",ROW(PL_YEAR)-MIN(ROW(PL_YEAR))+1),1),COLUMN(C15)),"") ->  | AO25: =IFERROR(INDEX($CP$4:$CR$48,SMALL(IF((ISERROR(SEARCH($AM$14,PL_YEAR)*SEARCH($AM$14,PL_YEAR)*SEARCH($AM$12,PL_TYPE)))+(COUNTIFS($AL$18:AO24,PL_YEAR,$AM$18:AP24,PL_DAYS,$AN$18:AQ24,PL_TYPE)>0),"",ROW(PL_YEAR)-MIN(ROW(PL_YEAR))+1),1),COLUMN(E15)),"") ->  | AP25: =IFERROR(INDEX($CP$4:$CR$48,SMALL(IF((ISERROR(SEARCH($AQ$14,PL_YEAR)*SEARCH($AQ$14,PL_YEAR)*SEARCH($AQ$12,PL_TYPE)))+(COUNTIFS($AP$18:AP24,PL_YEAR,$AQ$18:AQ24,PL_DAYS,$AR$18:AR24,PL_TYPE)>0),"",ROW(PL_YEAR)-MIN(ROW(PL_YEAR))+1),1),COLUMN(A15)),"") ->  | AQ25: =IFERROR(INDEX($CP$4:$CR$48,SMALL(IF((ISERROR(SEARCH($AQ$14,PL_YEAR)*SEARCH($AQ$14,PL_YEAR)*SEARCH($AQ$12,PL_TYPE)))+(COUNTIFS($AP$18:AQ24,PL_YEAR,$AQ$18:AR24,PL_DAYS,$AR$18:AS24,PL_TYPE)>0),"",ROW(PL_YEAR)-MIN(ROW(PL_YEAR))+1),1),COLUMN(B15)),"") ->  | AR25: =IFERROR(INDEX($CP$4:$CR$48,SMALL(IF((ISERROR(SEARCH($AQ$14,PL_YEAR)*SEARCH($AQ$14,PL_YEAR)*SEARCH($AQ$12,PL_TYPE)))+(COUNTIFS($AP$18:AR24,PL_YEAR,$AQ$18:AS24,PL_DAYS,$AR$18:AT24,PL_TYPE)>0),"",ROW(PL_YEAR)-MIN(ROW(PL_YEAR))+1),1),COLUMN(C15)),"") ->  | AS25: =IFERROR(INDEX($CP$4:$CR$48,SMALL(IF((ISERROR(SEARCH($AM$14,PL_YEAR)*SEARCH($AM$14,PL_YEAR)*SEARCH($AM$12,PL_TYPE)))+(COUNTIFS($AL$18:AS24,PL_YEAR,$AM$18:AT24,PL_DAYS,$AN$18:AU24,PL_TYPE)>0),"",ROW(PL_YEAR)-MIN(ROW(PL_YEAR))+1),1),COLUMN(E15)),"") ->  | AT25: =IFERROR(INDEX($CP$4:$CR$48,SMALL(IF((ISERROR(SEARCH($AU$14,PL_YEAR)*SEARCH($AU$14,PL_YEAR)*SEARCH($AU$12,PL_TYPE)))+(COUNTIFS($AT$18:AT24,PL_YEAR,$AU$18:AU24,PL_DAYS,$AV$18:AV24,PL_TYPE)>0),"",ROW(PL_YEAR)-MIN(ROW(PL_YEAR))+1),1),COLUMN(A15)),"") ->  | AU25: =IFERROR(INDEX($CP$4:$CR$48,SMALL(IF((ISERROR(SEARCH($AU$14,PL_YEAR)*SEARCH($AU$14,PL_YEAR)*SEARCH($AU$12,PL_TYPE)))+(COUNTIFS($AT$18:AU24,PL_YEAR,$AU$18:AV24,PL_DAYS,$AV$18:AW24,PL_TYPE)>0),"",ROW(PL_YEAR)-MIN(ROW(PL_YEAR))+1),1),COLUMN(B15)),"") ->  | AV25: =IFERROR(INDEX($CP$4:$CR$48,SMALL(IF((ISERROR(SEARCH($AU$14,PL_YEAR)*SEARCH($AU$14,PL_YEAR)*SEARCH($AU$12,PL_TYPE)))+(COUNTIFS($AT$18:AV24,PL_YEAR,$AU$18:AW24,PL_DAYS,$AU$18:AW24,PL_TYPE)>0),"",ROW(PL_YEAR)-MIN(ROW(PL_YEAR))+1),1),COLUMN(C15)),"") ->  | AW25: =IFERROR(INDEX($CP$4:$CR$48,SMALL(IF((ISERROR(SEARCH($AU$14,PL_YEAR)*SEARCH($AU$14,PL_YEAR)*SEARCH($AU$12,PL_TYPE)))+(COUNTIFS($AT$18:AW24,PL_YEAR,$AU$18:AW24,PL_DAYS,$AU$18:AW24,PL_TYPE)>0),"",ROW(PL_YEAR)-MIN(ROW(PL_YEAR))+1),1),COLUMN(E15)),"") ->  | BE25: 45 | BG25: 1 | BJ25: =IF(PL!E35="","",PL!E35) ->  | BK25: =IF(PL!F35="","",PL!F35) ->  | BL25: =IF(PL!G35="","",PL!G35) ->  | BM25: =IF(PL!H35="","",PL!H35) ->  | BN25: 0 | CO25: 22 | CP25: =INDEX($BK$12:$BK$56,MATCH(ROWS($CO$4:CO25),$CO$4:$CO$48,0)) ->  | CQ25: =INDEX($BN$12:$BN$56,MATCH(ROWS($CO$4:CP25),$CO$4:$CO$48,0)) -> 0 | CR25: =INDEX($BJ$12:$BJ$56,MATCH(ROWS($CO$4:CQ25),$CO$4:$CO$48,0)) ->  | CT25: 0
B26: 2003-01-01 | C26: 2003-06-30 | D26: 2003-06-30 | E26: YES | F26: YES | G26: 2003-01-01 | H26: 2003-06-30 | I26: 2003 | J26: A | K26: 2003-A | L26: 181 | M26: 205 | N26: 15 | O26: 2003-A | P26: 0 | Q26: 0 | R26: 0 | S26: 0 | T26: 220 | U26: 300 | V26: 220 | W26: 0 | X26: 0 | Y26: 6 | Z26: 5 | AA26: YES | AB26: 6 | AC26: FALSE | AD26: NO | AL26: =IFERROR(INDEX($CP$4:$CR$48,SMALL(IF((ISERROR(SEARCH($AM$14,PL_YEAR)*SEARCH($AM$14,PL_YEAR)*SEARCH($AM$12,PL_TYPE)))+(COUNTIFS(AL$18:$AL25,PL_YEAR,$AM$18:AM25,PL_DAYS,$AN$18:AN25,PL_TYPE)>0),"",ROW(PL_YEAR)-MIN(ROW(PL_YEAR))+1),1),COLUMN(A16)),"") ->  | AM26: =IFERROR(INDEX($CP$4:$CR$48,SMALL(IF((ISERROR(SEARCH($AM$14,PL_YEAR)*SEARCH($AM$14,PL_YEAR)*SEARCH($AM$12,PL_TYPE)))+(COUNTIFS($AL$18:AM25,PL_YEAR,$AM$18:AN25,PL_DAYS,$AN$18:AO25,PL_TYPE)>0),"",ROW(PL_YEAR)-MIN(ROW(PL_YEAR))+1),1),COLUMN(B16)),"") ->  | AN26: =IFERROR(INDEX($CP$4:$CR$48,SMALL(IF((ISERROR(SEARCH($AM$14,PL_YEAR)*SEARCH($AM$14,PL_YEAR)*SEARCH($AM$12,PL_TYPE)))+(COUNTIFS($AL$18:AN25,PL_YEAR,$AM$18:AO25,PL_DAYS,$AN$18:AP25,PL_TYPE)>0),"",ROW(PL_YEAR)-MIN(ROW(PL_YEAR))+1),1),COLUMN(C16)),"") ->  | AO26: =IFERROR(INDEX($CP$4:$CR$48,SMALL(IF((ISERROR(SEARCH($AM$14,PL_YEAR)*SEARCH($AM$14,PL_YEAR)*SEARCH($AM$12,PL_TYPE)))+(COUNTIFS($AL$18:AO25,PL_YEAR,$AM$18:AP25,PL_DAYS,$AN$18:AQ25,PL_TYPE)>0),"",ROW(PL_YEAR)-MIN(ROW(PL_YEAR))+1),1),COLUMN(E16)),"") ->  | AP26: =IFERROR(INDEX($CP$4:$CR$48,SMALL(IF((ISERROR(SEARCH($AQ$14,PL_YEAR)*SEARCH($AQ$14,PL_YEAR)*SEARCH($AQ$12,PL_TYPE)))+(COUNTIFS($AP$18:AP25,PL_YEAR,$AQ$18:AQ25,PL_DAYS,$AR$18:AR25,PL_TYPE)>0),"",ROW(PL_YEAR)-MIN(ROW(PL_YEAR))+1),1),COLUMN(A16)),"") ->  | AQ26: =IFERROR(INDEX($CP$4:$CR$48,SMALL(IF((ISERROR(SEARCH($AQ$14,PL_YEAR)*SEARCH($AQ$14,PL_YEAR)*SEARCH($AQ$12,PL_TYPE)))+(COUNTIFS($AP$18:AQ25,PL_YEAR,$AQ$18:AR25,PL_DAYS,$AR$18:AS25,PL_TYPE)>0),"",ROW(PL_YEAR)-MIN(ROW(PL_YEAR))+1),1),COLUMN(B16)),"") ->  | AR26: =IFERROR(INDEX($CP$4:$CR$48,SMALL(IF((ISERROR(SEARCH($AQ$14,PL_YEAR)*SEARCH($AQ$14,PL_YEAR)*SEARCH($AQ$12,PL_TYPE)))+(COUNTIFS($AP$18:AR25,PL_YEAR,$AQ$18:AS25,PL_DAYS,$AR$18:AT25,PL_TYPE)>0),"",ROW(PL_YEAR)-MIN(ROW(PL_YEAR))+1),1),COLUMN(C16)),"") ->  | AS26: =IFERROR(INDEX($CP$4:$CR$48,SMALL(IF((ISERROR(SEARCH($AM$14,PL_YEAR)*SEARCH($AM$14,PL_YEAR)*SEARCH($AM$12,PL_TYPE)))+(COUNTIFS($AL$18:AS25,PL_YEAR,$AM$18:AT25,PL_DAYS,$AN$18:AU25,PL_TYPE)>0),"",ROW(PL_YEAR)-MIN(ROW(PL_YEAR))+1),1),COLUMN(E16)),"") ->  | AT26: =IFERROR(INDEX($CP$4:$CR$48,SMALL(IF((ISERROR(SEARCH($AU$14,PL_YEAR)*SEARCH($AU$14,PL_YEAR)*SEARCH($AU$12,PL_TYPE)))+(COUNTIFS($AT$18:AT25,PL_YEAR,$AU$18:AU25,PL_DAYS,$AV$18:AV25,PL_TYPE)>0),"",ROW(PL_YEAR)-MIN(ROW(PL_YEAR))+1),1),COLUMN(A16)),"") ->  | AU26: =IFERROR(INDEX($CP$4:$CR$48,SMALL(IF((ISERROR(SEARCH($AU$14,PL_YEAR)*SEARCH($AU$14,PL_YEAR)*SEARCH($AU$12,PL_TYPE)))+(COUNTIFS($AT$18:AU25,PL_YEAR,$AU$18:AV25,PL_DAYS,$AV$18:AW25,PL_TYPE)>0),"",ROW(PL_YEAR)-MIN(ROW(PL_YEAR))+1),1),COLUMN(B16)),"") ->  | AV26: =IFERROR(INDEX($CP$4:$CR$48,SMALL(IF((ISERROR(SEARCH($AU$14,PL_YEAR)*SEARCH($AU$14,PL_YEAR)*SEARCH($AU$12,PL_TYPE)))+(COUNTIFS($AT$18:AV25,PL_YEAR,$AU$18:AW25,PL_DAYS,$AU$18:AW25,PL_TYPE)>0),"",ROW(PL_YEAR)-MIN(ROW(PL_YEAR))+1),1),COLUMN(C16)),"") ->  | AW26: =IFERROR(INDEX($CP$4:$CR$48,SMALL(IF((ISERROR(SEARCH($AU$14,PL_YEAR)*SEARCH($AU$14,PL_YEAR)*SEARCH($AU$12,PL_TYPE)))+(COUNTIFS($AT$18:AW25,PL_YEAR,$AU$18:AW25,PL_DAYS,$AU$18:AW25,PL_TYPE)>0),"",ROW(PL_YEAR)-MIN(ROW(PL_YEAR))+1),1),COLUMN(E16)),"") ->  | BE26: 45 | BG26: 1 | BJ26: =IF(PL!E36="","",PL!E36) ->  | BK26: =IF(PL!F36="","",PL!F36) ->  | BL26: =IF(PL!G36="","",PL!G36) ->  | BM26: =IF(PL!H36="","",PL!H36) ->  | BN26: 0 | CO26: 23 | CP26: =INDEX($BK$12:$BK$56,MATCH(ROWS($CO$4:CO26),$CO$4:$CO$48,0)) ->  | CQ26: =INDEX($BN$12:$BN$56,MATCH(ROWS($CO$4:CP26),$CO$4:$CO$48,0)) -> 0 | CR26: =INDEX($BJ$12:$BJ$56,MATCH(ROWS($CO$4:CQ26),$CO$4:$CO$48,0)) ->  | CT26: 0
B27: 2003-07-01 | C27: 2003-12-31 | D27: 2003-12-31 | E27: YES | F27: YES | G27: 2003-07-01 | H27: 2003-12-31 | I27: 2003 | J27: B | K27: 2003-B | L27: 184 | M27: 220 | N27: 15 | O27: 2003-B | P27: 0 | Q27: 0 | R27: 0 | S27: 0 | T27: 235 | U27: 300 | V27: 235 | W27: 0 | X27: 0 | Y27: 6 | Z27: 5 | AA27: YES | AB27: 6 | AC27: FALSE | AD27: NO | AL27: =IFERROR(INDEX($CP$4:$CR$48,SMALL(IF((ISERROR(SEARCH($AM$14,PL_YEAR)*SEARCH($AM$14,PL_YEAR)*SEARCH($AM$12,PL_TYPE)))+(COUNTIFS(AL$18:$AL26,PL_YEAR,$AM$18:AM26,PL_DAYS,$AN$18:AN26,PL_TYPE)>0),"",ROW(PL_YEAR)-MIN(ROW(PL_YEAR))+1),1),COLUMN(A17)),"") ->  | AM27: =IFERROR(INDEX($CP$4:$CR$48,SMALL(IF((ISERROR(SEARCH($AM$14,PL_YEAR)*SEARCH($AM$14,PL_YEAR)*SEARCH($AM$12,PL_TYPE)))+(COUNTIFS($AL$18:AM26,PL_YEAR,$AM$18:AN26,PL_DAYS,$AN$18:AO26,PL_TYPE)>0),"",ROW(PL_YEAR)-MIN(ROW(PL_YEAR))+1),1),COLUMN(B17)),"") ->  | AN27: =IFERROR(INDEX($CP$4:$CR$48,SMALL(IF((ISERROR(SEARCH($AM$14,PL_YEAR)*SEARCH($AM$14,PL_YEAR)*SEARCH($AM$12,PL_TYPE)))+(COUNTIFS($AL$18:AN26,PL_YEAR,$AM$18:AO26,PL_DAYS,$AN$18:AP26,PL_TYPE)>0),"",ROW(PL_YEAR)-MIN(ROW(PL_YEAR))+1),1),COLUMN(C17)),"") ->  | AO27: =IFERROR(INDEX($CP$4:$CR$48,SMALL(IF((ISERROR(SEARCH($AM$14,PL_YEAR)*SEARCH($AM$14,PL_YEAR)*SEARCH($AM$12,PL_TYPE)))+(COUNTIFS($AL$18:AO26,PL_YEAR,$AM$18:AP26,PL_DAYS,$AN$18:AQ26,PL_TYPE)>0),"",ROW(PL_YEAR)-MIN(ROW(PL_YEAR))+1),1),COLUMN(E17)),"") ->  | AP27: =IFERROR(INDEX($CP$4:$CR$48,SMALL(IF((ISERROR(SEARCH($AQ$14,PL_YEAR)*SEARCH($AQ$14,PL_YEAR)*SEARCH($AQ$12,PL_TYPE)))+(COUNTIFS($AP$18:AP26,PL_YEAR,$AQ$18:AQ26,PL_DAYS,$AR$18:AR26,PL_TYPE)>0),"",ROW(PL_YEAR)-MIN(ROW(PL_YEAR))+1),1),COLUMN(A17)),"") ->  | AQ27: =IFERROR(INDEX($CP$4:$CR$48,SMALL(IF((ISERROR(SEARCH($AQ$14,PL_YEAR)*SEARCH($AQ$14,PL_YEAR)*SEARCH($AQ$12,PL_TYPE)))+(COUNTIFS($AP$18:AQ26,PL_YEAR,$AQ$18:AR26,PL_DAYS,$AR$18:AS26,PL_TYPE)>0),"",ROW(PL_YEAR)-MIN(ROW(PL_YEAR))+1),1),COLUMN(B17)),"") ->  | AR27: =IFERROR(INDEX($CP$4:$CR$48,SMALL(IF((ISERROR(SEARCH($AQ$14,PL_YEAR)*SEARCH($AQ$14,PL_YEAR)*SEARCH($AQ$12,PL_TYPE)))+(COUNTIFS($AP$18:AR26,PL_YEAR,$AQ$18:AS26,PL_DAYS,$AR$18:AT26,PL_TYPE)>0),"",ROW(PL_YEAR)-MIN(ROW(PL_YEAR))+1),1),COLUMN(C17)),"") ->  | AS27: =IFERROR(INDEX($CP$4:$CR$48,SMALL(IF((ISERROR(SEARCH($AM$14,PL_YEAR)*SEARCH($AM$14,PL_YEAR)*SEARCH($AM$12,PL_TYPE)))+(COUNTIFS($AL$18:AS26,PL_YEAR,$AM$18:AT26,PL_DAYS,$AN$18:AU26,PL_TYPE)>0),"",ROW(PL_YEAR)-MIN(ROW(PL_YEAR))+1),1),COLUMN(E17)),"") ->  | AT27: =IFERROR(INDEX($CP$4:$CR$48,SMALL(IF((ISERROR(SEARCH($AU$14,PL_YEAR)*SEARCH($AU$14,PL_YEAR)*SEARCH($AU$12,PL_TYPE)))+(COUNTIFS($AT$18:AT26,PL_YEAR,$AU$18:AU26,PL_DAYS,$AV$18:AV26,PL_TYPE)>0),"",ROW(PL_YEAR)-MIN(ROW(PL_YEAR))+1),1),COLUMN(A17)),"") ->  | AU27: =IFERROR(INDEX($CP$4:$CR$48,SMALL(IF((ISERROR(SEARCH($AU$14,PL_YEAR)*SEARCH($AU$14,PL_YEAR)*SEARCH($AU$12,PL_TYPE)))+(COUNTIFS($AT$18:AU26,PL_YEAR,$AU$18:AV26,PL_DAYS,$AV$18:AW26,PL_TYPE)>0),"",ROW(PL_YEAR)-MIN(ROW(PL_YEAR))+1),1),COLUMN(B17)),"") ->  | AV27: =IFERROR(INDEX($CP$4:$CR$48,SMALL(IF((ISERROR(SEARCH($AU$14,PL_YEAR)*SEARCH($AU$14,PL_YEAR)*SEARCH($AU$12,PL_TYPE)))+(COUNTIFS($AT$18:AV26,PL_YEAR,$AU$18:AW26,PL_DAYS,$AU$18:AW26,PL_TYPE)>0),"",ROW(PL_YEAR)-MIN(ROW(PL_YEAR))+1),1),COLUMN(C17)),"") ->  | AW27: =IFERROR(INDEX($CP$4:$CR$48,SMALL(IF((ISERROR(SEARCH($AU$14,PL_YEAR)*SEARCH($AU$14,PL_YEAR)*SEARCH($AU$12,PL_TYPE)))+(COUNTIFS($AT$18:AW26,PL_YEAR,$AU$18:AW26,PL_DAYS,$AU$18:AW26,PL_TYPE)>0),"",ROW(PL_YEAR)-MIN(ROW(PL_YEAR))+1),1),COLUMN(E17)),"") ->  | BE27: 45 | BG27: 1 | BJ27: =IF(PL!E37="","",PL!E37) ->  | BK27: =IF(PL!F37="","",PL!F37) ->  | BL27: =IF(PL!G37="","",PL!G37) ->  | BM27: =IF(PL!H37="","",PL!H37) ->  | BN27: 0 | CO27: 24 | CP27: =INDEX($BK$12:$BK$56,MATCH(ROWS($CO$4:CO27),$CO$4:$CO$48,0)) ->  | CQ27: =INDEX($BN$12:$BN$56,MATCH(ROWS($CO$4:CP27),$CO$4:$CO$48,0)) -> 0 | CR27: =INDEX($BJ$12:$BJ$56,MATCH(ROWS($CO$4:CQ27),$CO$4:$CO$48,0)) ->  | CT27: 0
B28: 2004-01-01 | C28: 2004-06-30 | D28: 2004-06-30 | E28: YES | F28: YES | G28: 2004-01-01 | H28: 2004-06-30 | I28: 2004 | J28: A | K28: 2004-A | L28: 182 | M28: 235 | N28: 15 | O28: 2004-A | P28: 0 | Q28: 0 | R28: 0 | S28: 0 | T28: 250 | U28: 300 | V28: 250 | W28: 0 | X28: 0 | Y28: 6 | Z28: 5 | AA28: YES | AB28: 6 | AC28: FALSE | AD28: NO | AL28: =IFERROR(INDEX($CP$4:$CR$48,SMALL(IF((ISERROR(SEARCH($AM$14,PL_YEAR)*SEARCH($AM$14,PL_YEAR)*SEARCH($AM$12,PL_TYPE)))+(COUNTIFS(AL$18:$AL27,PL_YEAR,$AM$18:AM27,PL_DAYS,$AN$18:AN27,PL_TYPE)>0),"",ROW(PL_YEAR)-MIN(ROW(PL_YEAR))+1),1),COLUMN(A18)),"") ->  | AM28: =IFERROR(INDEX($CP$4:$CR$48,SMALL(IF((ISERROR(SEARCH($AM$14,PL_YEAR)*SEARCH($AM$14,PL_YEAR)*SEARCH($AM$12,PL_TYPE)))+(COUNTIFS($AL$18:AM27,PL_YEAR,$AM$18:AN27,PL_DAYS,$AN$18:AO27,PL_TYPE)>0),"",ROW(PL_YEAR)-MIN(ROW(PL_YEAR))+1),1),COLUMN(B18)),"") ->  | AN28: =IFERROR(INDEX($CP$4:$CR$48,SMALL(IF((ISERROR(SEARCH($AM$14,PL_YEAR)*SEARCH($AM$14,PL_YEAR)*SEARCH($AM$12,PL_TYPE)))+(COUNTIFS($AL$18:AN27,PL_YEAR,$AM$18:AO27,PL_DAYS,$AN$18:AP27,PL_TYPE)>0),"",ROW(PL_YEAR)-MIN(ROW(PL_YEAR))+1),1),COLUMN(C18)),"") ->  | AO28: =IFERROR(INDEX($CP$4:$CR$48,SMALL(IF((ISERROR(SEARCH($AM$14,PL_YEAR)*SEARCH($AM$14,PL_YEAR)*SEARCH($AM$12,PL_TYPE)))+(COUNTIFS($AL$18:AO27,PL_YEAR,$AM$18:AP27,PL_DAYS,$AN$18:AQ27,PL_TYPE)>0),"",ROW(PL_YEAR)-MIN(ROW(PL_YEAR))+1),1),COLUMN(E18)),"") ->  | AP28: =IFERROR(INDEX($CP$4:$CR$48,SMALL(IF((ISERROR(SEARCH($AQ$14,PL_YEAR)*SEARCH($AQ$14,PL_YEAR)*SEARCH($AQ$12,PL_TYPE)))+(COUNTIFS($AP$18:AP27,PL_YEAR,$AQ$18:AQ27,PL_DAYS,$AR$18:AR27,PL_TYPE)>0),"",ROW(PL_YEAR)-MIN(ROW(PL_YEAR))+1),1),COLUMN(A18)),"") ->  | AQ28: =IFERROR(INDEX($CP$4:$CR$48,SMALL(IF((ISERROR(SEARCH($AQ$14,PL_YEAR)*SEARCH($AQ$14,PL_YEAR)*SEARCH($AQ$12,PL_TYPE)))+(COUNTIFS($AP$18:AQ27,PL_YEAR,$AQ$18:AR27,PL_DAYS,$AR$18:AS27,PL_TYPE)>0),"",ROW(PL_YEAR)-MIN(ROW(PL_YEAR))+1),1),COLUMN(B18)),"") ->  | AR28: =IFERROR(INDEX($CP$4:$CR$48,SMALL(IF((ISERROR(SEARCH($AQ$14,PL_YEAR)*SEARCH($AQ$14,PL_YEAR)*SEARCH($AQ$12,PL_TYPE)))+(COUNTIFS($AP$18:AR27,PL_YEAR,$AQ$18:AS27,PL_DAYS,$AR$18:AT27,PL_TYPE)>0),"",ROW(PL_YEAR)-MIN(ROW(PL_YEAR))+1),1),COLUMN(C18)),"") ->  | AS28: =IFERROR(INDEX($CP$4:$CR$48,SMALL(IF((ISERROR(SEARCH($AM$14,PL_YEAR)*SEARCH($AM$14,PL_YEAR)*SEARCH($AM$12,PL_TYPE)))+(COUNTIFS($AL$18:AS27,PL_YEAR,$AM$18:AT27,PL_DAYS,$AN$18:AU27,PL_TYPE)>0),"",ROW(PL_YEAR)-MIN(ROW(PL_YEAR))+1),1),COLUMN(E18)),"") ->  | AT28: =IFERROR(INDEX($CP$4:$CR$48,SMALL(IF((ISERROR(SEARCH($AU$14,PL_YEAR)*SEARCH($AU$14,PL_YEAR)*SEARCH($AU$12,PL_TYPE)))+(COUNTIFS($AT$18:AT27,PL_YEAR,$AU$18:AU27,PL_DAYS,$AV$18:AV27,PL_TYPE)>0),"",ROW(PL_YEAR)-MIN(ROW(PL_YEAR))+1),1),COLUMN(A18)),"") ->  | AU28: =IFERROR(INDEX($CP$4:$CR$48,SMALL(IF((ISERROR(SEARCH($AU$14,PL_YEAR)*SEARCH($AU$14,PL_YEAR)*SEARCH($AU$12,PL_TYPE)))+(COUNTIFS($AT$18:AU27,PL_YEAR,$AU$18:AV27,PL_DAYS,$AV$18:AW27,PL_TYPE)>0),"",ROW(PL_YEAR)-MIN(ROW(PL_YEAR))+1),1),COLUMN(B18)),"") ->  | AV28: =IFERROR(INDEX($CP$4:$CR$48,SMALL(IF((ISERROR(SEARCH($AU$14,PL_YEAR)*SEARCH($AU$14,PL_YEAR)*SEARCH($AU$12,PL_TYPE)))+(COUNTIFS($AT$18:AV27,PL_YEAR,$AU$18:AW27,PL_DAYS,$AU$18:AW27,PL_TYPE)>0),"",ROW(PL_YEAR)-MIN(ROW(PL_YEAR))+1),1),COLUMN(C18)),"") ->  | AW28: =IFERROR(INDEX($CP$4:$CR$48,SMALL(IF((ISERROR(SEARCH($AU$14,PL_YEAR)*SEARCH($AU$14,PL_YEAR)*SEARCH($AU$12,PL_TYPE)))+(COUNTIFS($AT$18:AW27,PL_YEAR,$AU$18:AW27,PL_DAYS,$AU$18:AW27,PL_TYPE)>0),"",ROW(PL_YEAR)-MIN(ROW(PL_YEAR))+1),1),COLUMN(E18)),"") ->  | BE28: 45 | BG28: 1 | BJ28: =IF(PL!E38="","",PL!E38) ->  | BK28: =IF(PL!F38="","",PL!F38) ->  | BL28: =IF(PL!G38="","",PL!G38) ->  | BM28: =IF(PL!H38="","",PL!H38) ->  | BN28: 0 | CO28: 25 | CP28: =INDEX($BK$12:$BK$56,MATCH(ROWS($CO$4:CO28),$CO$4:$CO$48,0)) ->  | CQ28: =INDEX($BN$12:$BN$56,MATCH(ROWS($CO$4:CP28),$CO$4:$CO$48,0)) -> 0 | CR28: =INDEX($BJ$12:$BJ$56,MATCH(ROWS($CO$4:CQ28),$CO$4:$CO$48,0)) ->  | CT28: 0
B29: 2004-07-01 | C29: 2004-12-31 | D29: 2004-12-31 | E29: YES | F29: YES | G29: 2004-07-01 | H29: 2004-12-31 | I29: 2004 | J29: B | K29: 2004-B | L29: 184 | M29: 250 | N29: 15 | O29: 2004-B | P29: 0 | Q29: 0 | R29: 0 | S29: 0 | T29: 265 | U29: 300 | V29: 265 | W29: 0 | X29: 0 | Y29: 6 | Z29: 5 | AA29: YES | AB29: 6 | AC29: FALSE | AD29: NO | AL29: =IFERROR(INDEX($CP$4:$CR$48,SMALL(IF((ISERROR(SEARCH($AM$14,PL_YEAR)*SEARCH($AM$14,PL_YEAR)*SEARCH($AM$12,PL_TYPE)))+(COUNTIFS(AL$18:$AL28,PL_YEAR,$AM$18:AM28,PL_DAYS,$AN$18:AN28,PL_TYPE)>0),"",ROW(PL_YEAR)-MIN(ROW(PL_YEAR))+1),1),COLUMN(A19)),"") ->  | AM29: =IFERROR(INDEX($CP$4:$CR$48,SMALL(IF((ISERROR(SEARCH($AM$14,PL_YEAR)*SEARCH($AM$14,PL_YEAR)*SEARCH($AM$12,PL_TYPE)))+(COUNTIFS($AL$18:AM28,PL_YEAR,$AM$18:AN28,PL_DAYS,$AN$18:AO28,PL_TYPE)>0),"",ROW(PL_YEAR)-MIN(ROW(PL_YEAR))+1),1),COLUMN(B19)),"") ->  | AN29: =IFERROR(INDEX($CP$4:$CR$48,SMALL(IF((ISERROR(SEARCH($AM$14,PL_YEAR)*SEARCH($AM$14,PL_YEAR)*SEARCH($AM$12,PL_TYPE)))+(COUNTIFS($AL$18:AN28,PL_YEAR,$AM$18:AO28,PL_DAYS,$AN$18:AP28,PL_TYPE)>0),"",ROW(PL_YEAR)-MIN(ROW(PL_YEAR))+1),1),COLUMN(C19)),"") ->  | AO29: =IFERROR(INDEX($CP$4:$CR$48,SMALL(IF((ISERROR(SEARCH($AM$14,PL_YEAR)*SEARCH($AM$14,PL_YEAR)*SEARCH($AM$12,PL_TYPE)))+(COUNTIFS($AL$18:AO28,PL_YEAR,$AM$18:AP28,PL_DAYS,$AN$18:AQ28,PL_TYPE)>0),"",ROW(PL_YEAR)-MIN(ROW(PL_YEAR))+1),1),COLUMN(E19)),"") ->  | AP29: =IFERROR(INDEX($CP$4:$CR$48,SMALL(IF((ISERROR(SEARCH($AQ$14,PL_YEAR)*SEARCH($AQ$14,PL_YEAR)*SEARCH($AQ$12,PL_TYPE)))+(COUNTIFS($AP$18:AP28,PL_YEAR,$AQ$18:AQ28,PL_DAYS,$AR$18:AR28,PL_TYPE)>0),"",ROW(PL_YEAR)-MIN(ROW(PL_YEAR))+1),1),COLUMN(A19)),"") ->  | AQ29: =IFERROR(INDEX($CP$4:$CR$48,SMALL(IF((ISERROR(SEARCH($AQ$14,PL_YEAR)*SEARCH($AQ$14,PL_YEAR)*SEARCH($AQ$12,PL_TYPE)))+(COUNTIFS($AP$18:AQ28,PL_YEAR,$AQ$18:AR28,PL_DAYS,$AR$18:AS28,PL_TYPE)>0),"",ROW(PL_YEAR)-MIN(ROW(PL_YEAR))+1),1),COLUMN(B19)),"") ->  | AR29: =IFERROR(INDEX($CP$4:$CR$48,SMALL(IF((ISERROR(SEARCH($AQ$14,PL_YEAR)*SEARCH($AQ$14,PL_YEAR)*SEARCH($AQ$12,PL_TYPE)))+(COUNTIFS($AP$18:AR28,PL_YEAR,$AQ$18:AS28,PL_DAYS,$AR$18:AT28,PL_TYPE)>0),"",ROW(PL_YEAR)-MIN(ROW(PL_YEAR))+1),1),COLUMN(C19)),"") ->  | AS29: =IFERROR(INDEX($CP$4:$CR$48,SMALL(IF((ISERROR(SEARCH($AM$14,PL_YEAR)*SEARCH($AM$14,PL_YEAR)*SEARCH($AM$12,PL_TYPE)))+(COUNTIFS($AL$18:AS28,PL_YEAR,$AM$18:AT28,PL_DAYS,$AN$18:AU28,PL_TYPE)>0),"",ROW(PL_YEAR)-MIN(ROW(PL_YEAR))+1),1),COLUMN(E19)),"") ->  | AT29: =IFERROR(INDEX($CP$4:$CR$48,SMALL(IF((ISERROR(SEARCH($AU$14,PL_YEAR)*SEARCH($AU$14,PL_YEAR)*SEARCH($AU$12,PL_TYPE)))+(COUNTIFS($AT$18:AT28,PL_YEAR,$AU$18:AU28,PL_DAYS,$AV$18:AV28,PL_TYPE)>0),"",ROW(PL_YEAR)-MIN(ROW(PL_YEAR))+1),1),COLUMN(A19)),"") ->  | AU29: =IFERROR(INDEX($CP$4:$CR$48,SMALL(IF((ISERROR(SEARCH($AU$14,PL_YEAR)*SEARCH($AU$14,PL_YEAR)*SEARCH($AU$12,PL_TYPE)))+(COUNTIFS($AT$18:AU28,PL_YEAR,$AU$18:AV28,PL_DAYS,$AV$18:AW28,PL_TYPE)>0),"",ROW(PL_YEAR)-MIN(ROW(PL_YEAR))+1),1),COLUMN(B19)),"") ->  | AV29: =IFERROR(INDEX($CP$4:$CR$48,SMALL(IF((ISERROR(SEARCH($AU$14,PL_YEAR)*SEARCH($AU$14,PL_YEAR)*SEARCH($AU$12,PL_TYPE)))+(COUNTIFS($AT$18:AV28,PL_YEAR,$AU$18:AW28,PL_DAYS,$AU$18:AW28,PL_TYPE)>0),"",ROW(PL_YEAR)-MIN(ROW(PL_YEAR))+1),1),COLUMN(C19)),"") ->  | AW29: =IFERROR(INDEX($CP$4:$CR$48,SMALL(IF((ISERROR(SEARCH($AU$14,PL_YEAR)*SEARCH($AU$14,PL_YEAR)*SEARCH($AU$12,PL_TYPE)))+(COUNTIFS($AT$18:AW28,PL_YEAR,$AU$18:AW28,PL_DAYS,$AU$18:AW28,PL_TYPE)>0),"",ROW(PL_YEAR)-MIN(ROW(PL_YEAR))+1),1),COLUMN(E19)),"") ->  | BE29: 45 | BG29: 1 | BJ29: =IF(PL!E39="","",PL!E39) ->  | BK29: =IF(PL!F39="","",PL!F39) ->  | BL29: =IF(PL!G39="","",PL!G39) ->  | BM29: =IF(PL!H39="","",PL!H39) ->  | BN29: 0 | CO29: 26 | CP29: =INDEX($BK$12:$BK$56,MATCH(ROWS($CO$4:CO29),$CO$4:$CO$48,0)) ->  | CQ29: =INDEX($BN$12:$BN$56,MATCH(ROWS($CO$4:CP29),$CO$4:$CO$48,0)) -> 0 | CR29: =INDEX($BJ$12:$BJ$56,MATCH(ROWS($CO$4:CQ29),$CO$4:$CO$48,0)) ->  | CT29: 0
B30: 2005-01-01 | C30: 2005-06-30 | D30: 2005-06-30 | E30: YES | F30: YES | G30: 2005-01-01 | H30: 2005-06-30 | I30: 2005 | J30: A | K30: 2005-A | L30: 181 | M30: 265 | N30: 15 | O30: 2005-A | P30: 0 | Q30: 0 | R30: 0 | S30: 0 | T30: 280 | U30: 300 | V30: 280 | W30: 0 | X30: 0 | Y30: 6 | Z30: 5 | AA30: YES | AB30: 6 | AC30: FALSE | AD30: NO | AL30: =IFERROR(INDEX($CP$4:$CR$48,SMALL(IF((ISERROR(SEARCH($AM$14,PL_YEAR)*SEARCH($AM$14,PL_YEAR)*SEARCH($AM$12,PL_TYPE)))+(COUNTIFS(AL$18:$AL29,PL_YEAR,$AM$18:AM29,PL_DAYS,$AN$18:AN29,PL_TYPE)>0),"",ROW(PL_YEAR)-MIN(ROW(PL_YEAR))+1),1),COLUMN(A20)),"") ->  | AM30: =IFERROR(INDEX($CP$4:$CR$48,SMALL(IF((ISERROR(SEARCH($AM$14,PL_YEAR)*SEARCH($AM$14,PL_YEAR)*SEARCH($AM$12,PL_TYPE)))+(COUNTIFS($AL$18:AM29,PL_YEAR,$AM$18:AN29,PL_DAYS,$AN$18:AO29,PL_TYPE)>0),"",ROW(PL_YEAR)-MIN(ROW(PL_YEAR))+1),1),COLUMN(B20)),"") ->  | AN30: =IFERROR(INDEX($CP$4:$CR$48,SMALL(IF((ISERROR(SEARCH($AM$14,PL_YEAR)*SEARCH($AM$14,PL_YEAR)*SEARCH($AM$12,PL_TYPE)))+(COUNTIFS($AL$18:AN29,PL_YEAR,$AM$18:AO29,PL_DAYS,$AN$18:AP29,PL_TYPE)>0),"",ROW(PL_YEAR)-MIN(ROW(PL_YEAR))+1),1),COLUMN(C20)),"") ->  | AO30: =IFERROR(INDEX($CP$4:$CR$48,SMALL(IF((ISERROR(SEARCH($AM$14,PL_YEAR)*SEARCH($AM$14,PL_YEAR)*SEARCH($AM$12,PL_TYPE)))+(COUNTIFS($AL$18:AO29,PL_YEAR,$AM$18:AP29,PL_DAYS,$AN$18:AQ29,PL_TYPE)>0),"",ROW(PL_YEAR)-MIN(ROW(PL_YEAR))+1),1),COLUMN(E20)),"") ->  | AP30: =IFERROR(INDEX($CP$4:$CR$48,SMALL(IF((ISERROR(SEARCH($AQ$14,PL_YEAR)*SEARCH($AQ$14,PL_YEAR)*SEARCH($AQ$12,PL_TYPE)))+(COUNTIFS($AP$18:AP29,PL_YEAR,$AQ$18:AQ29,PL_DAYS,$AR$18:AR29,PL_TYPE)>0),"",ROW(PL_YEAR)-MIN(ROW(PL_YEAR))+1),1),COLUMN(A20)),"") ->  | AQ30: =IFERROR(INDEX($CP$4:$CR$48,SMALL(IF((ISERROR(SEARCH($AQ$14,PL_YEAR)*SEARCH($AQ$14,PL_YEAR)*SEARCH($AQ$12,PL_TYPE)))+(COUNTIFS($AP$18:AQ29,PL_YEAR,$AQ$18:AR29,PL_DAYS,$AR$18:AS29,PL_TYPE)>0),"",ROW(PL_YEAR)-MIN(ROW(PL_YEAR))+1),1),COLUMN(B20)),"") ->  | AR30: =IFERROR(INDEX($CP$4:$CR$48,SMALL(IF((ISERROR(SEARCH($AQ$14,PL_YEAR)*SEARCH($AQ$14,PL_YEAR)*SEARCH($AQ$12,PL_TYPE)))+(COUNTIFS($AP$18:AR29,PL_YEAR,$AQ$18:AS29,PL_DAYS,$AR$18:AT29,PL_TYPE)>0),"",ROW(PL_YEAR)-MIN(ROW(PL_YEAR))+1),1),COLUMN(C20)),"") ->  | AS30: =IFERROR(INDEX($CP$4:$CR$48,SMALL(IF((ISERROR(SEARCH($AM$14,PL_YEAR)*SEARCH($AM$14,PL_YEAR)*SEARCH($AM$12,PL_TYPE)))+(COUNTIFS($AL$18:AS29,PL_YEAR,$AM$18:AT29,PL_DAYS,$AN$18:AU29,PL_TYPE)>0),"",ROW(PL_YEAR)-MIN(ROW(PL_YEAR))+1),1),COLUMN(E20)),"") ->  | AT30: =IFERROR(INDEX($CP$4:$CR$48,SMALL(IF((ISERROR(SEARCH($AU$14,PL_YEAR)*SEARCH($AU$14,PL_YEAR)*SEARCH($AU$12,PL_TYPE)))+(COUNTIFS($AT$18:AT29,PL_YEAR,$AU$18:AU29,PL_DAYS,$AV$18:AV29,PL_TYPE)>0),"",ROW(PL_YEAR)-MIN(ROW(PL_YEAR))+1),1),COLUMN(A20)),"") ->  | AU30: =IFERROR(INDEX($CP$4:$CR$48,SMALL(IF((ISERROR(SEARCH($AU$14,PL_YEAR)*SEARCH($AU$14,PL_YEAR)*SEARCH($AU$12,PL_TYPE)))+(COUNTIFS($AT$18:AU29,PL_YEAR,$AU$18:AV29,PL_DAYS,$AV$18:AW29,PL_TYPE)>0),"",ROW(PL_YEAR)-MIN(ROW(PL_YEAR))+1),1),COLUMN(B20)),"") ->  | AV30: =IFERROR(INDEX($CP$4:$CR$48,SMALL(IF((ISERROR(SEARCH($AU$14,PL_YEAR)*SEARCH($AU$14,PL_YEAR)*SEARCH($AU$12,PL_TYPE)))+(COUNTIFS($AT$18:AV29,PL_YEAR,$AU$18:AW29,PL_DAYS,$AU$18:AW29,PL_TYPE)>0),"",ROW(PL_YEAR)-MIN(ROW(PL_YEAR))+1),1),COLUMN(C20)),"") ->  | AW30: =IFERROR(INDEX($CP$4:$CR$48,SMALL(IF((ISERROR(SEARCH($AU$14,PL_YEAR)*SEARCH($AU$14,PL_YEAR)*SEARCH($AU$12,PL_TYPE)))+(COUNTIFS($AT$18:AW29,PL_YEAR,$AU$18:AW29,PL_DAYS,$AU$18:AW29,PL_TYPE)>0),"",ROW(PL_YEAR)-MIN(ROW(PL_YEAR))+1),1),COLUMN(E20)),"") ->  | BE30: 45 | BG30: 1 | BJ30: =IF(PL!E40="","",PL!E40) ->  | BK30: =IF(PL!F40="","",PL!F40) ->  | BL30: =IF(PL!G40="","",PL!G40) ->  | BM30: =IF(PL!H40="","",PL!H40) ->  | BN30: 0 | CO30: 27 | CP30: =INDEX($BK$12:$BK$56,MATCH(ROWS($CO$4:CO30),$CO$4:$CO$48,0)) ->  | CQ30: =INDEX($BN$12:$BN$56,MATCH(ROWS($CO$4:CP30),$CO$4:$CO$48,0)) -> 0 | CR30: =INDEX($BJ$12:$BJ$56,MATCH(ROWS($CO$4:CQ30),$CO$4:$CO$48,0)) ->  | CT30: 0
B31: 2005-07-01 | C31: 2005-12-31 | D31: 2005-12-31 | E31: YES | F31: YES | G31: 2005-07-01 | H31: 2005-12-31 | I31: 2005 | J31: B | K31: 2005-B | L31: 184 | M31: 280 | N31: 15 | O31: 2005-B | P31: 0 | Q31: 0 | R31: 0 | S31: 0 | T31: 295 | U31: 300 | V31: 295 | W31: 0 | X31: 0 | Y31: 6 | Z31: 5 | AA31: YES | AB31: 6 | AC31: FALSE | AD31: NO | AL31: =IFERROR(INDEX($CP$4:$CR$48,SMALL(IF((ISERROR(SEARCH($AM$14,PL_YEAR)*SEARCH($AM$14,PL_YEAR)*SEARCH($AM$12,PL_TYPE)))+(COUNTIFS(AL$18:$AL30,PL_YEAR,$AM$18:AM30,PL_DAYS,$AN$18:AN30,PL_TYPE)>0),"",ROW(PL_YEAR)-MIN(ROW(PL_YEAR))+1),1),COLUMN(A21)),"") ->  | AM31: =IFERROR(INDEX($CP$4:$CR$48,SMALL(IF((ISERROR(SEARCH($AM$14,PL_YEAR)*SEARCH($AM$14,PL_YEAR)*SEARCH($AM$12,PL_TYPE)))+(COUNTIFS($AL$18:AM30,PL_YEAR,$AM$18:AN30,PL_DAYS,$AN$18:AO30,PL_TYPE)>0),"",ROW(PL_YEAR)-MIN(ROW(PL_YEAR))+1),1),COLUMN(B21)),"") ->  | AN31: =IFERROR(INDEX($CP$4:$CR$48,SMALL(IF((ISERROR(SEARCH($AM$14,PL_YEAR)*SEARCH($AM$14,PL_YEAR)*SEARCH($AM$12,PL_TYPE)))+(COUNTIFS($AL$18:AN30,PL_YEAR,$AM$18:AO30,PL_DAYS,$AN$18:AP30,PL_TYPE)>0),"",ROW(PL_YEAR)-MIN(ROW(PL_YEAR))+1),1),COLUMN(C21)),"") ->  | AO31: =IFERROR(INDEX($CP$4:$CR$48,SMALL(IF((ISERROR(SEARCH($AM$14,PL_YEAR)*SEARCH($AM$14,PL_YEAR)*SEARCH($AM$12,PL_TYPE)))+(COUNTIFS($AL$18:AO30,PL_YEAR,$AM$18:AP30,PL_DAYS,$AN$18:AQ30,PL_TYPE)>0),"",ROW(PL_YEAR)-MIN(ROW(PL_YEAR))+1),1),COLUMN(E21)),"") ->  | AP31: =IFERROR(INDEX($CP$4:$CR$48,SMALL(IF((ISERROR(SEARCH($AQ$14,PL_YEAR)*SEARCH($AQ$14,PL_YEAR)*SEARCH($AQ$12,PL_TYPE)))+(COUNTIFS($AP$18:AP30,PL_YEAR,$AQ$18:AQ30,PL_DAYS,$AR$18:AR30,PL_TYPE)>0),"",ROW(PL_YEAR)-MIN(ROW(PL_YEAR))+1),1),COLUMN(A21)),"") ->  | AQ31: =IFERROR(INDEX($CP$4:$CR$48,SMALL(IF((ISERROR(SEARCH($AQ$14,PL_YEAR)*SEARCH($AQ$14,PL_YEAR)*SEARCH($AQ$12,PL_TYPE)))+(COUNTIFS($AP$18:AQ30,PL_YEAR,$AQ$18:AR30,PL_DAYS,$AR$18:AS30,PL_TYPE)>0),"",ROW(PL_YEAR)-MIN(ROW(PL_YEAR))+1),1),COLUMN(B21)),"") ->  | AR31: =IFERROR(INDEX($CP$4:$CR$48,SMALL(IF((ISERROR(SEARCH($AQ$14,PL_YEAR)*SEARCH($AQ$14,PL_YEAR)*SEARCH($AQ$12,PL_TYPE)))+(COUNTIFS($AP$18:AR30,PL_YEAR,$AQ$18:AS30,PL_DAYS,$AR$18:AT30,PL_TYPE)>0),"",ROW(PL_YEAR)-MIN(ROW(PL_YEAR))+1),1),COLUMN(C21)),"") ->  | AS31: =IFERROR(INDEX($CP$4:$CR$48,SMALL(IF((ISERROR(SEARCH($AM$14,PL_YEAR)*SEARCH($AM$14,PL_YEAR)*SEARCH($AM$12,PL_TYPE)))+(COUNTIFS($AL$18:AS30,PL_YEAR,$AM$18:AT30,PL_DAYS,$AN$18:AU30,PL_TYPE)>0),"",ROW(PL_YEAR)-MIN(ROW(PL_YEAR))+1),1),COLUMN(E21)),"") ->  | AT31: =IFERROR(INDEX($CP$4:$CR$48,SMALL(IF((ISERROR(SEARCH($AU$14,PL_YEAR)*SEARCH($AU$14,PL_YEAR)*SEARCH($AU$12,PL_TYPE)))+(COUNTIFS($AT$18:AT30,PL_YEAR,$AU$18:AU30,PL_DAYS,$AV$18:AV30,PL_TYPE)>0),"",ROW(PL_YEAR)-MIN(ROW(PL_YEAR))+1),1),COLUMN(A21)),"") ->  | AU31: =IFERROR(INDEX($CP$4:$CR$48,SMALL(IF((ISERROR(SEARCH($AU$14,PL_YEAR)*SEARCH($AU$14,PL_YEAR)*SEARCH($AU$12,PL_TYPE)))+(COUNTIFS($AT$18:AU30,PL_YEAR,$AU$18:AV30,PL_DAYS,$AV$18:AW30,PL_TYPE)>0),"",ROW(PL_YEAR)-MIN(ROW(PL_YEAR))+1),1),COLUMN(B21)),"") ->  | AV31: =IFERROR(INDEX($CP$4:$CR$48,SMALL(IF((ISERROR(SEARCH($AU$14,PL_YEAR)*SEARCH($AU$14,PL_YEAR)*SEARCH($AU$12,PL_TYPE)))+(COUNTIFS($AT$18:AV30,PL_YEAR,$AU$18:AW30,PL_DAYS,$AU$18:AW30,PL_TYPE)>0),"",ROW(PL_YEAR)-MIN(ROW(PL_YEAR))+1),1),COLUMN(C21)),"") ->  | AW31: =IFERROR(INDEX($CP$4:$CR$48,SMALL(IF((ISERROR(SEARCH($AU$14,PL_YEAR)*SEARCH($AU$14,PL_YEAR)*SEARCH($AU$12,PL_TYPE)))+(COUNTIFS($AT$18:AW30,PL_YEAR,$AU$18:AW30,PL_DAYS,$AU$18:AW30,PL_TYPE)>0),"",ROW(PL_YEAR)-MIN(ROW(PL_YEAR))+1),1),COLUMN(E21)),"") ->  | BE31: 45 | BG31: 1 | BJ31: =IF(PL!E41="","",PL!E41) ->  | BK31: =IF(PL!F41="","",PL!F41) ->  | BL31: =IF(PL!G41="","",PL!G41) ->  | BM31: =IF(PL!H41="","",PL!H41) ->  | BN31: 0 | CO31: 28 | CP31: =INDEX($BK$12:$BK$56,MATCH(ROWS($CO$4:CO31),$CO$4:$CO$48,0)) ->  | CQ31: =INDEX($BN$12:$BN$56,MATCH(ROWS($CO$4:CP31),$CO$4:$CO$48,0)) -> 0 | CR31: =INDEX($BJ$12:$BJ$56,MATCH(ROWS($CO$4:CQ31),$CO$4:$CO$48,0)) ->  | CT31: 0
B32: 2006-01-01 | C32: 2006-06-30 | D32: 2006-06-30 | E32: YES | F32: YES | G32: 2006-01-01 | H32: 2006-06-30 | I32: 2006 | J32: A | K32: 2006-A | L32: 181 | M32: 295 | N32: 15 | O32: 2006-A | P32: 0 | Q32: 0 | R32: 0 | S32: 0 | T32: 310 | U32: 300 | V32: 300 | W32: 0 | X32: 0 | Y32: 6 | Z32: 5 | AA32: YES | AB32: 6 | AC32: FALSE | AD32: NO | AL32: =IFERROR(INDEX($CP$4:$CR$48,SMALL(IF((ISERROR(SEARCH($AM$14,PL_YEAR)*SEARCH($AM$14,PL_YEAR)*SEARCH($AM$12,PL_TYPE)))+(COUNTIFS(AL$18:$AL31,PL_YEAR,$AM$18:AM31,PL_DAYS,$AN$18:AN31,PL_TYPE)>0),"",ROW(PL_YEAR)-MIN(ROW(PL_YEAR))+1),1),COLUMN(A22)),"") ->  | AM32: =IFERROR(INDEX($CP$4:$CR$48,SMALL(IF((ISERROR(SEARCH($AM$14,PL_YEAR)*SEARCH($AM$14,PL_YEAR)*SEARCH($AM$12,PL_TYPE)))+(COUNTIFS($AL$18:AM31,PL_YEAR,$AM$18:AN31,PL_DAYS,$AN$18:AO31,PL_TYPE)>0),"",ROW(PL_YEAR)-MIN(ROW(PL_YEAR))+1),1),COLUMN(B22)),"") ->  | AN32: =IFERROR(INDEX($CP$4:$CR$48,SMALL(IF((ISERROR(SEARCH($AM$14,PL_YEAR)*SEARCH($AM$14,PL_YEAR)*SEARCH($AM$12,PL_TYPE)))+(COUNTIFS($AL$18:AN31,PL_YEAR,$AM$18:AO31,PL_DAYS,$AN$18:AP31,PL_TYPE)>0),"",ROW(PL_YEAR)-MIN(ROW(PL_YEAR))+1),1),COLUMN(C22)),"") ->  | AO32: =IFERROR(INDEX($CP$4:$CR$48,SMALL(IF((ISERROR(SEARCH($AM$14,PL_YEAR)*SEARCH($AM$14,PL_YEAR)*SEARCH($AM$12,PL_TYPE)))+(COUNTIFS($AL$18:AO31,PL_YEAR,$AM$18:AP31,PL_DAYS,$AN$18:AQ31,PL_TYPE)>0),"",ROW(PL_YEAR)-MIN(ROW(PL_YEAR))+1),1),COLUMN(E22)),"") ->  | AP32: =IFERROR(INDEX($CP$4:$CR$48,SMALL(IF((ISERROR(SEARCH($AQ$14,PL_YEAR)*SEARCH($AQ$14,PL_YEAR)*SEARCH($AQ$12,PL_TYPE)))+(COUNTIFS($AP$18:AP31,PL_YEAR,$AQ$18:AQ31,PL_DAYS,$AR$18:AR31,PL_TYPE)>0),"",ROW(PL_YEAR)-MIN(ROW(PL_YEAR))+1),1),COLUMN(A22)),"") ->  | AQ32: =IFERROR(INDEX($CP$4:$CR$48,SMALL(IF((ISERROR(SEARCH($AQ$14,PL_YEAR)*SEARCH($AQ$14,PL_YEAR)*SEARCH($AQ$12,PL_TYPE)))+(COUNTIFS($AP$18:AQ31,PL_YEAR,$AQ$18:AR31,PL_DAYS,$AR$18:AS31,PL_TYPE)>0),"",ROW(PL_YEAR)-MIN(ROW(PL_YEAR))+1),1),COLUMN(B22)),"") ->  | AR32: =IFERROR(INDEX($CP$4:$CR$48,SMALL(IF((ISERROR(SEARCH($AQ$14,PL_YEAR)*SEARCH($AQ$14,PL_YEAR)*SEARCH($AQ$12,PL_TYPE)))+(COUNTIFS($AP$18:AR31,PL_YEAR,$AQ$18:AS31,PL_DAYS,$AR$18:AT31,PL_TYPE)>0),"",ROW(PL_YEAR)-MIN(ROW(PL_YEAR))+1),1),COLUMN(C22)),"") ->  | AS32: =IFERROR(INDEX($CP$4:$CR$48,SMALL(IF((ISERROR(SEARCH($AM$14,PL_YEAR)*SEARCH($AM$14,PL_YEAR)*SEARCH($AM$12,PL_TYPE)))+(COUNTIFS($AL$18:AS31,PL_YEAR,$AM$18:AT31,PL_DAYS,$AN$18:AU31,PL_TYPE)>0),"",ROW(PL_YEAR)-MIN(ROW(PL_YEAR))+1),1),COLUMN(E22)),"") ->  | AT32: =IFERROR(INDEX($CP$4:$CR$48,SMALL(IF((ISERROR(SEARCH($AU$14,PL_YEAR)*SEARCH($AU$14,PL_YEAR)*SEARCH($AU$12,PL_TYPE)))+(COUNTIFS($AT$18:AT31,PL_YEAR,$AU$18:AU31,PL_DAYS,$AV$18:AV31,PL_TYPE)>0),"",ROW(PL_YEAR)-MIN(ROW(PL_YEAR))+1),1),COLUMN(A22)),"") ->  | AU32: =IFERROR(INDEX($CP$4:$CR$48,SMALL(IF((ISERROR(SEARCH($AU$14,PL_YEAR)*SEARCH($AU$14,PL_YEAR)*SEARCH($AU$12,PL_TYPE)))+(COUNTIFS($AT$18:AU31,PL_YEAR,$AU$18:AV31,PL_DAYS,$AV$18:AW31,PL_TYPE)>0),"",ROW(PL_YEAR)-MIN(ROW(PL_YEAR))+1),1),COLUMN(B22)),"") ->  | AV32: =IFERROR(INDEX($CP$4:$CR$48,SMALL(IF((ISERROR(SEARCH($AU$14,PL_YEAR)*SEARCH($AU$14,PL_YEAR)*SEARCH($AU$12,PL_TYPE)))+(COUNTIFS($AT$18:AV31,PL_YEAR,$AU$18:AW31,PL_DAYS,$AU$18:AW31,PL_TYPE)>0),"",ROW(PL_YEAR)-MIN(ROW(PL_YEAR))+1),1),COLUMN(C22)),"") ->  | AW32: =IFERROR(INDEX($CP$4:$CR$48,SMALL(IF((ISERROR(SEARCH($AU$14,PL_YEAR)*SEARCH($AU$14,PL_YEAR)*SEARCH($AU$12,PL_TYPE)))+(COUNTIFS($AT$18:AW31,PL_YEAR,$AU$18:AW31,PL_DAYS,$AU$18:AW31,PL_TYPE)>0),"",ROW(PL_YEAR)-MIN(ROW(PL_YEAR))+1),1),COLUMN(E22)),"") ->  | BE32: 45 | BG32: 1 | BJ32: =IF(PL!E42="","",PL!E42) ->  | BK32: =IF(PL!F42="","",PL!F42) ->  | BL32: =IF(PL!G42="","",PL!G42) ->  | BM32: =IF(PL!H42="","",PL!H42) ->  | BN32: 0 | CO32: 29 | CP32: =INDEX($BK$12:$BK$56,MATCH(ROWS($CO$4:CO32),$CO$4:$CO$48,0)) ->  | CQ32: =INDEX($BN$12:$BN$56,MATCH(ROWS($CO$4:CP32),$CO$4:$CO$48,0)) -> 0 | CR32: =INDEX($BJ$12:$BJ$56,MATCH(ROWS($CO$4:CQ32),$CO$4:$CO$48,0)) ->  | CT32: 0
B33: 2006-07-01 | C33: 2006-12-31 | D33: 2006-12-31 | E33: YES | F33: YES | G33: 2006-07-01 | H33: 2006-12-31 | I33: 2006 | J33: B | K33: 2006-B | L33: 184 | M33: 300 | N33: 15 | O33: 2006-B | P33: 0 | Q33: 0 | R33: 0 | S33: 0 | T33: 300 | U33: 300 | V33: 300 | W33: 0 | X33: 0 | Y33: 6 | Z33: 5 | AA33: YES | AB33: 6 | AC33: FALSE | AD33: YES | AL33: =IFERROR(INDEX($CP$4:$CR$48,SMALL(IF((ISERROR(SEARCH($AM$14,PL_YEAR)*SEARCH($AM$14,PL_YEAR)*SEARCH($AM$12,PL_TYPE)))+(COUNTIFS(AL$18:$AL32,PL_YEAR,$AM$18:AM32,PL_DAYS,$AN$18:AN32,PL_TYPE)>0),"",ROW(PL_YEAR)-MIN(ROW(PL_YEAR))+1),1),COLUMN(A23)),"") ->  | AM33: =IFERROR(INDEX($CP$4:$CR$48,SMALL(IF((ISERROR(SEARCH($AM$14,PL_YEAR)*SEARCH($AM$14,PL_YEAR)*SEARCH($AM$12,PL_TYPE)))+(COUNTIFS($AL$18:AM32,PL_YEAR,$AM$18:AN32,PL_DAYS,$AN$18:AO32,PL_TYPE)>0),"",ROW(PL_YEAR)-MIN(ROW(PL_YEAR))+1),1),COLUMN(B23)),"") ->  | AN33: =IFERROR(INDEX($CP$4:$CR$48,SMALL(IF((ISERROR(SEARCH($AM$14,PL_YEAR)*SEARCH($AM$14,PL_YEAR)*SEARCH($AM$12,PL_TYPE)))+(COUNTIFS($AL$18:AN32,PL_YEAR,$AM$18:AO32,PL_DAYS,$AN$18:AP32,PL_TYPE)>0),"",ROW(PL_YEAR)-MIN(ROW(PL_YEAR))+1),1),COLUMN(C23)),"") ->  | AO33: =IFERROR(INDEX($CP$4:$CR$48,SMALL(IF((ISERROR(SEARCH($AM$14,PL_YEAR)*SEARCH($AM$14,PL_YEAR)*SEARCH($AM$12,PL_TYPE)))+(COUNTIFS($AL$18:AO32,PL_YEAR,$AM$18:AP32,PL_DAYS,$AN$18:AQ32,PL_TYPE)>0),"",ROW(PL_YEAR)-MIN(ROW(PL_YEAR))+1),1),COLUMN(E23)),"") ->  | AP33: =IFERROR(INDEX($CP$4:$CR$48,SMALL(IF((ISERROR(SEARCH($AQ$14,PL_YEAR)*SEARCH($AQ$14,PL_YEAR)*SEARCH($AQ$12,PL_TYPE)))+(COUNTIFS($AP$18:AP32,PL_YEAR,$AQ$18:AQ32,PL_DAYS,$AR$18:AR32,PL_TYPE)>0),"",ROW(PL_YEAR)-MIN(ROW(PL_YEAR))+1),1),COLUMN(A23)),"") ->  | AQ33: =IFERROR(INDEX($CP$4:$CR$48,SMALL(IF((ISERROR(SEARCH($AQ$14,PL_YEAR)*SEARCH($AQ$14,PL_YEAR)*SEARCH($AQ$12,PL_TYPE)))+(COUNTIFS($AP$18:AQ32,PL_YEAR,$AQ$18:AR32,PL_DAYS,$AR$18:AS32,PL_TYPE)>0),"",ROW(PL_YEAR)-MIN(ROW(PL_YEAR))+1),1),COLUMN(B23)),"") ->  | AR33: =IFERROR(INDEX($CP$4:$CR$48,SMALL(IF((ISERROR(SEARCH($AQ$14,PL_YEAR)*SEARCH($AQ$14,PL_YEAR)*SEARCH($AQ$12,PL_TYPE)))+(COUNTIFS($AP$18:AR32,PL_YEAR,$AQ$18:AS32,PL_DAYS,$AR$18:AT32,PL_TYPE)>0),"",ROW(PL_YEAR)-MIN(ROW(PL_YEAR))+1),1),COLUMN(C23)),"") ->  | AS33: =IFERROR(INDEX($CP$4:$CR$48,SMALL(IF((ISERROR(SEARCH($AM$14,PL_YEAR)*SEARCH($AM$14,PL_YEAR)*SEARCH($AM$12,PL_TYPE)))+(COUNTIFS($AL$18:AS32,PL_YEAR,$AM$18:AT32,PL_DAYS,$AN$18:AU32,PL_TYPE)>0),"",ROW(PL_YEAR)-MIN(ROW(PL_YEAR))+1),1),COLUMN(E23)),"") ->  | AT33: =IFERROR(INDEX($CP$4:$CR$48,SMALL(IF((ISERROR(SEARCH($AU$14,PL_YEAR)*SEARCH($AU$14,PL_YEAR)*SEARCH($AU$12,PL_TYPE)))+(COUNTIFS($AT$18:AT32,PL_YEAR,$AU$18:AU32,PL_DAYS,$AV$18:AV32,PL_TYPE)>0),"",ROW(PL_YEAR)-MIN(ROW(PL_YEAR))+1),1),COLUMN(A23)),"") ->  | AU33: =IFERROR(INDEX($CP$4:$CR$48,SMALL(IF((ISERROR(SEARCH($AU$14,PL_YEAR)*SEARCH($AU$14,PL_YEAR)*SEARCH($AU$12,PL_TYPE)))+(COUNTIFS($AT$18:AU32,PL_YEAR,$AU$18:AV32,PL_DAYS,$AV$18:AW32,PL_TYPE)>0),"",ROW(PL_YEAR)-MIN(ROW(PL_YEAR))+1),1),COLUMN(B23)),"") ->  | AV33: =IFERROR(INDEX($CP$4:$CR$48,SMALL(IF((ISERROR(SEARCH($AU$14,PL_YEAR)*SEARCH($AU$14,PL_YEAR)*SEARCH($AU$12,PL_TYPE)))+(COUNTIFS($AT$18:AV32,PL_YEAR,$AU$18:AW32,PL_DAYS,$AU$18:AW32,PL_TYPE)>0),"",ROW(PL_YEAR)-MIN(ROW(PL_YEAR))+1),1),COLUMN(C23)),"") ->  | AW33: =IFERROR(INDEX($CP$4:$CR$48,SMALL(IF((ISERROR(SEARCH($AU$14,PL_YEAR)*SEARCH($AU$14,PL_YEAR)*SEARCH($AU$12,PL_TYPE)))+(COUNTIFS($AT$18:AW32,PL_YEAR,$AU$18:AW32,PL_DAYS,$AU$18:AW32,PL_TYPE)>0),"",ROW(PL_YEAR)-MIN(ROW(PL_YEAR))+1),1),COLUMN(E23)),"") ->  | BE33: 45 | BG33: 1 | BJ33: =IF(PL!E43="","",PL!E43) ->  | BK33: =IF(PL!F43="","",PL!F43) ->  | BL33: =IF(PL!G43="","",PL!G43) ->  | BM33: =IF(PL!H43="","",PL!H43) ->  | BN33: 0 | CO33: 30 | CP33: =INDEX($BK$12:$BK$56,MATCH(ROWS($CO$4:CO33),$CO$4:$CO$48,0)) ->  | CQ33: =INDEX($BN$12:$BN$56,MATCH(ROWS($CO$4:CP33),$CO$4:$CO$48,0)) -> 0 | CR33: =INDEX($BJ$12:$BJ$56,MATCH(ROWS($CO$4:CQ33),$CO$4:$CO$48,0)) ->  | CT33: 0
B34: 2007-01-01 | C34: 2007-06-30 | D34: 2007-06-30 | E34: YES | F34: YES | G34: 2007-01-01 | H34: 2007-06-30 | I34: 2007 | J34: A | K34: 2007-A | L34: 181 | M34: 300 | N34: 15 | O34: 2007-A | P34: 0 | Q34: 0 | R34: 0 | S34: 0 | T34: 300 | U34: 300 | V34: 300 | W34: 0 | X34: 0 | Y34: 6 | Z34: 5 | AA34: YES | AB34: 6 | AC34: FALSE | AD34: YES | AL34: =IFERROR(INDEX($CP$4:$CR$48,SMALL(IF((ISERROR(SEARCH($AM$14,PL_YEAR)*SEARCH($AM$14,PL_YEAR)*SEARCH($AM$12,PL_TYPE)))+(COUNTIFS(AL$18:$AL33,PL_YEAR,$AM$18:AM33,PL_DAYS,$AN$18:AN33,PL_TYPE)>0),"",ROW(PL_YEAR)-MIN(ROW(PL_YEAR))+1),1),COLUMN(A24)),"") ->  | AM34: =IFERROR(INDEX($CP$4:$CR$48,SMALL(IF((ISERROR(SEARCH($AM$14,PL_YEAR)*SEARCH($AM$14,PL_YEAR)*SEARCH($AM$12,PL_TYPE)))+(COUNTIFS($AL$18:AM33,PL_YEAR,$AM$18:AN33,PL_DAYS,$AN$18:AO33,PL_TYPE)>0),"",ROW(PL_YEAR)-MIN(ROW(PL_YEAR))+1),1),COLUMN(B24)),"") ->  | AN34: =IFERROR(INDEX($CP$4:$CR$48,SMALL(IF((ISERROR(SEARCH($AM$14,PL_YEAR)*SEARCH($AM$14,PL_YEAR)*SEARCH($AM$12,PL_TYPE)))+(COUNTIFS($AL$18:AN33,PL_YEAR,$AM$18:AO33,PL_DAYS,$AN$18:AP33,PL_TYPE)>0),"",ROW(PL_YEAR)-MIN(ROW(PL_YEAR))+1),1),COLUMN(C24)),"") ->  | AO34: =IFERROR(INDEX($CP$4:$CR$48,SMALL(IF((ISERROR(SEARCH($AM$14,PL_YEAR)*SEARCH($AM$14,PL_YEAR)*SEARCH($AM$12,PL_TYPE)))+(COUNTIFS($AL$18:AO33,PL_YEAR,$AM$18:AP33,PL_DAYS,$AN$18:AQ33,PL_TYPE)>0),"",ROW(PL_YEAR)-MIN(ROW(PL_YEAR))+1),1),COLUMN(E24)),"") ->  | AP34: =IFERROR(INDEX($CP$4:$CR$48,SMALL(IF((ISERROR(SEARCH($AQ$14,PL_YEAR)*SEARCH($AQ$14,PL_YEAR)*SEARCH($AQ$12,PL_TYPE)))+(COUNTIFS($AP$18:AP33,PL_YEAR,$AQ$18:AQ33,PL_DAYS,$AR$18:AR33,PL_TYPE)>0),"",ROW(PL_YEAR)-MIN(ROW(PL_YEAR))+1),1),COLUMN(A24)),"") ->  | AQ34: =IFERROR(INDEX($CP$4:$CR$48,SMALL(IF((ISERROR(SEARCH($AQ$14,PL_YEAR)*SEARCH($AQ$14,PL_YEAR)*SEARCH($AQ$12,PL_TYPE)))+(COUNTIFS($AP$18:AQ33,PL_YEAR,$AQ$18:AR33,PL_DAYS,$AR$18:AS33,PL_TYPE)>0),"",ROW(PL_YEAR)-MIN(ROW(PL_YEAR))+1),1),COLUMN(B24)),"") ->  | AR34: =IFERROR(INDEX($CP$4:$CR$48,SMALL(IF((ISERROR(SEARCH($AQ$14,PL_YEAR)*SEARCH($AQ$14,PL_YEAR)*SEARCH($AQ$12,PL_TYPE)))+(COUNTIFS($AP$18:AR33,PL_YEAR,$AQ$18:AS33,PL_DAYS,$AR$18:AT33,PL_TYPE)>0),"",ROW(PL_YEAR)-MIN(ROW(PL_YEAR))+1),1),COLUMN(C24)),"") ->  | AS34: =IFERROR(INDEX($CP$4:$CR$48,SMALL(IF((ISERROR(SEARCH($AM$14,PL_YEAR)*SEARCH($AM$14,PL_YEAR)*SEARCH($AM$12,PL_TYPE)))+(COUNTIFS($AL$18:AS33,PL_YEAR,$AM$18:AT33,PL_DAYS,$AN$18:AU33,PL_TYPE)>0),"",ROW(PL_YEAR)-MIN(ROW(PL_YEAR))+1),1),COLUMN(E24)),"") ->  | AT34: =IFERROR(INDEX($CP$4:$CR$48,SMALL(IF((ISERROR(SEARCH($AU$14,PL_YEAR)*SEARCH($AU$14,PL_YEAR)*SEARCH($AU$12,PL_TYPE)))+(COUNTIFS($AT$18:AT33,PL_YEAR,$AU$18:AU33,PL_DAYS,$AV$18:AV33,PL_TYPE)>0),"",ROW(PL_YEAR)-MIN(ROW(PL_YEAR))+1),1),COLUMN(A24)),"") ->  | AU34: =IFERROR(INDEX($CP$4:$CR$48,SMALL(IF((ISERROR(SEARCH($AU$14,PL_YEAR)*SEARCH($AU$14,PL_YEAR)*SEARCH($AU$12,PL_TYPE)))+(COUNTIFS($AT$18:AU33,PL_YEAR,$AU$18:AV33,PL_DAYS,$AV$18:AW33,PL_TYPE)>0),"",ROW(PL_YEAR)-MIN(ROW(PL_YEAR))+1),1),COLUMN(B24)),"") ->  | AV34: =IFERROR(INDEX($CP$4:$CR$48,SMALL(IF((ISERROR(SEARCH($AU$14,PL_YEAR)*SEARCH($AU$14,PL_YEAR)*SEARCH($AU$12,PL_TYPE)))+(COUNTIFS($AT$18:AV33,PL_YEAR,$AU$18:AW33,PL_DAYS,$AU$18:AW33,PL_TYPE)>0),"",ROW(PL_YEAR)-MIN(ROW(PL_YEAR))+1),1),COLUMN(C24)),"") ->  | AW34: =IFERROR(INDEX($CP$4:$CR$48,SMALL(IF((ISERROR(SEARCH($AU$14,PL_YEAR)*SEARCH($AU$14,PL_YEAR)*SEARCH($AU$12,PL_TYPE)))+(COUNTIFS($AT$18:AW33,PL_YEAR,$AU$18:AW33,PL_DAYS,$AU$18:AW33,PL_TYPE)>0),"",ROW(PL_YEAR)-MIN(ROW(PL_YEAR))+1),1),COLUMN(E24)),"") ->  | BE34: 45 | BG34: 1 | BJ34: =IF(PL!E44="","",PL!E44) ->  | BK34: =IF(PL!F44="","",PL!F44) ->  | BL34: =IF(PL!G44="","",PL!G44) ->  | BM34: =IF(PL!H44="","",PL!H44) ->  | BN34: 0 | CO34: 31 | CP34: =INDEX($BK$12:$BK$56,MATCH(ROWS($CO$4:CO34),$CO$4:$CO$48,0)) ->  | CQ34: =INDEX($BN$12:$BN$56,MATCH(ROWS($CO$4:CP34),$CO$4:$CO$48,0)) -> 0 | CR34: =INDEX($BJ$12:$BJ$56,MATCH(ROWS($CO$4:CQ34),$CO$4:$CO$48,0)) ->  | CT34: 0
B35: 2007-07-01 | C35: 2007-12-31 | D35: 2007-12-31 | E35: YES | F35: YES | G35: 2007-07-01 | H35: 2007-12-31 | I35: 2007 | J35: B | K35: 2007-B | L35: 184 | M35: 300 | N35: 15 | O35: 2007-B | P35: 0 | Q35: 0 | R35: 0 | S35: 0 | T35: 300 | U35: 300 | V35: 300 | W35: 0 | X35: 0 | Y35: 6 | Z35: 5 | AA35: YES | AB35: 6 | AC35: FALSE | AD35: YES | AL35: =IFERROR(INDEX($CP$4:$CR$48,SMALL(IF((ISERROR(SEARCH($AM$14,PL_YEAR)*SEARCH($AM$14,PL_YEAR)*SEARCH($AM$12,PL_TYPE)))+(COUNTIFS(AL$18:$AL34,PL_YEAR,$AM$18:AM34,PL_DAYS,$AN$18:AN34,PL_TYPE)>0),"",ROW(PL_YEAR)-MIN(ROW(PL_YEAR))+1),1),COLUMN(A25)),"") ->  | AM35: =IFERROR(INDEX($CP$4:$CR$48,SMALL(IF((ISERROR(SEARCH($AM$14,PL_YEAR)*SEARCH($AM$14,PL_YEAR)*SEARCH($AM$12,PL_TYPE)))+(COUNTIFS($AL$18:AM34,PL_YEAR,$AM$18:AN34,PL_DAYS,$AN$18:AO34,PL_TYPE)>0),"",ROW(PL_YEAR)-MIN(ROW(PL_YEAR))+1),1),COLUMN(B25)),"") ->  | AN35: =IFERROR(INDEX($CP$4:$CR$48,SMALL(IF((ISERROR(SEARCH($AM$14,PL_YEAR)*SEARCH($AM$14,PL_YEAR)*SEARCH($AM$12,PL_TYPE)))+(COUNTIFS($AL$18:AN34,PL_YEAR,$AM$18:AO34,PL_DAYS,$AN$18:AP34,PL_TYPE)>0),"",ROW(PL_YEAR)-MIN(ROW(PL_YEAR))+1),1),COLUMN(C25)),"") ->  | AO35: =IFERROR(INDEX($CP$4:$CR$48,SMALL(IF((ISERROR(SEARCH($AM$14,PL_YEAR)*SEARCH($AM$14,PL_YEAR)*SEARCH($AM$12,PL_TYPE)))+(COUNTIFS($AL$18:AO34,PL_YEAR,$AM$18:AP34,PL_DAYS,$AN$18:AQ34,PL_TYPE)>0),"",ROW(PL_YEAR)-MIN(ROW(PL_YEAR))+1),1),COLUMN(E25)),"") ->  | AP35: =IFERROR(INDEX($CP$4:$CR$48,SMALL(IF((ISERROR(SEARCH($AQ$14,PL_YEAR)*SEARCH($AQ$14,PL_YEAR)*SEARCH($AQ$12,PL_TYPE)))+(COUNTIFS($AP$18:AP34,PL_YEAR,$AQ$18:AQ34,PL_DAYS,$AR$18:AR34,PL_TYPE)>0),"",ROW(PL_YEAR)-MIN(ROW(PL_YEAR))+1),1),COLUMN(A25)),"") ->  | AQ35: =IFERROR(INDEX($CP$4:$CR$48,SMALL(IF((ISERROR(SEARCH($AQ$14,PL_YEAR)*SEARCH($AQ$14,PL_YEAR)*SEARCH($AQ$12,PL_TYPE)))+(COUNTIFS($AP$18:AQ34,PL_YEAR,$AQ$18:AR34,PL_DAYS,$AR$18:AS34,PL_TYPE)>0),"",ROW(PL_YEAR)-MIN(ROW(PL_YEAR))+1),1),COLUMN(B25)),"") ->  | AR35: =IFERROR(INDEX($CP$4:$CR$48,SMALL(IF((ISERROR(SEARCH($AQ$14,PL_YEAR)*SEARCH($AQ$14,PL_YEAR)*SEARCH($AQ$12,PL_TYPE)))+(COUNTIFS($AP$18:AR34,PL_YEAR,$AQ$18:AS34,PL_DAYS,$AR$18:AT34,PL_TYPE)>0),"",ROW(PL_YEAR)-MIN(ROW(PL_YEAR))+1),1),COLUMN(C25)),"") ->  | AS35: =IFERROR(INDEX($CP$4:$CR$48,SMALL(IF((ISERROR(SEARCH($AM$14,PL_YEAR)*SEARCH($AM$14,PL_YEAR)*SEARCH($AM$12,PL_TYPE)))+(COUNTIFS($AL$18:AS34,PL_YEAR,$AM$18:AT34,PL_DAYS,$AN$18:AU34,PL_TYPE)>0),"",ROW(PL_YEAR)-MIN(ROW(PL_YEAR))+1),1),COLUMN(E25)),"") ->  | AT35: =IFERROR(INDEX($CP$4:$CR$48,SMALL(IF((ISERROR(SEARCH($AU$14,PL_YEAR)*SEARCH($AU$14,PL_YEAR)*SEARCH($AU$12,PL_TYPE)))+(COUNTIFS($AT$18:AT34,PL_YEAR,$AU$18:AU34,PL_DAYS,$AV$18:AV34,PL_TYPE)>0),"",ROW(PL_YEAR)-MIN(ROW(PL_YEAR))+1),1),COLUMN(A25)),"") ->  | AU35: =IFERROR(INDEX($CP$4:$CR$48,SMALL(IF((ISERROR(SEARCH($AU$14,PL_YEAR)*SEARCH($AU$14,PL_YEAR)*SEARCH($AU$12,PL_TYPE)))+(COUNTIFS($AT$18:AU34,PL_YEAR,$AU$18:AV34,PL_DAYS,$AV$18:AW34,PL_TYPE)>0),"",ROW(PL_YEAR)-MIN(ROW(PL_YEAR))+1),1),COLUMN(B25)),"") ->  | AV35: =IFERROR(INDEX($CP$4:$CR$48,SMALL(IF((ISERROR(SEARCH($AU$14,PL_YEAR)*SEARCH($AU$14,PL_YEAR)*SEARCH($AU$12,PL_TYPE)))+(COUNTIFS($AT$18:AV34,PL_YEAR,$AU$18:AW34,PL_DAYS,$AU$18:AW34,PL_TYPE)>0),"",ROW(PL_YEAR)-MIN(ROW(PL_YEAR))+1),1),COLUMN(C25)),"") ->  | AW35: =IFERROR(INDEX($CP$4:$CR$48,SMALL(IF((ISERROR(SEARCH($AU$14,PL_YEAR)*SEARCH($AU$14,PL_YEAR)*SEARCH($AU$12,PL_TYPE)))+(COUNTIFS($AT$18:AW34,PL_YEAR,$AU$18:AW34,PL_DAYS,$AU$18:AW34,PL_TYPE)>0),"",ROW(PL_YEAR)-MIN(ROW(PL_YEAR))+1),1),COLUMN(E25)),"") ->  | BE35: 45 | BG35: 1 | BJ35: =IF(PL!E45="","",PL!E45) ->  | BK35: =IF(PL!F45="","",PL!F45) ->  | BL35: =IF(PL!G45="","",PL!G45) ->  | BM35: =IF(PL!H45="","",PL!H45) ->  | BN35: 0 | CO35: 32 | CP35: =INDEX($BK$12:$BK$56,MATCH(ROWS($CO$4:CO35),$CO$4:$CO$48,0)) ->  | CQ35: =INDEX($BN$12:$BN$56,MATCH(ROWS($CO$4:CP35),$CO$4:$CO$48,0)) -> 0 | CR35: =INDEX($BJ$12:$BJ$56,MATCH(ROWS($CO$4:CQ35),$CO$4:$CO$48,0)) ->  | CT35: 0
B36: 2008-01-01 | C36: 2008-06-30 | D36: 2008-06-30 | E36: YES | F36: YES | G36: 2008-01-01 | H36: 2008-06-30 | I36: 2008 | J36: A | K36: 2008-A | L36: 182 | M36: 300 | N36: 15 | O36: 2008-A | P36: 0 | Q36: 0 | R36: 0 | S36: 0 | T36: 300 | U36: 300 | V36: 300 | W36: 0 | X36: 0 | Y36: 6 | Z36: 5 | AA36: YES | AB36: 6 | AC36: FALSE | AD36: YES | AL36: =IFERROR(INDEX($CP$4:$CR$48,SMALL(IF((ISERROR(SEARCH($AM$14,PL_YEAR)*SEARCH($AM$14,PL_YEAR)*SEARCH($AM$12,PL_TYPE)))+(COUNTIFS(AL$18:$AL35,PL_YEAR,$AM$18:AM35,PL_DAYS,$AN$18:AN35,PL_TYPE)>0),"",ROW(PL_YEAR)-MIN(ROW(PL_YEAR))+1),1),COLUMN(A26)),"") ->  | AM36: =IFERROR(INDEX($CP$4:$CR$48,SMALL(IF((ISERROR(SEARCH($AM$14,PL_YEAR)*SEARCH($AM$14,PL_YEAR)*SEARCH($AM$12,PL_TYPE)))+(COUNTIFS($AL$18:AM35,PL_YEAR,$AM$18:AN35,PL_DAYS,$AN$18:AO35,PL_TYPE)>0),"",ROW(PL_YEAR)-MIN(ROW(PL_YEAR))+1),1),COLUMN(B26)),"") ->  | AN36: =IFERROR(INDEX($CP$4:$CR$48,SMALL(IF((ISERROR(SEARCH($AM$14,PL_YEAR)*SEARCH($AM$14,PL_YEAR)*SEARCH($AM$12,PL_TYPE)))+(COUNTIFS($AL$18:AN35,PL_YEAR,$AM$18:AO35,PL_DAYS,$AN$18:AP35,PL_TYPE)>0),"",ROW(PL_YEAR)-MIN(ROW(PL_YEAR))+1),1),COLUMN(C26)),"") ->  | AO36: =IFERROR(INDEX($CP$4:$CR$48,SMALL(IF((ISERROR(SEARCH($AM$14,PL_YEAR)*SEARCH($AM$14,PL_YEAR)*SEARCH($AM$12,PL_TYPE)))+(COUNTIFS($AL$18:AO35,PL_YEAR,$AM$18:AP35,PL_DAYS,$AN$18:AQ35,PL_TYPE)>0),"",ROW(PL_YEAR)-MIN(ROW(PL_YEAR))+1),1),COLUMN(E26)),"") ->  | AP36: =IFERROR(INDEX($CP$4:$CR$48,SMALL(IF((ISERROR(SEARCH($AQ$14,PL_YEAR)*SEARCH($AQ$14,PL_YEAR)*SEARCH($AQ$12,PL_TYPE)))+(COUNTIFS($AP$18:AP35,PL_YEAR,$AQ$18:AQ35,PL_DAYS,$AR$18:AR35,PL_TYPE)>0),"",ROW(PL_YEAR)-MIN(ROW(PL_YEAR))+1),1),COLUMN(A26)),"") ->  | AQ36: =IFERROR(INDEX($CP$4:$CR$48,SMALL(IF((ISERROR(SEARCH($AQ$14,PL_YEAR)*SEARCH($AQ$14,PL_YEAR)*SEARCH($AQ$12,PL_TYPE)))+(COUNTIFS($AP$18:AQ35,PL_YEAR,$AQ$18:AR35,PL_DAYS,$AR$18:AS35,PL_TYPE)>0),"",ROW(PL_YEAR)-MIN(ROW(PL_YEAR))+1),1),COLUMN(B26)),"") ->  | AR36: =IFERROR(INDEX($CP$4:$CR$48,SMALL(IF((ISERROR(SEARCH($AQ$14,PL_YEAR)*SEARCH($AQ$14,PL_YEAR)*SEARCH($AQ$12,PL_TYPE)))+(COUNTIFS($AP$18:AR35,PL_YEAR,$AQ$18:AS35,PL_DAYS,$AR$18:AT35,PL_TYPE)>0),"",ROW(PL_YEAR)-MIN(ROW(PL_YEAR))+1),1),COLUMN(C26)),"") ->  | AS36: =IFERROR(INDEX($CP$4:$CR$48,SMALL(IF((ISERROR(SEARCH($AM$14,PL_YEAR)*SEARCH($AM$14,PL_YEAR)*SEARCH($AM$12,PL_TYPE)))+(COUNTIFS($AL$18:AS35,PL_YEAR,$AM$18:AT35,PL_DAYS,$AN$18:AU35,PL_TYPE)>0),"",ROW(PL_YEAR)-MIN(ROW(PL_YEAR))+1),1),COLUMN(E26)),"") ->  | AT36: =IFERROR(INDEX($CP$4:$CR$48,SMALL(IF((ISERROR(SEARCH($AU$14,PL_YEAR)*SEARCH($AU$14,PL_YEAR)*SEARCH($AU$12,PL_TYPE)))+(COUNTIFS($AT$18:AT35,PL_YEAR,$AU$18:AU35,PL_DAYS,$AV$18:AV35,PL_TYPE)>0),"",ROW(PL_YEAR)-MIN(ROW(PL_YEAR))+1),1),COLUMN(A26)),"") ->  | AU36: =IFERROR(INDEX($CP$4:$CR$48,SMALL(IF((ISERROR(SEARCH($AU$14,PL_YEAR)*SEARCH($AU$14,PL_YEAR)*SEARCH($AU$12,PL_TYPE)))+(COUNTIFS($AT$18:AU35,PL_YEAR,$AU$18:AV35,PL_DAYS,$AV$18:AW35,PL_TYPE)>0),"",ROW(PL_YEAR)-MIN(ROW(PL_YEAR))+1),1),COLUMN(B26)),"") ->  | AV36: =IFERROR(INDEX($CP$4:$CR$48,SMALL(IF((ISERROR(SEARCH($AU$14,PL_YEAR)*SEARCH($AU$14,PL_YEAR)*SEARCH($AU$12,PL_TYPE)))+(COUNTIFS($AT$18:AV35,PL_YEAR,$AU$18:AW35,PL_DAYS,$AU$18:AW35,PL_TYPE)>0),"",ROW(PL_YEAR)-MIN(ROW(PL_YEAR))+1),1),COLUMN(C26)),"") ->  | AW36: =IFERROR(INDEX($CP$4:$CR$48,SMALL(IF((ISERROR(SEARCH($AU$14,PL_YEAR)*SEARCH($AU$14,PL_YEAR)*SEARCH($AU$12,PL_TYPE)))+(COUNTIFS($AT$18:AW35,PL_YEAR,$AU$18:AW35,PL_DAYS,$AU$18:AW35,PL_TYPE)>0),"",ROW(PL_YEAR)-MIN(ROW(PL_YEAR))+1),1),COLUMN(E26)),"") ->  | BE36: 45 | BG36: 1 | BJ36: =IF(PL!E46="","",PL!E46) ->  | BK36: =IF(PL!F46="","",PL!F46) ->  | BL36: =IF(PL!G46="","",PL!G46) ->  | BM36: =IF(PL!H46="","",PL!H46) ->  | BN36: 0 | CO36: 33 | CP36: =INDEX($BK$12:$BK$56,MATCH(ROWS($CO$4:CO36),$CO$4:$CO$48,0)) ->  | CQ36: =INDEX($BN$12:$BN$56,MATCH(ROWS($CO$4:CP36),$CO$4:$CO$48,0)) -> 0 | CR36: =INDEX($BJ$12:$BJ$56,MATCH(ROWS($CO$4:CQ36),$CO$4:$CO$48,0)) ->  | CT36: 0
B37: 2008-07-01 | C37: 2008-12-31 | D37: 2008-12-31 | E37: YES | F37: YES | G37: 2008-07-01 | H37: 2008-12-31 | I37: 2008 | J37: B | K37: 2008-B | L37: 184 | M37: 300 | N37: 15 | O37: 2008-B | P37: 0 | Q37: 0 | R37: 0 | S37: 0 | T37: 300 | U37: 300 | V37: 300 | W37: 0 | X37: 0 | Y37: 6 | Z37: 5 | AA37: YES | AB37: 6 | AC37: FALSE | AD37: YES | AL37: =IFERROR(INDEX($CP$4:$CR$48,SMALL(IF((ISERROR(SEARCH($AM$14,PL_YEAR)*SEARCH($AM$14,PL_YEAR)*SEARCH($AM$12,PL_TYPE)))+(COUNTIFS(AL$18:$AL36,PL_YEAR,$AM$18:AM36,PL_DAYS,$AN$18:AN36,PL_TYPE)>0),"",ROW(PL_YEAR)-MIN(ROW(PL_YEAR))+1),1),COLUMN(A27)),"") ->  | AM37: =IFERROR(INDEX($CP$4:$CR$48,SMALL(IF((ISERROR(SEARCH($AM$14,PL_YEAR)*SEARCH($AM$14,PL_YEAR)*SEARCH($AM$12,PL_TYPE)))+(COUNTIFS($AL$18:AM36,PL_YEAR,$AM$18:AN36,PL_DAYS,$AN$18:AO36,PL_TYPE)>0),"",ROW(PL_YEAR)-MIN(ROW(PL_YEAR))+1),1),COLUMN(B27)),"") ->  | AN37: =IFERROR(INDEX($CP$4:$CR$48,SMALL(IF((ISERROR(SEARCH($AM$14,PL_YEAR)*SEARCH($AM$14,PL_YEAR)*SEARCH($AM$12,PL_TYPE)))+(COUNTIFS($AL$18:AN36,PL_YEAR,$AM$18:AO36,PL_DAYS,$AN$18:AP36,PL_TYPE)>0),"",ROW(PL_YEAR)-MIN(ROW(PL_YEAR))+1),1),COLUMN(C27)),"") ->  | AO37: =IFERROR(INDEX($CP$4:$CR$48,SMALL(IF((ISERROR(SEARCH($AM$14,PL_YEAR)*SEARCH($AM$14,PL_YEAR)*SEARCH($AM$12,PL_TYPE)))+(COUNTIFS($AL$18:AO36,PL_YEAR,$AM$18:AP36,PL_DAYS,$AN$18:AQ36,PL_TYPE)>0),"",ROW(PL_YEAR)-MIN(ROW(PL_YEAR))+1),1),COLUMN(E27)),"") ->  | AP37: =IFERROR(INDEX($CP$4:$CR$48,SMALL(IF((ISERROR(SEARCH($AQ$14,PL_YEAR)*SEARCH($AQ$14,PL_YEAR)*SEARCH($AQ$12,PL_TYPE)))+(COUNTIFS($AP$18:AP36,PL_YEAR,$AQ$18:AQ36,PL_DAYS,$AR$18:AR36,PL_TYPE)>0),"",ROW(PL_YEAR)-MIN(ROW(PL_YEAR))+1),1),COLUMN(A27)),"") ->  | AQ37: =IFERROR(INDEX($CP$4:$CR$48,SMALL(IF((ISERROR(SEARCH($AQ$14,PL_YEAR)*SEARCH($AQ$14,PL_YEAR)*SEARCH($AQ$12,PL_TYPE)))+(COUNTIFS($AP$18:AQ36,PL_YEAR,$AQ$18:AR36,PL_DAYS,$AR$18:AS36,PL_TYPE)>0),"",ROW(PL_YEAR)-MIN(ROW(PL_YEAR))+1),1),COLUMN(B27)),"") ->  | AR37: =IFERROR(INDEX($CP$4:$CR$48,SMALL(IF((ISERROR(SEARCH($AQ$14,PL_YEAR)*SEARCH($AQ$14,PL_YEAR)*SEARCH($AQ$12,PL_TYPE)))+(COUNTIFS($AP$18:AR36,PL_YEAR,$AQ$18:AS36,PL_DAYS,$AR$18:AT36,PL_TYPE)>0),"",ROW(PL_YEAR)-MIN(ROW(PL_YEAR))+1),1),COLUMN(C27)),"") ->  | AS37: =IFERROR(INDEX($CP$4:$CR$48,SMALL(IF((ISERROR(SEARCH($AM$14,PL_YEAR)*SEARCH($AM$14,PL_YEAR)*SEARCH($AM$12,PL_TYPE)))+(COUNTIFS($AL$18:AS36,PL_YEAR,$AM$18:AT36,PL_DAYS,$AN$18:AU36,PL_TYPE)>0),"",ROW(PL_YEAR)-MIN(ROW(PL_YEAR))+1),1),COLUMN(E27)),"") ->  | AT37: =IFERROR(INDEX($CP$4:$CR$48,SMALL(IF((ISERROR(SEARCH($AU$14,PL_YEAR)*SEARCH($AU$14,PL_YEAR)*SEARCH($AU$12,PL_TYPE)))+(COUNTIFS($AT$18:AT36,PL_YEAR,$AU$18:AU36,PL_DAYS,$AV$18:AV36,PL_TYPE)>0),"",ROW(PL_YEAR)-MIN(ROW(PL_YEAR))+1),1),COLUMN(A27)),"") ->  | AU37: =IFERROR(INDEX($CP$4:$CR$48,SMALL(IF((ISERROR(SEARCH($AU$14,PL_YEAR)*SEARCH($AU$14,PL_YEAR)*SEARCH($AU$12,PL_TYPE)))+(COUNTIFS($AT$18:AU36,PL_YEAR,$AU$18:AV36,PL_DAYS,$AV$18:AW36,PL_TYPE)>0),"",ROW(PL_YEAR)-MIN(ROW(PL_YEAR))+1),1),COLUMN(B27)),"") ->  | AV37: =IFERROR(INDEX($CP$4:$CR$48,SMALL(IF((ISERROR(SEARCH($AU$14,PL_YEAR)*SEARCH($AU$14,PL_YEAR)*SEARCH($AU$12,PL_TYPE)))+(COUNTIFS($AT$18:AV36,PL_YEAR,$AU$18:AW36,PL_DAYS,$AU$18:AW36,PL_TYPE)>0),"",ROW(PL_YEAR)-MIN(ROW(PL_YEAR))+1),1),COLUMN(C27)),"") ->  | AW37: =IFERROR(INDEX($CP$4:$CR$48,SMALL(IF((ISERROR(SEARCH($AU$14,PL_YEAR)*SEARCH($AU$14,PL_YEAR)*SEARCH($AU$12,PL_TYPE)))+(COUNTIFS($AT$18:AW36,PL_YEAR,$AU$18:AW36,PL_DAYS,$AU$18:AW36,PL_TYPE)>0),"",ROW(PL_YEAR)-MIN(ROW(PL_YEAR))+1),1),COLUMN(E27)),"") ->  | BE37: 45 | BG37: 1 | BJ37: =IF(PL!E47="","",PL!E47) ->  | BK37: =IF(PL!F47="","",PL!F47) ->  | BL37: =IF(PL!G47="","",PL!G47) ->  | BM37: =IF(PL!H47="","",PL!H47) ->  | BN37: 0 | CO37: 34 | CP37: =INDEX($BK$12:$BK$56,MATCH(ROWS($CO$4:CO37),$CO$4:$CO$48,0)) ->  | CQ37: =INDEX($BN$12:$BN$56,MATCH(ROWS($CO$4:CP37),$CO$4:$CO$48,0)) -> 0 | CR37: =INDEX($BJ$12:$BJ$56,MATCH(ROWS($CO$4:CQ37),$CO$4:$CO$48,0)) ->  | CT37: 0
B38: 2009-01-01 | C38: 2009-06-30 | D38: 2009-06-30 | E38: YES | F38: YES | G38: 2009-01-01 | H38: 2009-06-30 | I38: 2009 | J38: A | K38: 2009-A | L38: 181 | M38: 300 | N38: 15 | O38: 2009-A | P38: 0 | Q38: 0 | R38: 0 | S38: 0 | T38: 300 | U38: 300 | V38: 300 | W38: 0 | X38: 0 | Y38: 6 | Z38: 5 | AA38: YES | AB38: 6 | AC38: FALSE | AD38: YES | AL38: =IFERROR(INDEX($CP$4:$CR$48,SMALL(IF((ISERROR(SEARCH($AM$14,PL_YEAR)*SEARCH($AM$14,PL_YEAR)*SEARCH($AM$12,PL_TYPE)))+(COUNTIFS(AL$18:$AL37,PL_YEAR,$AM$18:AM37,PL_DAYS,$AN$18:AN37,PL_TYPE)>0),"",ROW(PL_YEAR)-MIN(ROW(PL_YEAR))+1),1),COLUMN(A28)),"") ->  | AM38: =IFERROR(INDEX($CP$4:$CR$48,SMALL(IF((ISERROR(SEARCH($AM$14,PL_YEAR)*SEARCH($AM$14,PL_YEAR)*SEARCH($AM$12,PL_TYPE)))+(COUNTIFS($AL$18:AM37,PL_YEAR,$AM$18:AN37,PL_DAYS,$AN$18:AO37,PL_TYPE)>0),"",ROW(PL_YEAR)-MIN(ROW(PL_YEAR))+1),1),COLUMN(B28)),"") ->  | AN38: =IFERROR(INDEX($CP$4:$CR$48,SMALL(IF((ISERROR(SEARCH($AM$14,PL_YEAR)*SEARCH($AM$14,PL_YEAR)*SEARCH($AM$12,PL_TYPE)))+(COUNTIFS($AL$18:AN37,PL_YEAR,$AM$18:AO37,PL_DAYS,$AN$18:AP37,PL_TYPE)>0),"",ROW(PL_YEAR)-MIN(ROW(PL_YEAR))+1),1),COLUMN(C28)),"") ->  | AO38: =IFERROR(INDEX($CP$4:$CR$48,SMALL(IF((ISERROR(SEARCH($AM$14,PL_YEAR)*SEARCH($AM$14,PL_YEAR)*SEARCH($AM$12,PL_TYPE)))+(COUNTIFS($AL$18:AO37,PL_YEAR,$AM$18:AP37,PL_DAYS,$AN$18:AQ37,PL_TYPE)>0),"",ROW(PL_YEAR)-MIN(ROW(PL_YEAR))+1),1),COLUMN(E28)),"") ->  | AP38: =IFERROR(INDEX($CP$4:$CR$48,SMALL(IF((ISERROR(SEARCH($AQ$14,PL_YEAR)*SEARCH($AQ$14,PL_YEAR)*SEARCH($AQ$12,PL_TYPE)))+(COUNTIFS($AP$18:AP37,PL_YEAR,$AQ$18:AQ37,PL_DAYS,$AR$18:AR37,PL_TYPE)>0),"",ROW(PL_YEAR)-MIN(ROW(PL_YEAR))+1),1),COLUMN(A28)),"") ->  | AQ38: =IFERROR(INDEX($CP$4:$CR$48,SMALL(IF((ISERROR(SEARCH($AQ$14,PL_YEAR)*SEARCH($AQ$14,PL_YEAR)*SEARCH($AQ$12,PL_TYPE)))+(COUNTIFS($AP$18:AQ37,PL_YEAR,$AQ$18:AR37,PL_DAYS,$AR$18:AS37,PL_TYPE)>0),"",ROW(PL_YEAR)-MIN(ROW(PL_YEAR))+1),1),COLUMN(B28)),"") ->  | AR38: =IFERROR(INDEX($CP$4:$CR$48,SMALL(IF((ISERROR(SEARCH($AQ$14,PL_YEAR)*SEARCH($AQ$14,PL_YEAR)*SEARCH($AQ$12,PL_TYPE)))+(COUNTIFS($AP$18:AR37,PL_YEAR,$AQ$18:AS37,PL_DAYS,$AR$18:AT37,PL_TYPE)>0),"",ROW(PL_YEAR)-MIN(ROW(PL_YEAR))+1),1),COLUMN(C28)),"") ->  | AS38: =IFERROR(INDEX($CP$4:$CR$48,SMALL(IF((ISERROR(SEARCH($AM$14,PL_YEAR)*SEARCH($AM$14,PL_YEAR)*SEARCH($AM$12,PL_TYPE)))+(COUNTIFS($AL$18:AS37,PL_YEAR,$AM$18:AT37,PL_DAYS,$AN$18:AU37,PL_TYPE)>0),"",ROW(PL_YEAR)-MIN(ROW(PL_YEAR))+1),1),COLUMN(E28)),"") ->  | AT38: =IFERROR(INDEX($CP$4:$CR$48,SMALL(IF((ISERROR(SEARCH($AU$14,PL_YEAR)*SEARCH($AU$14,PL_YEAR)*SEARCH($AU$12,PL_TYPE)))+(COUNTIFS($AT$18:AT37,PL_YEAR,$AU$18:AU37,PL_DAYS,$AV$18:AV37,PL_TYPE)>0),"",ROW(PL_YEAR)-MIN(ROW(PL_YEAR))+1),1),COLUMN(A28)),"") ->  | AU38: =IFERROR(INDEX($CP$4:$CR$48,SMALL(IF((ISERROR(SEARCH($AU$14,PL_YEAR)*SEARCH($AU$14,PL_YEAR)*SEARCH($AU$12,PL_TYPE)))+(COUNTIFS($AT$18:AU37,PL_YEAR,$AU$18:AV37,PL_DAYS,$AV$18:AW37,PL_TYPE)>0),"",ROW(PL_YEAR)-MIN(ROW(PL_YEAR))+1),1),COLUMN(B28)),"") ->  | AV38: =IFERROR(INDEX($CP$4:$CR$48,SMALL(IF((ISERROR(SEARCH($AU$14,PL_YEAR)*SEARCH($AU$14,PL_YEAR)*SEARCH($AU$12,PL_TYPE)))+(COUNTIFS($AT$18:AV37,PL_YEAR,$AU$18:AW37,PL_DAYS,$AU$18:AW37,PL_TYPE)>0),"",ROW(PL_YEAR)-MIN(ROW(PL_YEAR))+1),1),COLUMN(C28)),"") ->  | AW38: =IFERROR(INDEX($CP$4:$CR$48,SMALL(IF((ISERROR(SEARCH($AU$14,PL_YEAR)*SEARCH($AU$14,PL_YEAR)*SEARCH($AU$12,PL_TYPE)))+(COUNTIFS($AT$18:AW37,PL_YEAR,$AU$18:AW37,PL_DAYS,$AU$18:AW37,PL_TYPE)>0),"",ROW(PL_YEAR)-MIN(ROW(PL_YEAR))+1),1),COLUMN(E28)),"") ->  | BE38: 45 | BG38: 1 | BJ38: =IF(PL!E48="","",PL!E48) ->  | BK38: =IF(PL!F48="","",PL!F48) ->  | BL38: =IF(PL!G48="","",PL!G48) ->  | BM38: =IF(PL!H48="","",PL!H48) ->  | BN38: 0 | CO38: 35 | CP38: =INDEX($BK$12:$BK$56,MATCH(ROWS($CO$4:CO38),$CO$4:$CO$48,0)) ->  | CQ38: =INDEX($BN$12:$BN$56,MATCH(ROWS($CO$4:CP38),$CO$4:$CO$48,0)) -> 0 | CR38: =INDEX($BJ$12:$BJ$56,MATCH(ROWS($CO$4:CQ38),$CO$4:$CO$48,0)) ->  | CT38: 0
B39: 2009-07-01 | C39: 2009-12-31 | D39: 2009-12-31 | E39: YES | F39: YES | G39: 2009-07-01 | H39: 2009-12-31 | I39: 2009 | J39: B | K39: 2009-B | L39: 184 | M39: 300 | N39: 15 | O39: 2009-B | P39: 0 | Q39: 0 | R39: 0 | S39: 0 | T39: 300 | U39: 300 | V39: 300 | W39: 0 | X39: 0 | Y39: 6 | Z39: 5 | AA39: YES | AB39: 6 | AC39: FALSE | AD39: YES | AL39: =IFERROR(INDEX($CP$4:$CR$48,SMALL(IF((ISERROR(SEARCH($AM$14,PL_YEAR)*SEARCH($AM$14,PL_YEAR)*SEARCH($AM$12,PL_TYPE)))+(COUNTIFS(AL$18:$AL38,PL_YEAR,$AM$18:AM38,PL_DAYS,$AN$18:AN38,PL_TYPE)>0),"",ROW(PL_YEAR)-MIN(ROW(PL_YEAR))+1),1),COLUMN(A29)),"") ->  | AM39: =IFERROR(INDEX($CP$4:$CR$48,SMALL(IF((ISERROR(SEARCH($AM$14,PL_YEAR)*SEARCH($AM$14,PL_YEAR)*SEARCH($AM$12,PL_TYPE)))+(COUNTIFS($AL$18:AM38,PL_YEAR,$AM$18:AN38,PL_DAYS,$AN$18:AO38,PL_TYPE)>0),"",ROW(PL_YEAR)-MIN(ROW(PL_YEAR))+1),1),COLUMN(B29)),"") ->  | AN39: =IFERROR(INDEX($CP$4:$CR$48,SMALL(IF((ISERROR(SEARCH($AM$14,PL_YEAR)*SEARCH($AM$14,PL_YEAR)*SEARCH($AM$12,PL_TYPE)))+(COUNTIFS($AL$18:AN38,PL_YEAR,$AM$18:AO38,PL_DAYS,$AN$18:AP38,PL_TYPE)>0),"",ROW(PL_YEAR)-MIN(ROW(PL_YEAR))+1),1),COLUMN(C29)),"") ->  | AO39: =IFERROR(INDEX($CP$4:$CR$48,SMALL(IF((ISERROR(SEARCH($AM$14,PL_YEAR)*SEARCH($AM$14,PL_YEAR)*SEARCH($AM$12,PL_TYPE)))+(COUNTIFS($AL$18:AO38,PL_YEAR,$AM$18:AP38,PL_DAYS,$AN$18:AQ38,PL_TYPE)>0),"",ROW(PL_YEAR)-MIN(ROW(PL_YEAR))+1),1),COLUMN(E29)),"") ->  | AP39: =IFERROR(INDEX($CP$4:$CR$48,SMALL(IF((ISERROR(SEARCH($AQ$14,PL_YEAR)*SEARCH($AQ$14,PL_YEAR)*SEARCH($AQ$12,PL_TYPE)))+(COUNTIFS($AP$18:AP38,PL_YEAR,$AQ$18:AQ38,PL_DAYS,$AR$18:AR38,PL_TYPE)>0),"",ROW(PL_YEAR)-MIN(ROW(PL_YEAR))+1),1),COLUMN(A29)),"") ->  | AQ39: =IFERROR(INDEX($CP$4:$CR$48,SMALL(IF((ISERROR(SEARCH($AQ$14,PL_YEAR)*SEARCH($AQ$14,PL_YEAR)*SEARCH($AQ$12,PL_TYPE)))+(COUNTIFS($AP$18:AQ38,PL_YEAR,$AQ$18:AR38,PL_DAYS,$AR$18:AS38,PL_TYPE)>0),"",ROW(PL_YEAR)-MIN(ROW(PL_YEAR))+1),1),COLUMN(B29)),"") ->  | AR39: =IFERROR(INDEX($CP$4:$CR$48,SMALL(IF((ISERROR(SEARCH($AQ$14,PL_YEAR)*SEARCH($AQ$14,PL_YEAR)*SEARCH($AQ$12,PL_TYPE)))+(COUNTIFS($AP$18:AR38,PL_YEAR,$AQ$18:AS38,PL_DAYS,$AR$18:AT38,PL_TYPE)>0),"",ROW(PL_YEAR)-MIN(ROW(PL_YEAR))+1),1),COLUMN(C29)),"") ->  | AS39: =IFERROR(INDEX($CP$4:$CR$48,SMALL(IF((ISERROR(SEARCH($AM$14,PL_YEAR)*SEARCH($AM$14,PL_YEAR)*SEARCH($AM$12,PL_TYPE)))+(COUNTIFS($AL$18:AS38,PL_YEAR,$AM$18:AT38,PL_DAYS,$AN$18:AU38,PL_TYPE)>0),"",ROW(PL_YEAR)-MIN(ROW(PL_YEAR))+1),1),COLUMN(E29)),"") ->  | AT39: =IFERROR(INDEX($CP$4:$CR$48,SMALL(IF((ISERROR(SEARCH($AU$14,PL_YEAR)*SEARCH($AU$14,PL_YEAR)*SEARCH($AU$12,PL_TYPE)))+(COUNTIFS($AT$18:AT38,PL_YEAR,$AU$18:AU38,PL_DAYS,$AV$18:AV38,PL_TYPE)>0),"",ROW(PL_YEAR)-MIN(ROW(PL_YEAR))+1),1),COLUMN(A29)),"") ->  | AU39: =IFERROR(INDEX($CP$4:$CR$48,SMALL(IF((ISERROR(SEARCH($AU$14,PL_YEAR)*SEARCH($AU$14,PL_YEAR)*SEARCH($AU$12,PL_TYPE)))+(COUNTIFS($AT$18:AU38,PL_YEAR,$AU$18:AV38,PL_DAYS,$AV$18:AW38,PL_TYPE)>0),"",ROW(PL_YEAR)-MIN(ROW(PL_YEAR))+1),1),COLUMN(B29)),"") ->  | AV39: =IFERROR(INDEX($CP$4:$CR$48,SMALL(IF((ISERROR(SEARCH($AU$14,PL_YEAR)*SEARCH($AU$14,PL_YEAR)*SEARCH($AU$12,PL_TYPE)))+(COUNTIFS($AT$18:AV38,PL_YEAR,$AU$18:AW38,PL_DAYS,$AU$18:AW38,PL_TYPE)>0),"",ROW(PL_YEAR)-MIN(ROW(PL_YEAR))+1),1),COLUMN(C29)),"") ->  | AW39: =IFERROR(INDEX($CP$4:$CR$48,SMALL(IF((ISERROR(SEARCH($AU$14,PL_YEAR)*SEARCH($AU$14,PL_YEAR)*SEARCH($AU$12,PL_TYPE)))+(COUNTIFS($AT$18:AW38,PL_YEAR,$AU$18:AW38,PL_DAYS,$AU$18:AW38,PL_TYPE)>0),"",ROW(PL_YEAR)-MIN(ROW(PL_YEAR))+1),1),COLUMN(E29)),"") ->  | BE39: 45 | BG39: 1 | BJ39: =IF(PL!E49="","",PL!E49) ->  | BK39: =IF(PL!F49="","",PL!F49) ->  | BL39: =IF(PL!G49="","",PL!G49) ->  | BM39: =IF(PL!H49="","",PL!H49) ->  | BN39: 0 | CO39: 36 | CP39: =INDEX($BK$12:$BK$56,MATCH(ROWS($CO$4:CO39),$CO$4:$CO$48,0)) ->  | CQ39: =INDEX($BN$12:$BN$56,MATCH(ROWS($CO$4:CP39),$CO$4:$CO$48,0)) -> 0 | CR39: =INDEX($BJ$12:$BJ$56,MATCH(ROWS($CO$4:CQ39),$CO$4:$CO$48,0)) ->  | CT39: 0
B40: 2010-01-01 | C40: 2010-06-30 | D40: 2010-06-30 | E40: YES | F40: YES | G40: 2010-01-01 | H40: 2010-06-30 | I40: 2010 | J40: A | K40: 2010-A | L40: 181 | M40: 300 | N40: 15 | O40: 2010-A | P40: 0 | Q40: 0 | R40: 0 | S40: 0 | T40: 300 | U40: 300 | V40: 300 | W40: 0 | X40: 0 | Y40: 6 | Z40: 5 | AA40: YES | AB40: 6 | AC40: FALSE | AD40: YES | AL40: =IFERROR(INDEX($CP$4:$CR$48,SMALL(IF((ISERROR(SEARCH($AM$14,PL_YEAR)*SEARCH($AM$14,PL_YEAR)*SEARCH($AM$12,PL_TYPE)))+(COUNTIFS(AL$18:$AL39,PL_YEAR,$AM$18:AM39,PL_DAYS,$AN$18:AN39,PL_TYPE)>0),"",ROW(PL_YEAR)-MIN(ROW(PL_YEAR))+1),1),COLUMN(A30)),"") ->  | AM40: =IFERROR(INDEX($CP$4:$CR$48,SMALL(IF((ISERROR(SEARCH($AM$14,PL_YEAR)*SEARCH($AM$14,PL_YEAR)*SEARCH($AM$12,PL_TYPE)))+(COUNTIFS($AL$18:AM39,PL_YEAR,$AM$18:AN39,PL_DAYS,$AN$18:AO39,PL_TYPE)>0),"",ROW(PL_YEAR)-MIN(ROW(PL_YEAR))+1),1),COLUMN(B30)),"") ->  | AN40: =IFERROR(INDEX($CP$4:$CR$48,SMALL(IF((ISERROR(SEARCH($AM$14,PL_YEAR)*SEARCH($AM$14,PL_YEAR)*SEARCH($AM$12,PL_TYPE)))+(COUNTIFS($AL$18:AN39,PL_YEAR,$AM$18:AO39,PL_DAYS,$AN$18:AP39,PL_TYPE)>0),"",ROW(PL_YEAR)-MIN(ROW(PL_YEAR))+1),1),COLUMN(C30)),"") ->  | AO40: =IFERROR(INDEX($CP$4:$CR$48,SMALL(IF((ISERROR(SEARCH($AM$14,PL_YEAR)*SEARCH($AM$14,PL_YEAR)*SEARCH($AM$12,PL_TYPE)))+(COUNTIFS($AL$18:AO39,PL_YEAR,$AM$18:AP39,PL_DAYS,$AN$18:AQ39,PL_TYPE)>0),"",ROW(PL_YEAR)-MIN(ROW(PL_YEAR))+1),1),COLUMN(E30)),"") ->  | AP40: =IFERROR(INDEX($CP$4:$CR$48,SMALL(IF((ISERROR(SEARCH($AQ$14,PL_YEAR)*SEARCH($AQ$14,PL_YEAR)*SEARCH($AQ$12,PL_TYPE)))+(COUNTIFS($AP$18:AP39,PL_YEAR,$AQ$18:AQ39,PL_DAYS,$AR$18:AR39,PL_TYPE)>0),"",ROW(PL_YEAR)-MIN(ROW(PL_YEAR))+1),1),COLUMN(A30)),"") ->  | AQ40: =IFERROR(INDEX($CP$4:$CR$48,SMALL(IF((ISERROR(SEARCH($AQ$14,PL_YEAR)*SEARCH($AQ$14,PL_YEAR)*SEARCH($AQ$12,PL_TYPE)))+(COUNTIFS($AP$18:AQ39,PL_YEAR,$AQ$18:AR39,PL_DAYS,$AR$18:AS39,PL_TYPE)>0),"",ROW(PL_YEAR)-MIN(ROW(PL_YEAR))+1),1),COLUMN(B30)),"") ->  | AR40: =IFERROR(INDEX($CP$4:$CR$48,SMALL(IF((ISERROR(SEARCH($AQ$14,PL_YEAR)*SEARCH($AQ$14,PL_YEAR)*SEARCH($AQ$12,PL_TYPE)))+(COUNTIFS($AP$18:AR39,PL_YEAR,$AQ$18:AS39,PL_DAYS,$AR$18:AT39,PL_TYPE)>0),"",ROW(PL_YEAR)-MIN(ROW(PL_YEAR))+1),1),COLUMN(C30)),"") ->  | AS40: =IFERROR(INDEX($CP$4:$CR$48,SMALL(IF((ISERROR(SEARCH($AM$14,PL_YEAR)*SEARCH($AM$14,PL_YEAR)*SEARCH($AM$12,PL_TYPE)))+(COUNTIFS($AL$18:AS39,PL_YEAR,$AM$18:AT39,PL_DAYS,$AN$18:AU39,PL_TYPE)>0),"",ROW(PL_YEAR)-MIN(ROW(PL_YEAR))+1),1),COLUMN(E30)),"") ->  | AT40: =IFERROR(INDEX($CP$4:$CR$48,SMALL(IF((ISERROR(SEARCH($AU$14,PL_YEAR)*SEARCH($AU$14,PL_YEAR)*SEARCH($AU$12,PL_TYPE)))+(COUNTIFS($AT$18:AT39,PL_YEAR,$AU$18:AU39,PL_DAYS,$AV$18:AV39,PL_TYPE)>0),"",ROW(PL_YEAR)-MIN(ROW(PL_YEAR))+1),1),COLUMN(A30)),"") ->  | AU40: =IFERROR(INDEX($CP$4:$CR$48,SMALL(IF((ISERROR(SEARCH($AU$14,PL_YEAR)*SEARCH($AU$14,PL_YEAR)*SEARCH($AU$12,PL_TYPE)))+(COUNTIFS($AT$18:AU39,PL_YEAR,$AU$18:AV39,PL_DAYS,$AV$18:AW39,PL_TYPE)>0),"",ROW(PL_YEAR)-MIN(ROW(PL_YEAR))+1),1),COLUMN(B30)),"") ->  | AV40: =IFERROR(INDEX($CP$4:$CR$48,SMALL(IF((ISERROR(SEARCH($AU$14,PL_YEAR)*SEARCH($AU$14,PL_YEAR)*SEARCH($AU$12,PL_TYPE)))+(COUNTIFS($AT$18:AV39,PL_YEAR,$AU$18:AW39,PL_DAYS,$AU$18:AW39,PL_TYPE)>0),"",ROW(PL_YEAR)-MIN(ROW(PL_YEAR))+1),1),COLUMN(C30)),"") ->  | AW40: =IFERROR(INDEX($CP$4:$CR$48,SMALL(IF((ISERROR(SEARCH($AU$14,PL_YEAR)*SEARCH($AU$14,PL_YEAR)*SEARCH($AU$12,PL_TYPE)))+(COUNTIFS($AT$18:AW39,PL_YEAR,$AU$18:AW39,PL_DAYS,$AU$18:AW39,PL_TYPE)>0),"",ROW(PL_YEAR)-MIN(ROW(PL_YEAR))+1),1),COLUMN(E30)),"") ->  | BE40: 45 | BG40: 1 | BJ40: =IF(PL!E50="","",PL!E50) ->  | BK40: =IF(PL!F50="","",PL!F50) ->  | BL40: =IF(PL!G50="","",PL!G50) ->  | BM40: =IF(PL!H50="","",PL!H50) ->  | BN40: 0 | CO40: 37 | CP40: =INDEX($BK$12:$BK$56,MATCH(ROWS($CO$4:CO40),$CO$4:$CO$48,0)) ->  | CQ40: =INDEX($BN$12:$BN$56,MATCH(ROWS($CO$4:CP40),$CO$4:$CO$48,0)) -> 0 | CR40: =INDEX($BJ$12:$BJ$56,MATCH(ROWS($CO$4:CQ40),$CO$4:$CO$48,0)) ->  | CT40: 0
B41: 2010-07-01 | C41: 2010-12-31 | D41: 2010-12-31 | E41: YES | F41: YES | G41: 2010-07-01 | H41: 2010-12-31 | I41: 2010 | J41: B | K41: 2010-B | L41: 184 | M41: 300 | N41: 15 | O41: 2010-B | P41: 0 | Q41: 0 | R41: 0 | S41: 0 | T41: 300 | U41: 300 | V41: 300 | W41: 0 | X41: 0 | Y41: 6 | Z41: 5 | AA41: YES | AB41: 6 | AC41: FALSE | AD41: YES | AL41: =IFERROR(INDEX($CP$4:$CR$48,SMALL(IF((ISERROR(SEARCH($AM$14,PL_YEAR)*SEARCH($AM$14,PL_YEAR)*SEARCH($AM$12,PL_TYPE)))+(COUNTIFS(AL$18:$AL40,PL_YEAR,$AM$18:AM40,PL_DAYS,$AN$18:AN40,PL_TYPE)>0),"",ROW(PL_YEAR)-MIN(ROW(PL_YEAR))+1),1),COLUMN(A31)),"") ->  | AM41: =IFERROR(INDEX($CP$4:$CR$48,SMALL(IF((ISERROR(SEARCH($AM$14,PL_YEAR)*SEARCH($AM$14,PL_YEAR)*SEARCH($AM$12,PL_TYPE)))+(COUNTIFS($AL$18:AM40,PL_YEAR,$AM$18:AN40,PL_DAYS,$AN$18:AO40,PL_TYPE)>0),"",ROW(PL_YEAR)-MIN(ROW(PL_YEAR))+1),1),COLUMN(B31)),"") ->  | AN41: =IFERROR(INDEX($CP$4:$CR$48,SMALL(IF((ISERROR(SEARCH($AM$14,PL_YEAR)*SEARCH($AM$14,PL_YEAR)*SEARCH($AM$12,PL_TYPE)))+(COUNTIFS($AL$18:AN40,PL_YEAR,$AM$18:AO40,PL_DAYS,$AN$18:AP40,PL_TYPE)>0),"",ROW(PL_YEAR)-MIN(ROW(PL_YEAR))+1),1),COLUMN(C31)),"") ->  | AO41: =IFERROR(INDEX($CP$4:$CR$48,SMALL(IF((ISERROR(SEARCH($AM$14,PL_YEAR)*SEARCH($AM$14,PL_YEAR)*SEARCH($AM$12,PL_TYPE)))+(COUNTIFS($AL$18:AO40,PL_YEAR,$AM$18:AP40,PL_DAYS,$AN$18:AQ40,PL_TYPE)>0),"",ROW(PL_YEAR)-MIN(ROW(PL_YEAR))+1),1),COLUMN(E31)),"") ->  | AP41: =IFERROR(INDEX($CP$4:$CR$48,SMALL(IF((ISERROR(SEARCH($AQ$14,PL_YEAR)*SEARCH($AQ$14,PL_YEAR)*SEARCH($AQ$12,PL_TYPE)))+(COUNTIFS($AP$18:AP40,PL_YEAR,$AQ$18:AQ40,PL_DAYS,$AR$18:AR40,PL_TYPE)>0),"",ROW(PL_YEAR)-MIN(ROW(PL_YEAR))+1),1),COLUMN(A31)),"") ->  | AQ41: =IFERROR(INDEX($CP$4:$CR$48,SMALL(IF((ISERROR(SEARCH($AQ$14,PL_YEAR)*SEARCH($AQ$14,PL_YEAR)*SEARCH($AQ$12,PL_TYPE)))+(COUNTIFS($AP$18:AQ40,PL_YEAR,$AQ$18:AR40,PL_DAYS,$AR$18:AS40,PL_TYPE)>0),"",ROW(PL_YEAR)-MIN(ROW(PL_YEAR))+1),1),COLUMN(B31)),"") ->  | AR41: =IFERROR(INDEX($CP$4:$CR$48,SMALL(IF((ISERROR(SEARCH($AQ$14,PL_YEAR)*SEARCH($AQ$14,PL_YEAR)*SEARCH($AQ$12,PL_TYPE)))+(COUNTIFS($AP$18:AR40,PL_YEAR,$AQ$18:AS40,PL_DAYS,$AR$18:AT40,PL_TYPE)>0),"",ROW(PL_YEAR)-MIN(ROW(PL_YEAR))+1),1),COLUMN(C31)),"") ->  | AS41: =IFERROR(INDEX($CP$4:$CR$48,SMALL(IF((ISERROR(SEARCH($AM$14,PL_YEAR)*SEARCH($AM$14,PL_YEAR)*SEARCH($AM$12,PL_TYPE)))+(COUNTIFS($AL$18:AS40,PL_YEAR,$AM$18:AT40,PL_DAYS,$AN$18:AU40,PL_TYPE)>0),"",ROW(PL_YEAR)-MIN(ROW(PL_YEAR))+1),1),COLUMN(E31)),"") ->  | AT41: =IFERROR(INDEX($CP$4:$CR$48,SMALL(IF((ISERROR(SEARCH($AU$14,PL_YEAR)*SEARCH($AU$14,PL_YEAR)*SEARCH($AU$12,PL_TYPE)))+(COUNTIFS($AT$18:AT40,PL_YEAR,$AU$18:AU40,PL_DAYS,$AV$18:AV40,PL_TYPE)>0),"",ROW(PL_YEAR)-MIN(ROW(PL_YEAR))+1),1),COLUMN(A31)),"") ->  | AU41: =IFERROR(INDEX($CP$4:$CR$48,SMALL(IF((ISERROR(SEARCH($AU$14,PL_YEAR)*SEARCH($AU$14,PL_YEAR)*SEARCH($AU$12,PL_TYPE)))+(COUNTIFS($AT$18:AU40,PL_YEAR,$AU$18:AV40,PL_DAYS,$AV$18:AW40,PL_TYPE)>0),"",ROW(PL_YEAR)-MIN(ROW(PL_YEAR))+1),1),COLUMN(B31)),"") ->  | AV41: =IFERROR(INDEX($CP$4:$CR$48,SMALL(IF((ISERROR(SEARCH($AU$14,PL_YEAR)*SEARCH($AU$14,PL_YEAR)*SEARCH($AU$12,PL_TYPE)))+(COUNTIFS($AT$18:AV40,PL_YEAR,$AU$18:AW40,PL_DAYS,$AU$18:AW40,PL_TYPE)>0),"",ROW(PL_YEAR)-MIN(ROW(PL_YEAR))+1),1),COLUMN(C31)),"") ->  | AW41: =IFERROR(INDEX($CP$4:$CR$48,SMALL(IF((ISERROR(SEARCH($AU$14,PL_YEAR)*SEARCH($AU$14,PL_YEAR)*SEARCH($AU$12,PL_TYPE)))+(COUNTIFS($AT$18:AW40,PL_YEAR,$AU$18:AW40,PL_DAYS,$AU$18:AW40,PL_TYPE)>0),"",ROW(PL_YEAR)-MIN(ROW(PL_YEAR))+1),1),COLUMN(E31)),"") ->  | BE41: 45 | BG41: 1 | BJ41: =IF(PL!E51="","",PL!E51) ->  | BK41: =IF(PL!F51="","",PL!F51) ->  | BL41: =IF(PL!G51="","",PL!G51) ->  | BM41: =IF(PL!H51="","",PL!H51) ->  | BN41: 0 | CO41: 38 | CP41: =INDEX($BK$12:$BK$56,MATCH(ROWS($CO$4:CO41),$CO$4:$CO$48,0)) ->  | CQ41: =INDEX($BN$12:$BN$56,MATCH(ROWS($CO$4:CP41),$CO$4:$CO$48,0)) -> 0 | CR41: =INDEX($BJ$12:$BJ$56,MATCH(ROWS($CO$4:CQ41),$CO$4:$CO$48,0)) ->  | CT41: 0
B42: 2011-01-01 | C42: 2011-06-30 | D42: 2011-06-30 | E42: YES | F42: YES | G42: 2011-01-01 | H42: 2011-06-30 | I42: 2011 | J42: A | K42: 2011-A | L42: 181 | M42: 300 | N42: 15 | O42: 2011-A | P42: 0 | Q42: 0 | R42: 0 | S42: 0 | T42: 300 | U42: 300 | V42: 300 | W42: 0 | X42: 0 | Y42: 6 | Z42: 5 | AA42: YES | AB42: 6 | AC42: FALSE | AD42: YES | AL42: =IFERROR(INDEX($CP$4:$CR$48,SMALL(IF((ISERROR(SEARCH($AM$14,PL_YEAR)*SEARCH($AM$14,PL_YEAR)*SEARCH($AM$12,PL_TYPE)))+(COUNTIFS(AL$18:$AL41,PL_YEAR,$AM$18:AM41,PL_DAYS,$AN$18:AN41,PL_TYPE)>0),"",ROW(PL_YEAR)-MIN(ROW(PL_YEAR))+1),1),COLUMN(A32)),"") ->  | AM42: =IFERROR(INDEX($CP$4:$CR$48,SMALL(IF((ISERROR(SEARCH($AM$14,PL_YEAR)*SEARCH($AM$14,PL_YEAR)*SEARCH($AM$12,PL_TYPE)))+(COUNTIFS($AL$18:AM41,PL_YEAR,$AM$18:AN41,PL_DAYS,$AN$18:AO41,PL_TYPE)>0),"",ROW(PL_YEAR)-MIN(ROW(PL_YEAR))+1),1),COLUMN(B32)),"") ->  | AN42: =IFERROR(INDEX($CP$4:$CR$48,SMALL(IF((ISERROR(SEARCH($AM$14,PL_YEAR)*SEARCH($AM$14,PL_YEAR)*SEARCH($AM$12,PL_TYPE)))+(COUNTIFS($AL$18:AN41,PL_YEAR,$AM$18:AO41,PL_DAYS,$AN$18:AP41,PL_TYPE)>0),"",ROW(PL_YEAR)-MIN(ROW(PL_YEAR))+1),1),COLUMN(C32)),"") ->  | AO42: =IFERROR(INDEX($CP$4:$CR$48,SMALL(IF((ISERROR(SEARCH($AM$14,PL_YEAR)*SEARCH($AM$14,PL_YEAR)*SEARCH($AM$12,PL_TYPE)))+(COUNTIFS($AL$18:AO41,PL_YEAR,$AM$18:AP41,PL_DAYS,$AN$18:AQ41,PL_TYPE)>0),"",ROW(PL_YEAR)-MIN(ROW(PL_YEAR))+1),1),COLUMN(E32)),"") ->  | AP42: =IFERROR(INDEX($CP$4:$CR$48,SMALL(IF((ISERROR(SEARCH($AQ$14,PL_YEAR)*SEARCH($AQ$14,PL_YEAR)*SEARCH($AQ$12,PL_TYPE)))+(COUNTIFS($AP$18:AP41,PL_YEAR,$AQ$18:AQ41,PL_DAYS,$AR$18:AR41,PL_TYPE)>0),"",ROW(PL_YEAR)-MIN(ROW(PL_YEAR))+1),1),COLUMN(A32)),"") ->  | AQ42: =IFERROR(INDEX($CP$4:$CR$48,SMALL(IF((ISERROR(SEARCH($AQ$14,PL_YEAR)*SEARCH($AQ$14,PL_YEAR)*SEARCH($AQ$12,PL_TYPE)))+(COUNTIFS($AP$18:AQ41,PL_YEAR,$AQ$18:AR41,PL_DAYS,$AR$18:AS41,PL_TYPE)>0),"",ROW(PL_YEAR)-MIN(ROW(PL_YEAR))+1),1),COLUMN(B32)),"") ->  | AR42: =IFERROR(INDEX($CP$4:$CR$48,SMALL(IF((ISERROR(SEARCH($AQ$14,PL_YEAR)*SEARCH($AQ$14,PL_YEAR)*SEARCH($AQ$12,PL_TYPE)))+(COUNTIFS($AP$18:AR41,PL_YEAR,$AQ$18:AS41,PL_DAYS,$AR$18:AT41,PL_TYPE)>0),"",ROW(PL_YEAR)-MIN(ROW(PL_YEAR))+1),1),COLUMN(C32)),"") ->  | AS42: =IFERROR(INDEX($CP$4:$CR$48,SMALL(IF((ISERROR(SEARCH($AM$14,PL_YEAR)*SEARCH($AM$14,PL_YEAR)*SEARCH($AM$12,PL_TYPE)))+(COUNTIFS($AL$18:AS41,PL_YEAR,$AM$18:AT41,PL_DAYS,$AN$18:AU41,PL_TYPE)>0),"",ROW(PL_YEAR)-MIN(ROW(PL_YEAR))+1),1),COLUMN(E32)),"") ->  | AT42: =IFERROR(INDEX($CP$4:$CR$48,SMALL(IF((ISERROR(SEARCH($AU$14,PL_YEAR)*SEARCH($AU$14,PL_YEAR)*SEARCH($AU$12,PL_TYPE)))+(COUNTIFS($AT$18:AT41,PL_YEAR,$AU$18:AU41,PL_DAYS,$AV$18:AV41,PL_TYPE)>0),"",ROW(PL_YEAR)-MIN(ROW(PL_YEAR))+1),1),COLUMN(A32)),"") ->  | AU42: =IFERROR(INDEX($CP$4:$CR$48,SMALL(IF((ISERROR(SEARCH($AU$14,PL_YEAR)*SEARCH($AU$14,PL_YEAR)*SEARCH($AU$12,PL_TYPE)))+(COUNTIFS($AT$18:AU41,PL_YEAR,$AU$18:AV41,PL_DAYS,$AV$18:AW41,PL_TYPE)>0),"",ROW(PL_YEAR)-MIN(ROW(PL_YEAR))+1),1),COLUMN(B32)),"") ->  | AV42: =IFERROR(INDEX($CP$4:$CR$48,SMALL(IF((ISERROR(SEARCH($AU$14,PL_YEAR)*SEARCH($AU$14,PL_YEAR)*SEARCH($AU$12,PL_TYPE)))+(COUNTIFS($AT$18:AV41,PL_YEAR,$AU$18:AW41,PL_DAYS,$AU$18:AW41,PL_TYPE)>0),"",ROW(PL_YEAR)-MIN(ROW(PL_YEAR))+1),1),COLUMN(C32)),"") ->  | AW42: =IFERROR(INDEX($CP$4:$CR$48,SMALL(IF((ISERROR(SEARCH($AU$14,PL_YEAR)*SEARCH($AU$14,PL_YEAR)*SEARCH($AU$12,PL_TYPE)))+(COUNTIFS($AT$18:AW41,PL_YEAR,$AU$18:AW41,PL_DAYS,$AU$18:AW41,PL_TYPE)>0),"",ROW(PL_YEAR)-MIN(ROW(PL_YEAR))+1),1),COLUMN(E32)),"") ->  | BE42: 45 | BG42: 1 | BJ42: =IF(PL!E52="","",PL!E52) ->  | BK42: =IF(PL!F52="","",PL!F52) ->  | BL42: =IF(PL!G52="","",PL!G52) ->  | BM42: =IF(PL!H52="","",PL!H52) ->  | BN42: 0 | CO42: 39 | CP42: =INDEX($BK$12:$BK$56,MATCH(ROWS($CO$4:CO42),$CO$4:$CO$48,0)) ->  | CQ42: =INDEX($BN$12:$BN$56,MATCH(ROWS($CO$4:CP42),$CO$4:$CO$48,0)) -> 0 | CR42: =INDEX($BJ$12:$BJ$56,MATCH(ROWS($CO$4:CQ42),$CO$4:$CO$48,0)) ->  | CT42: 0
B43: 2011-07-01 | C43: 2011-12-31 | D43: 2011-12-31 | E43: YES | F43: YES | G43: 2011-07-01 | H43: 2011-12-31 | I43: 2011 | J43: B | K43: 2011-B | L43: 184 | M43: 300 | N43: 15 | O43: 2011-B | P43: 0 | Q43: 0 | R43: 0 | S43: 0 | T43: 300 | U43: 300 | V43: 300 | W43: 0 | X43: 0 | Y43: 6 | Z43: 5 | AA43: YES | AB43: 6 | AC43: FALSE | AD43: YES | AL43: =IFERROR(INDEX($CP$4:$CR$48,SMALL(IF((ISERROR(SEARCH($AM$14,PL_YEAR)*SEARCH($AM$14,PL_YEAR)*SEARCH($AM$12,PL_TYPE)))+(COUNTIFS(AL$18:$AL42,PL_YEAR,$AM$18:AM42,PL_DAYS,$AN$18:AN42,PL_TYPE)>0),"",ROW(PL_YEAR)-MIN(ROW(PL_YEAR))+1),1),COLUMN(A33)),"") ->  | AM43: =IFERROR(INDEX($CP$4:$CR$48,SMALL(IF((ISERROR(SEARCH($AM$14,PL_YEAR)*SEARCH($AM$14,PL_YEAR)*SEARCH($AM$12,PL_TYPE)))+(COUNTIFS($AL$18:AM42,PL_YEAR,$AM$18:AN42,PL_DAYS,$AN$18:AO42,PL_TYPE)>0),"",ROW(PL_YEAR)-MIN(ROW(PL_YEAR))+1),1),COLUMN(B33)),"") ->  | AN43: =IFERROR(INDEX($CP$4:$CR$48,SMALL(IF((ISERROR(SEARCH($AM$14,PL_YEAR)*SEARCH($AM$14,PL_YEAR)*SEARCH($AM$12,PL_TYPE)))+(COUNTIFS($AL$18:AN42,PL_YEAR,$AM$18:AO42,PL_DAYS,$AN$18:AP42,PL_TYPE)>0),"",ROW(PL_YEAR)-MIN(ROW(PL_YEAR))+1),1),COLUMN(C33)),"") ->  | AO43: =IFERROR(INDEX($CP$4:$CR$48,SMALL(IF((ISERROR(SEARCH($AM$14,PL_YEAR)*SEARCH($AM$14,PL_YEAR)*SEARCH($AM$12,PL_TYPE)))+(COUNTIFS($AL$18:AO42,PL_YEAR,$AM$18:AP42,PL_DAYS,$AN$18:AQ42,PL_TYPE)>0),"",ROW(PL_YEAR)-MIN(ROW(PL_YEAR))+1),1),COLUMN(E33)),"") ->  | AP43: =IFERROR(INDEX($CP$4:$CR$48,SMALL(IF((ISERROR(SEARCH($AQ$14,PL_YEAR)*SEARCH($AQ$14,PL_YEAR)*SEARCH($AQ$12,PL_TYPE)))+(COUNTIFS($AP$18:AP42,PL_YEAR,$AQ$18:AQ42,PL_DAYS,$AR$18:AR42,PL_TYPE)>0),"",ROW(PL_YEAR)-MIN(ROW(PL_YEAR))+1),1),COLUMN(A33)),"") ->  | AQ43: =IFERROR(INDEX($CP$4:$CR$48,SMALL(IF((ISERROR(SEARCH($AQ$14,PL_YEAR)*SEARCH($AQ$14,PL_YEAR)*SEARCH($AQ$12,PL_TYPE)))+(COUNTIFS($AP$18:AQ42,PL_YEAR,$AQ$18:AR42,PL_DAYS,$AR$18:AS42,PL_TYPE)>0),"",ROW(PL_YEAR)-MIN(ROW(PL_YEAR))+1),1),COLUMN(B33)),"") ->  | AR43: =IFERROR(INDEX($CP$4:$CR$48,SMALL(IF((ISERROR(SEARCH($AQ$14,PL_YEAR)*SEARCH($AQ$14,PL_YEAR)*SEARCH($AQ$12,PL_TYPE)))+(COUNTIFS($AP$18:AR42,PL_YEAR,$AQ$18:AS42,PL_DAYS,$AR$18:AT42,PL_TYPE)>0),"",ROW(PL_YEAR)-MIN(ROW(PL_YEAR))+1),1),COLUMN(C33)),"") ->  | AS43: =IFERROR(INDEX($CP$4:$CR$48,SMALL(IF((ISERROR(SEARCH($AM$14,PL_YEAR)*SEARCH($AM$14,PL_YEAR)*SEARCH($AM$12,PL_TYPE)))+(COUNTIFS($AL$18:AS42,PL_YEAR,$AM$18:AT42,PL_DAYS,$AN$18:AU42,PL_TYPE)>0),"",ROW(PL_YEAR)-MIN(ROW(PL_YEAR))+1),1),COLUMN(E33)),"") ->  | AT43: =IFERROR(INDEX($CP$4:$CR$48,SMALL(IF((ISERROR(SEARCH($AU$14,PL_YEAR)*SEARCH($AU$14,PL_YEAR)*SEARCH($AU$12,PL_TYPE)))+(COUNTIFS($AT$18:AT42,PL_YEAR,$AU$18:AU42,PL_DAYS,$AV$18:AV42,PL_TYPE)>0),"",ROW(PL_YEAR)-MIN(ROW(PL_YEAR))+1),1),COLUMN(A33)),"") ->  | AU43: =IFERROR(INDEX($CP$4:$CR$48,SMALL(IF((ISERROR(SEARCH($AU$14,PL_YEAR)*SEARCH($AU$14,PL_YEAR)*SEARCH($AU$12,PL_TYPE)))+(COUNTIFS($AT$18:AU42,PL_YEAR,$AU$18:AV42,PL_DAYS,$AV$18:AW42,PL_TYPE)>0),"",ROW(PL_YEAR)-MIN(ROW(PL_YEAR))+1),1),COLUMN(B33)),"") ->  | AV43: =IFERROR(INDEX($CP$4:$CR$48,SMALL(IF((ISERROR(SEARCH($AU$14,PL_YEAR)*SEARCH($AU$14,PL_YEAR)*SEARCH($AU$12,PL_TYPE)))+(COUNTIFS($AT$18:AV42,PL_YEAR,$AU$18:AW42,PL_DAYS,$AU$18:AW42,PL_TYPE)>0),"",ROW(PL_YEAR)-MIN(ROW(PL_YEAR))+1),1),COLUMN(C33)),"") ->  | AW43: =IFERROR(INDEX($CP$4:$CR$48,SMALL(IF((ISERROR(SEARCH($AU$14,PL_YEAR)*SEARCH($AU$14,PL_YEAR)*SEARCH($AU$12,PL_TYPE)))+(COUNTIFS($AT$18:AW42,PL_YEAR,$AU$18:AW42,PL_DAYS,$AU$18:AW42,PL_TYPE)>0),"",ROW(PL_YEAR)-MIN(ROW(PL_YEAR))+1),1),COLUMN(E33)),"") ->  | BE43: 45 | BG43: 1 | BJ43: =IF(PL!E53="","",PL!E53) ->  | BK43: =IF(PL!F53="","",PL!F53) ->  | BL43: =IF(PL!G53="","",PL!G53) ->  | BM43: =IF(PL!H53="","",PL!H53) ->  | BN43: 0 | CO43: 40 | CP43: =INDEX($BK$12:$BK$56,MATCH(ROWS($CO$4:CO43),$CO$4:$CO$48,0)) ->  | CQ43: =INDEX($BN$12:$BN$56,MATCH(ROWS($CO$4:CP43),$CO$4:$CO$48,0)) -> 0 | CR43: =INDEX($BJ$12:$BJ$56,MATCH(ROWS($CO$4:CQ43),$CO$4:$CO$48,0)) ->  | CT43: 0
B44: 2012-01-01 | C44: 2012-06-30 | D44: 2012-06-30 | E44: =IF($C$11>=D44,"YES","NO") -> YES | F44: =IFERROR(E44,"NO") -> YES | G44: 2012-01-01 | H44: 2012-06-30 | I44: 2012 | J44: A | K44: =CONCATENATE(I44,"-",J44) -> 2012-A | L44: 182 | M44: 300 | N44: 15 | O44: =IF(F44="NO","",K44) -> 2012-A | P44: 0 | Q44: =IF(O44="","",IF(ISERROR(MATCH(O44,$AL$19:$AL$56,0)),0,VLOOKUP(O44,$AL$19:$AV$56,2,0))) -> 0 | R44: =IF(ISERROR(MATCH(O44,$AP$19:$AP$56,0)),0,VLOOKUP(O44,$AP$19:$AV$56,2,0)) -> 0 | S44: =IF(H44="","",IF(ISERROR(MATCH(O44,$AT$19:$AT$56,0)),0,VLOOKUP(O44,$AT$19:$AV$56,2,0))) -> 0 | T44: =IF(F44="NO",0,IF(AD44="YES",M44-P44-Q44+R44+S44,M44+N44-P44-Q44+R44+S44)) -> 300 | U44: 300 | V44: 300 | W44: 0 | X44: 0 | Y44: 6 | Z44: 5 | AA44: YES | AB44: 6 | AC44: FALSE | AD44: =IF(B44="","",IF(M44>=U44,"YES","NO")) -> YES | AL44: =IFERROR(INDEX($CP$4:$CR$48,SMALL(IF((ISERROR(SEARCH($AM$14,PL_YEAR)*SEARCH($AM$14,PL_YEAR)*SEARCH($AM$12,PL_TYPE)))+(COUNTIFS(AL$18:$AL43,PL_YEAR,$AM$18:AM43,PL_DAYS,$AN$18:AN43,PL_TYPE)>0),"",ROW(PL_YEAR)-MIN(ROW(PL_YEAR))+1),1),COLUMN(A34)),"") ->  | AM44: =IFERROR(INDEX($CP$4:$CR$48,SMALL(IF((ISERROR(SEARCH($AM$14,PL_YEAR)*SEARCH($AM$14,PL_YEAR)*SEARCH($AM$12,PL_TYPE)))+(COUNTIFS($AL$18:AM43,PL_YEAR,$AM$18:AN43,PL_DAYS,$AN$18:AO43,PL_TYPE)>0),"",ROW(PL_YEAR)-MIN(ROW(PL_YEAR))+1),1),COLUMN(B34)),"") ->  | AN44: =IFERROR(INDEX($CP$4:$CR$48,SMALL(IF((ISERROR(SEARCH($AM$14,PL_YEAR)*SEARCH($AM$14,PL_YEAR)*SEARCH($AM$12,PL_TYPE)))+(COUNTIFS($AL$18:AN43,PL_YEAR,$AM$18:AO43,PL_DAYS,$AN$18:AP43,PL_TYPE)>0),"",ROW(PL_YEAR)-MIN(ROW(PL_YEAR))+1),1),COLUMN(C34)),"") ->  | AO44: =IFERROR(INDEX($CP$4:$CR$48,SMALL(IF((ISERROR(SEARCH($AM$14,PL_YEAR)*SEARCH($AM$14,PL_YEAR)*SEARCH($AM$12,PL_TYPE)))+(COUNTIFS($AL$18:AO43,PL_YEAR,$AM$18:AP43,PL_DAYS,$AN$18:AQ43,PL_TYPE)>0),"",ROW(PL_YEAR)-MIN(ROW(PL_YEAR))+1),1),COLUMN(E34)),"") ->  | AP44: =IFERROR(INDEX($CP$4:$CR$48,SMALL(IF((ISERROR(SEARCH($AQ$14,PL_YEAR)*SEARCH($AQ$14,PL_YEAR)*SEARCH($AQ$12,PL_TYPE)))+(COUNTIFS($AP$18:AP43,PL_YEAR,$AQ$18:AQ43,PL_DAYS,$AR$18:AR43,PL_TYPE)>0),"",ROW(PL_YEAR)-MIN(ROW(PL_YEAR))+1),1),COLUMN(A34)),"") ->  | AQ44: =IFERROR(INDEX($CP$4:$CR$48,SMALL(IF((ISERROR(SEARCH($AQ$14,PL_YEAR)*SEARCH($AQ$14,PL_YEAR)*SEARCH($AQ$12,PL_TYPE)))+(COUNTIFS($AP$18:AQ43,PL_YEAR,$AQ$18:AR43,PL_DAYS,$AR$18:AS43,PL_TYPE)>0),"",ROW(PL_YEAR)-MIN(ROW(PL_YEAR))+1),1),COLUMN(B34)),"") ->  | AR44: =IFERROR(INDEX($CP$4:$CR$48,SMALL(IF((ISERROR(SEARCH($AQ$14,PL_YEAR)*SEARCH($AQ$14,PL_YEAR)*SEARCH($AQ$12,PL_TYPE)))+(COUNTIFS($AP$18:AR43,PL_YEAR,$AQ$18:AS43,PL_DAYS,$AR$18:AT43,PL_TYPE)>0),"",ROW(PL_YEAR)-MIN(ROW(PL_YEAR))+1),1),COLUMN(C34)),"") ->  | AS44: =IFERROR(INDEX($CP$4:$CR$48,SMALL(IF((ISERROR(SEARCH($AM$14,PL_YEAR)*SEARCH($AM$14,PL_YEAR)*SEARCH($AM$12,PL_TYPE)))+(COUNTIFS($AL$18:AS43,PL_YEAR,$AM$18:AT43,PL_DAYS,$AN$18:AU43,PL_TYPE)>0),"",ROW(PL_YEAR)-MIN(ROW(PL_YEAR))+1),1),COLUMN(E34)),"") ->  | AT44: =IFERROR(INDEX($CP$4:$CR$48,SMALL(IF((ISERROR(SEARCH($AU$14,PL_YEAR)*SEARCH($AU$14,PL_YEAR)*SEARCH($AU$12,PL_TYPE)))+(COUNTIFS($AT$18:AT43,PL_YEAR,$AU$18:AU43,PL_DAYS,$AV$18:AV43,PL_TYPE)>0),"",ROW(PL_YEAR)-MIN(ROW(PL_YEAR))+1),1),COLUMN(A34)),"") ->  | AU44: =IFERROR(INDEX($CP$4:$CR$48,SMALL(IF((ISERROR(SEARCH($AU$14,PL_YEAR)*SEARCH($AU$14,PL_YEAR)*SEARCH($AU$12,PL_TYPE)))+(COUNTIFS($AT$18:AU43,PL_YEAR,$AU$18:AV43,PL_DAYS,$AV$18:AW43,PL_TYPE)>0),"",ROW(PL_YEAR)-MIN(ROW(PL_YEAR))+1),1),COLUMN(B34)),"") ->  | AV44: =IFERROR(INDEX($CP$4:$CR$48,SMALL(IF((ISERROR(SEARCH($AU$14,PL_YEAR)*SEARCH($AU$14,PL_YEAR)*SEARCH($AU$12,PL_TYPE)))+(COUNTIFS($AT$18:AV43,PL_YEAR,$AU$18:AW43,PL_DAYS,$AU$18:AW43,PL_TYPE)>0),"",ROW(PL_YEAR)-MIN(ROW(PL_YEAR))+1),1),COLUMN(C34)),"") ->  | AW44: =IFERROR(INDEX($CP$4:$CR$48,SMALL(IF((ISERROR(SEARCH($AU$14,PL_YEAR)*SEARCH($AU$14,PL_YEAR)*SEARCH($AU$12,PL_TYPE)))+(COUNTIFS($AT$18:AW43,PL_YEAR,$AU$18:AW43,PL_DAYS,$AU$18:AW43,PL_TYPE)>0),"",ROW(PL_YEAR)-MIN(ROW(PL_YEAR))+1),1),COLUMN(E34)),"") ->  | BE44: 45 | BG44: 1 | BJ44: =IF(PL!E54="","",PL!E54) ->  | BK44: =IF(PL!F54="","",PL!F54) ->  | BL44: =IF(PL!G54="","",PL!G54) ->  | BM44: =IF(PL!H54="","",PL!H54) ->  | BN44: 0 | CO44: 41 | CP44: =INDEX($BK$12:$BK$56,MATCH(ROWS($CO$4:CO44),$CO$4:$CO$48,0)) ->  | CQ44: =INDEX($BN$12:$BN$56,MATCH(ROWS($CO$4:CP44),$CO$4:$CO$48,0)) -> 0 | CR44: =INDEX($BJ$12:$BJ$56,MATCH(ROWS($CO$4:CQ44),$CO$4:$CO$48,0)) ->  | CT44: 0
B45: 2012-07-01 | C45: 2012-12-31 | D45: 2012-12-31 | E45: YES | F45: YES | G45: 2012-07-01 | H45: 2012-12-31 | I45: 2012 | J45: B | K45: 2012-B | L45: =IF(F45="NO","",IF(E45="YES",1+H45-G45,H45-G45)) -> 184 | M45: 300 | N45: 15 | O45: 2012-B | P45: 0 | Q45: 0 | R45: 0 | S45: 0 | T45: =IF(F45="NO",0,IF(AD45="YES",M45-P45-Q45+R45+S45,M45+N45-P45-Q45+R45+S45)) -> 300 | U45: 300 | V45: 300 | W45: =IF(B45="","",INDEX($AJ$7:$AJ$18,MATCH(MONTH(B45),$AG$7:$AG$18,0))-(EOMONTH(B45,0)-B45+1)) -> 0 | X45: 0 | Y45: 6 | Z45: 5 | AA45: YES | AB45: 6 | AC45: FALSE | AD45: =IF(B45="","",IF(M45>=U45,"YES","NO")) -> YES | AL45: =IFERROR(INDEX($CP$4:$CR$48,SMALL(IF((ISERROR(SEARCH($AM$14,PL_YEAR)*SEARCH($AM$14,PL_YEAR)*SEARCH($AM$12,PL_TYPE)))+(COUNTIFS(AL$18:$AL44,PL_YEAR,$AM$18:AM44,PL_DAYS,$AN$18:AN44,PL_TYPE)>0),"",ROW(PL_YEAR)-MIN(ROW(PL_YEAR))+1),1),COLUMN(A35)),"") ->  | AM45: =IFERROR(INDEX($CP$4:$CR$48,SMALL(IF((ISERROR(SEARCH($AM$14,PL_YEAR)*SEARCH($AM$14,PL_YEAR)*SEARCH($AM$12,PL_TYPE)))+(COUNTIFS($AL$18:AM44,PL_YEAR,$AM$18:AN44,PL_DAYS,$AN$18:AO44,PL_TYPE)>0),"",ROW(PL_YEAR)-MIN(ROW(PL_YEAR))+1),1),COLUMN(B35)),"") ->  | AN45: =IFERROR(INDEX($CP$4:$CR$48,SMALL(IF((ISERROR(SEARCH($AM$14,PL_YEAR)*SEARCH($AM$14,PL_YEAR)*SEARCH($AM$12,PL_TYPE)))+(COUNTIFS($AL$18:AN44,PL_YEAR,$AM$18:AO44,PL_DAYS,$AN$18:AP44,PL_TYPE)>0),"",ROW(PL_YEAR)-MIN(ROW(PL_YEAR))+1),1),COLUMN(C35)),"") ->  | AO45: =IFERROR(INDEX($CP$4:$CR$48,SMALL(IF((ISERROR(SEARCH($AM$14,PL_YEAR)*SEARCH($AM$14,PL_YEAR)*SEARCH($AM$12,PL_TYPE)))+(COUNTIFS($AL$18:AO44,PL_YEAR,$AM$18:AP44,PL_DAYS,$AN$18:AQ44,PL_TYPE)>0),"",ROW(PL_YEAR)-MIN(ROW(PL_YEAR))+1),1),COLUMN(E35)),"") ->  | AP45: =IFERROR(INDEX($CP$4:$CR$48,SMALL(IF((ISERROR(SEARCH($AQ$14,PL_YEAR)*SEARCH($AQ$14,PL_YEAR)*SEARCH($AQ$12,PL_TYPE)))+(COUNTIFS($AP$18:AP44,PL_YEAR,$AQ$18:AQ44,PL_DAYS,$AR$18:AR44,PL_TYPE)>0),"",ROW(PL_YEAR)-MIN(ROW(PL_YEAR))+1),1),COLUMN(A35)),"") ->  | AQ45: =IFERROR(INDEX($CP$4:$CR$48,SMALL(IF((ISERROR(SEARCH($AQ$14,PL_YEAR)*SEARCH($AQ$14,PL_YEAR)*SEARCH($AQ$12,PL_TYPE)))+(COUNTIFS($AP$18:AQ44,PL_YEAR,$AQ$18:AR44,PL_DAYS,$AR$18:AS44,PL_TYPE)>0),"",ROW(PL_YEAR)-MIN(ROW(PL_YEAR))+1),1),COLUMN(B35)),"") ->  | AR45: =IFERROR(INDEX($CP$4:$CR$48,SMALL(IF((ISERROR(SEARCH($AQ$14,PL_YEAR)*SEARCH($AQ$14,PL_YEAR)*SEARCH($AQ$12,PL_TYPE)))+(COUNTIFS($AP$18:AR44,PL_YEAR,$AQ$18:AS44,PL_DAYS,$AR$18:AT44,PL_TYPE)>0),"",ROW(PL_YEAR)-MIN(ROW(PL_YEAR))+1),1),COLUMN(C35)),"") ->  | AS45: =IFERROR(INDEX($CP$4:$CR$48,SMALL(IF((ISERROR(SEARCH($AM$14,PL_YEAR)*SEARCH($AM$14,PL_YEAR)*SEARCH($AM$12,PL_TYPE)))+(COUNTIFS($AL$18:AS44,PL_YEAR,$AM$18:AT44,PL_DAYS,$AN$18:AU44,PL_TYPE)>0),"",ROW(PL_YEAR)-MIN(ROW(PL_YEAR))+1),1),COLUMN(E35)),"") ->  | AT45: =IFERROR(INDEX($CP$4:$CR$48,SMALL(IF((ISERROR(SEARCH($AU$14,PL_YEAR)*SEARCH($AU$14,PL_YEAR)*SEARCH($AU$12,PL_TYPE)))+(COUNTIFS($AT$18:AT44,PL_YEAR,$AU$18:AU44,PL_DAYS,$AV$18:AV44,PL_TYPE)>0),"",ROW(PL_YEAR)-MIN(ROW(PL_YEAR))+1),1),COLUMN(A35)),"") ->  | AU45: =IFERROR(INDEX($CP$4:$CR$48,SMALL(IF((ISERROR(SEARCH($AU$14,PL_YEAR)*SEARCH($AU$14,PL_YEAR)*SEARCH($AU$12,PL_TYPE)))+(COUNTIFS($AT$18:AU44,PL_YEAR,$AU$18:AV44,PL_DAYS,$AV$18:AW44,PL_TYPE)>0),"",ROW(PL_YEAR)-MIN(ROW(PL_YEAR))+1),1),COLUMN(B35)),"") ->  | AV45: =IFERROR(INDEX($CP$4:$CR$48,SMALL(IF((ISERROR(SEARCH($AU$14,PL_YEAR)*SEARCH($AU$14,PL_YEAR)*SEARCH($AU$12,PL_TYPE)))+(COUNTIFS($AT$18:AV44,PL_YEAR,$AU$18:AW44,PL_DAYS,$AU$18:AW44,PL_TYPE)>0),"",ROW(PL_YEAR)-MIN(ROW(PL_YEAR))+1),1),COLUMN(C35)),"") ->  | AW45: =IFERROR(INDEX($CP$4:$CR$48,SMALL(IF((ISERROR(SEARCH($AU$14,PL_YEAR)*SEARCH($AU$14,PL_YEAR)*SEARCH($AU$12,PL_TYPE)))+(COUNTIFS($AT$18:AW44,PL_YEAR,$AU$18:AW44,PL_DAYS,$AU$18:AW44,PL_TYPE)>0),"",ROW(PL_YEAR)-MIN(ROW(PL_YEAR))+1),1),COLUMN(E35)),"") ->  | BE45: 45 | BG45: 1 | BJ45: =IF(PL!E55="","",PL!E55) ->  | BK45: =IF(PL!F55="","",PL!F55) ->  | BL45: =IF(PL!G55="","",PL!G55) ->  | BM45: =IF(PL!H55="","",PL!H55) ->  | BN45: 0 | CO45: 42 | CP45: =INDEX($BK$12:$BK$56,MATCH(ROWS($CO$4:CO45),$CO$4:$CO$48,0)) ->  | CQ45: =INDEX($BN$12:$BN$56,MATCH(ROWS($CO$4:CP45),$CO$4:$CO$48,0)) -> 0 | CR45: =INDEX($BJ$12:$BJ$56,MATCH(ROWS($CO$4:CQ45),$CO$4:$CO$48,0)) ->  | CT45: 0
B46: 2013-01-01 | C46: 2013-06-30 | D46: 2013-06-30 | E46: YES | F46: YES | G46: 2013-01-01 | H46: 2013-06-30 | I46: 2013 | J46: A | K46: 2013-A | L46: 181 | M46: 300 | N46: 15 | O46: 2013-A | P46: 0 | Q46: 0 | R46: 0 | S46: 0 | T46: 315 | U46: 315 | V46: 315 | W46: 0 | X46: 0 | Y46: 6 | Z46: 5 | AA46: YES | AB46: 6 | AC46: FALSE | AD46: NO | AL46: =IFERROR(INDEX($CP$4:$CR$48,SMALL(IF((ISERROR(SEARCH($AM$14,PL_YEAR)*SEARCH($AM$14,PL_YEAR)*SEARCH($AM$12,PL_TYPE)))+(COUNTIFS(AL$18:$AL45,PL_YEAR,$AM$18:AM45,PL_DAYS,$AN$18:AN45,PL_TYPE)>0),"",ROW(PL_YEAR)-MIN(ROW(PL_YEAR))+1),1),COLUMN(A36)),"") ->  | AM46: =IFERROR(INDEX($CP$4:$CR$48,SMALL(IF((ISERROR(SEARCH($AM$14,PL_YEAR)*SEARCH($AM$14,PL_YEAR)*SEARCH($AM$12,PL_TYPE)))+(COUNTIFS($AL$18:AM45,PL_YEAR,$AM$18:AN45,PL_DAYS,$AN$18:AO45,PL_TYPE)>0),"",ROW(PL_YEAR)-MIN(ROW(PL_YEAR))+1),1),COLUMN(B36)),"") ->  | AN46: =IFERROR(INDEX($CP$4:$CR$48,SMALL(IF((ISERROR(SEARCH($AM$14,PL_YEAR)*SEARCH($AM$14,PL_YEAR)*SEARCH($AM$12,PL_TYPE)))+(COUNTIFS($AL$18:AN45,PL_YEAR,$AM$18:AO45,PL_DAYS,$AN$18:AP45,PL_TYPE)>0),"",ROW(PL_YEAR)-MIN(ROW(PL_YEAR))+1),1),COLUMN(C36)),"") ->  | AO46: =IFERROR(INDEX($CP$4:$CR$48,SMALL(IF((ISERROR(SEARCH($AM$14,PL_YEAR)*SEARCH($AM$14,PL_YEAR)*SEARCH($AM$12,PL_TYPE)))+(COUNTIFS($AL$18:AO45,PL_YEAR,$AM$18:AP45,PL_DAYS,$AN$18:AQ45,PL_TYPE)>0),"",ROW(PL_YEAR)-MIN(ROW(PL_YEAR))+1),1),COLUMN(E36)),"") ->  | AP46: =IFERROR(INDEX($CP$4:$CR$48,SMALL(IF((ISERROR(SEARCH($AQ$14,PL_YEAR)*SEARCH($AQ$14,PL_YEAR)*SEARCH($AQ$12,PL_TYPE)))+(COUNTIFS($AP$18:AP45,PL_YEAR,$AQ$18:AQ45,PL_DAYS,$AR$18:AR45,PL_TYPE)>0),"",ROW(PL_YEAR)-MIN(ROW(PL_YEAR))+1),1),COLUMN(A36)),"") ->  | AQ46: =IFERROR(INDEX($CP$4:$CR$48,SMALL(IF((ISERROR(SEARCH($AQ$14,PL_YEAR)*SEARCH($AQ$14,PL_YEAR)*SEARCH($AQ$12,PL_TYPE)))+(COUNTIFS($AP$18:AQ45,PL_YEAR,$AQ$18:AR45,PL_DAYS,$AR$18:AS45,PL_TYPE)>0),"",ROW(PL_YEAR)-MIN(ROW(PL_YEAR))+1),1),COLUMN(B36)),"") ->  | AR46: =IFERROR(INDEX($CP$4:$CR$48,SMALL(IF((ISERROR(SEARCH($AQ$14,PL_YEAR)*SEARCH($AQ$14,PL_YEAR)*SEARCH($AQ$12,PL_TYPE)))+(COUNTIFS($AP$18:AR45,PL_YEAR,$AQ$18:AS45,PL_DAYS,$AR$18:AT45,PL_TYPE)>0),"",ROW(PL_YEAR)-MIN(ROW(PL_YEAR))+1),1),COLUMN(C36)),"") ->  | AS46: =IFERROR(INDEX($CP$4:$CR$48,SMALL(IF((ISERROR(SEARCH($AM$14,PL_YEAR)*SEARCH($AM$14,PL_YEAR)*SEARCH($AM$12,PL_TYPE)))+(COUNTIFS($AL$18:AS45,PL_YEAR,$AM$18:AT45,PL_DAYS,$AN$18:AU45,PL_TYPE)>0),"",ROW(PL_YEAR)-MIN(ROW(PL_YEAR))+1),1),COLUMN(E36)),"") ->  | AT46: =IFERROR(INDEX($CP$4:$CR$48,SMALL(IF((ISERROR(SEARCH($AU$14,PL_YEAR)*SEARCH($AU$14,PL_YEAR)*SEARCH($AU$12,PL_TYPE)))+(COUNTIFS($AT$18:AT45,PL_YEAR,$AU$18:AU45,PL_DAYS,$AV$18:AV45,PL_TYPE)>0),"",ROW(PL_YEAR)-MIN(ROW(PL_YEAR))+1),1),COLUMN(A36)),"") ->  | AU46: =IFERROR(INDEX($CP$4:$CR$48,SMALL(IF((ISERROR(SEARCH($AU$14,PL_YEAR)*SEARCH($AU$14,PL_YEAR)*SEARCH($AU$12,PL_TYPE)))+(COUNTIFS($AT$18:AU45,PL_YEAR,$AU$18:AV45,PL_DAYS,$AV$18:AW45,PL_TYPE)>0),"",ROW(PL_YEAR)-MIN(ROW(PL_YEAR))+1),1),COLUMN(B36)),"") ->  | AV46: =IFERROR(INDEX($CP$4:$CR$48,SMALL(IF((ISERROR(SEARCH($AU$14,PL_YEAR)*SEARCH($AU$14,PL_YEAR)*SEARCH($AU$12,PL_TYPE)))+(COUNTIFS($AT$18:AV45,PL_YEAR,$AU$18:AW45,PL_DAYS,$AU$18:AW45,PL_TYPE)>0),"",ROW(PL_YEAR)-MIN(ROW(PL_YEAR))+1),1),COLUMN(C36)),"") ->  | AW46: =IFERROR(INDEX($CP$4:$CR$48,SMALL(IF((ISERROR(SEARCH($AU$14,PL_YEAR)*SEARCH($AU$14,PL_YEAR)*SEARCH($AU$12,PL_TYPE)))+(COUNTIFS($AT$18:AW45,PL_YEAR,$AU$18:AW45,PL_DAYS,$AU$18:AW45,PL_TYPE)>0),"",ROW(PL_YEAR)-MIN(ROW(PL_YEAR))+1),1),COLUMN(E36)),"") ->  | BE46: 45 | BG46: 1 | BJ46: =IF(PL!E56="","",PL!E56) ->  | BK46: =IF(PL!F56="","",PL!F56) ->  | BL46: =IF(PL!G56="","",PL!G56) ->  | BM46: =IF(PL!H56="","",PL!H56) ->  | BN46: 0 | CO46: 43 | CP46: =INDEX($BK$12:$BK$56,MATCH(ROWS($CO$4:CO46),$CO$4:$CO$48,0)) ->  | CQ46: =INDEX($BN$12:$BN$56,MATCH(ROWS($CO$4:CP46),$CO$4:$CO$48,0)) -> 0 | CR46: =INDEX($BJ$12:$BJ$56,MATCH(ROWS($CO$4:CQ46),$CO$4:$CO$48,0)) ->  | CT46: 0
B47: 2013-07-01 | C47: 2013-12-31 | D47: 2013-12-31 | E47: YES | F47: YES | G47: 2013-07-01 | H47: 2013-12-31 | I47: 2013 | J47: B | K47: 2013-B | L47: 184 | M47: 315 | N47: 15 | O47: 2013-B | P47: 0 | Q47: 0 | R47: 0 | S47: 0 | T47: 315 | U47: 315 | V47: 315 | W47: 0 | X47: 0 | Y47: 6 | Z47: 5 | AA47: YES | AB47: 6 | AC47: FALSE | AD47: YES | AL47: =IFERROR(INDEX($CP$4:$CR$48,SMALL(IF((ISERROR(SEARCH($AM$14,PL_YEAR)*SEARCH($AM$14,PL_YEAR)*SEARCH($AM$12,PL_TYPE)))+(COUNTIFS(AL$18:$AL46,PL_YEAR,$AM$18:AM46,PL_DAYS,$AN$18:AN46,PL_TYPE)>0),"",ROW(PL_YEAR)-MIN(ROW(PL_YEAR))+1),1),COLUMN(A37)),"") ->  | AM47: =IFERROR(INDEX($CP$4:$CR$48,SMALL(IF((ISERROR(SEARCH($AM$14,PL_YEAR)*SEARCH($AM$14,PL_YEAR)*SEARCH($AM$12,PL_TYPE)))+(COUNTIFS($AL$18:AM46,PL_YEAR,$AM$18:AN46,PL_DAYS,$AN$18:AO46,PL_TYPE)>0),"",ROW(PL_YEAR)-MIN(ROW(PL_YEAR))+1),1),COLUMN(B37)),"") ->  | AN47: =IFERROR(INDEX($CP$4:$CR$48,SMALL(IF((ISERROR(SEARCH($AM$14,PL_YEAR)*SEARCH($AM$14,PL_YEAR)*SEARCH($AM$12,PL_TYPE)))+(COUNTIFS($AL$18:AN46,PL_YEAR,$AM$18:AO46,PL_DAYS,$AN$18:AP46,PL_TYPE)>0),"",ROW(PL_YEAR)-MIN(ROW(PL_YEAR))+1),1),COLUMN(C37)),"") ->  | AO47: =IFERROR(INDEX($CP$4:$CR$48,SMALL(IF((ISERROR(SEARCH($AM$14,PL_YEAR)*SEARCH($AM$14,PL_YEAR)*SEARCH($AM$12,PL_TYPE)))+(COUNTIFS($AL$18:AO46,PL_YEAR,$AM$18:AP46,PL_DAYS,$AN$18:AQ46,PL_TYPE)>0),"",ROW(PL_YEAR)-MIN(ROW(PL_YEAR))+1),1),COLUMN(E37)),"") ->  | AP47: =IFERROR(INDEX($CP$4:$CR$48,SMALL(IF((ISERROR(SEARCH($AQ$14,PL_YEAR)*SEARCH($AQ$14,PL_YEAR)*SEARCH($AQ$12,PL_TYPE)))+(COUNTIFS($AP$18:AP46,PL_YEAR,$AQ$18:AQ46,PL_DAYS,$AR$18:AR46,PL_TYPE)>0),"",ROW(PL_YEAR)-MIN(ROW(PL_YEAR))+1),1),COLUMN(A37)),"") ->  | AQ47: =IFERROR(INDEX($CP$4:$CR$48,SMALL(IF((ISERROR(SEARCH($AQ$14,PL_YEAR)*SEARCH($AQ$14,PL_YEAR)*SEARCH($AQ$12,PL_TYPE)))+(COUNTIFS($AP$18:AQ46,PL_YEAR,$AQ$18:AR46,PL_DAYS,$AR$18:AS46,PL_TYPE)>0),"",ROW(PL_YEAR)-MIN(ROW(PL_YEAR))+1),1),COLUMN(B37)),"") ->  | AR47: =IFERROR(INDEX($CP$4:$CR$48,SMALL(IF((ISERROR(SEARCH($AQ$14,PL_YEAR)*SEARCH($AQ$14,PL_YEAR)*SEARCH($AQ$12,PL_TYPE)))+(COUNTIFS($AP$18:AR46,PL_YEAR,$AQ$18:AS46,PL_DAYS,$AR$18:AT46,PL_TYPE)>0),"",ROW(PL_YEAR)-MIN(ROW(PL_YEAR))+1),1),COLUMN(C37)),"") ->  | AS47: =IFERROR(INDEX($CP$4:$CR$48,SMALL(IF((ISERROR(SEARCH($AM$14,PL_YEAR)*SEARCH($AM$14,PL_YEAR)*SEARCH($AM$12,PL_TYPE)))+(COUNTIFS($AL$18:AS46,PL_YEAR,$AM$18:AT46,PL_DAYS,$AN$18:AU46,PL_TYPE)>0),"",ROW(PL_YEAR)-MIN(ROW(PL_YEAR))+1),1),COLUMN(E37)),"") ->  | AT47: =IFERROR(INDEX($CP$4:$CR$48,SMALL(IF((ISERROR(SEARCH($AU$14,PL_YEAR)*SEARCH($AU$14,PL_YEAR)*SEARCH($AU$12,PL_TYPE)))+(COUNTIFS($AT$18:AT46,PL_YEAR,$AU$18:AU46,PL_DAYS,$AV$18:AV46,PL_TYPE)>0),"",ROW(PL_YEAR)-MIN(ROW(PL_YEAR))+1),1),COLUMN(A37)),"") ->  | AU47: =IFERROR(INDEX($CP$4:$CR$48,SMALL(IF((ISERROR(SEARCH($AU$14,PL_YEAR)*SEARCH($AU$14,PL_YEAR)*SEARCH($AU$12,PL_TYPE)))+(COUNTIFS($AT$18:AU46,PL_YEAR,$AU$18:AV46,PL_DAYS,$AV$18:AW46,PL_TYPE)>0),"",ROW(PL_YEAR)-MIN(ROW(PL_YEAR))+1),1),COLUMN(B37)),"") ->  | AV47: =IFERROR(INDEX($CP$4:$CR$48,SMALL(IF((ISERROR(SEARCH($AU$14,PL_YEAR)*SEARCH($AU$14,PL_YEAR)*SEARCH($AU$12,PL_TYPE)))+(COUNTIFS($AT$18:AV46,PL_YEAR,$AU$18:AW46,PL_DAYS,$AU$18:AW46,PL_TYPE)>0),"",ROW(PL_YEAR)-MIN(ROW(PL_YEAR))+1),1),COLUMN(C37)),"") ->  | AW47: =IFERROR(INDEX($CP$4:$CR$48,SMALL(IF((ISERROR(SEARCH($AU$14,PL_YEAR)*SEARCH($AU$14,PL_YEAR)*SEARCH($AU$12,PL_TYPE)))+(COUNTIFS($AT$18:AW46,PL_YEAR,$AU$18:AW46,PL_DAYS,$AU$18:AW46,PL_TYPE)>0),"",ROW(PL_YEAR)-MIN(ROW(PL_YEAR))+1),1),COLUMN(E37)),"") ->  | BE47: 45 | BG47: 1 | BJ47: =IF(PL!E57="","",PL!E57) ->  | BK47: =IF(PL!F57="","",PL!F57) ->  | BL47: =IF(PL!G57="","",PL!G57) ->  | BM47: =IF(PL!H57="","",PL!H57) ->  | BN47: 0 | CO47: 44 | CP47: =INDEX($BK$12:$BK$56,MATCH(ROWS($CO$4:CO47),$CO$4:$CO$48,0)) ->  | CQ47: =INDEX($BN$12:$BN$56,MATCH(ROWS($CO$4:CP47),$CO$4:$CO$48,0)) -> 0 | CR47: =INDEX($BJ$12:$BJ$56,MATCH(ROWS($CO$4:CQ47),$CO$4:$CO$48,0)) ->  | CT47: 0
B48: 2014-01-01 | C48: 2014-06-30 | D48: 2014-06-30 | E48: YES | F48: YES | G48: 2014-01-01 | H48: 2014-06-30 | I48: 2014 | J48: A | K48: 2014-A | L48: 181 | M48: 315 | N48: 15 | O48: 2014-A | P48: 0 | Q48: 0 | R48: 0 | S48: 0 | T48: 315 | U48: 315 | V48: 315 | W48: 0 | X48: 0 | Y48: 6 | Z48: 5 | AA48: YES | AB48: 6 | AC48: FALSE | AD48: YES | AL48: =IFERROR(INDEX($CP$4:$CR$48,SMALL(IF((ISERROR(SEARCH($AM$14,PL_YEAR)*SEARCH($AM$14,PL_YEAR)*SEARCH($AM$12,PL_TYPE)))+(COUNTIFS(AL$18:$AL47,PL_YEAR,$AM$18:AM47,PL_DAYS,$AN$18:AN47,PL_TYPE)>0),"",ROW(PL_YEAR)-MIN(ROW(PL_YEAR))+1),1),COLUMN(A38)),"") ->  | AM48: =IFERROR(INDEX($CP$4:$CR$48,SMALL(IF((ISERROR(SEARCH($AM$14,PL_YEAR)*SEARCH($AM$14,PL_YEAR)*SEARCH($AM$12,PL_TYPE)))+(COUNTIFS($AL$18:AM47,PL_YEAR,$AM$18:AN47,PL_DAYS,$AN$18:AO47,PL_TYPE)>0),"",ROW(PL_YEAR)-MIN(ROW(PL_YEAR))+1),1),COLUMN(B38)),"") ->  | AN48: =IFERROR(INDEX($CP$4:$CR$48,SMALL(IF((ISERROR(SEARCH($AM$14,PL_YEAR)*SEARCH($AM$14,PL_YEAR)*SEARCH($AM$12,PL_TYPE)))+(COUNTIFS($AL$18:AN47,PL_YEAR,$AM$18:AO47,PL_DAYS,$AN$18:AP47,PL_TYPE)>0),"",ROW(PL_YEAR)-MIN(ROW(PL_YEAR))+1),1),COLUMN(C38)),"") ->  | AO48: =IFERROR(INDEX($CP$4:$CR$48,SMALL(IF((ISERROR(SEARCH($AM$14,PL_YEAR)*SEARCH($AM$14,PL_YEAR)*SEARCH($AM$12,PL_TYPE)))+(COUNTIFS($AL$18:AO47,PL_YEAR,$AM$18:AP47,PL_DAYS,$AN$18:AQ47,PL_TYPE)>0),"",ROW(PL_YEAR)-MIN(ROW(PL_YEAR))+1),1),COLUMN(E38)),"") ->  | AP48: =IFERROR(INDEX($CP$4:$CR$48,SMALL(IF((ISERROR(SEARCH($AQ$14,PL_YEAR)*SEARCH($AQ$14,PL_YEAR)*SEARCH($AQ$12,PL_TYPE)))+(COUNTIFS($AP$18:AP47,PL_YEAR,$AQ$18:AQ47,PL_DAYS,$AR$18:AR47,PL_TYPE)>0),"",ROW(PL_YEAR)-MIN(ROW(PL_YEAR))+1),1),COLUMN(A38)),"") ->  | AQ48: =IFERROR(INDEX($CP$4:$CR$48,SMALL(IF((ISERROR(SEARCH($AQ$14,PL_YEAR)*SEARCH($AQ$14,PL_YEAR)*SEARCH($AQ$12,PL_TYPE)))+(COUNTIFS($AP$18:AQ47,PL_YEAR,$AQ$18:AR47,PL_DAYS,$AR$18:AS47,PL_TYPE)>0),"",ROW(PL_YEAR)-MIN(ROW(PL_YEAR))+1),1),COLUMN(B38)),"") ->  | AR48: =IFERROR(INDEX($CP$4:$CR$48,SMALL(IF((ISERROR(SEARCH($AQ$14,PL_YEAR)*SEARCH($AQ$14,PL_YEAR)*SEARCH($AQ$12,PL_TYPE)))+(COUNTIFS($AP$18:AR47,PL_YEAR,$AQ$18:AS47,PL_DAYS,$AR$18:AT47,PL_TYPE)>0),"",ROW(PL_YEAR)-MIN(ROW(PL_YEAR))+1),1),COLUMN(C38)),"") ->  | AS48: =IFERROR(INDEX($CP$4:$CR$48,SMALL(IF((ISERROR(SEARCH($AM$14,PL_YEAR)*SEARCH($AM$14,PL_YEAR)*SEARCH($AM$12,PL_TYPE)))+(COUNTIFS($AL$18:AS47,PL_YEAR,$AM$18:AT47,PL_DAYS,$AN$18:AU47,PL_TYPE)>0),"",ROW(PL_YEAR)-MIN(ROW(PL_YEAR))+1),1),COLUMN(E38)),"") ->  | AT48: =IFERROR(INDEX($CP$4:$CR$48,SMALL(IF((ISERROR(SEARCH($AU$14,PL_YEAR)*SEARCH($AU$14,PL_YEAR)*SEARCH($AU$12,PL_TYPE)))+(COUNTIFS($AT$18:AT47,PL_YEAR,$AU$18:AU47,PL_DAYS,$AV$18:AV47,PL_TYPE)>0),"",ROW(PL_YEAR)-MIN(ROW(PL_YEAR))+1),1),COLUMN(A38)),"") ->  | AU48: =IFERROR(INDEX($CP$4:$CR$48,SMALL(IF((ISERROR(SEARCH($AU$14,PL_YEAR)*SEARCH($AU$14,PL_YEAR)*SEARCH($AU$12,PL_TYPE)))+(COUNTIFS($AT$18:AU47,PL_YEAR,$AU$18:AV47,PL_DAYS,$AV$18:AW47,PL_TYPE)>0),"",ROW(PL_YEAR)-MIN(ROW(PL_YEAR))+1),1),COLUMN(B38)),"") ->  | AV48: =IFERROR(INDEX($CP$4:$CR$48,SMALL(IF((ISERROR(SEARCH($AU$14,PL_YEAR)*SEARCH($AU$14,PL_YEAR)*SEARCH($AU$12,PL_TYPE)))+(COUNTIFS($AT$18:AV47,PL_YEAR,$AU$18:AW47,PL_DAYS,$AU$18:AW47,PL_TYPE)>0),"",ROW(PL_YEAR)-MIN(ROW(PL_YEAR))+1),1),COLUMN(C38)),"") ->  | AW48: =IFERROR(INDEX($CP$4:$CR$48,SMALL(IF((ISERROR(SEARCH($AU$14,PL_YEAR)*SEARCH($AU$14,PL_YEAR)*SEARCH($AU$12,PL_TYPE)))+(COUNTIFS($AT$18:AW47,PL_YEAR,$AU$18:AW47,PL_DAYS,$AU$18:AW47,PL_TYPE)>0),"",ROW(PL_YEAR)-MIN(ROW(PL_YEAR))+1),1),COLUMN(E38)),"") ->  | BE48: 45 | BG48: 1 | BJ48: =IF(PL!E58="","",PL!E58) ->  | BK48: =IF(PL!F58="","",PL!F58) ->  | BL48: =IF(PL!G58="","",PL!G58) ->  | BM48: =IF(PL!H58="","",PL!H58) ->  | BN48: 0 | CO48: 45 | CP48: =INDEX($BK$12:$BK$56,MATCH(ROWS($CO$4:CO48),$CO$4:$CO$48,0)) ->  | CQ48: =INDEX($BN$12:$BN$56,MATCH(ROWS($CO$4:CP48),$CO$4:$CO$48,0)) -> 0 | CR48: =INDEX($BJ$12:$BJ$56,MATCH(ROWS($CO$4:CQ48),$CO$4:$CO$48,0)) ->  | CT48: 0
B49: 2014-07-01 | C49: 2014-12-31 | D49: 2014-12-31 | E49: YES | F49: YES | G49: 2014-07-01 | H49: 2014-12-31 | I49: 2014 | J49: B | K49: 2014-B | L49: 184 | M49: 315 | N49: 15 | O49: 2014-B | P49: 0 | Q49: 0 | R49: 0 | S49: 0 | T49: 315 | U49: 315 | V49: 315 | W49: 0 | X49: 0 | Y49: 6 | Z49: 5 | AA49: YES | AB49: 6 | AC49: FALSE | AD49: YES | AL49: =IFERROR(INDEX($CP$4:$CR$48,SMALL(IF((ISERROR(SEARCH($AM$14,PL_YEAR)*SEARCH($AM$14,PL_YEAR)*SEARCH($AM$12,PL_TYPE)))+(COUNTIFS(AL$18:$AL48,PL_YEAR,$AM$18:AM48,PL_DAYS,$AN$18:AN48,PL_TYPE)>0),"",ROW(PL_YEAR)-MIN(ROW(PL_YEAR))+1),1),COLUMN(A39)),"") ->  | AM49: =IFERROR(INDEX($CP$4:$CR$48,SMALL(IF((ISERROR(SEARCH($AM$14,PL_YEAR)*SEARCH($AM$14,PL_YEAR)*SEARCH($AM$12,PL_TYPE)))+(COUNTIFS($AL$18:AM48,PL_YEAR,$AM$18:AN48,PL_DAYS,$AN$18:AO48,PL_TYPE)>0),"",ROW(PL_YEAR)-MIN(ROW(PL_YEAR))+1),1),COLUMN(B39)),"") ->  | AN49: =IFERROR(INDEX($CP$4:$CR$48,SMALL(IF((ISERROR(SEARCH($AM$14,PL_YEAR)*SEARCH($AM$14,PL_YEAR)*SEARCH($AM$12,PL_TYPE)))+(COUNTIFS($AL$18:AN48,PL_YEAR,$AM$18:AO48,PL_DAYS,$AN$18:AP48,PL_TYPE)>0),"",ROW(PL_YEAR)-MIN(ROW(PL_YEAR))+1),1),COLUMN(C39)),"") ->  | AO49: =IFERROR(INDEX($CP$4:$CR$48,SMALL(IF((ISERROR(SEARCH($AM$14,PL_YEAR)*SEARCH($AM$14,PL_YEAR)*SEARCH($AM$12,PL_TYPE)))+(COUNTIFS($AL$18:AO48,PL_YEAR,$AM$18:AP48,PL_DAYS,$AN$18:AQ48,PL_TYPE)>0),"",ROW(PL_YEAR)-MIN(ROW(PL_YEAR))+1),1),COLUMN(E39)),"") ->  | AP49: =IFERROR(INDEX($CP$4:$CR$48,SMALL(IF((ISERROR(SEARCH($AQ$14,PL_YEAR)*SEARCH($AQ$14,PL_YEAR)*SEARCH($AQ$12,PL_TYPE)))+(COUNTIFS($AP$18:AP48,PL_YEAR,$AQ$18:AQ48,PL_DAYS,$AR$18:AR48,PL_TYPE)>0),"",ROW(PL_YEAR)-MIN(ROW(PL_YEAR))+1),1),COLUMN(A39)),"") ->  | AQ49: =IFERROR(INDEX($CP$4:$CR$48,SMALL(IF((ISERROR(SEARCH($AQ$14,PL_YEAR)*SEARCH($AQ$14,PL_YEAR)*SEARCH($AQ$12,PL_TYPE)))+(COUNTIFS($AP$18:AQ48,PL_YEAR,$AQ$18:AR48,PL_DAYS,$AR$18:AS48,PL_TYPE)>0),"",ROW(PL_YEAR)-MIN(ROW(PL_YEAR))+1),1),COLUMN(B39)),"") ->  | AR49: =IFERROR(INDEX($CP$4:$CR$48,SMALL(IF((ISERROR(SEARCH($AQ$14,PL_YEAR)*SEARCH($AQ$14,PL_YEAR)*SEARCH($AQ$12,PL_TYPE)))+(COUNTIFS($AP$18:AR48,PL_YEAR,$AQ$18:AS48,PL_DAYS,$AR$18:AT48,PL_TYPE)>0),"",ROW(PL_YEAR)-MIN(ROW(PL_YEAR))+1),1),COLUMN(C39)),"") ->  | AS49: =IFERROR(INDEX($CP$4:$CR$48,SMALL(IF((ISERROR(SEARCH($AM$14,PL_YEAR)*SEARCH($AM$14,PL_YEAR)*SEARCH($AM$12,PL_TYPE)))+(COUNTIFS($AL$18:AS48,PL_YEAR,$AM$18:AT48,PL_DAYS,$AN$18:AU48,PL_TYPE)>0),"",ROW(PL_YEAR)-MIN(ROW(PL_YEAR))+1),1),COLUMN(E39)),"") ->  | AT49: =IFERROR(INDEX($CP$4:$CR$48,SMALL(IF((ISERROR(SEARCH($AU$14,PL_YEAR)*SEARCH($AU$14,PL_YEAR)*SEARCH($AU$12,PL_TYPE)))+(COUNTIFS($AT$18:AT48,PL_YEAR,$AU$18:AU48,PL_DAYS,$AV$18:AV48,PL_TYPE)>0),"",ROW(PL_YEAR)-MIN(ROW(PL_YEAR))+1),1),COLUMN(A39)),"") ->  | AU49: =IFERROR(INDEX($CP$4:$CR$48,SMALL(IF((ISERROR(SEARCH($AU$14,PL_YEAR)*SEARCH($AU$14,PL_YEAR)*SEARCH($AU$12,PL_TYPE)))+(COUNTIFS($AT$18:AU48,PL_YEAR,$AU$18:AV48,PL_DAYS,$AV$18:AW48,PL_TYPE)>0),"",ROW(PL_YEAR)-MIN(ROW(PL_YEAR))+1),1),COLUMN(B39)),"") ->  | AV49: =IFERROR(INDEX($CP$4:$CR$48,SMALL(IF((ISERROR(SEARCH($AU$14,PL_YEAR)*SEARCH($AU$14,PL_YEAR)*SEARCH($AU$12,PL_TYPE)))+(COUNTIFS($AT$18:AV48,PL_YEAR,$AU$18:AW48,PL_DAYS,$AU$18:AW48,PL_TYPE)>0),"",ROW(PL_YEAR)-MIN(ROW(PL_YEAR))+1),1),COLUMN(C39)),"") ->  | AW49: =IFERROR(INDEX($CP$4:$CR$48,SMALL(IF((ISERROR(SEARCH($AU$14,PL_YEAR)*SEARCH($AU$14,PL_YEAR)*SEARCH($AU$12,PL_TYPE)))+(COUNTIFS($AT$18:AW48,PL_YEAR,$AU$18:AW48,PL_DAYS,$AU$18:AW48,PL_TYPE)>0),"",ROW(PL_YEAR)-MIN(ROW(PL_YEAR))+1),1),COLUMN(E39)),"") ->  | BE49: 45 | BG49: 1 | BJ49: =IF(PL!E59="","",PL!E59) ->  | BK49: =IF(PL!F59="","",PL!F59) ->  | BL49: =IF(PL!G59="","",PL!G59) ->  | BM49: =IF(PL!H59="","",PL!H59) ->  | BN49: 0
B50: 2015-01-01 | C50: 2015-06-30 | D50: 2015-06-30 | E50: YES | F50: YES | G50: 2015-01-01 | H50: 2015-06-30 | I50: 2015 | J50: A | K50: 2015-A | L50: 181 | M50: 315 | N50: 15 | O50: 2015-A | P50: 0 | Q50: 0 | R50: 0 | S50: 0 | T50: 315 | U50: 315 | V50: 315 | W50: 0 | X50: 0 | Y50: 6 | Z50: 5 | AA50: YES | AB50: 6 | AC50: FALSE | AD50: YES | AL50: =IFERROR(INDEX($CP$4:$CR$48,SMALL(IF((ISERROR(SEARCH($AM$14,PL_YEAR)*SEARCH($AM$14,PL_YEAR)*SEARCH($AM$12,PL_TYPE)))+(COUNTIFS(AL$18:$AL49,PL_YEAR,$AM$18:AM49,PL_DAYS,$AN$18:AN49,PL_TYPE)>0),"",ROW(PL_YEAR)-MIN(ROW(PL_YEAR))+1),1),COLUMN(A40)),"") ->  | AM50: =IFERROR(INDEX($CP$4:$CR$48,SMALL(IF((ISERROR(SEARCH($AM$14,PL_YEAR)*SEARCH($AM$14,PL_YEAR)*SEARCH($AM$12,PL_TYPE)))+(COUNTIFS($AL$18:AM49,PL_YEAR,$AM$18:AN49,PL_DAYS,$AN$18:AO49,PL_TYPE)>0),"",ROW(PL_YEAR)-MIN(ROW(PL_YEAR))+1),1),COLUMN(B40)),"") ->  | AN50: =IFERROR(INDEX($CP$4:$CR$48,SMALL(IF((ISERROR(SEARCH($AM$14,PL_YEAR)*SEARCH($AM$14,PL_YEAR)*SEARCH($AM$12,PL_TYPE)))+(COUNTIFS($AL$18:AN49,PL_YEAR,$AM$18:AO49,PL_DAYS,$AN$18:AP49,PL_TYPE)>0),"",ROW(PL_YEAR)-MIN(ROW(PL_YEAR))+1),1),COLUMN(C40)),"") ->  | AO50: =IFERROR(INDEX($CP$4:$CR$48,SMALL(IF((ISERROR(SEARCH($AM$14,PL_YEAR)*SEARCH($AM$14,PL_YEAR)*SEARCH($AM$12,PL_TYPE)))+(COUNTIFS($AL$18:AO49,PL_YEAR,$AM$18:AP49,PL_DAYS,$AN$18:AQ49,PL_TYPE)>0),"",ROW(PL_YEAR)-MIN(ROW(PL_YEAR))+1),1),COLUMN(E40)),"") ->  | AP50: =IFERROR(INDEX($CP$4:$CR$48,SMALL(IF((ISERROR(SEARCH($AQ$14,PL_YEAR)*SEARCH($AQ$14,PL_YEAR)*SEARCH($AQ$12,PL_TYPE)))+(COUNTIFS($AP$18:AP49,PL_YEAR,$AQ$18:AQ49,PL_DAYS,$AR$18:AR49,PL_TYPE)>0),"",ROW(PL_YEAR)-MIN(ROW(PL_YEAR))+1),1),COLUMN(A40)),"") ->  | AQ50: =IFERROR(INDEX($CP$4:$CR$48,SMALL(IF((ISERROR(SEARCH($AQ$14,PL_YEAR)*SEARCH($AQ$14,PL_YEAR)*SEARCH($AQ$12,PL_TYPE)))+(COUNTIFS($AP$18:AQ49,PL_YEAR,$AQ$18:AR49,PL_DAYS,$AR$18:AS49,PL_TYPE)>0),"",ROW(PL_YEAR)-MIN(ROW(PL_YEAR))+1),1),COLUMN(B40)),"") ->  | AR50: =IFERROR(INDEX($CP$4:$CR$48,SMALL(IF((ISERROR(SEARCH($AQ$14,PL_YEAR)*SEARCH($AQ$14,PL_YEAR)*SEARCH($AQ$12,PL_TYPE)))+(COUNTIFS($AP$18:AR49,PL_YEAR,$AQ$18:AS49,PL_DAYS,$AR$18:AT49,PL_TYPE)>0),"",ROW(PL_YEAR)-MIN(ROW(PL_YEAR))+1),1),COLUMN(C40)),"") ->  | AS50: =IFERROR(INDEX($CP$4:$CR$48,SMALL(IF((ISERROR(SEARCH($AM$14,PL_YEAR)*SEARCH($AM$14,PL_YEAR)*SEARCH($AM$12,PL_TYPE)))+(COUNTIFS($AL$18:AS49,PL_YEAR,$AM$18:AT49,PL_DAYS,$AN$18:AU49,PL_TYPE)>0),"",ROW(PL_YEAR)-MIN(ROW(PL_YEAR))+1),1),COLUMN(E40)),"") ->  | AT50: =IFERROR(INDEX($CP$4:$CR$48,SMALL(IF((ISERROR(SEARCH($AU$14,PL_YEAR)*SEARCH($AU$14,PL_YEAR)*SEARCH($AU$12,PL_TYPE)))+(COUNTIFS($AT$18:AT49,PL_YEAR,$AU$18:AU49,PL_DAYS,$AV$18:AV49,PL_TYPE)>0),"",ROW(PL_YEAR)-MIN(ROW(PL_YEAR))+1),1),COLUMN(A40)),"") ->  | AU50: =IFERROR(INDEX($CP$4:$CR$48,SMALL(IF((ISERROR(SEARCH($AU$14,PL_YEAR)*SEARCH($AU$14,PL_YEAR)*SEARCH($AU$12,PL_TYPE)))+(COUNTIFS($AT$18:AU49,PL_YEAR,$AU$18:AV49,PL_DAYS,$AV$18:AW49,PL_TYPE)>0),"",ROW(PL_YEAR)-MIN(ROW(PL_YEAR))+1),1),COLUMN(B40)),"") ->  | AV50: =IFERROR(INDEX($CP$4:$CR$48,SMALL(IF((ISERROR(SEARCH($AU$14,PL_YEAR)*SEARCH($AU$14,PL_YEAR)*SEARCH($AU$12,PL_TYPE)))+(COUNTIFS($AT$18:AV49,PL_YEAR,$AU$18:AW49,PL_DAYS,$AU$18:AW49,PL_TYPE)>0),"",ROW(PL_YEAR)-MIN(ROW(PL_YEAR))+1),1),COLUMN(C40)),"") ->  | AW50: =IFERROR(INDEX($CP$4:$CR$48,SMALL(IF((ISERROR(SEARCH($AU$14,PL_YEAR)*SEARCH($AU$14,PL_YEAR)*SEARCH($AU$12,PL_TYPE)))+(COUNTIFS($AT$18:AW49,PL_YEAR,$AU$18:AW49,PL_DAYS,$AU$18:AW49,PL_TYPE)>0),"",ROW(PL_YEAR)-MIN(ROW(PL_YEAR))+1),1),COLUMN(E40)),"") ->  | BE50: 45 | BG50: 1 | BJ50: =IF(PL!E60="","",PL!E60) ->  | BK50: =IF(PL!F60="","",PL!F60) ->  | BL50: =IF(PL!G60="","",PL!G60) ->  | BM50: =IF(PL!H60="","",PL!H60) ->  | BN50: 0
B51: 2015-07-01 | C51: 2015-12-31 | D51: 2015-12-31 | E51: YES | F51: YES | G51: 2015-07-01 | H51: 2015-12-31 | I51: 2015 | J51: B | K51: 2015-B | L51: 184 | M51: 315 | N51: 15 | O51: 2015-B | P51: 0 | Q51: 0 | R51: 0 | S51: 0 | T51: 315 | U51: 315 | V51: 315 | W51: 0 | X51: 0 | Y51: 6 | Z51: 5 | AA51: YES | AB51: 6 | AC51: FALSE | AD51: YES | AL51: =IFERROR(INDEX($CP$4:$CR$48,SMALL(IF((ISERROR(SEARCH($AM$14,PL_YEAR)*SEARCH($AM$14,PL_YEAR)*SEARCH($AM$12,PL_TYPE)))+(COUNTIFS(AL$18:$AL50,PL_YEAR,$AM$18:AM50,PL_DAYS,$AN$18:AN50,PL_TYPE)>0),"",ROW(PL_YEAR)-MIN(ROW(PL_YEAR))+1),1),COLUMN(A41)),"") ->  | AM51: =IFERROR(INDEX($CP$4:$CR$48,SMALL(IF((ISERROR(SEARCH($AM$14,PL_YEAR)*SEARCH($AM$14,PL_YEAR)*SEARCH($AM$12,PL_TYPE)))+(COUNTIFS($AL$18:AM50,PL_YEAR,$AM$18:AN50,PL_DAYS,$AN$18:AO50,PL_TYPE)>0),"",ROW(PL_YEAR)-MIN(ROW(PL_YEAR))+1),1),COLUMN(B41)),"") ->  | AN51: =IFERROR(INDEX($CP$4:$CR$48,SMALL(IF((ISERROR(SEARCH($AM$14,PL_YEAR)*SEARCH($AM$14,PL_YEAR)*SEARCH($AM$12,PL_TYPE)))+(COUNTIFS($AL$18:AN50,PL_YEAR,$AM$18:AO50,PL_DAYS,$AN$18:AP50,PL_TYPE)>0),"",ROW(PL_YEAR)-MIN(ROW(PL_YEAR))+1),1),COLUMN(C41)),"") ->  | AO51: =IFERROR(INDEX($CP$4:$CR$48,SMALL(IF((ISERROR(SEARCH($AM$14,PL_YEAR)*SEARCH($AM$14,PL_YEAR)*SEARCH($AM$12,PL_TYPE)))+(COUNTIFS($AL$18:AO50,PL_YEAR,$AM$18:AP50,PL_DAYS,$AN$18:AQ50,PL_TYPE)>0),"",ROW(PL_YEAR)-MIN(ROW(PL_YEAR))+1),1),COLUMN(E41)),"") ->  | AP51: =IFERROR(INDEX($CP$4:$CR$48,SMALL(IF((ISERROR(SEARCH($AQ$14,PL_YEAR)*SEARCH($AQ$14,PL_YEAR)*SEARCH($AQ$12,PL_TYPE)))+(COUNTIFS($AP$18:AP50,PL_YEAR,$AQ$18:AQ50,PL_DAYS,$AR$18:AR50,PL_TYPE)>0),"",ROW(PL_YEAR)-MIN(ROW(PL_YEAR))+1),1),COLUMN(A41)),"") ->  | AQ51: =IFERROR(INDEX($CP$4:$CR$48,SMALL(IF((ISERROR(SEARCH($AQ$14,PL_YEAR)*SEARCH($AQ$14,PL_YEAR)*SEARCH($AQ$12,PL_TYPE)))+(COUNTIFS($AP$18:AQ50,PL_YEAR,$AQ$18:AR50,PL_DAYS,$AR$18:AS50,PL_TYPE)>0),"",ROW(PL_YEAR)-MIN(ROW(PL_YEAR))+1),1),COLUMN(B41)),"") ->  | AR51: =IFERROR(INDEX($CP$4:$CR$48,SMALL(IF((ISERROR(SEARCH($AQ$14,PL_YEAR)*SEARCH($AQ$14,PL_YEAR)*SEARCH($AQ$12,PL_TYPE)))+(COUNTIFS($AP$18:AR50,PL_YEAR,$AQ$18:AS50,PL_DAYS,$AR$18:AT50,PL_TYPE)>0),"",ROW(PL_YEAR)-MIN(ROW(PL_YEAR))+1),1),COLUMN(C41)),"") ->  | AS51: =IFERROR(INDEX($CP$4:$CR$48,SMALL(IF((ISERROR(SEARCH($AM$14,PL_YEAR)*SEARCH($AM$14,PL_YEAR)*SEARCH($AM$12,PL_TYPE)))+(COUNTIFS($AL$18:AS50,PL_YEAR,$AM$18:AT50,PL_DAYS,$AN$18:AU50,PL_TYPE)>0),"",ROW(PL_YEAR)-MIN(ROW(PL_YEAR))+1),1),COLUMN(E41)),"") ->  | AT51: =IFERROR(INDEX($CP$4:$CR$48,SMALL(IF((ISERROR(SEARCH($AU$14,PL_YEAR)*SEARCH($AU$14,PL_YEAR)*SEARCH($AU$12,PL_TYPE)))+(COUNTIFS($AT$18:AT50,PL_YEAR,$AU$18:AU50,PL_DAYS,$AV$18:AV50,PL_TYPE)>0),"",ROW(PL_YEAR)-MIN(ROW(PL_YEAR))+1),1),COLUMN(A41)),"") ->  | AU51: =IFERROR(INDEX($CP$4:$CR$48,SMALL(IF((ISERROR(SEARCH($AU$14,PL_YEAR)*SEARCH($AU$14,PL_YEAR)*SEARCH($AU$12,PL_TYPE)))+(COUNTIFS($AT$18:AU50,PL_YEAR,$AU$18:AV50,PL_DAYS,$AV$18:AW50,PL_TYPE)>0),"",ROW(PL_YEAR)-MIN(ROW(PL_YEAR))+1),1),COLUMN(B41)),"") ->  | AV51: =IFERROR(INDEX($CP$4:$CR$48,SMALL(IF((ISERROR(SEARCH($AU$14,PL_YEAR)*SEARCH($AU$14,PL_YEAR)*SEARCH($AU$12,PL_TYPE)))+(COUNTIFS($AT$18:AV50,PL_YEAR,$AU$18:AW50,PL_DAYS,$AU$18:AW50,PL_TYPE)>0),"",ROW(PL_YEAR)-MIN(ROW(PL_YEAR))+1),1),COLUMN(C41)),"") ->  | AW51: =IFERROR(INDEX($CP$4:$CR$48,SMALL(IF((ISERROR(SEARCH($AU$14,PL_YEAR)*SEARCH($AU$14,PL_YEAR)*SEARCH($AU$12,PL_TYPE)))+(COUNTIFS($AT$18:AW50,PL_YEAR,$AU$18:AW50,PL_DAYS,$AU$18:AW50,PL_TYPE)>0),"",ROW(PL_YEAR)-MIN(ROW(PL_YEAR))+1),1),COLUMN(E41)),"") ->  | BE51: 45 | BG51: 1 | BJ51: =IF(PL!E61="","",PL!E61) ->  | BK51: =IF(PL!F61="","",PL!F61) ->  | BL51: =IF(PL!G61="","",PL!G61) ->  | BM51: =IF(PL!H61="","",PL!H61) ->  | BN51: 0
B52: 2016-01-01 | C52: 2016-06-30 | D52: 2016-06-30 | E52: YES | F52: YES | G52: 2016-01-01 | H52: 2016-06-30 | I52: 2016 | J52: A | K52: 2016-A | L52: 182 | M52: 315 | N52: 15 | O52: 2016-A | P52: 0 | Q52: 0 | R52: 0 | S52: 0 | T52: 315 | U52: 315 | V52: 315 | W52: 0 | X52: 0 | Y52: 6 | Z52: 5 | AA52: YES | AB52: 6 | AC52: FALSE | AD52: YES | AL52: =IFERROR(INDEX($CP$4:$CR$48,SMALL(IF((ISERROR(SEARCH($AM$14,PL_YEAR)*SEARCH($AM$14,PL_YEAR)*SEARCH($AM$12,PL_TYPE)))+(COUNTIFS(AL$18:$AL51,PL_YEAR,$AM$18:AM51,PL_DAYS,$AN$18:AN51,PL_TYPE)>0),"",ROW(PL_YEAR)-MIN(ROW(PL_YEAR))+1),1),COLUMN(A42)),"") ->  | AM52: =IFERROR(INDEX($CP$4:$CR$48,SMALL(IF((ISERROR(SEARCH($AM$14,PL_YEAR)*SEARCH($AM$14,PL_YEAR)*SEARCH($AM$12,PL_TYPE)))+(COUNTIFS($AL$18:AM51,PL_YEAR,$AM$18:AN51,PL_DAYS,$AN$18:AO51,PL_TYPE)>0),"",ROW(PL_YEAR)-MIN(ROW(PL_YEAR))+1),1),COLUMN(B42)),"") ->  | AN52: =IFERROR(INDEX($CP$4:$CR$48,SMALL(IF((ISERROR(SEARCH($AM$14,PL_YEAR)*SEARCH($AM$14,PL_YEAR)*SEARCH($AM$12,PL_TYPE)))+(COUNTIFS($AL$18:AN51,PL_YEAR,$AM$18:AO51,PL_DAYS,$AN$18:AP51,PL_TYPE)>0),"",ROW(PL_YEAR)-MIN(ROW(PL_YEAR))+1),1),COLUMN(C42)),"") ->  | AO52: =IFERROR(INDEX($CP$4:$CR$48,SMALL(IF((ISERROR(SEARCH($AM$14,PL_YEAR)*SEARCH($AM$14,PL_YEAR)*SEARCH($AM$12,PL_TYPE)))+(COUNTIFS($AL$18:AO51,PL_YEAR,$AM$18:AP51,PL_DAYS,$AN$18:AQ51,PL_TYPE)>0),"",ROW(PL_YEAR)-MIN(ROW(PL_YEAR))+1),1),COLUMN(E42)),"") ->  | AP52: =IFERROR(INDEX($CP$4:$CR$48,SMALL(IF((ISERROR(SEARCH($AQ$14,PL_YEAR)*SEARCH($AQ$14,PL_YEAR)*SEARCH($AQ$12,PL_TYPE)))+(COUNTIFS($AP$18:AP51,PL_YEAR,$AQ$18:AQ51,PL_DAYS,$AR$18:AR51,PL_TYPE)>0),"",ROW(PL_YEAR)-MIN(ROW(PL_YEAR))+1),1),COLUMN(A42)),"") ->  | AQ52: =IFERROR(INDEX($CP$4:$CR$48,SMALL(IF((ISERROR(SEARCH($AQ$14,PL_YEAR)*SEARCH($AQ$14,PL_YEAR)*SEARCH($AQ$12,PL_TYPE)))+(COUNTIFS($AP$18:AQ51,PL_YEAR,$AQ$18:AR51,PL_DAYS,$AR$18:AS51,PL_TYPE)>0),"",ROW(PL_YEAR)-MIN(ROW(PL_YEAR))+1),1),COLUMN(B42)),"") ->  | AR52: =IFERROR(INDEX($CP$4:$CR$48,SMALL(IF((ISERROR(SEARCH($AQ$14,PL_YEAR)*SEARCH($AQ$14,PL_YEAR)*SEARCH($AQ$12,PL_TYPE)))+(COUNTIFS($AP$18:AR51,PL_YEAR,$AQ$18:AS51,PL_DAYS,$AR$18:AT51,PL_TYPE)>0),"",ROW(PL_YEAR)-MIN(ROW(PL_YEAR))+1),1),COLUMN(C42)),"") ->  | AS52: =IFERROR(INDEX($CP$4:$CR$48,SMALL(IF((ISERROR(SEARCH($AM$14,PL_YEAR)*SEARCH($AM$14,PL_YEAR)*SEARCH($AM$12,PL_TYPE)))+(COUNTIFS($AL$18:AS51,PL_YEAR,$AM$18:AT51,PL_DAYS,$AN$18:AU51,PL_TYPE)>0),"",ROW(PL_YEAR)-MIN(ROW(PL_YEAR))+1),1),COLUMN(E42)),"") ->  | AT52: =IFERROR(INDEX($CP$4:$CR$48,SMALL(IF((ISERROR(SEARCH($AU$14,PL_YEAR)*SEARCH($AU$14,PL_YEAR)*SEARCH($AU$12,PL_TYPE)))+(COUNTIFS($AT$18:AT51,PL_YEAR,$AU$18:AU51,PL_DAYS,$AV$18:AV51,PL_TYPE)>0),"",ROW(PL_YEAR)-MIN(ROW(PL_YEAR))+1),1),COLUMN(A42)),"") ->  | AU52: =IFERROR(INDEX($CP$4:$CR$48,SMALL(IF((ISERROR(SEARCH($AU$14,PL_YEAR)*SEARCH($AU$14,PL_YEAR)*SEARCH($AU$12,PL_TYPE)))+(COUNTIFS($AT$18:AU51,PL_YEAR,$AU$18:AV51,PL_DAYS,$AV$18:AW51,PL_TYPE)>0),"",ROW(PL_YEAR)-MIN(ROW(PL_YEAR))+1),1),COLUMN(B42)),"") ->  | AV52: =IFERROR(INDEX($CP$4:$CR$48,SMALL(IF((ISERROR(SEARCH($AU$14,PL_YEAR)*SEARCH($AU$14,PL_YEAR)*SEARCH($AU$12,PL_TYPE)))+(COUNTIFS($AT$18:AV51,PL_YEAR,$AU$18:AW51,PL_DAYS,$AU$18:AW51,PL_TYPE)>0),"",ROW(PL_YEAR)-MIN(ROW(PL_YEAR))+1),1),COLUMN(C42)),"") ->  | AW52: =IFERROR(INDEX($CP$4:$CR$48,SMALL(IF((ISERROR(SEARCH($AU$14,PL_YEAR)*SEARCH($AU$14,PL_YEAR)*SEARCH($AU$12,PL_TYPE)))+(COUNTIFS($AT$18:AW51,PL_YEAR,$AU$18:AW51,PL_DAYS,$AU$18:AW51,PL_TYPE)>0),"",ROW(PL_YEAR)-MIN(ROW(PL_YEAR))+1),1),COLUMN(E42)),"") ->  | BE52: 45 | BG52: 1 | BJ52: =IF(PL!E62="","",PL!E62) ->  | BK52: =IF(PL!F62="","",PL!F62) ->  | BL52: =IF(PL!G62="","",PL!G62) ->  | BM52: =IF(PL!H62="","",PL!H62) ->  | BN52: 0
B53: 2016-07-01 | C53: 2016-12-31 | D53: 2016-12-31 | E53: YES | F53: YES | G53: 2016-07-01 | H53: 2016-12-31 | I53: 2016 | J53: B | K53: 2016-B | L53: 184 | M53: 315 | N53: 15 | O53: 2016-B | P53: 0 | Q53: 0 | R53: 0 | S53: 0 | T53: 315 | U53: 315 | V53: 315 | W53: 0 | X53: 0 | Y53: 6 | Z53: 5 | AA53: YES | AB53: 6 | AC53: FALSE | AD53: YES | AL53: =IFERROR(INDEX($CP$4:$CR$48,SMALL(IF((ISERROR(SEARCH($AM$14,PL_YEAR)*SEARCH($AM$14,PL_YEAR)*SEARCH($AM$12,PL_TYPE)))+(COUNTIFS(AL$18:$AL52,PL_YEAR,$AM$18:AM52,PL_DAYS,$AN$18:AN52,PL_TYPE)>0),"",ROW(PL_YEAR)-MIN(ROW(PL_YEAR))+1),1),COLUMN(A43)),"") ->  | AM53: =IFERROR(INDEX($CP$4:$CR$48,SMALL(IF((ISERROR(SEARCH($AM$14,PL_YEAR)*SEARCH($AM$14,PL_YEAR)*SEARCH($AM$12,PL_TYPE)))+(COUNTIFS($AL$18:AM52,PL_YEAR,$AM$18:AN52,PL_DAYS,$AN$18:AO52,PL_TYPE)>0),"",ROW(PL_YEAR)-MIN(ROW(PL_YEAR))+1),1),COLUMN(B43)),"") ->  | AN53: =IFERROR(INDEX($CP$4:$CR$48,SMALL(IF((ISERROR(SEARCH($AM$14,PL_YEAR)*SEARCH($AM$14,PL_YEAR)*SEARCH($AM$12,PL_TYPE)))+(COUNTIFS($AL$18:AN52,PL_YEAR,$AM$18:AO52,PL_DAYS,$AN$18:AP52,PL_TYPE)>0),"",ROW(PL_YEAR)-MIN(ROW(PL_YEAR))+1),1),COLUMN(C43)),"") ->  | AO53: =IFERROR(INDEX($CP$4:$CR$48,SMALL(IF((ISERROR(SEARCH($AM$14,PL_YEAR)*SEARCH($AM$14,PL_YEAR)*SEARCH($AM$12,PL_TYPE)))+(COUNTIFS($AL$18:AO52,PL_YEAR,$AM$18:AP52,PL_DAYS,$AN$18:AQ52,PL_TYPE)>0),"",ROW(PL_YEAR)-MIN(ROW(PL_YEAR))+1),1),COLUMN(E43)),"") ->  | AP53: =IFERROR(INDEX($CP$4:$CR$48,SMALL(IF((ISERROR(SEARCH($AQ$14,PL_YEAR)*SEARCH($AQ$14,PL_YEAR)*SEARCH($AQ$12,PL_TYPE)))+(COUNTIFS($AP$18:AP52,PL_YEAR,$AQ$18:AQ52,PL_DAYS,$AR$18:AR52,PL_TYPE)>0),"",ROW(PL_YEAR)-MIN(ROW(PL_YEAR))+1),1),COLUMN(A43)),"") ->  | AQ53: =IFERROR(INDEX($CP$4:$CR$48,SMALL(IF((ISERROR(SEARCH($AQ$14,PL_YEAR)*SEARCH($AQ$14,PL_YEAR)*SEARCH($AQ$12,PL_TYPE)))+(COUNTIFS($AP$18:AQ52,PL_YEAR,$AQ$18:AR52,PL_DAYS,$AR$18:AS52,PL_TYPE)>0),"",ROW(PL_YEAR)-MIN(ROW(PL_YEAR))+1),1),COLUMN(B43)),"") ->  | AR53: =IFERROR(INDEX($CP$4:$CR$48,SMALL(IF((ISERROR(SEARCH($AQ$14,PL_YEAR)*SEARCH($AQ$14,PL_YEAR)*SEARCH($AQ$12,PL_TYPE)))+(COUNTIFS($AP$18:AR52,PL_YEAR,$AQ$18:AS52,PL_DAYS,$AR$18:AT52,PL_TYPE)>0),"",ROW(PL_YEAR)-MIN(ROW(PL_YEAR))+1),1),COLUMN(C43)),"") ->  | AS53: =IFERROR(INDEX($CP$4:$CR$48,SMALL(IF((ISERROR(SEARCH($AM$14,PL_YEAR)*SEARCH($AM$14,PL_YEAR)*SEARCH($AM$12,PL_TYPE)))+(COUNTIFS($AL$18:AS52,PL_YEAR,$AM$18:AT52,PL_DAYS,$AN$18:AU52,PL_TYPE)>0),"",ROW(PL_YEAR)-MIN(ROW(PL_YEAR))+1),1),COLUMN(E43)),"") ->  | AT53: =IFERROR(INDEX($CP$4:$CR$48,SMALL(IF((ISERROR(SEARCH($AU$14,PL_YEAR)*SEARCH($AU$14,PL_YEAR)*SEARCH($AU$12,PL_TYPE)))+(COUNTIFS($AT$18:AT52,PL_YEAR,$AU$18:AU52,PL_DAYS,$AV$18:AV52,PL_TYPE)>0),"",ROW(PL_YEAR)-MIN(ROW(PL_YEAR))+1),1),COLUMN(A43)),"") ->  | AU53: =IFERROR(INDEX($CP$4:$CR$48,SMALL(IF((ISERROR(SEARCH($AU$14,PL_YEAR)*SEARCH($AU$14,PL_YEAR)*SEARCH($AU$12,PL_TYPE)))+(COUNTIFS($AT$18:AU52,PL_YEAR,$AU$18:AV52,PL_DAYS,$AV$18:AW52,PL_TYPE)>0),"",ROW(PL_YEAR)-MIN(ROW(PL_YEAR))+1),1),COLUMN(B43)),"") ->  | AV53: =IFERROR(INDEX($CP$4:$CR$48,SMALL(IF((ISERROR(SEARCH($AU$14,PL_YEAR)*SEARCH($AU$14,PL_YEAR)*SEARCH($AU$12,PL_TYPE)))+(COUNTIFS($AT$18:AV52,PL_YEAR,$AU$18:AW52,PL_DAYS,$AU$18:AW52,PL_TYPE)>0),"",ROW(PL_YEAR)-MIN(ROW(PL_YEAR))+1),1),COLUMN(C43)),"") ->  | AW53: =IFERROR(INDEX($CP$4:$CR$48,SMALL(IF((ISERROR(SEARCH($AU$14,PL_YEAR)*SEARCH($AU$14,PL_YEAR)*SEARCH($AU$12,PL_TYPE)))+(COUNTIFS($AT$18:AW52,PL_YEAR,$AU$18:AW52,PL_DAYS,$AU$18:AW52,PL_TYPE)>0),"",ROW(PL_YEAR)-MIN(ROW(PL_YEAR))+1),1),COLUMN(E43)),"") ->  | BE53: 45 | BG53: 1 | BJ53: =IF(PL!E63="","",PL!E63) ->  | BK53: =IF(PL!F63="","",PL!F63) ->  | BL53: =IF(PL!G63="","",PL!G63) ->  | BM53: =IF(PL!H63="","",PL!H63) ->  | BN53: 0
B54: 2017-01-01 | C54: 2017-06-30 | D54: 2017-06-30 | E54: YES | F54: YES | G54: 2017-01-01 | H54: 2017-06-30 | I54: 2017 | J54: A | K54: 2017-A | L54: 181 | M54: 315 | N54: 15 | O54: 2017-A | P54: 0 | Q54: 0 | R54: 0 | S54: 0 | T54: 315 | U54: 315 | V54: 315 | W54: 0 | X54: 0 | Y54: 6 | Z54: 5 | AA54: YES | AB54: 6 | AC54: FALSE | AD54: YES | AL54: =IFERROR(INDEX($CP$4:$CR$48,SMALL(IF((ISERROR(SEARCH($AM$14,PL_YEAR)*SEARCH($AM$14,PL_YEAR)*SEARCH($AM$12,PL_TYPE)))+(COUNTIFS(AL$18:$AL53,PL_YEAR,$AM$18:AM53,PL_DAYS,$AN$18:AN53,PL_TYPE)>0),"",ROW(PL_YEAR)-MIN(ROW(PL_YEAR))+1),1),COLUMN(A44)),"") ->  | AM54: =IFERROR(INDEX($CP$4:$CR$48,SMALL(IF((ISERROR(SEARCH($AM$14,PL_YEAR)*SEARCH($AM$14,PL_YEAR)*SEARCH($AM$12,PL_TYPE)))+(COUNTIFS($AL$18:AM53,PL_YEAR,$AM$18:AN53,PL_DAYS,$AN$18:AO53,PL_TYPE)>0),"",ROW(PL_YEAR)-MIN(ROW(PL_YEAR))+1),1),COLUMN(B44)),"") ->  | AN54: =IFERROR(INDEX($CP$4:$CR$48,SMALL(IF((ISERROR(SEARCH($AM$14,PL_YEAR)*SEARCH($AM$14,PL_YEAR)*SEARCH($AM$12,PL_TYPE)))+(COUNTIFS($AL$18:AN53,PL_YEAR,$AM$18:AO53,PL_DAYS,$AN$18:AP53,PL_TYPE)>0),"",ROW(PL_YEAR)-MIN(ROW(PL_YEAR))+1),1),COLUMN(C44)),"") ->  | AO54: =IFERROR(INDEX($CP$4:$CR$48,SMALL(IF((ISERROR(SEARCH($AM$14,PL_YEAR)*SEARCH($AM$14,PL_YEAR)*SEARCH($AM$12,PL_TYPE)))+(COUNTIFS($AL$18:AO53,PL_YEAR,$AM$18:AP53,PL_DAYS,$AN$18:AQ53,PL_TYPE)>0),"",ROW(PL_YEAR)-MIN(ROW(PL_YEAR))+1),1),COLUMN(E44)),"") ->  | AP54: =IFERROR(INDEX($CP$4:$CR$48,SMALL(IF((ISERROR(SEARCH($AQ$14,PL_YEAR)*SEARCH($AQ$14,PL_YEAR)*SEARCH($AQ$12,PL_TYPE)))+(COUNTIFS($AP$18:AP53,PL_YEAR,$AQ$18:AQ53,PL_DAYS,$AR$18:AR53,PL_TYPE)>0),"",ROW(PL_YEAR)-MIN(ROW(PL_YEAR))+1),1),COLUMN(A44)),"") ->  | AQ54: =IFERROR(INDEX($CP$4:$CR$48,SMALL(IF((ISERROR(SEARCH($AQ$14,PL_YEAR)*SEARCH($AQ$14,PL_YEAR)*SEARCH($AQ$12,PL_TYPE)))+(COUNTIFS($AP$18:AQ53,PL_YEAR,$AQ$18:AR53,PL_DAYS,$AR$18:AS53,PL_TYPE)>0),"",ROW(PL_YEAR)-MIN(ROW(PL_YEAR))+1),1),COLUMN(B44)),"") ->  | AR54: =IFERROR(INDEX($CP$4:$CR$48,SMALL(IF((ISERROR(SEARCH($AQ$14,PL_YEAR)*SEARCH($AQ$14,PL_YEAR)*SEARCH($AQ$12,PL_TYPE)))+(COUNTIFS($AP$18:AR53,PL_YEAR,$AQ$18:AS53,PL_DAYS,$AR$18:AT53,PL_TYPE)>0),"",ROW(PL_YEAR)-MIN(ROW(PL_YEAR))+1),1),COLUMN(C44)),"") ->  | AS54: =IFERROR(INDEX($CP$4:$CR$48,SMALL(IF((ISERROR(SEARCH($AM$14,PL_YEAR)*SEARCH($AM$14,PL_YEAR)*SEARCH($AM$12,PL_TYPE)))+(COUNTIFS($AL$18:AS53,PL_YEAR,$AM$18:AT53,PL_DAYS,$AN$18:AU53,PL_TYPE)>0),"",ROW(PL_YEAR)-MIN(ROW(PL_YEAR))+1),1),COLUMN(E44)),"") ->  | AT54: =IFERROR(INDEX($CP$4:$CR$48,SMALL(IF((ISERROR(SEARCH($AU$14,PL_YEAR)*SEARCH($AU$14,PL_YEAR)*SEARCH($AU$12,PL_TYPE)))+(COUNTIFS($AT$18:AT53,PL_YEAR,$AU$18:AU53,PL_DAYS,$AV$18:AV53,PL_TYPE)>0),"",ROW(PL_YEAR)-MIN(ROW(PL_YEAR))+1),1),COLUMN(A44)),"") ->  | AU54: =IFERROR(INDEX($CP$4:$CR$48,SMALL(IF((ISERROR(SEARCH($AU$14,PL_YEAR)*SEARCH($AU$14,PL_YEAR)*SEARCH($AU$12,PL_TYPE)))+(COUNTIFS($AT$18:AU53,PL_YEAR,$AU$18:AV53,PL_DAYS,$AV$18:AW53,PL_TYPE)>0),"",ROW(PL_YEAR)-MIN(ROW(PL_YEAR))+1),1),COLUMN(B44)),"") ->  | AV54: =IFERROR(INDEX($CP$4:$CR$48,SMALL(IF((ISERROR(SEARCH($AU$14,PL_YEAR)*SEARCH($AU$14,PL_YEAR)*SEARCH($AU$12,PL_TYPE)))+(COUNTIFS($AT$18:AV53,PL_YEAR,$AU$18:AW53,PL_DAYS,$AU$18:AW53,PL_TYPE)>0),"",ROW(PL_YEAR)-MIN(ROW(PL_YEAR))+1),1),COLUMN(C44)),"") ->  | AW54: =IFERROR(INDEX($CP$4:$CR$48,SMALL(IF((ISERROR(SEARCH($AU$14,PL_YEAR)*SEARCH($AU$14,PL_YEAR)*SEARCH($AU$12,PL_TYPE)))+(COUNTIFS($AT$18:AW53,PL_YEAR,$AU$18:AW53,PL_DAYS,$AU$18:AW53,PL_TYPE)>0),"",ROW(PL_YEAR)-MIN(ROW(PL_YEAR))+1),1),COLUMN(E44)),"") ->  | BE54: 45 | BG54: 1 | BJ54: =IF(PL!E64="","",PL!E64) ->  | BK54: =IF(PL!F64="","",PL!F64) ->  | BL54: =IF(PL!G64="","",PL!G64) ->  | BM54: =IF(PL!H64="","",PL!H64) ->  | BN54: 0
B55: 2017-07-01 | C55: 2017-12-31 | D55: 2017-12-31 | E55: YES | F55: YES | G55: 2017-07-01 | H55: 2017-12-31 | I55: 2017 | J55: B | K55: 2017-B | L55: 184 | M55: 315 | N55: 15 | O55: 2017-B | P55: 0 | Q55: 0 | R55: 0 | S55: 0 | T55: 315 | U55: 315 | V55: 315 | W55: 0 | X55: 0 | Y55: 6 | Z55: 5 | AA55: YES | AB55: 6 | AC55: FALSE | AD55: YES | AL55: =IFERROR(INDEX($CP$4:$CR$48,SMALL(IF((ISERROR(SEARCH($AM$14,PL_YEAR)*SEARCH($AM$14,PL_YEAR)*SEARCH($AM$12,PL_TYPE)))+(COUNTIFS(AL$18:$AL54,PL_YEAR,$AM$18:AM54,PL_DAYS,$AN$18:AN54,PL_TYPE)>0),"",ROW(PL_YEAR)-MIN(ROW(PL_YEAR))+1),1),COLUMN(A45)),"") ->  | AM55: =IFERROR(INDEX($CP$4:$CR$48,SMALL(IF((ISERROR(SEARCH($AM$14,PL_YEAR)*SEARCH($AM$14,PL_YEAR)*SEARCH($AM$12,PL_TYPE)))+(COUNTIFS($AL$18:AM54,PL_YEAR,$AM$18:AN54,PL_DAYS,$AN$18:AO54,PL_TYPE)>0),"",ROW(PL_YEAR)-MIN(ROW(PL_YEAR))+1),1),COLUMN(B45)),"") ->  | AN55: =IFERROR(INDEX($CP$4:$CR$48,SMALL(IF((ISERROR(SEARCH($AM$14,PL_YEAR)*SEARCH($AM$14,PL_YEAR)*SEARCH($AM$12,PL_TYPE)))+(COUNTIFS($AL$18:AN54,PL_YEAR,$AM$18:AO54,PL_DAYS,$AN$18:AP54,PL_TYPE)>0),"",ROW(PL_YEAR)-MIN(ROW(PL_YEAR))+1),1),COLUMN(C45)),"") ->  | AO55: =IFERROR(INDEX($CP$4:$CR$48,SMALL(IF((ISERROR(SEARCH($AM$14,PL_YEAR)*SEARCH($AM$14,PL_YEAR)*SEARCH($AM$12,PL_TYPE)))+(COUNTIFS($AL$18:AO54,PL_YEAR,$AM$18:AP54,PL_DAYS,$AN$18:AQ54,PL_TYPE)>0),"",ROW(PL_YEAR)-MIN(ROW(PL_YEAR))+1),1),COLUMN(E45)),"") ->  | AP55: =IFERROR(INDEX($CP$4:$CR$48,SMALL(IF((ISERROR(SEARCH($AQ$14,PL_YEAR)*SEARCH($AQ$14,PL_YEAR)*SEARCH($AQ$12,PL_TYPE)))+(COUNTIFS($AP$18:AP54,PL_YEAR,$AQ$18:AQ54,PL_DAYS,$AR$18:AR54,PL_TYPE)>0),"",ROW(PL_YEAR)-MIN(ROW(PL_YEAR))+1),1),COLUMN(A45)),"") ->  | AQ55: =IFERROR(INDEX($CP$4:$CR$48,SMALL(IF((ISERROR(SEARCH($AQ$14,PL_YEAR)*SEARCH($AQ$14,PL_YEAR)*SEARCH($AQ$12,PL_TYPE)))+(COUNTIFS($AP$18:AQ54,PL_YEAR,$AQ$18:AR54,PL_DAYS,$AR$18:AS54,PL_TYPE)>0),"",ROW(PL_YEAR)-MIN(ROW(PL_YEAR))+1),1),COLUMN(B45)),"") ->  | AR55: =IFERROR(INDEX($CP$4:$CR$48,SMALL(IF((ISERROR(SEARCH($AQ$14,PL_YEAR)*SEARCH($AQ$14,PL_YEAR)*SEARCH($AQ$12,PL_TYPE)))+(COUNTIFS($AP$18:AR54,PL_YEAR,$AQ$18:AS54,PL_DAYS,$AR$18:AT54,PL_TYPE)>0),"",ROW(PL_YEAR)-MIN(ROW(PL_YEAR))+1),1),COLUMN(C45)),"") ->  | AS55: =IFERROR(INDEX($CP$4:$CR$48,SMALL(IF((ISERROR(SEARCH($AM$14,PL_YEAR)*SEARCH($AM$14,PL_YEAR)*SEARCH($AM$12,PL_TYPE)))+(COUNTIFS($AL$18:AS54,PL_YEAR,$AM$18:AT54,PL_DAYS,$AN$18:AU54,PL_TYPE)>0),"",ROW(PL_YEAR)-MIN(ROW(PL_YEAR))+1),1),COLUMN(E45)),"") ->  | AT55: =IFERROR(INDEX($CP$4:$CR$48,SMALL(IF((ISERROR(SEARCH($AU$14,PL_YEAR)*SEARCH($AU$14,PL_YEAR)*SEARCH($AU$12,PL_TYPE)))+(COUNTIFS($AT$18:AT54,PL_YEAR,$AU$18:AU54,PL_DAYS,$AV$18:AV54,PL_TYPE)>0),"",ROW(PL_YEAR)-MIN(ROW(PL_YEAR))+1),1),COLUMN(A45)),"") ->  | AU55: =IFERROR(INDEX($CP$4:$CR$48,SMALL(IF((ISERROR(SEARCH($AU$14,PL_YEAR)*SEARCH($AU$14,PL_YEAR)*SEARCH($AU$12,PL_TYPE)))+(COUNTIFS($AT$18:AU54,PL_YEAR,$AU$18:AV54,PL_DAYS,$AV$18:AW54,PL_TYPE)>0),"",ROW(PL_YEAR)-MIN(ROW(PL_YEAR))+1),1),COLUMN(B45)),"") ->  | AV55: =IFERROR(INDEX($CP$4:$CR$48,SMALL(IF((ISERROR(SEARCH($AU$14,PL_YEAR)*SEARCH($AU$14,PL_YEAR)*SEARCH($AU$12,PL_TYPE)))+(COUNTIFS($AT$18:AV54,PL_YEAR,$AU$18:AW54,PL_DAYS,$AU$18:AW54,PL_TYPE)>0),"",ROW(PL_YEAR)-MIN(ROW(PL_YEAR))+1),1),COLUMN(C45)),"") ->  | AW55: =IFERROR(INDEX($CP$4:$CR$48,SMALL(IF((ISERROR(SEARCH($AU$14,PL_YEAR)*SEARCH($AU$14,PL_YEAR)*SEARCH($AU$12,PL_TYPE)))+(COUNTIFS($AT$18:AW54,PL_YEAR,$AU$18:AW54,PL_DAYS,$AU$18:AW54,PL_TYPE)>0),"",ROW(PL_YEAR)-MIN(ROW(PL_YEAR))+1),1),COLUMN(E45)),"") ->  | BE55: 45 | BG55: 1 | BJ55: =IF(PL!E65="","",PL!E65) ->  | BK55: =IF(PL!F65="","",PL!F65) ->  | BL55: =IF(PL!G65="","",PL!G65) ->  | BM55: =IF(PL!H65="","",PL!H65) ->  | BN55: 0
B56: 2018-01-01 | C56: 2018-06-30 | D56: 2018-06-30 | E56: YES | F56: YES | G56: 2018-01-01 | H56: 2018-06-30 | I56: 2018 | J56: A | K56: 2018-A | L56: 181 | M56: 315 | N56: 15 | O56: 2018-A | P56: 0 | Q56: 0 | R56: 0 | S56: 0 | T56: 315 | U56: 315 | V56: 315 | W56: 0 | X56: 0 | Y56: 6 | Z56: 5 | AA56: YES | AB56: 6 | AC56: FALSE | AD56: YES | AL56: =IFERROR(INDEX($CP$4:$CR$48,SMALL(IF((ISERROR(SEARCH($AM$14,PL_YEAR)*SEARCH($AM$14,PL_YEAR)*SEARCH($AM$12,PL_TYPE)))+(COUNTIFS(AL$18:$AL55,PL_YEAR,$AM$18:AM55,PL_DAYS,$AN$18:AN55,PL_TYPE)>0),"",ROW(PL_YEAR)-MIN(ROW(PL_YEAR))+1),1),COLUMN(A46)),"") ->  | AM56: =IFERROR(INDEX($CP$4:$CR$48,SMALL(IF((ISERROR(SEARCH($AM$14,PL_YEAR)*SEARCH($AM$14,PL_YEAR)*SEARCH($AM$12,PL_TYPE)))+(COUNTIFS($AL$18:AM55,PL_YEAR,$AM$18:AN55,PL_DAYS,$AN$18:AO55,PL_TYPE)>0),"",ROW(PL_YEAR)-MIN(ROW(PL_YEAR))+1),1),COLUMN(B46)),"") ->  | AN56: =IFERROR(INDEX($CP$4:$CR$48,SMALL(IF((ISERROR(SEARCH($AM$14,PL_YEAR)*SEARCH($AM$14,PL_YEAR)*SEARCH($AM$12,PL_TYPE)))+(COUNTIFS($AL$18:AN55,PL_YEAR,$AM$18:AO55,PL_DAYS,$AN$18:AP55,PL_TYPE)>0),"",ROW(PL_YEAR)-MIN(ROW(PL_YEAR))+1),1),COLUMN(C46)),"") ->  | AO56: =IFERROR(INDEX($CP$4:$CR$48,SMALL(IF((ISERROR(SEARCH($AM$14,PL_YEAR)*SEARCH($AM$14,PL_YEAR)*SEARCH($AM$12,PL_TYPE)))+(COUNTIFS($AL$18:AO55,PL_YEAR,$AM$18:AP55,PL_DAYS,$AN$18:AQ55,PL_TYPE)>0),"",ROW(PL_YEAR)-MIN(ROW(PL_YEAR))+1),1),COLUMN(E46)),"") ->  | AP56: =IFERROR(INDEX($CP$4:$CR$48,SMALL(IF((ISERROR(SEARCH($AQ$14,PL_YEAR)*SEARCH($AQ$14,PL_YEAR)*SEARCH($AQ$12,PL_TYPE)))+(COUNTIFS($AP$18:AP55,PL_YEAR,$AQ$18:AQ55,PL_DAYS,$AR$18:AR55,PL_TYPE)>0),"",ROW(PL_YEAR)-MIN(ROW(PL_YEAR))+1),1),COLUMN(A46)),"") ->  | AQ56: =IFERROR(INDEX($CP$4:$CR$48,SMALL(IF((ISERROR(SEARCH($AQ$14,PL_YEAR)*SEARCH($AQ$14,PL_YEAR)*SEARCH($AQ$12,PL_TYPE)))+(COUNTIFS($AP$18:AQ55,PL_YEAR,$AQ$18:AR55,PL_DAYS,$AR$18:AS55,PL_TYPE)>0),"",ROW(PL_YEAR)-MIN(ROW(PL_YEAR))+1),1),COLUMN(B46)),"") ->  | AR56: =IFERROR(INDEX($CP$4:$CR$48,SMALL(IF((ISERROR(SEARCH($AQ$14,PL_YEAR)*SEARCH($AQ$14,PL_YEAR)*SEARCH($AQ$12,PL_TYPE)))+(COUNTIFS($AP$18:AR55,PL_YEAR,$AQ$18:AS55,PL_DAYS,$AR$18:AT55,PL_TYPE)>0),"",ROW(PL_YEAR)-MIN(ROW(PL_YEAR))+1),1),COLUMN(C46)),"") ->  | AS56: =IFERROR(INDEX($CP$4:$CR$48,SMALL(IF((ISERROR(SEARCH($AM$14,PL_YEAR)*SEARCH($AM$14,PL_YEAR)*SEARCH($AM$12,PL_TYPE)))+(COUNTIFS($AL$18:AS55,PL_YEAR,$AM$18:AT55,PL_DAYS,$AN$18:AU55,PL_TYPE)>0),"",ROW(PL_YEAR)-MIN(ROW(PL_YEAR))+1),1),COLUMN(E46)),"") ->  | AT56: =IFERROR(INDEX($CP$4:$CR$48,SMALL(IF((ISERROR(SEARCH($AU$14,PL_YEAR)*SEARCH($AU$14,PL_YEAR)*SEARCH($AU$12,PL_TYPE)))+(COUNTIFS($AT$18:AT55,PL_YEAR,$AU$18:AU55,PL_DAYS,$AV$18:AV55,PL_TYPE)>0),"",ROW(PL_YEAR)-MIN(ROW(PL_YEAR))+1),1),COLUMN(A46)),"") ->  | AU56: =IFERROR(INDEX($CP$4:$CR$48,SMALL(IF((ISERROR(SEARCH($AU$14,PL_YEAR)*SEARCH($AU$14,PL_YEAR)*SEARCH($AU$12,PL_TYPE)))+(COUNTIFS($AT$18:AU55,PL_YEAR,$AU$18:AV55,PL_DAYS,$AV$18:AW55,PL_TYPE)>0),"",ROW(PL_YEAR)-MIN(ROW(PL_YEAR))+1),1),COLUMN(B46)),"") ->  | AV56: =IFERROR(INDEX($CP$4:$CR$48,SMALL(IF((ISERROR(SEARCH($AU$14,PL_YEAR)*SEARCH($AU$14,PL_YEAR)*SEARCH($AU$12,PL_TYPE)))+(COUNTIFS($AT$18:AV55,PL_YEAR,$AU$18:AW55,PL_DAYS,$AU$18:AW55,PL_TYPE)>0),"",ROW(PL_YEAR)-MIN(ROW(PL_YEAR))+1),1),COLUMN(C46)),"") ->  | AW56: =IFERROR(INDEX($CP$4:$CR$48,SMALL(IF((ISERROR(SEARCH($AU$14,PL_YEAR)*SEARCH($AU$14,PL_YEAR)*SEARCH($AU$12,PL_TYPE)))+(COUNTIFS($AT$18:AW55,PL_YEAR,$AU$18:AW55,PL_DAYS,$AU$18:AW55,PL_TYPE)>0),"",ROW(PL_YEAR)-MIN(ROW(PL_YEAR))+1),1),COLUMN(E46)),"") ->  | BE56: 45 | BG56: 1 | BJ56: =IF(PL!E66="","",PL!E66) ->  | BK56: =IF(PL!F66="","",PL!F66) ->  | BL56: =IF(PL!G66="","",PL!G66) ->  | BM56: =IF(PL!H66="","",PL!H66) ->  | BN56: 0
B57: 2018-07-01 | C57: 2018-12-31 | D57: 2018-12-31 | E57: YES | F57: YES | G57: 2018-07-01 | H57: 2018-12-31 | I57: 2018 | J57: B | K57: 2018-B | L57: 184 | M57: 315 | N57: 15 | O57: 2018-B | P57: 0 | Q57: 0 | R57: 0 | S57: 0 | T57: 315 | U57: 315 | V57: 315 | W57: 0 | X57: 0 | Y57: 6 | Z57: 5 | AA57: YES | AB57: 6 | AC57: FALSE | AD57: YES | BE57: END LINE | BF57: END LINE | BG57: =SUM(BG12:BG56) -> 45
B58: 2019-01-01 | C58: 2019-06-30 | D58: 2019-06-30 | E58: YES | F58: YES | G58: 2019-01-01 | H58: 2019-06-30 | I58: 2019 | J58: A | K58: 2019-A | L58: 181 | M58: 315 | N58: 15 | O58: 2019-A | P58: 0 | Q58: 0 | R58: 0 | S58: 0 | T58: 315 | U58: 315 | V58: 315 | W58: 0 | X58: 0 | Y58: 6 | Z58: 5 | AA58: YES | AB58: 6 | AC58: FALSE | AD58: YES
B59: 2019-07-01 | C59: 2019-12-31 | D59: 2019-12-31 | E59: YES | F59: YES | G59: 2019-07-01 | H59: 2019-12-31 | I59: 2019 | J59: B | K59: 2019-B | L59: 184 | M59: 315 | N59: 15 | O59: 2019-B | P59: 0 | Q59: 0 | R59: 0 | S59: 0 | T59: 315 | U59: 315 | V59: 315 | W59: 0 | X59: 0 | Y59: 6 | Z59: 5 | AA59: YES | AB59: 6 | AC59: FALSE | AD59: YES
B60: 2020-01-01 | C60: 2020-06-30 | D60: 2020-06-30 | E60: YES | F60: YES | G60: 2020-01-01 | H60: 2020-06-30 | I60: 2020 | J60: A | K60: 2020-A | L60: 182 | M60: 315 | N60: 15 | O60: 2020-A | P60: 0 | Q60: 0 | R60: 0 | S60: 0 | T60: 315 | U60: 315 | V60: 315 | W60: 0 | X60: 0 | Y60: 6 | Z60: 5 | AA60: YES | AB60: 6 | AC60: FALSE | AD60: YES
B61: 2020-07-01 | C61: 2020-12-31 | D61: 2020-12-31 | E61: YES | F61: YES | G61: 2020-07-01 | H61: 2020-12-31 | I61: 2020 | J61: B | K61: 2020-B | L61: 184 | M61: 315 | N61: 15 | O61: 2020-B | P61: 0 | Q61: 0 | R61: 0 | S61: 0 | T61: 315 | U61: 315 | V61: 315 | W61: 0 | X61: 0 | Y61: 6 | Z61: 5 | AA61: YES | AB61: 6 | AC61: FALSE | AD61: YES
B62: 2021-01-01 | C62: 2021-06-30 | D62: 2021-06-30 | E62: YES | F62: YES | G62: 2021-01-01 | H62: 2021-06-30 | I62: 2021 | J62: A | K62: 2021-A | L62: 181 | M62: =IF(L62="","",IF(V61>300,V61,MIN($T$10,V61))) -> 315 | N62: 15 | O62: 2021-A | P62: 0 | Q62: 0 | R62: 0 | S62: 0 | T62: 315 | U62: 315 | V62: 315 | W62: 0 | X62: 0 | Y62: 6 | Z62: 5 | AA62: YES | AB62: 6 | AC62: FALSE | AD62: YES
B63: 2021-07-01 | C63: 2021-12-31 | D63: 2021-12-31 | E63: YES | F63: YES | G63: 2021-07-01 | H63: 2021-12-31 | I63: 2021 | J63: B | K63: 2021-B | L63: 184 | M63: =IF(L63="","",IF(V62>300,V62,MIN($T$10,V62))) -> 315 | N63: 15 | O63: 2021-B | P63: 0 | Q63: 0 | R63: 0 | S63: 0 | T63: 315 | U63: 315 | V63: 315 | W63: 0 | X63: 0 | Y63: 6 | Z63: 5 | AA63: YES | AB63: 6 | AC63: FALSE | AD63: YES
B64: 2022-01-01 | C64: 2022-06-30 | D64: 2022-06-30 | E64: YES | F64: YES | G64: 2022-01-01 | H64: 2022-06-30 | I64: 2022 | J64: A | K64: 2022-A | L64: 181 | M64: 315 | N64: 15 | O64: 2022-A | P64: 0 | Q64: 0 | R64: 0 | S64: 0 | T64: 315 | U64: 315 | V64: 315 | W64: 0 | X64: 0 | Y64: 6 | Z64: 5 | AA64: YES | AB64: 6 | AC64: FALSE | AD64: YES
B65: 2022-07-01 | C65: 2022-12-31 | D65: 2022-12-31 | E65: YES | F65: YES | G65: 2022-07-01 | H65: 2022-12-31 | I65: 2022 | J65: B | K65: 2022-B | L65: 184 | M65: 315 | N65: 15 | O65: 2022-B | P65: 0 | Q65: 0 | R65: 0 | S65: 0 | T65: 315 | U65: 315 | V65: 315 | W65: 0 | X65: 0 | Y65: 6 | Z65: 5 | AA65: YES | AB65: 6 | AC65: FALSE | AD65: YES
B66: 2023-01-01 | C66: 2023-06-30 | D66: 2023-06-30 | E66: YES | F66: YES | G66: 2023-01-01 | H66: 2023-06-30 | I66: 2023 | J66: A | K66: 2023-A | L66: 181 | M66: 315 | N66: 15 | O66: 2023-A | P66: 0 | Q66: 0 | R66: 0 | S66: 0 | T66: 315 | U66: 315 | V66: 315 | W66: 0 | X66: 0 | Y66: 6 | Z66: 5 | AA66: YES | AB66: 6 | AC66: FALSE | AD66: YES
B67: 2023-07-01 | C67: 2023-08-31 | D67: 2023-08-31 | E67: YES | F67: YES | G67: 2023-07-01 | H67: 2023-08-31 | I67: 2023 | J67: B | K67: 2023-B | L67: 62 | M67: 315 | N67: 5 | O67: 2023-B | P67: 0 | Q67: 0 | R67: 0 | S67: 0 | T67: 315 | U67: 315 | V67: 315 | W67: 0 | X67: 0 | Y67: 2 | Z67: 1 | AA67: YES | AB67: 2 | AC67: FALSE | AD67: YES
E68: NO | F68: NO | K68: - | T68: 0 | AC68: FALSE
E69: NO | F69: NO | K69: - | T69: 0 | AC69: FALSE
E70: NO | F70: NO | K70: - | T70: 0 | AC70: FALSE
E71: NO | F71: NO | K71: - | T71: 0 | AC71: FALSE
E72: NO | F72: NO | K72: - | T72: 0 | AC72: FALSE
E73: NO | F73: NO | K73: - | T73: 0 | AC73: FALSE
E74: NO | F74: NO | K74: - | T74: 0 | AC74: FALSE
E75: NO | F75: NO | K75: - | T75: 0 | AC75: FALSE
E76: =IF($C$11>=D76,"YES","NO") -> NO | F76: =IFERROR(E76,"NO") -> NO | K76: =CONCATENATE(I76,"-",J76) -> - | O76: =IF(F76="NO","",K76) ->  | Q76: =IF(O76="","",IF(ISERROR(MATCH(O76,$AL$19:$AL$56,0)),0,VLOOKUP(O76,$AL$19:$AV$56,2,0))) ->  | R76: =IF(ISERROR(MATCH(O76,$AP$19:$AP$56,0)),0,VLOOKUP(O76,$AP$19:$AV$56,2,0)) ->  | S76: =IF(H76="","",IF(ISERROR(MATCH(O76,$AT$19:$AT$56,0)),0,VLOOKUP(O76,$AT$19:$AV$56,2,0))) ->  | T76: 0 | AC76: FALSE
E77: NO | F77: NO | K77: - | L77: =IF(F77="NO","",IF(E77="YES",1+H77-G77,H77-G77)) ->  | P77: =IF(F77="NO","",IF(L76>0,INDEX($M$452:$CO$452,MATCH(O77,$M$453:$CO$453,0)))) ->  | T77: 0 | W77: =IF(B77="","",INDEX($AJ$7:$AJ$18,MATCH(MONTH(B77),$AG$7:$AG$18,0))-(EOMONTH(B77,0)-B77+1)) ->  | AC77: =IF($N$2="Vacation Deptt",IF($J$5>B77,$K$5,$H$5)) -> FALSE
B78: =IF(C77="","",IF($B$10=C77,"",C77+1)) ->  | E78: NO | F78: NO | G78: =B78 ->  | H78: =IF(G78="","",IF(F78="YES",D78,$C$11)) ->  | I78: =IF(H78="","",YEAR(G78)) ->  | J78: =IF(I78="","",IF(MONTH(H78)>6,"B","A")) ->  | K78: - | T78: 0 | U78: =IF($N$3="A",VLOOKUP(B78,$B$3:$E$6,4),VLOOKUP(B78,$B$3:$D$6,3)) ->  | V78: =IF(F78="NO","",MIN(T78:U78)) ->  | AC78: FALSE
E79: NO | F79: NO | K79: - | T79: 0 | AA79: =IF(B79="","",IF(Y79>=X79,"YES","NO")) ->  | AB79: =IF(B79="","",IF(AA79="YES",Z79+1,Z79)) ->  | AC79: FALSE
E80: NO | F80: NO | K80: - | T80: 0 | Z80: =IFERROR(DATEDIF(B80,C80,"M"),"") ->  | AC80: FALSE
E81: NO | F81: NO | K81: - | T81: 0 | AC81: FALSE
E82: NO | F82: NO | K82: - | T82: 0 | AC82: FALSE
E83: NO | F83: NO | K83: - | T83: 0 | AC83: FALSE
E84: NO | F84: NO | K84: - | N84: =IF(F84="NO","",IF(L84>0,MIN(AC84,MAX(Y84:Z84)*$N$5))) ->  | T84: 0 | AC84: FALSE
C85: =IF(B85="","",IF(EOMONTH(B85,5)>=$B$10,$B$10,IF($N$3="B",(EOMONTH(B85,5)),IF(EOMONTH(B85,11)>$B$10,$B$10,(EOMONTH(B85,11)))))) ->  | D85: =IF(B85="","",SMALL(IF(($C$11:$C$94<=$C$11)*($C$11:$C$94>=$D$11),$C$11:$C$94,"A"),ROW(A74))) ->  | E85: NO | F85: NO | K85: - | T85: 0 | Y85: =IF(B85="","",IF(X85>0,TRUNC((L85-DAY(C85))/30,0),Z85+1)) ->  | AC85: FALSE
E86: NO | F86: NO | J86: =IF(I86="","",IF(MONTH(H86)>6,"B","A")) ->  | K86: - | T86: 0 | X86: =IF(B86="","",EOMONTH(C86,0)-C86) ->  | AC86: FALSE
E87: NO | F87: NO | J87: =IF(I87="","",IF(MONTH(H87)>6,"B","A")) ->  | K87: - | T87: 0 | AC87: FALSE
E88: NO | F88: NO | K88: - | T88: 0 | AC88: FALSE
E89: NO | F89: NO | K89: - | T89: 0 | AC89: FALSE
E90: NO | F90: NO | K90: - | T90: 0 | AC90: FALSE
E91: NO | F91: NO | K91: - | T91: 0 | AC91: FALSE
E92: NO | F92: NO | K92: - | T92: 0 | AC92: FALSE
E93: NO | F93: NO | K93: - | T93: 0 | AC93: FALSE
E94: NO | F94: NO | K94: - | P94: =IF(F94="NO","",IF(L93>0,INDEX($M$452:$CO$452,MATCH(O94,$M$453:$CO$453,0)))) ->  | T94: 0 | AC94: FALSE
B95: END LINE | C95: END LINE | D95: END LINE | E95: END LINE | F95: END LINE | G95: END LINE | H95: END LINE | I95: END LINE | J95: END LINE | K95: END LINE | L95: END LINE | M95: END LINE | N95: =SUM(N12:N94) -> 825 | O95: 0 | P95: 0 | Q95: 0 | R95: 0 | S95: 0 | T95: 14190 | U95: END LINE | V95: =OFFSET(V12,MATCH(MAX(V12:V94)+1,V12:V94,1)-1,0) -> 315 | W95: END LINE | Y95: END LINE | Z95: END LINE | AA95: END LINE | AB95: END LINE | AC95: END LINE | AD95: END LINE | AE95: END LINE | AF95: END LINE | AG95: END LINE | AH95: END LINE | AI95: END LINE | AJ95: END LINE
O97: earmed | P97: =N95 -> 825 | Q97: s. Leave | R97: =Q95 -> 0
O98: joining | P98: =R95 -> 0 | Q98: taken | R98: =P95 -> 0
O99: op balance | P99: 0 | R99: 0
O100: leave adj | P100: =S95 -> 0
P101: =SUM(P97:P100) -> 825 | Q101: =SUM(Q97:Q100) -> 0 | R101: =SUM(R97:R100) -> 0
Q102: =P101-R101 -> 825
C244: Base End Period | L244: =E252 -> 1996-02-20 | M244: =L245+1 -> 1996-07-01 | N244: 1997-01-01 | O244: 1997-07-01 | P244: 1998-01-01 | Q244: 1998-07-01 | R244: 1999-01-01 | S244: 1999-07-01 | T244: 2000-01-01 | U244: 2000-07-01 | V244: 2001-01-01 | W244: 2001-07-01 | X244: 2002-01-01 | Y244: 2002-07-01 | Z244: 2003-01-01 | AA244: 2003-07-01 | AB244: 2004-01-01 | AC244: 2004-07-01 | AD244: 2005-01-01 | AE244: 2005-07-01 | AF244: 2006-01-01 | AG244: 2006-07-01 | AH244: 2007-01-01 | AI244: 2007-07-01 | AJ244: 2008-01-01 | AK244: 2008-07-01 | AL244: 2009-01-01 | AM244: 2009-07-01 | AN244: 2010-01-01 | AO244: 2010-07-01 | AP244: 2011-01-01 | AQ244: 2011-07-01 | AR244: 2012-01-01 | AS244: =AR245+1 -> 2012-07-01 | AT244: 2013-01-01 | AU244: 2013-07-01 | AV244: 2014-01-01 | AW244: 2014-07-01 | AX244: 2015-01-01 | AY244: 2015-07-01 | AZ244: 2016-01-01 | BA244: 2016-07-01 | BB244: 2017-01-01 | BC244: 2017-07-01 | BD244: 2018-01-01 | BE244: 2018-07-01 | BF244: 2019-01-01 | BG244: 2019-07-01 | BH244: 2020-01-01 | BI244: 2020-07-01 | BJ244: 2021-01-01 | BK244: 2021-07-01 | BL244: 2022-01-01 | BM244: 2022-07-01 | BN244: 2023-01-01 | BO244: 2023-07-01 | BP244: 2023-09-01 | BQ244: 2023-09-01 | BR244: 2023-09-01 | BS244: 2023-09-01 | BT244: 2023-09-01 | BU244: 2023-09-01 | BV244: 2023-09-01 | BW244: 2023-09-01 | BX244: 2023-09-01 | BY244: =BX245+1 -> 2023-09-01 | BZ244: 2023-09-01 | CA244: 2023-09-01 | CB244: 2023-09-01 | CC244: 2023-09-01 | CD244: 2023-09-01 | CE244: 2023-09-01 | CF244: 2023-09-01 | CG244: 2023-09-01 | CH244: 2023-09-01 | CI244: 2023-09-01 | CJ244: 2023-09-01 | CK244: 2023-09-01 | CL244: 2023-09-01 | CM244: 2023-09-01 | CN244: 2023-09-01 | CO244: 2023-09-01 | CP244: 2023-09-01 | CQ244: End Line
B245: Base Start Period | C245: =C11 -> 2023-12-31 | D245: =D11 -> 1996-02-20 | L245: =F252 -> 1996-06-30 | M245: =IF(EOMONTH(M244,5)>$B$10,$B$10,EOMONTH(M244,5)) -> 1996-12-31 | N245: 1997-06-30 | O245: 1997-12-31 | P245: 1998-06-30 | Q245: 1998-12-31 | R245: 1999-06-30 | S245: 1999-12-31 | T245: 2000-06-30 | U245: 2000-12-31 | V245: 2001-06-30 | W245: 2001-12-31 | X245: 2002-06-30 | Y245: 2002-12-31 | Z245: 2003-06-30 | AA245: 2003-12-31 | AB245: 2004-06-30 | AC245: 2004-12-31 | AD245: 2005-06-30 | AE245: 2005-12-31 | AF245: 2006-06-30 | AG245: 2006-12-31 | AH245: 2007-06-30 | AI245: 2007-12-31 | AJ245: 2008-06-30 | AK245: 2008-12-31 | AL245: 2009-06-30 | AM245: 2009-12-31 | AN245: 2010-06-30 | AO245: 2010-12-31 | AP245: 2011-06-30 | AQ245: 2011-12-31 | AR245: 2012-06-30 | AS245: 2012-12-31 | AT245: 2013-06-30 | AU245: 2013-12-31 | AV245: 2014-06-30 | AW245: 2014-12-31 | AX245: 2015-06-30 | AY245: 2015-12-31 | AZ245: 2016-06-30 | BA245: 2016-12-31 | BB245: 2017-06-30 | BC245: 2017-12-31 | BD245: 2018-06-30 | BE245: 2018-12-31 | BF245: 2019-06-30 | BG245: 2019-12-31 | BH245: 2020-06-30 | BI245: 2020-12-31 | BJ245: 2021-06-30 | BK245: 2021-12-31 | BL245: 2022-06-30 | BM245: 2022-12-31 | BN245: 2023-06-30 | BO245: 2023-08-31 | BP245: 2023-08-31 | BQ245: 2023-08-31 | BR245: 2023-08-31 | BS245: 2023-08-31 | BT245: 2023-08-31 | BU245: 2023-08-31 | BV245: 2023-08-31 | BW245: 2023-08-31 | BX245: 2023-08-31 | BY245: =IF(EOMONTH(BY244,5)>$B$10,$B$10,EOMONTH(BY244,5)) -> 2023-08-31 | BZ245: 2023-08-31 | CA245: 2023-08-31 | CB245: 2023-08-31 | CC245: 2023-08-31 | CD245: 2023-08-31 | CE245: 2023-08-31 | CF245: 2023-08-31 | CG245: 2023-08-31 | CH245: 2023-08-31 | CI245: 2023-08-31 | CJ245: 2023-08-31 | CK245: 2023-08-31 | CL245: 2023-08-31 | CM245: 2023-08-31 | CN245: =IF(EOMONTH(CN244,5)>$B$10,$B$10,EOMONTH(CN244,5)) -> 2023-08-31 | CO245: =IF(EOMONTH(CO244,5)>$B$10,$B$10,EOMONTH(CO244,5)) -> 2023-08-31 | CP245: =IF(EOMONTH(CP244,5)>$B$10,$B$10,EOMONTH(CP244,5)) -> 2023-08-31 | CQ245: End Line
L246: =SMALL(IF(($L$245:$CP$245<=$C$11)*($L$245:$CP$245>=$D$11),$L$245:$CP$245,"A"),COLUMN(A243)) -> 1996-06-30 | M246: =SMALL(IF(($L$245:$CP$245<=$C$11)*($L$245:$CP$245>=$D$11),$L$245:$CP$245,"A"),COLUMN(B243)) -> 1996-12-31 | N246: =SMALL(IF(($L$245:$CP$245<=$C$11)*($L$245:$CP$245>=$D$11),$L$245:$CP$245,"A"),COLUMN(C243)) -> 1997-06-30 | O246: =SMALL(IF(($L$245:$CP$245<=$C$11)*($L$245:$CP$245>=$D$11),$L$245:$CP$245,"A"),COLUMN(D243)) -> 1997-12-31 | P246: =SMALL(IF(($L$245:$CP$245<=$C$11)*($L$245:$CP$245>=$D$11),$L$245:$CP$245,"A"),COLUMN(E243)) -> 1998-06-30 | Q246: =SMALL(IF(($L$245:$CP$245<=$C$11)*($L$245:$CP$245>=$D$11),$L$245:$CP$245,"A"),COLUMN(F243)) -> 1998-12-31 | R246: =SMALL(IF(($L$245:$CP$245<=$C$11)*($L$245:$CP$245>=$D$11),$L$245:$CP$245,"A"),COLUMN(G243)) -> 1999-06-30 | S246: =SMALL(IF(($L$245:$CP$245<=$C$11)*($L$245:$CP$245>=$D$11),$L$245:$CP$245,"A"),COLUMN(H243)) -> 1999-12-31 | T246: =SMALL(IF(($L$245:$CP$245<=$C$11)*($L$245:$CP$245>=$D$11),$L$245:$CP$245,"A"),COLUMN(I243)) -> 2000-06-30 | U246: =SMALL(IF(($L$245:$CP$245<=$C$11)*($L$245:$CP$245>=$D$11),$L$245:$CP$245,"A"),COLUMN(J243)) -> 2000-12-31 | V246: =SMALL(IF(($L$245:$CP$245<=$C$11)*($L$245:$CP$245>=$D$11),$L$245:$CP$245,"A"),COLUMN(K243)) -> 2001-06-30 | W246: =SMALL(IF(($L$245:$CP$245<=$C$11)*($L$245:$CP$245>=$D$11),$L$245:$CP$245,"A"),COLUMN(L243)) -> 2001-12-31 | X246: =SMALL(IF(($L$245:$CP$245<=$C$11)*($L$245:$CP$245>=$D$11),$L$245:$CP$245,"A"),COLUMN(M243)) -> 2002-06-30 | Y246: =SMALL(IF(($L$245:$CP$245<=$C$11)*($L$245:$CP$245>=$D$11),$L$245:$CP$245,"A"),COLUMN(N243)) -> 2002-12-31 | Z246: =SMALL(IF(($L$245:$CP$245<=$C$11)*($L$245:$CP$245>=$D$11),$L$245:$CP$245,"A"),COLUMN(O243)) -> 2003-06-30 | AA246: =SMALL(IF(($L$245:$CP$245<=$C$11)*($L$245:$CP$245>=$D$11),$L$245:$CP$245,"A"),COLUMN(P243)) -> 2003-12-31 | AB246: =SMALL(IF(($L$245:$CP$245<=$C$11)*($L$245:$CP$245>=$D$11),$L$245:$CP$245,"A"),COLUMN(Q243)) -> 2004-06-30 | AC246: =SMALL(IF(($L$245:$CP$245<=$C$11)*($L$245:$CP$245>=$D$11),$L$245:$CP$245,"A"),COLUMN(R243)) -> 2004-12-31 | AD246: =SMALL(IF(($L$245:$CP$245<=$C$11)*($L$245:$CP$245>=$D$11),$L$245:$CP$245,"A"),COLUMN(S243)) -> 2005-06-30 | AE246: =SMALL(IF(($L$245:$CP$245<=$C$11)*($L$245:$CP$245>=$D$11),$L$245:$CP$245,"A"),COLUMN(T243)) -> 2005-12-31 | AF246: =SMALL(IF(($L$245:$CP$245<=$C$11)*($L$245:$CP$245>=$D$11),$L$245:$CP$245,"A"),COLUMN(U243)) -> 2006-06-30 | AG246: =SMALL(IF(($L$245:$CP$245<=$C$11)*($L$245:$CP$245>=$D$11),$L$245:$CP$245,"A"),COLUMN(V243)) -> 2006-12-31 | AH246: =SMALL(IF(($L$245:$CP$245<=$C$11)*($L$245:$CP$245>=$D$11),$L$245:$CP$245,"A"),COLUMN(W243)) -> 2007-06-30 | AI246: =SMALL(IF(($L$245:$CP$245<=$C$11)*($L$245:$CP$245>=$D$11),$L$245:$CP$245,"A"),COLUMN(X243)) -> 2007-12-31 | AJ246: =SMALL(IF(($L$245:$CP$245<=$C$11)*($L$245:$CP$245>=$D$11),$L$245:$CP$245,"A"),COLUMN(Y243)) -> 2008-06-30 | AK246: =SMALL(IF(($L$245:$CP$245<=$C$11)*($L$245:$CP$245>=$D$11),$L$245:$CP$245,"A"),COLUMN(Z243)) -> 2008-12-31 | AL246: =SMALL(IF(($L$245:$CP$245<=$C$11)*($L$245:$CP$245>=$D$11),$L$245:$CP$245,"A"),COLUMN(AA243)) -> 2009-06-30 | AM246: =SMALL(IF(($L$245:$CP$245<=$C$11)*($L$245:$CP$245>=$D$11),$L$245:$CP$245,"A"),COLUMN(AB243)) -> 2009-12-31 | AN246: =SMALL(IF(($L$245:$CP$245<=$C$11)*($L$245:$CP$245>=$D$11),$L$245:$CP$245,"A"),COLUMN(AC243)) -> 2010-06-30 | AO246: =SMALL(IF(($L$245:$CP$245<=$C$11)*($L$245:$CP$245>=$D$11),$L$245:$CP$245,"A"),COLUMN(AD243)) -> 2010-12-31 | AP246: =SMALL(IF(($L$245:$CP$245<=$C$11)*($L$245:$CP$245>=$D$11),$L$245:$CP$245,"A"),COLUMN(AE243)) -> 2011-06-30 | AQ246: =SMALL(IF(($L$245:$CP$245<=$C$11)*($L$245:$CP$245>=$D$11),$L$245:$CP$245,"A"),COLUMN(AF243)) -> 2011-12-31 | AR246: =SMALL(IF(($L$245:$CP$245<=$C$11)*($L$245:$CP$245>=$D$11),$L$245:$CP$245,"A"),COLUMN(AG243)) -> 2012-06-30 | AS246: =SMALL(IF(($L$245:$CP$245<=$C$11)*($L$245:$CP$245>=$D$11),$L$245:$CP$245,"A"),COLUMN(AH243)) -> 2012-12-31 | AT246: =SMALL(IF(($L$245:$CP$245<=$C$11)*($L$245:$CP$245>=$D$11),$L$245:$CP$245,"A"),COLUMN(AI243)) -> 2013-06-30 | AU246: =SMALL(IF(($L$245:$CP$245<=$C$11)*($L$245:$CP$245>=$D$11),$L$245:$CP$245,"A"),COLUMN(AJ243)) -> 2013-12-31 | AV246: =SMALL(IF(($L$245:$CP$245<=$C$11)*($L$245:$CP$245>=$D$11),$L$245:$CP$245,"A"),COLUMN(AK243)) -> 2014-06-30 | AW246: =SMALL(IF(($L$245:$CP$245<=$C$11)*($L$245:$CP$245>=$D$11),$L$245:$CP$245,"A"),COLUMN(AL243)) -> 2014-12-31 | AX246: =SMALL(IF(($L$245:$CP$245<=$C$11)*($L$245:$CP$245>=$D$11),$L$245:$CP$245,"A"),COLUMN(AM243)) -> 2015-06-30 | AY246: =SMALL(IF(($L$245:$CP$245<=$C$11)*($L$245:$CP$245>=$D$11),$L$245:$CP$245,"A"),COLUMN(AN243)) -> 2015-12-31 | AZ246: =SMALL(IF(($L$245:$CP$245<=$C$11)*($L$245:$CP$245>=$D$11),$L$245:$CP$245,"A"),COLUMN(AO243)) -> 2016-06-30 | BA246: =SMALL(IF(($L$245:$CP$245<=$C$11)*($L$245:$CP$245>=$D$11),$L$245:$CP$245,"A"),COLUMN(AP243)) -> 2016-12-31 | BB246: =SMALL(IF(($L$245:$CP$245<=$C$11)*($L$245:$CP$245>=$D$11),$L$245:$CP$245,"A"),COLUMN(AQ243)) -> 2017-06-30 | BC246: =SMALL(IF(($L$245:$CP$245<=$C$11)*($L$245:$CP$245>=$D$11),$L$245:$CP$245,"A"),COLUMN(AR243)) -> 2017-12-31 | BD246: =SMALL(IF(($L$245:$CP$245<=$C$11)*($L$245:$CP$245>=$D$11),$L$245:$CP$245,"A"),COLUMN(AS243)) -> 2018-06-30 | BE246: =SMALL(IF(($L$245:$CP$245<=$C$11)*($L$245:$CP$245>=$D$11),$L$245:$CP$245,"A"),COLUMN(AT243)) -> 2018-12-31 | BF246: =SMALL(IF(($L$245:$CP$245<=$C$11)*($L$245:$CP$245>=$D$11),$L$245:$CP$245,"A"),COLUMN(AU243)) -> 2019-06-30 | BG246: =SMALL(IF(($L$245:$CP$245<=$C$11)*($L$245:$CP$245>=$D$11),$L$245:$CP$245,"A"),COLUMN(AV243)) -> 2019-12-31 | BH246: =SMALL(IF(($L$245:$CP$245<=$C$11)*($L$245:$CP$245>=$D$11),$L$245:$CP$245,"A"),COLUMN(AW243)) -> 2020-06-30 | BI246: =SMALL(IF(($L$245:$CP$245<=$C$11)*($L$245:$CP$245>=$D$11),$L$245:$CP$245,"A"),COLUMN(AX243)) -> 2020-12-31 | BJ246: =SMALL(IF(($L$245:$CP$245<=$C$11)*($L$245:$CP$245>=$D$11),$L$245:$CP$245,"A"),COLUMN(AY243)) -> 2021-06-30 | BK246: =SMALL(IF(($L$245:$CP$245<=$C$11)*($L$245:$CP$245>=$D$11),$L$245:$CP$245,"A"),COLUMN(AZ243)) -> 2021-12-31 | BL246: =SMALL(IF(($L$245:$CP$245<=$C$11)*($L$245:$CP$245>=$D$11),$L$245:$CP$245,"A"),COLUMN(BA243)) -> 2022-06-30 | BM246: =SMALL(IF(($L$245:$CP$245<=$C$11)*($L$245:$CP$245>=$D$11),$L$245:$CP$245,"A"),COLUMN(BB243)) -> 2022-12-31 | BN246: =SMALL(IF(($L$245:$CP$245<=$C$11)*($L$245:$CP$245>=$D$11),$L$245:$CP$245,"A"),COLUMN(BC243)) -> 2023-06-30 | BO246: =SMALL(IF(($L$245:$CP$245<=$C$11)*($L$245:$CP$245>=$D$11),$L$245:$CP$245,"A"),COLUMN(BD243)) -> 2023-08-31 | BP246: =SMALL(IF(($L$245:$CP$245<=$C$11)*($L$245:$CP$245>=$D$11),$L$245:$CP$245,"A"),COLUMN(BE243)) -> 2023-08-31 | BQ246: =SMALL(IF(($L$245:$CP$245<=$C$11)*($L$245:$CP$245>=$D$11),$L$245:$CP$245,"A"),COLUMN(BF243)) -> 2023-08-31 | BR246: =SMALL(IF(($L$245:$CP$245<=$C$11)*($L$245:$CP$245>=$D$11),$L$245:$CP$245,"A"),COLUMN(BG243)) -> 2023-08-31 | BS246: =SMALL(IF(($L$245:$CP$245<=$C$11)*($L$245:$CP$245>=$D$11),$L$245:$CP$245,"A"),COLUMN(BH243)) -> 2023-08-31 | BT246: =SMALL(IF(($L$245:$CP$245<=$C$11)*($L$245:$CP$245>=$D$11),$L$245:$CP$245,"A"),COLUMN(BI243)) -> 2023-08-31 | BU246: =SMALL(IF(($L$245:$CP$245<=$C$11)*($L$245:$CP$245>=$D$11),$L$245:$CP$245,"A"),COLUMN(BJ243)) -> 2023-08-31 | BV246: =SMALL(IF(($L$245:$CP$245<=$C$11)*($L$245:$CP$245>=$D$11),$L$245:$CP$245,"A"),COLUMN(BK243)) -> 2023-08-31 | BW246: =SMALL(IF(($L$245:$CP$245<=$C$11)*($L$245:$CP$245>=$D$11),$L$245:$CP$245,"A"),COLUMN(BL243)) -> 2023-08-31 | BX246: =SMALL(IF(($L$245:$CP$245<=$C$11)*($L$245:$CP$245>=$D$11),$L$245:$CP$245,"A"),COLUMN(BM243)) -> 2023-08-31 | BY246: =SMALL(IF(($L$245:$CP$245<=$C$11)*($L$245:$CP$245>=$D$11),$L$245:$CP$245,"A"),COLUMN(BN243)) -> 2023-08-31 | BZ246: =SMALL(IF(($L$245:$CP$245<=$C$11)*($L$245:$CP$245>=$D$11),$L$245:$CP$245,"A"),COLUMN(BO243)) -> 2023-08-31 | CA246: =SMALL(IF(($L$245:$CP$245<=$C$11)*($L$245:$CP$245>=$D$11),$L$245:$CP$245,"A"),COLUMN(BP243)) -> 2023-08-31 | CB246: =SMALL(IF(($L$245:$CP$245<=$C$11)*($L$245:$CP$245>=$D$11),$L$245:$CP$245,"A"),COLUMN(BQ243)) -> 2023-08-31 | CC246: =SMALL(IF(($L$245:$CP$245<=$C$11)*($L$245:$CP$245>=$D$11),$L$245:$CP$245,"A"),COLUMN(BR243)) -> 2023-08-31 | CD246: =SMALL(IF(($L$245:$CP$245<=$C$11)*($L$245:$CP$245>=$D$11),$L$245:$CP$245,"A"),COLUMN(BS243)) -> 2023-08-31 | CE246: =SMALL(IF(($L$245:$CP$245<=$C$11)*($L$245:$CP$245>=$D$11),$L$245:$CP$245,"A"),COLUMN(BT243)) -> 2023-08-31 | CF246: =SMALL(IF(($L$245:$CP$245<=$C$11)*($L$245:$CP$245>=$D$11),$L$245:$CP$245,"A"),COLUMN(BU243)) -> 2023-08-31 | CG246: =SMALL(IF(($L$245:$CP$245<=$C$11)*($L$245:$CP$245>=$D$11),$L$245:$CP$245,"A"),COLUMN(BV243)) -> 2023-08-31 | CH246: =SMALL(IF(($L$245:$CP$245<=$C$11)*($L$245:$CP$245>=$D$11),$L$245:$CP$245,"A"),COLUMN(BW243)) -> 2023-08-31 | CI246: =SMALL(IF(($L$245:$CP$245<=$C$11)*($L$245:$CP$245>=$D$11),$L$245:$CP$245,"A"),COLUMN(BX243)) -> 2023-08-31 | CJ246: =SMALL(IF(($L$245:$CP$245<=$C$11)*($L$245:$CP$245>=$D$11),$L$245:$CP$245,"A"),COLUMN(BY243)) -> 2023-08-31 | CK246: =SMALL(IF(($L$245:$CP$245<=$C$11)*($L$245:$CP$245>=$D$11),$L$245:$CP$245,"A"),COLUMN(BZ243)) -> 2023-08-31 | CL246: =SMALL(IF(($L$245:$CP$245<=$C$11)*($L$245:$CP$245>=$D$11),$L$245:$CP$245,"A"),COLUMN(CA243)) -> 2023-08-31 | CM246: =SMALL(IF(($L$245:$CP$245<=$C$11)*($L$245:$CP$245>=$D$11),$L$245:$CP$245,"A"),COLUMN(CB243)) -> 2023-08-31 | CN246: =SMALL(IF(($L$245:$CP$245<=$C$11)*($L$245:$CP$245>=$D$11),$L$245:$CP$245,"A"),COLUMN(CC243)) -> 2023-08-31 | CO246: =SMALL(IF(($L$245:$CP$245<=$C$11)*($L$245:$CP$245>=$D$11),$L$245:$CP$245,"A"),COLUMN(CD243)) -> 2023-08-31 | CP246: =SMALL(IF(($L$245:$CP$245<=$C$11)*($L$245:$CP$245>=$D$11),$L$245:$CP$245,"A"),COLUMN(CE243)) -> 2023-08-31 | CQ246: End Line
CQ247: End Line
L248: =INDEX($G$252:$G$451,MATCH(L246,$F$252:$F$451,0)) -> 1996-A | M248: 1996-B | N248: 1997-A | O248: 1997-B | P248: 1998-A | Q248: 1998-B | R248: 1999-A | S248: 1999-B | T248: 2000-A | U248: 2000-B | V248: 2001-A | W248: 2001-B | X248: 2002-A | Y248: 2002-B | Z248: 2003-A | AA248: 2003-B | AB248: 2004-A | AC248: 2004-B | AD248: 2005-A | AE248: 2005-B | AF248: 2006-A | AG248: 2006-B | AH248: 2007-A | AI248: 2007-B | AJ248: 2008-A | AK248: 2008-B | AL248: 2009-A | AM248: 2009-B | AN248: 2010-A | AO248: 2010-B | AP248: 2011-A | AQ248: 2011-B | AR248: =INDEX($G$252:$G$451,MATCH(AR246,$F$252:$F$451,0)) -> 2012-A | AS248: 2012-B | AT248: 2013-A | AU248: 2013-B | AV248: 2014-A | AW248: 2014-B | AX248: 2015-A | AY248: 2015-B | AZ248: 2016-A | BA248: 2016-B | BB248: 2017-A | BC248: 2017-B | BD248: 2018-A | BE248: 2018-B | BF248: 2019-A | BG248: 2019-B | BH248: 2020-A | BI248: 2020-B | BJ248: 2021-A | BK248: 2021-B | BL248: 2022-A | BM248: 2022-B | BN248: 2023-A | BO248: 2023-B | BP248: 2023-B | BQ248: 2023-B | BR248: 2023-B | BS248: 2023-B | BT248: 2023-B | BU248: 2023-B | BV248: 2023-B | BW248: 2023-B | BX248: =INDEX($G$252:$G$451,MATCH(BX246,$F$252:$F$451,0)) -> 2023-B | BY248: 2023-B | BZ248: 2023-B | CA248: 2023-B | CB248: 2023-B | CC248: 2023-B | CD248: 2023-B | CE248: 2023-B | CF248: 2023-B | CG248: 2023-B | CH248: 2023-B | CI248: 2023-B | CJ248: 2023-B | CK248: 2023-B | CL248: 2023-B | CM248: 2023-B | CN248: 2023-B | CO248: 2023-B | CP248: 2023-B | CQ248: End Line
B249: S.N. | C249: =PL!B21 -> From | D249: =PL!C21 -> To | J249: =PL!D21 -> No of Days | L249: =L248 -> 1996-A | M249: 1996-B | N249: 1997-A | O249: 1997-B | P249: 1998-A | Q249: 1998-B | R249: 1999-A | S249: 1999-B | T249: 2000-A | U249: 2000-B | V249: 2001-A | W249: 2001-B | X249: 2002-A | Y249: 2002-B | Z249: 2003-A | AA249: 2003-B | AB249: 2004-A | AC249: 2004-B | AD249: 2005-A | AE249: 2005-B | AF249: 2006-A | AG249: 2006-B | AH249: 2007-A | AI249: 2007-B | AJ249: 2008-A | AK249: 2008-B | AL249: 2009-A | AM249: 2009-B | AN249: 2010-A | AO249: 2010-B | AP249: 2011-A | AQ249: 2011-B | AR249: =AR248 -> 2012-A | AS249: 2012-B | AT249: 2013-A | AU249: 2013-B | AV249: 2014-A | AW249: 2014-B | AX249: 2015-A | AY249: 2015-B | AZ249: 2016-A | BA249: 2016-B | BB249: 2017-A | BC249: 2017-B | BD249: 2018-A | BE249: 2018-B | BF249: 2019-A | BG249: 2019-B | BH249: 2020-A | BI249: 2020-B | BJ249: 2021-A | BK249: 2021-B | BL249: 2022-A | BM249: 2022-B | BN249: 2023-A | BO249: 2023-B | BP249: 2023-B | BQ249: 2023-B | BR249: 2023-B | BS249: 2023-B | BT249: 2023-B | BU249: 2023-B | BV249: 2023-B | BW249: 2023-B | BX249: =BX248 -> 2023-B | BY249: 2023-B | BZ249: 2023-B | CA249: 2023-B | CB249: 2023-B | CC249: 2023-B | CD249: 2023-B | CE249: 2023-B | CF249: 2023-B | CG249: 2023-B | CH249: 2023-B | CI249: 2023-B | CJ249: 2023-B | CK249: 2023-B | CL249: 2023-B | CM249: 2023-B | CN249: 2023-B | CO249: 2023-B | CQ249: End Line
CQ250: End Line
A251: Condt. | CQ251: End Line
A252: =IF(AND(D252>=$D$11,D252<=$B$10),"x","") ->  | B252: =PL!A22 -> 1 | C252: =IF(PL!B22="","",PL!B22) ->  | D252: =IF(PL!C22="","",PL!C22) ->  | E252: =G12 -> 1996-02-20 | F252: =H12 -> 1996-06-30 | G252: =K12 -> 1996-A | H252: =VLOOKUP(D252,$E$252:$G$334,3) -> - | J252: =PL!D22 ->  | K252: =IF(C252="","",H252) ->  | L252: =IF(K252=$L$249,J252,0) -> 0 | M252: =IF(K252=$M$249,J252,0) -> 0 | N252: =IF(K252=$N$249,J252,0) -> 0 | O252: =IF(K252=$O$249,J252,0) -> 0 | P252: =IF(K252=$P$249,J252,0) -> 0 | Q252: =IF(K252=$Q$249,J252,0) -> 0 | R252: =IF(K252=$R$249,J252,0) -> 0 | S252: =IF(K252=$S$249,J252,0) -> 0 | T252: =IF(K252=$T$249,J252,0) -> 0 | U252: =IF(K252=$U$249,J252,0) -> 0 | V252: =IF(K252=$V$249,J252,0) -> 0 | W252: =IF(K252=$W$249,J252,0) -> 0 | X252: =IF(K252=$X$249,J252,0) -> 0 | Y252: =IF(K252=$Y$249,J252,0) -> 0 | Z252: =IF(K252=$Z$249,J252,0) -> 0 | AA252: =IF(K252=$AA$249,J252,0) -> 0 | AB252: =IF(K252=$AB$249,J252,0) -> 0 | AC252: =IF(K252=$AC$249,J252,0) -> 0 | AD252: =IF(K252=$AD$249,J252,0) -> 0 | AE252: =IF(K252=$AE$249,J252,0) -> 0 | AF252: =IF(K252=$AF$249,J252,0) -> 0 | AG252: =IF(K252=$AG$249,J252,0) -> 0 | AH252: =IF(K252=$AH$249,J252,0) -> 0 | AI252: =IF(K252=$AI$249,J252,0) -> 0 | AJ252: =IF(K252=$AJ$249,J252,0) -> 0 | AK252: =IF(K252=$AK$249,J252,0) -> 0 | AL252: =IF(K252=$AL$249,J252,0) -> 0 | AM252: =IF(K252=$AM$249,J252,0) -> 0 | AN252: =IF(K252=$AN$249,J252,0) -> 0 | AO252: =IF(K252=$AO$249,J252,0) -> 0 | AP252: =IF(K252=$AP$249,J252,0) -> 0 | AQ252: =IF(K252=$AQ$249,J252,0) -> 0 | AR252: =IF(K252=$AR$249,J252,0) -> 0 | AS252: =IF(K252=$AS$249,J252,0) -> 0 | AT252: =IF(K252=$AT$249,J252,0) -> 0 | AU252: =IF(K252=$AU$249,J252,0) -> 0 | AV252: =IF(K252=$AV$249,J252,0) -> 0 | AW252: =IF(K252=$AW$249,J252,0) -> 0 | AX252: =IF(K252=$AX$249,J252,0) -> 0 | AY252: =IF(K252=$AY$249,J252,0) -> 0 | AZ252: =IF(K252=$AZ$249,J252,0) -> 0 | BA252: =IF(K252=$BA$249,J252,0) -> 0 | BB252: =IF(K252=$BB$249,J252,0) -> 0 | BC252: =IF(K252=$BC$249,J252,0) -> 0 | BD252: =IF(K252=$BD$249,J252,0) -> 0 | BE252: =IF(K252=$BE$249,J252,0) -> 0 | BF252: =IF(K252=$BF$249,J252,0) -> 0 | BG252: =IF(K252=$BG$249,J252,0) -> 0 | BH252: =IF(K252=$BH$249,J252,0) -> 0 | BI252: =IF(K252=$BI$249,J252,0) -> 0 | BJ252: =IF(K252=$BJ$249,J252,0) -> 0 | BK252: =IF(K252=$BK$249,J252,0) -> 0 | BL252: =IF(K252=$BL$249,J252,0) -> 0 | BM252: =IF(K252=$BM$249,J252,0) -> 0 | BN252: =IF(K252=$BN$249,J252,0) -> 0 | BO252: =IF(K252=$BO$249,J252,0) -> 0 | BP252: =IF(K252=$BP$249,J252,0) -> 0 | BQ252: =IF(K252=$BQ$249,J252,0) -> 0 | BR252: =IF(K252=$BR$249,J252,0) -> 0 | BS252: =IF(K252=$BS$249,J252,0) -> 0 | BT252: =IF(K252=$BT$249,J252,0) -> 0 | BU252: =IF(K252=$BU$249,J252,0) -> 0 | BV252: =IF(K252=$BV$249,J252,0) -> 0 | BW252: =IF(K252=$BW$249,J252,0) -> 0 | BX252: =IF(K252=$BX$249,J252,0) -> 0 | BY252: =IF(K252=$BY$249,J252,0) -> 0 | BZ252: =IF(K252=$BZ$249,J252,0) -> 0 | CA252: =IF(K252=$CA$249,J252,0) -> 0 | CB252: =IF(K252=$CB$249,J252,0) -> 0 | CC252: =IF(K252=$CC$249,J252,0) -> 0 | CD252: =IF(K252=$CD$249,J252,0) -> 0 | CE252: =IF(K252=$CE$249,J252,0) -> 0 | CF252: =IF(K252=$CF$249,J252,0) -> 0 | CG252: =IF(K252=$CG$249,J252,0) -> 0 | CH252: =IF(K252=$CH$249,J252,0) -> 0 | CI252: =IF(K252=$CI$249,J252,0) -> 0 | CJ252: =IF(K252=$CJ$249,J252,0) -> 0 | CK252: =IF(K252=$CK$249,J252,0) -> 0 | CL252: =IF(K252=$CL$249,J252,0) -> 0 | CM252: =IF(K252=$CM$249,J252,0) -> 0 | CN252: =IF(K252=$CN$249,J252,0) -> 0 | CO252: =IF(K252=$CO$249,J252,0) -> 0 | CQ252: End Line
B253: =PL!A23 ->  | C253: =IF(PL!B23="","",PL!B23) ->  | D253: =IF(PL!C23="","",PL!C23) ->  | E253: 1996-07-01 | F253: 1996-12-31 | G253: 1996-B | H253: - | J253: =IF(A253="x",PL!D23,0) -> 0 | L253: 0 | M253: 0 | N253: =IF(K253=$N$249,J253,0) -> 0 | O253: 0 | P253: 0 | Q253: 0 | R253: 0 | S253: 0 | T253: 0 | U253: 0 | V253: 0 | W253: 0 | X253: 0 | Y253: 0 | Z253: 0 | AA253: 0 | AB253: 0 | AC253: 0 | AD253: 0 | AE253: 0 | AF253: 0 | AG253: 0 | AH253: 0 | AI253: 0 | AJ253: 0 | AK253: 0 | AL253: 0 | AM253: 0 | AN253: 0 | AO253: 0 | AP253: 0 | AQ253: 0 | AR253: 0 | AS253: 0 | AT253: 0 | AU253: 0 | AV253: 0 | AW253: 0 | AX253: 0 | AY253: 0 | AZ253: 0 | BA253: 0 | BB253: 0 | BC253: 0 | BD253: 0 | BE253: 0 | BF253: 0 | BG253: 0 | BH253: 0 | BI253: 0 | BJ253: 0 | BK253: 0 | BL253: 0 | BM253: 0 | BN253: 0 | BO253: 0 | BP253: 0 | BQ253: 0 | BR253: 0 | BS253: 0 | BT253: 0 | BU253: 0 | BV253: 0 | BW253: 0 | BX253: 0 | BY253: 0 | BZ253: 0 | CA253: 0 | CB253: 0 | CC253: 0 | CD253: 0 | CE253: 0 | CF253: 0 | CG253: 0 | CH253: 0 | CI253: 0 | CJ253: 0 | CK253: 0 | CL253: 0 | CM253: 0 | CN253: 0 | CO253: 0 | CQ253: End Line
B254: =PL!A24 ->  | C254: =IF(PL!B24="","",PL!B24) ->  | D254: =IF(PL!C24="","",PL!C24) ->  | E254: 1997-01-01 | F254: 1997-06-30 | G254: 1997-A | H254: - | J254: =IF(A254="x",PL!D24,0) -> 0 | L254: 0 | M254: 0 | N254: 0 | O254: 0 | P254: 0 | Q254: 0 | R254: 0 | S254: 0 | T254: 0 | U254: 0 | V254: 0 | W254: 0 | X254: 0 | Y254: 0 | Z254: 0 | AA254: 0 | AB254: 0 | AC254: 0 | AD254: 0 | AE254: 0 | AF254: 0 | AG254: 0 | AH254: 0 | AI254: 0 | AJ254: 0 | AK254: 0 | AL254: 0 | AM254: 0 | AN254: 0 | AO254: 0 | AP254: 0 | AQ254: 0 | AR254: 0 | AS254: 0 | AT254: 0 | AU254: 0 | AV254: 0 | AW254: 0 | AX254: 0 | AY254: 0 | AZ254: 0 | BA254: 0 | BB254: 0 | BC254: 0 | BD254: 0 | BE254: 0 | BF254: 0 | BG254: 0 | BH254: 0 | BI254: 0 | BJ254: 0 | BK254: 0 | BL254: 0 | BM254: 0 | BN254: 0 | BO254: 0 | BP254: 0 | BQ254: 0 | BR254: 0 | BS254: 0 | BT254: 0 | BU254: 0 | BV254: 0 | BW254: 0 | BX254: 0 | BY254: 0 | BZ254: 0 | CA254: 0 | CB254: 0 | CC254: 0 | CD254: 0 | CE254: 0 | CF254: 0 | CG254: 0 | CH254: 0 | CI254: 0 | CJ254: 0 | CK254: 0 | CL254: 0 | CM254: 0 | CN254: 0 | CO254: 0 | CQ254: End Line
B255: =PL!A25 ->  | C255: =IF(PL!B25="","",PL!B25) ->  | D255: =IF(PL!C25="","",PL!C25) ->  | E255: 1997-07-01 | F255: 1997-12-31 | G255: 1997-B | H255: - | J255: =IF(A255="x",PL!D25,0) -> 0 | L255: 0 | M255: 0 | N255: 0 | O255: 0 | P255: 0 | Q255: 0 | R255: 0 | S255: 0 | T255: 0 | U255: 0 | V255: 0 | W255: 0 | X255: 0 | Y255: 0 | Z255: 0 | AA255: 0 | AB255: 0 | AC255: 0 | AD255: 0 | AE255: 0 | AF255: 0 | AG255: 0 | AH255: 0 | AI255: 0 | AJ255: 0 | AK255: 0 | AL255: 0 | AM255: 0 | AN255: 0 | AO255: 0 | AP255: 0 | AQ255: 0 | AR255: 0 | AS255: 0 | AT255: 0 | AU255: 0 | AV255: 0 | AW255: 0 | AX255: 0 | AY255: 0 | AZ255: 0 | BA255: 0 | BB255: 0 | BC255: 0 | BD255: 0 | BE255: 0 | BF255: 0 | BG255: 0 | BH255: 0 | BI255: 0 | BJ255: 0 | BK255: 0 | BL255: 0 | BM255: 0 | BN255: 0 | BO255: 0 | BP255: 0 | BQ255: 0 | BR255: 0 | BS255: 0 | BT255: 0 | BU255: 0 | BV255: 0 | BW255: 0 | BX255: 0 | BY255: 0 | BZ255: 0 | CA255: 0 | CB255: 0 | CC255: 0 | CD255: 0 | CE255: 0 | CF255: 0 | CG255: 0 | CH255: 0 | CI255: 0 | CJ255: 0 | CK255: 0 | CL255: 0 | CM255: 0 | CN255: 0 | CO255: 0 | CQ255: End Line
B256: =PL!A26 ->  | C256: =IF(PL!B26="","",PL!B26) ->  | D256: =IF(PL!C26="","",PL!C26) ->  | E256: 1998-01-01 | F256: 1998-06-30 | G256: 1998-A | H256: - | J256: =IF(A256="x",PL!D26,0) -> 0 | L256: 0 | M256: 0 | N256: 0 | O256: 0 | P256: 0 | Q256: 0 | R256: 0 | S256: 0 | T256: 0 | U256: 0 | V256: 0 | W256: 0 | X256: 0 | Y256: 0 | Z256: 0 | AA256: 0 | AB256: 0 | AC256: 0 | AD256: 0 | AE256: 0 | AF256: 0 | AG256: 0 | AH256: 0 | AI256: 0 | AJ256: 0 | AK256: 0 | AL256: 0 | AM256: 0 | AN256: 0 | AO256: 0 | AP256: 0 | AQ256: 0 | AR256: 0 | AS256: 0 | AT256: 0 | AU256: 0 | AV256: 0 | AW256: 0 | AX256: 0 | AY256: 0 | AZ256: 0 | BA256: 0 | BB256: 0 | BC256: 0 | BD256: 0 | BE256: 0 | BF256: 0 | BG256: 0 | BH256: 0 | BI256: 0 | BJ256: 0 | BK256: 0 | BL256: 0 | BM256: 0 | BN256: 0 | BO256: 0 | BP256: 0 | BQ256: 0 | BR256: 0 | BS256: 0 | BT256: 0 | BU256: 0 | BV256: 0 | BW256: 0 | BX256: 0 | BY256: 0 | BZ256: 0 | CA256: 0 | CB256: 0 | CC256: 0 | CD256: 0 | CE256: 0 | CF256: 0 | CG256: 0 | CH256: 0 | CI256: 0 | CJ256: 0 | CK256: 0 | CL256: 0 | CM256: 0 | CN256: 0 | CO256: 0 | CQ256: End Line
B257: =PL!A27 ->  | C257: =IF(PL!B27="","",PL!B27) ->  | D257: =IF(PL!C27="","",PL!C27) ->  | E257: 1998-07-01 | F257: 1998-12-31 | G257: 1998-B | H257: - | J257: =IF(A257="x",PL!D27,0) -> 0 | L257: 0 | M257: 0 | N257: 0 | O257: 0 | P257: 0 | Q257: 0 | R257: 0 | S257: 0 | T257: 0 | U257: 0 | V257: 0 | W257: 0 | X257: 0 | Y257: 0 | Z257: 0 | AA257: 0 | AB257: 0 | AC257: 0 | AD257: 0 | AE257: 0 | AF257: 0 | AG257: 0 | AH257: 0 | AI257: 0 | AJ257: 0 | AK257: 0 | AL257: 0 | AM257: 0 | AN257: 0 | AO257: 0 | AP257: 0 | AQ257: 0 | AR257: 0 | AS257: 0 | AT257: 0 | AU257: 0 | AV257: 0 | AW257: 0 | AX257: 0 | AY257: 0 | AZ257: 0 | BA257: 0 | BB257: 0 | BC257: 0 | BD257: 0 | BE257: 0 | BF257: 0 | BG257: 0 | BH257: 0 | BI257: 0 | BJ257: 0 | BK257: 0 | BL257: 0 | BM257: 0 | BN257: 0 | BO257: 0 | BP257: 0 | BQ257: 0 | BR257: 0 | BS257: 0 | BT257: 0 | BU257: 0 | BV257: 0 | BW257: 0 | BX257: 0 | BY257: 0 | BZ257: 0 | CA257: 0 | CB257: 0 | CC257: 0 | CD257: 0 | CE257: 0 | CF257: 0 | CG257: 0 | CH257: 0 | CI257: 0 | CJ257: 0 | CK257: 0 | CL257: 0 | CM257: 0 | CN257: 0 | CO257: 0 | CQ257: End Line
B258: =PL!A28 ->  | C258: =IF(PL!B28="","",PL!B28) ->  | D258: =IF(PL!C28="","",PL!C28) ->  | E258: 1999-01-01 | F258: 1999-06-30 | G258: 1999-A | H258: - | J258: =IF(A258="x",PL!D28,0) -> 0 | L258: 0 | M258: 0 | N258: 0 | O258: 0 | P258: 0 | Q258: 0 | R258: 0 | S258: 0 | T258: 0 | U258: 0 | V258: 0 | W258: 0 | X258: 0 | Y258: 0 | Z258: 0 | AA258: 0 | AB258: 0 | AC258: 0 | AD258: 0 | AE258: 0 | AF258: 0 | AG258: 0 | AH258: 0 | AI258: 0 | AJ258: 0 | AK258: 0 | AL258: 0 | AM258: 0 | AN258: 0 | AO258: 0 | AP258: 0 | AQ258: 0 | AR258: 0 | AS258: 0 | AT258: 0 | AU258: 0 | AV258: 0 | AW258: 0 | AX258: 0 | AY258: 0 | AZ258: 0 | BA258: 0 | BB258: 0 | BC258: 0 | BD258: 0 | BE258: 0 | BF258: 0 | BG258: 0 | BH258: 0 | BI258: 0 | BJ258: 0 | BK258: 0 | BL258: 0 | BM258: 0 | BN258: 0 | BO258: 0 | BP258: 0 | BQ258: 0 | BR258: 0 | BS258: 0 | BT258: 0 | BU258: 0 | BV258: 0 | BW258: 0 | BX258: 0 | BY258: 0 | BZ258: 0 | CA258: 0 | CB258: 0 | CC258: 0 | CD258: 0 | CE258: 0 | CF258: 0 | CG258: 0 | CH258: 0 | CI258: 0 | CJ258: 0 | CK258: 0 | CL258: 0 | CM258: 0 | CN258: 0 | CO258: 0 | CQ258: End Line
B259: =PL!A29 ->  | C259: =IF(PL!B29="","",PL!B29) ->  | D259: =IF(PL!C29="","",PL!C29) ->  | E259: 1999-07-01 | F259: 1999-12-31 | G259: 1999-B | H259: - | J259: =IF(A259="x",PL!D29,0) -> 0 | L259: 0 | M259: 0 | N259: 0 | O259: 0 | P259: 0 | Q259: 0 | R259: 0 | S259: 0 | T259: 0 | U259: 0 | V259: 0 | W259: 0 | X259: 0 | Y259: 0 | Z259: 0 | AA259: 0 | AB259: 0 | AC259: 0 | AD259: 0 | AE259: 0 | AF259: 0 | AG259: 0 | AH259: 0 | AI259: 0 | AJ259: 0 | AK259: 0 | AL259: 0 | AM259: 0 | AN259: 0 | AO259: 0 | AP259: 0 | AQ259: 0 | AR259: 0 | AS259: 0 | AT259: 0 | AU259: 0 | AV259: 0 | AW259: 0 | AX259: 0 | AY259: 0 | AZ259: 0 | BA259: 0 | BB259: 0 | BC259: 0 | BD259: 0 | BE259: 0 | BF259: 0 | BG259: 0 | BH259: 0 | BI259: 0 | BJ259: 0 | BK259: 0 | BL259: 0 | BM259: 0 | BN259: 0 | BO259: 0 | BP259: 0 | BQ259: 0 | BR259: 0 | BS259: 0 | BT259: 0 | BU259: 0 | BV259: 0 | BW259: 0 | BX259: 0 | BY259: 0 | BZ259: 0 | CA259: 0 | CB259: 0 | CC259: 0 | CD259: 0 | CE259: 0 | CF259: 0 | CG259: 0 | CH259: 0 | CI259: 0 | CJ259: 0 | CK259: 0 | CL259: 0 | CM259: 0 | CN259: 0 | CO259: 0 | CQ259: End Line
B260: =PL!A30 ->  | C260: =IF(PL!B30="","",PL!B30) ->  | D260: =IF(PL!C30="","",PL!C30) ->  | E260: 2000-01-01 | F260: 2000-06-30 | G260: 2000-A | H260: - | J260: =IF(A260="x",PL!D30,0) -> 0 | L260: 0 | M260: 0 | N260: 0 | O260: 0 | P260: 0 | Q260: 0 | R260: 0 | S260: 0 | T260: 0 | U260: 0 | V260: 0 | W260: 0 | X260: 0 | Y260: 0 | Z260: 0 | AA260: 0 | AB260: 0 | AC260: 0 | AD260: 0 | AE260: 0 | AF260: 0 | AG260: 0 | AH260: 0 | AI260: 0 | AJ260: 0 | AK260: 0 | AL260: 0 | AM260: 0 | AN260: 0 | AO260: 0 | AP260: 0 | AQ260: 0 | AR260: 0 | AS260: 0 | AT260: 0 | AU260: 0 | AV260: 0 | AW260: 0 | AX260: 0 | AY260: 0 | AZ260: 0 | BA260: 0 | BB260: 0 | BC260: 0 | BD260: 0 | BE260: 0 | BF260: 0 | BG260: 0 | BH260: 0 | BI260: 0 | BJ260: 0 | BK260: 0 | BL260: 0 | BM260: 0 | BN260: 0 | BO260: 0 | BP260: 0 | BQ260: 0 | BR260: 0 | BS260: 0 | BT260: 0 | BU260: 0 | BV260: 0 | BW260: 0 | BX260: 0 | BY260: 0 | BZ260: 0 | CA260: 0 | CB260: 0 | CC260: 0 | CD260: 0 | CE260: 0 | CF260: 0 | CG260: 0 | CH260: 0 | CI260: 0 | CJ260: 0 | CK260: 0 | CL260: 0 | CM260: 0 | CN260: 0 | CO260: 0 | CQ260: End Line
B261: =PL!A31 ->  | C261: =IF(PL!B31="","",PL!B31) ->  | D261: =IF(PL!C31="","",PL!C31) ->  | E261: 2000-07-01 | F261: 2000-12-31 | G261: 2000-B | H261: - | J261: =IF(A261="x",PL!D31,0) -> 0 | L261: 0 | M261: 0 | N261: 0 | O261: 0 | P261: 0 | Q261: 0 | R261: 0 | S261: 0 | T261: 0 | U261: 0 | V261: 0 | W261: 0 | X261: 0 | Y261: 0 | Z261: 0 | AA261: 0 | AB261: 0 | AC261: 0 | AD261: 0 | AE261: 0 | AF261: 0 | AG261: 0 | AH261: 0 | AI261: 0 | AJ261: 0 | AK261: 0 | AL261: 0 | AM261: 0 | AN261: 0 | AO261: 0 | AP261: 0 | AQ261: 0 | AR261: 0 | AS261: 0 | AT261: 0 | AU261: 0 | AV261: 0 | AW261: 0 | AX261: 0 | AY261: 0 | AZ261: 0 | BA261: 0 | BB261: 0 | BC261: 0 | BD261: 0 | BE261: 0 | BF261: 0 | BG261: 0 | BH261: 0 | BI261: 0 | BJ261: 0 | BK261: 0 | BL261: 0 | BM261: 0 | BN261: 0 | BO261: 0 | BP261: 0 | BQ261: 0 | BR261: 0 | BS261: 0 | BT261: 0 | BU261: 0 | BV261: 0 | BW261: 0 | BX261: 0 | BY261: 0 | BZ261: 0 | CA261: 0 | CB261: 0 | CC261: 0 | CD261: 0 | CE261: 0 | CF261: 0 | CG261: 0 | CH261: 0 | CI261: 0 | CJ261: 0 | CK261: 0 | CL261: 0 | CM261: 0 | CN261: 0 | CO261: 0 | CQ261: End Line
B262: =PL!A32 ->  | C262: =IF(PL!B32="","",PL!B32) ->  | D262: =IF(PL!C32="","",PL!C32) ->  | E262: 2001-01-01 | F262: 2001-06-30 | G262: 2001-A | H262: - | J262: =IF(A262="x",PL!D32,0) -> 0 | L262: 0 | M262: 0 | N262: 0 | O262: 0 | P262: 0 | Q262: 0 | R262: 0 | S262: 0 | T262: 0 | U262: 0 | V262: 0 | W262: 0 | X262: 0 | Y262: 0 | Z262: 0 | AA262: 0 | AB262: 0 | AC262: 0 | AD262: 0 | AE262: 0 | AF262: 0 | AG262: 0 | AH262: 0 | AI262: 0 | AJ262: 0 | AK262: 0 | AL262: 0 | AM262: 0 | AN262: 0 | AO262: 0 | AP262: 0 | AQ262: 0 | AR262: 0 | AS262: 0 | AT262: 0 | AU262: 0 | AV262: 0 | AW262: 0 | AX262: 0 | AY262: 0 | AZ262: 0 | BA262: 0 | BB262: 0 | BC262: 0 | BD262: 0 | BE262: 0 | BF262: 0 | BG262: 0 | BH262: 0 | BI262: 0 | BJ262: 0 | BK262: 0 | BL262: 0 | BM262: 0 | BN262: 0 | BO262: 0 | BP262: 0 | BQ262: 0 | BR262: 0 | BS262: 0 | BT262: 0 | BU262: 0 | BV262: 0 | BW262: 0 | BX262: 0 | BY262: 0 | BZ262: 0 | CA262: 0 | CB262: 0 | CC262: 0 | CD262: 0 | CE262: 0 | CF262: 0 | CG262: 0 | CH262: 0 | CI262: 0 | CJ262: 0 | CK262: 0 | CL262: 0 | CM262: 0 | CN262: 0 | CO262: 0 | CQ262: End Line
B263: =PL!A33 ->  | C263: =IF(PL!B33="","",PL!B33) ->  | D263: =IF(PL!C33="","",PL!C33) ->  | E263: 2001-07-01 | F263: 2001-12-31 | G263: 2001-B | H263: - | J263: =IF(A263="x",PL!D33,0) -> 0 | L263: 0 | M263: 0 | N263: 0 | O263: 0 | P263: 0 | Q263: 0 | R263: 0 | S263: 0 | T263: 0 | U263: 0 | V263: 0 | W263: 0 | X263: 0 | Y263: 0 | Z263: 0 | AA263: 0 | AB263: 0 | AC263: 0 | AD263: 0 | AE263: 0 | AF263: 0 | AG263: 0 | AH263: 0 | AI263: 0 | AJ263: 0 | AK263: 0 | AL263: 0 | AM263: 0 | AN263: 0 | AO263: 0 | AP263: 0 | AQ263: 0 | AR263: 0 | AS263: 0 | AT263: 0 | AU263: 0 | AV263: 0 | AW263: 0 | AX263: 0 | AY263: 0 | AZ263: 0 | BA263: 0 | BB263: 0 | BC263: 0 | BD263: 0 | BE263: 0 | BF263: 0 | BG263: 0 | BH263: 0 | BI263: 0 | BJ263: 0 | BK263: 0 | BL263: 0 | BM263: 0 | BN263: 0 | BO263: 0 | BP263: 0 | BQ263: 0 | BR263: 0 | BS263: 0 | BT263: 0 | BU263: 0 | BV263: 0 | BW263: 0 | BX263: 0 | BY263: 0 | BZ263: 0 | CA263: 0 | CB263: 0 | CC263: 0 | CD263: 0 | CE263: 0 | CF263: 0 | CG263: 0 | CH263: 0 | CI263: 0 | CJ263: 0 | CK263: 0 | CL263: 0 | CM263: 0 | CN263: 0 | CO263: 0 | CQ263: End Line
B264: =PL!A34 ->  | C264: =IF(PL!B34="","",PL!B34) ->  | D264: =IF(PL!C34="","",PL!C34) ->  | E264: 2002-01-01 | F264: 2002-06-30 | G264: 2002-A | H264: - | J264: =IF(A264="x",PL!D34,0) -> 0 | L264: 0 | M264: 0 | N264: 0 | O264: 0 | P264: 0 | Q264: 0 | R264: 0 | S264: 0 | T264: 0 | U264: 0 | V264: 0 | W264: 0 | X264: 0 | Y264: 0 | Z264: 0 | AA264: 0 | AB264: 0 | AC264: 0 | AD264: 0 | AE264: 0 | AF264: 0 | AG264: 0 | AH264: 0 | AI264: 0 | AJ264: 0 | AK264: 0 | AL264: 0 | AM264: 0 | AN264: 0 | AO264: 0 | AP264: 0 | AQ264: 0 | AR264: 0 | AS264: 0 | AT264: 0 | AU264: 0 | AV264: 0 | AW264: 0 | AX264: 0 | AY264: 0 | AZ264: 0 | BA264: 0 | BB264: 0 | BC264: 0 | BD264: 0 | BE264: 0 | BF264: 0 | BG264: 0 | BH264: 0 | BI264: 0 | BJ264: 0 | BK264: 0 | BL264: 0 | BM264: 0 | BN264: 0 | BO264: 0 | BP264: 0 | BQ264: 0 | BR264: 0 | BS264: 0 | BT264: 0 | BU264: 0 | BV264: 0 | BW264: 0 | BX264: 0 | BY264: 0 | BZ264: 0 | CA264: 0 | CB264: 0 | CC264: 0 | CD264: 0 | CE264: 0 | CF264: 0 | CG264: 0 | CH264: 0 | CI264: 0 | CJ264: 0 | CK264: 0 | CL264: 0 | CM264: 0 | CN264: 0 | CO264: 0 | CQ264: End Line
B265: =PL!A35 ->  | C265: =IF(PL!B35="","",PL!B35) ->  | D265: =IF(PL!C35="","",PL!C35) ->  | E265: 2002-07-01 | F265: 2002-12-31 | G265: 2002-B | H265: - | J265: =IF(A265="x",PL!D35,0) -> 0 | L265: 0 | M265: 0 | N265: 0 | O265: 0 | P265: 0 | Q265: 0 | R265: 0 | S265: 0 | T265: 0 | U265: 0 | V265: 0 | W265: 0 | X265: 0 | Y265: 0 | Z265: 0 | AA265: 0 | AB265: 0 | AC265: 0 | AD265: 0 | AE265: 0 | AF265: 0 | AG265: 0 | AH265: 0 | AI265: 0 | AJ265: 0 | AK265: 0 | AL265: 0 | AM265: 0 | AN265: 0 | AO265: 0 | AP265: 0 | AQ265: 0 | AR265: 0 | AS265: 0 | AT265: 0 | AU265: 0 | AV265: 0 | AW265: 0 | AX265: 0 | AY265: 0 | AZ265: 0 | BA265: 0 | BB265: 0 | BC265: 0 | BD265: 0 | BE265: 0 | BF265: 0 | BG265: 0 | BH265: 0 | BI265: 0 | BJ265: 0 | BK265: 0 | BL265: 0 | BM265: 0 | BN265: 0 | BO265: 0 | BP265: 0 | BQ265: 0 | BR265: 0 | BS265: 0 | BT265: 0 | BU265: 0 | BV265: 0 | BW265: 0 | BX265: 0 | BY265: 0 | BZ265: 0 | CA265: 0 | CB265: 0 | CC265: 0 | CD265: 0 | CE265: 0 | CF265: 0 | CG265: 0 | CH265: 0 | CI265: 0 | CJ265: 0 | CK265: 0 | CL265: 0 | CM265: 0 | CN265: 0 | CO265: 0 | CQ265: End Line
B266: =PL!A36 ->  | C266: =IF(PL!B36="","",PL!B36) ->  | D266: =IF(PL!C36="","",PL!C36) ->  | E266: 2003-01-01 | F266: 2003-06-30 | G266: 2003-A | H266: - | J266: =IF(A266="x",PL!D36,0) -> 0 | L266: 0 | M266: 0 | N266: 0 | O266: 0 | P266: 0 | Q266: 0 | R266: 0 | S266: 0 | T266: 0 | U266: 0 | V266: 0 | W266: 0 | X266: 0 | Y266: 0 | Z266: 0 | AA266: 0 | AB266: 0 | AC266: 0 | AD266: 0 | AE266: 0 | AF266: 0 | AG266: 0 | AH266: 0 | AI266: 0 | AJ266: 0 | AK266: 0 | AL266: 0 | AM266: 0 | AN266: 0 | AO266: 0 | AP266: 0 | AQ266: 0 | AR266: 0 | AS266: 0 | AT266: 0 | AU266: 0 | AV266: 0 | AW266: 0 | AX266: 0 | AY266: 0 | AZ266: 0 | BA266: 0 | BB266: 0 | BC266: 0 | BD266: 0 | BE266: 0 | BF266: 0 | BG266: 0 | BH266: 0 | BI266: 0 | BJ266: 0 | BK266: 0 | BL266: 0 | BM266: 0 | BN266: 0 | BO266: 0 | BP266: 0 | BQ266: 0 | BR266: 0 | BS266: 0 | BT266: 0 | BU266: 0 | BV266: 0 | BW266: 0 | BX266: 0 | BY266: 0 | BZ266: 0 | CA266: 0 | CB266: 0 | CC266: 0 | CD266: 0 | CE266: 0 | CF266: 0 | CG266: 0 | CH266: 0 | CI266: 0 | CJ266: 0 | CK266: 0 | CL266: 0 | CM266: 0 | CN266: 0 | CO266: 0 | CQ266: End Line
B267: =PL!A37 ->  | C267: =IF(PL!B37="","",PL!B37) ->  | D267: =IF(PL!C37="","",PL!C37) ->  | E267: 2003-07-01 | F267: 2003-12-31 | G267: 2003-B | H267: - | J267: =IF(A267="x",PL!D37,0) -> 0 | L267: 0 | M267: 0 | N267: 0 | O267: 0 | P267: 0 | Q267: 0 | R267: 0 | S267: 0 | T267: 0 | U267: 0 | V267: 0 | W267: 0 | X267: 0 | Y267: 0 | Z267: 0 | AA267: 0 | AB267: 0 | AC267: 0 | AD267: 0 | AE267: 0 | AF267: 0 | AG267: 0 | AH267: 0 | AI267: 0 | AJ267: 0 | AK267: 0 | AL267: 0 | AM267: 0 | AN267: 0 | AO267: 0 | AP267: 0 | AQ267: 0 | AR267: 0 | AS267: 0 | AT267: 0 | AU267: 0 | AV267: 0 | AW267: 0 | AX267: 0 | AY267: 0 | AZ267: 0 | BA267: 0 | BB267: 0 | BC267: 0 | BD267: 0 | BE267: 0 | BF267: 0 | BG267: 0 | BH267: 0 | BI267: 0 | BJ267: 0 | BK267: 0 | BL267: 0 | BM267: 0 | BN267: 0 | BO267: 0 | BP267: 0 | BQ267: 0 | BR267: 0 | BS267: 0 | BT267: 0 | BU267: 0 | BV267: 0 | BW267: 0 | BX267: 0 | BY267: 0 | BZ267: 0 | CA267: 0 | CB267: 0 | CC267: 0 | CD267: 0 | CE267: 0 | CF267: 0 | CG267: 0 | CH267: 0 | CI267: 0 | CJ267: 0 | CK267: 0 | CL267: 0 | CM267: 0 | CN267: 0 | CO267: 0 | CQ267: End Line
B268: =PL!A38 ->  | C268: =IF(PL!B38="","",PL!B38) ->  | D268: =IF(PL!C38="","",PL!C38) ->  | E268: 2004-01-01 | F268: 2004-06-30 | G268: 2004-A | H268: - | J268: =IF(A268="x",PL!D38,0) -> 0 | L268: 0 | M268: 0 | N268: 0 | O268: 0 | P268: 0 | Q268: 0 | R268: 0 | S268: 0 | T268: 0 | U268: 0 | V268: 0 | W268: 0 | X268: 0 | Y268: 0 | Z268: 0 | AA268: 0 | AB268: 0 | AC268: 0 | AD268: 0 | AE268: 0 | AF268: 0 | AG268: 0 | AH268: 0 | AI268: 0 | AJ268: 0 | AK268: 0 | AL268: 0 | AM268: 0 | AN268: 0 | AO268: 0 | AP268: 0 | AQ268: 0 | AR268: 0 | AS268: 0 | AT268: 0 | AU268: 0 | AV268: 0 | AW268: 0 | AX268: 0 | AY268: 0 | AZ268: 0 | BA268: 0 | BB268: 0 | BC268: 0 | BD268: 0 | BE268: 0 | BF268: 0 | BG268: 0 | BH268: 0 | BI268: 0 | BJ268: 0 | BK268: 0 | BL268: 0 | BM268: 0 | BN268: 0 | BO268: 0 | BP268: 0 | BQ268: 0 | BR268: 0 | BS268: 0 | BT268: 0 | BU268: 0 | BV268: 0 | BW268: 0 | BX268: 0 | BY268: 0 | BZ268: 0 | CA268: 0 | CB268: 0 | CC268: 0 | CD268: 0 | CE268: 0 | CF268: 0 | CG268: 0 | CH268: 0 | CI268: 0 | CJ268: 0 | CK268: 0 | CL268: 0 | CM268: 0 | CN268: 0 | CO268: 0 | CQ268: End Line
B269: =PL!A39 ->  | C269: =IF(PL!B39="","",PL!B39) ->  | D269: =IF(PL!C39="","",PL!C39) ->  | E269: 2004-07-01 | F269: 2004-12-31 | G269: 2004-B | H269: - | J269: =IF(A269="x",PL!D39,0) -> 0 | L269: 0 | M269: 0 | N269: 0 | O269: 0 | P269: 0 | Q269: 0 | R269: 0 | S269: 0 | T269: 0 | U269: 0 | V269: 0 | W269: 0 | X269: 0 | Y269: 0 | Z269: 0 | AA269: 0 | AB269: 0 | AC269: 0 | AD269: 0 | AE269: 0 | AF269: 0 | AG269: 0 | AH269: 0 | AI269: 0 | AJ269: 0 | AK269: 0 | AL269: 0 | AM269: 0 | AN269: 0 | AO269: 0 | AP269: 0 | AQ269: 0 | AR269: 0 | AS269: 0 | AT269: 0 | AU269: 0 | AV269: 0 | AW269: 0 | AX269: 0 | AY269: 0 | AZ269: 0 | BA269: 0 | BB269: 0 | BC269: 0 | BD269: 0 | BE269: 0 | BF269: 0 | BG269: 0 | BH269: 0 | BI269: 0 | BJ269: 0 | BK269: 0 | BL269: 0 | BM269: 0 | BN269: 0 | BO269: 0 | BP269: 0 | BQ269: 0 | BR269: 0 | BS269: 0 | BT269: 0 | BU269: 0 | BV269: 0 | BW269: 0 | BX269: 0 | BY269: 0 | BZ269: 0 | CA269: 0 | CB269: 0 | CC269: 0 | CD269: 0 | CE269: 0 | CF269: 0 | CG269: 0 | CH269: 0 | CI269: 0 | CJ269: 0 | CK269: 0 | CL269: 0 | CM269: 0 | CN269: 0 | CO269: 0 | CQ269: End Line
B270: =PL!A40 ->  | C270: =IF(PL!B40="","",PL!B40) ->  | D270: =IF(PL!C40="","",PL!C40) ->  | E270: 2005-01-01 | F270: 2005-06-30 | G270: 2005-A | H270: - | J270: =IF(A270="x",PL!D40,0) -> 0 | L270: 0 | M270: 0 | N270: 0 | O270: 0 | P270: 0 | Q270: 0 | R270: 0 | S270: 0 | T270: 0 | U270: 0 | V270: 0 | W270: 0 | X270: 0 | Y270: 0 | Z270: 0 | AA270: 0 | AB270: 0 | AC270: 0 | AD270: 0 | AE270: 0 | AF270: 0 | AG270: 0 | AH270: 0 | AI270: 0 | AJ270: 0 | AK270: 0 | AL270: 0 | AM270: 0 | AN270: 0 | AO270: 0 | AP270: 0 | AQ270: 0 | AR270: 0 | AS270: 0 | AT270: 0 | AU270: 0 | AV270: 0 | AW270: 0 | AX270: 0 | AY270: 0 | AZ270: 0 | BA270: 0 | BB270: 0 | BC270: 0 | BD270: 0 | BE270: 0 | BF270: 0 | BG270: 0 | BH270: 0 | BI270: 0 | BJ270: 0 | BK270: 0 | BL270: 0 | BM270: 0 | BN270: 0 | BO270: 0 | BP270: 0 | BQ270: 0 | BR270: 0 | BS270: 0 | BT270: 0 | BU270: 0 | BV270: 0 | BW270: 0 | BX270: 0 | BY270: 0 | BZ270: 0 | CA270: 0 | CB270: 0 | CC270: 0 | CD270: 0 | CE270: 0 | CF270: 0 | CG270: 0 | CH270: 0 | CI270: 0 | CJ270: 0 | CK270: 0 | CL270: 0 | CM270: 0 | CN270: 0 | CO270: 0 | CQ270: End Line
B271: =PL!A41 ->  | C271: =IF(PL!B41="","",PL!B41) ->  | D271: =IF(PL!C41="","",PL!C41) ->  | E271: 2005-07-01 | F271: 2005-12-31 | G271: 2005-B | H271: - | J271: =IF(A271="x",PL!D41,0) -> 0 | L271: 0 | M271: 0 | N271: 0 | O271: 0 | P271: 0 | Q271: 0 | R271: 0 | S271: 0 | T271: 0 | U271: 0 | V271: 0 | W271: 0 | X271: 0 | Y271: 0 | Z271: 0 | AA271: 0 | AB271: 0 | AC271: 0 | AD271: 0 | AE271: 0 | AF271: 0 | AG271: 0 | AH271: 0 | AI271: 0 | AJ271: 0 | AK271: 0 | AL271: 0 | AM271: 0 | AN271: 0 | AO271: 0 | AP271: 0 | AQ271: 0 | AR271: 0 | AS271: 0 | AT271: 0 | AU271: 0 | AV271: 0 | AW271: 0 | AX271: 0 | AY271: 0 | AZ271: 0 | BA271: 0 | BB271: 0 | BC271: 0 | BD271: 0 | BE271: 0 | BF271: 0 | BG271: 0 | BH271: 0 | BI271: 0 | BJ271: 0 | BK271: 0 | BL271: 0 | BM271: 0 | BN271: 0 | BO271: 0 | BP271: 0 | BQ271: 0 | BR271: 0 | BS271: 0 | BT271: 0 | BU271: 0 | BV271: 0 | BW271: 0 | BX271: 0 | BY271: 0 | BZ271: 0 | CA271: 0 | CB271: 0 | CC271: 0 | CD271: 0 | CE271: 0 | CF271: 0 | CG271: 0 | CH271: 0 | CI271: 0 | CJ271: 0 | CK271: 0 | CL271: 0 | CM271: 0 | CN271: 0 | CO271: 0 | CQ271: End Line
B272: =PL!A42 ->  | C272: =IF(PL!B42="","",PL!B42) ->  | D272: =IF(PL!C42="","",PL!C42) ->  | E272: 2006-01-01 | F272: 2006-06-30 | G272: 2006-A | H272: - | J272: =IF(A272="x",PL!D42,0) -> 0 | L272: 0 | M272: 0 | N272: 0 | O272: 0 | P272: 0 | Q272: 0 | R272: 0 | S272: 0 | T272: 0 | U272: 0 | V272: 0 | W272: 0 | X272: 0 | Y272: 0 | Z272: 0 | AA272: 0 | AB272: 0 | AC272: 0 | AD272: 0 | AE272: 0 | AF272: 0 | AG272: 0 | AH272: 0 | AI272: 0 | AJ272: 0 | AK272: 0 | AL272: 0 | AM272: 0 | AN272: 0 | AO272: 0 | AP272: 0 | AQ272: 0 | AR272: 0 | AS272: 0 | AT272: 0 | AU272: 0 | AV272: 0 | AW272: 0 | AX272: 0 | AY272: 0 | AZ272: 0 | BA272: 0 | BB272: 0 | BC272: 0 | BD272: 0 | BE272: 0 | BF272: 0 | BG272: 0 | BH272: 0 | BI272: 0 | BJ272: 0 | BK272: 0 | BL272: 0 | BM272: 0 | BN272: 0 | BO272: 0 | BP272: 0 | BQ272: 0 | BR272: 0 | BS272: 0 | BT272: 0 | BU272: 0 | BV272: 0 | BW272: 0 | BX272: 0 | BY272: 0 | BZ272: 0 | CA272: 0 | CB272: 0 | CC272: 0 | CD272: 0 | CE272: 0 | CF272: 0 | CG272: 0 | CH272: 0 | CI272: 0 | CJ272: 0 | CK272: 0 | CL272: 0 | CM272: 0 | CN272: 0 | CO272: 0 | CQ272: End Line
B273: =PL!A43 ->  | C273: =IF(PL!B43="","",PL!B43) ->  | D273: =IF(PL!C43="","",PL!C43) ->  | E273: 2006-07-01 | F273: 2006-12-31 | G273: 2006-B | H273: - | J273: =IF(A273="x",PL!D43,0) -> 0 | L273: 0 | M273: 0 | N273: 0 | O273: 0 | P273: 0 | Q273: 0 | R273: 0 | S273: 0 | T273: 0 | U273: 0 | V273: 0 | W273: 0 | X273: 0 | Y273: 0 | Z273: 0 | AA273: 0 | AB273: 0 | AC273: 0 | AD273: 0 | AE273: 0 | AF273: 0 | AG273: 0 | AH273: 0 | AI273: 0 | AJ273: 0 | AK273: 0 | AL273: 0 | AM273: 0 | AN273: 0 | AO273: 0 | AP273: 0 | AQ273: 0 | AR273: 0 | AS273: 0 | AT273: 0 | AU273: 0 | AV273: 0 | AW273: 0 | AX273: 0 | AY273: 0 | AZ273: 0 | BA273: 0 | BB273: 0 | BC273: 0 | BD273: 0 | BE273: 0 | BF273: 0 | BG273: 0 | BH273: 0 | BI273: 0 | BJ273: 0 | BK273: 0 | BL273: 0 | BM273: 0 | BN273: 0 | BO273: 0 | BP273: 0 | BQ273: 0 | BR273: 0 | BS273: 0 | BT273: 0 | BU273: 0 | BV273: 0 | BW273: 0 | BX273: 0 | BY273: 0 | BZ273: 0 | CA273: 0 | CB273: 0 | CC273: 0 | CD273: 0 | CE273: 0 | CF273: 0 | CG273: 0 | CH273: 0 | CI273: 0 | CJ273: 0 | CK273: 0 | CL273: 0 | CM273: 0 | CN273: 0 | CO273: 0 | CQ273: End Line
B274: =PL!A44 ->  | C274: =IF(PL!B44="","",PL!B44) ->  | D274: =IF(PL!C44="","",PL!C44) ->  | E274: 2007-01-01 | F274: 2007-06-30 | G274: 2007-A | H274: - | J274: =IF(A274="x",PL!D44,0) -> 0 | L274: 0 | M274: 0 | N274: 0 | O274: 0 | P274: 0 | Q274: 0 | R274: 0 | S274: 0 | T274: 0 | U274: 0 | V274: 0 | W274: 0 | X274: 0 | Y274: 0 | Z274: 0 | AA274: 0 | AB274: 0 | AC274: 0 | AD274: 0 | AE274: 0 | AF274: 0 | AG274: 0 | AH274: 0 | AI274: 0 | AJ274: 0 | AK274: 0 | AL274: 0 | AM274: 0 | AN274: 0 | AO274: 0 | AP274: 0 | AQ274: 0 | AR274: 0 | AS274: 0 | AT274: 0 | AU274: 0 | AV274: 0 | AW274: 0 | AX274: 0 | AY274: 0 | AZ274: 0 | BA274: 0 | BB274: 0 | BC274: 0 | BD274: 0 | BE274: 0 | BF274: 0 | BG274: 0 | BH274: 0 | BI274: 0 | BJ274: 0 | BK274: 0 | BL274: 0 | BM274: 0 | BN274: 0 | BO274: 0 | BP274: 0 | BQ274: 0 | BR274: 0 | BS274: 0 | BT274: 0 | BU274: 0 | BV274: 0 | BW274: 0 | BX274: 0 | BY274: 0 | BZ274: 0 | CA274: 0 | CB274: 0 | CC274: 0 | CD274: 0 | CE274: 0 | CF274: 0 | CG274: 0 | CH274: 0 | CI274: 0 | CJ274: 0 | CK274: 0 | CL274: 0 | CM274: 0 | CN274: 0 | CO274: 0 | CQ274: End Line
B275: =PL!A45 ->  | C275: =IF(PL!B45="","",PL!B45) ->  | D275: =IF(PL!C45="","",PL!C45) ->  | E275: 2007-07-01 | F275: 2007-12-31 | G275: 2007-B | H275: - | J275: =IF(A275="x",PL!D45,0) -> 0 | L275: 0 | M275: 0 | N275: 0 | O275: 0 | P275: 0 | Q275: 0 | R275: 0 | S275: 0 | T275: 0 | U275: 0 | V275: 0 | W275: 0 | X275: 0 | Y275: 0 | Z275: 0 | AA275: 0 | AB275: 0 | AC275: 0 | AD275: 0 | AE275: 0 | AF275: 0 | AG275: 0 | AH275: 0 | AI275: 0 | AJ275: 0 | AK275: 0 | AL275: 0 | AM275: 0 | AN275: 0 | AO275: 0 | AP275: 0 | AQ275: 0 | AR275: 0 | AS275: 0 | AT275: 0 | AU275: 0 | AV275: 0 | AW275: 0 | AX275: 0 | AY275: 0 | AZ275: 0 | BA275: 0 | BB275: 0 | BC275: 0 | BD275: 0 | BE275: 0 | BF275: 0 | BG275: 0 | BH275: 0 | BI275: 0 | BJ275: 0 | BK275: 0 | BL275: 0 | BM275: 0 | BN275: 0 | BO275: 0 | BP275: 0 | BQ275: 0 | BR275: 0 | BS275: 0 | BT275: 0 | BU275: 0 | BV275: 0 | BW275: 0 | BX275: 0 | BY275: 0 | BZ275: 0 | CA275: 0 | CB275: 0 | CC275: 0 | CD275: 0 | CE275: 0 | CF275: 0 | CG275: 0 | CH275: 0 | CI275: 0 | CJ275: 0 | CK275: 0 | CL275: 0 | CM275: 0 | CN275: 0 | CO275: 0 | CQ275: End Line
B276: =PL!A46 ->  | C276: =IF(PL!B46="","",PL!B46) ->  | D276: =IF(PL!C46="","",PL!C46) ->  | E276: 2008-01-01 | F276: 2008-06-30 | G276: 2008-A | H276: - | J276: =IF(A276="x",PL!D46,0) -> 0 | L276: 0 | M276: 0 | N276: 0 | O276: 0 | P276: 0 | Q276: 0 | R276: 0 | S276: 0 | T276: 0 | U276: 0 | V276: 0 | W276: 0 | X276: 0 | Y276: 0 | Z276: 0 | AA276: 0 | AB276: 0 | AC276: 0 | AD276: 0 | AE276: 0 | AF276: 0 | AG276: 0 | AH276: 0 | AI276: 0 | AJ276: 0 | AK276: 0 | AL276: 0 | AM276: 0 | AN276: 0 | AO276: 0 | AP276: 0 | AQ276: 0 | AR276: 0 | AS276: 0 | AT276: 0 | AU276: 0 | AV276: 0 | AW276: 0 | AX276: 0 | AY276: 0 | AZ276: 0 | BA276: 0 | BB276: 0 | BC276: 0 | BD276: 0 | BE276: 0 | BF276: 0 | BG276: 0 | BH276: 0 | BI276: 0 | BJ276: 0 | BK276: 0 | BL276: 0 | BM276: 0 | BN276: 0 | BO276: 0 | BP276: 0 | BQ276: 0 | BR276: 0 | BS276: 0 | BT276: 0 | BU276: 0 | BV276: 0 | BW276: 0 | BX276: 0 | BY276: 0 | BZ276: 0 | CA276: 0 | CB276: 0 | CC276: 0 | CD276: 0 | CE276: 0 | CF276: 0 | CG276: 0 | CH276: 0 | CI276: 0 | CJ276: 0 | CK276: 0 | CL276: 0 | CM276: 0 | CN276: 0 | CO276: 0 | CQ276: End Line
B277: =PL!A47 ->  | C277: =IF(PL!B47="","",PL!B47) ->  | D277: =IF(PL!C47="","",PL!C47) ->  | E277: 2008-07-01 | F277: 2008-12-31 | G277: 2008-B | H277: - | J277: =IF(A277="x",PL!D47,0) -> 0 | L277: 0 | M277: 0 | N277: 0 | O277: 0 | P277: 0 | Q277: 0 | R277: 0 | S277: 0 | T277: 0 | U277: 0 | V277: 0 | W277: 0 | X277: 0 | Y277: 0 | Z277: 0 | AA277: 0 | AB277: 0 | AC277: 0 | AD277: 0 | AE277: 0 | AF277: 0 | AG277: 0 | AH277: 0 | AI277: 0 | AJ277: 0 | AK277: 0 | AL277: 0 | AM277: 0 | AN277: 0 | AO277: 0 | AP277: 0 | AQ277: 0 | AR277: 0 | AS277: 0 | AT277: 0 | AU277: 0 | AV277: 0 | AW277: 0 | AX277: 0 | AY277: 0 | AZ277: 0 | BA277: 0 | BB277: 0 | BC277: 0 | BD277: 0 | BE277: 0 | BF277: 0 | BG277: 0 | BH277: 0 | BI277: 0 | BJ277: 0 | BK277: 0 | BL277: 0 | BM277: 0 | BN277: 0 | BO277: 0 | BP277: 0 | BQ277: 0 | BR277: 0 | BS277: 0 | BT277: 0 | BU277: 0 | BV277: 0 | BW277: 0 | BX277: 0 | BY277: 0 | BZ277: 0 | CA277: 0 | CB277: 0 | CC277: 0 | CD277: 0 | CE277: 0 | CF277: 0 | CG277: 0 | CH277: 0 | CI277: 0 | CJ277: 0 | CK277: 0 | CL277: 0 | CM277: 0 | CN277: 0 | CO277: 0 | CQ277: End Line
B278: =PL!A48 ->  | C278: =IF(PL!B48="","",PL!B48) ->  | D278: =IF(PL!C48="","",PL!C48) ->  | E278: 2009-01-01 | F278: 2009-06-30 | G278: 2009-A | H278: - | J278: =IF(A278="x",PL!D48,0) -> 0 | L278: 0 | M278: 0 | N278: 0 | O278: 0 | P278: 0 | Q278: 0 | R278: 0 | S278: 0 | T278: 0 | U278: 0 | V278: 0 | W278: 0 | X278: 0 | Y278: 0 | Z278: 0 | AA278: 0 | AB278: 0 | AC278: 0 | AD278: 0 | AE278: 0 | AF278: 0 | AG278: 0 | AH278: 0 | AI278: 0 | AJ278: 0 | AK278: 0 | AL278: 0 | AM278: 0 | AN278: 0 | AO278: 0 | AP278: 0 | AQ278: 0 | AR278: 0 | AS278: 0 | AT278: 0 | AU278: 0 | AV278: 0 | AW278: 0 | AX278: 0 | AY278: 0 | AZ278: 0 | BA278: 0 | BB278: 0 | BC278: 0 | BD278: 0 | BE278: 0 | BF278: 0 | BG278: 0 | BH278: 0 | BI278: 0 | BJ278: 0 | BK278: 0 | BL278: 0 | BM278: 0 | BN278: 0 | BO278: 0 | BP278: 0 | BQ278: 0 | BR278: 0 | BS278: 0 | BT278: 0 | BU278: 0 | BV278: 0 | BW278: 0 | BX278: 0 | BY278: 0 | BZ278: 0 | CA278: 0 | CB278: 0 | CC278: 0 | CD278: 0 | CE278: 0 | CF278: 0 | CG278: 0 | CH278: 0 | CI278: 0 | CJ278: 0 | CK278: 0 | CL278: 0 | CM278: 0 | CN278: 0 | CO278: 0 | CQ278: End Line
B279: =PL!A49 ->  | C279: =IF(PL!B49="","",PL!B49) ->  | D279: =IF(PL!C49="","",PL!C49) ->  | E279: 2009-07-01 | F279: 2009-12-31 | G279: 2009-B | H279: - | J279: =IF(A279="x",PL!D49,0) -> 0 | L279: 0 | M279: 0 | N279: 0 | O279: 0 | P279: 0 | Q279: 0 | R279: 0 | S279: 0 | T279: 0 | U279: 0 | V279: 0 | W279: 0 | X279: 0 | Y279: 0 | Z279: 0 | AA279: 0 | AB279: 0 | AC279: 0 | AD279: 0 | AE279: 0 | AF279: 0 | AG279: 0 | AH279: 0 | AI279: 0 | AJ279: 0 | AK279: 0 | AL279: 0 | AM279: 0 | AN279: 0 | AO279: 0 | AP279: 0 | AQ279: 0 | AR279: 0 | AS279: 0 | AT279: 0 | AU279: 0 | AV279: 0 | AW279: 0 | AX279: 0 | AY279: 0 | AZ279: 0 | BA279: 0 | BB279: 0 | BC279: 0 | BD279: 0 | BE279: 0 | BF279: 0 | BG279: 0 | BH279: 0 | BI279: 0 | BJ279: 0 | BK279: 0 | BL279: 0 | BM279: 0 | BN279: 0 | BO279: 0 | BP279: 0 | BQ279: 0 | BR279: 0 | BS279: 0 | BT279: 0 | BU279: 0 | BV279: 0 | BW279: 0 | BX279: 0 | BY279: 0 | BZ279: 0 | CA279: 0 | CB279: 0 | CC279: 0 | CD279: 0 | CE279: 0 | CF279: 0 | CG279: 0 | CH279: 0 | CI279: 0 | CJ279: 0 | CK279: 0 | CL279: 0 | CM279: 0 | CN279: 0 | CO279: 0 | CQ279: End Line
B280: =PL!A50 ->  | C280: =IF(PL!B50="","",PL!B50) ->  | D280: =IF(PL!C50="","",PL!C50) ->  | E280: 2010-01-01 | F280: 2010-06-30 | G280: 2010-A | H280: - | J280: =IF(A280="x",PL!D50,0) -> 0 | L280: 0 | M280: 0 | N280: 0 | O280: 0 | P280: 0 | Q280: 0 | R280: 0 | S280: 0 | T280: 0 | U280: 0 | V280: 0 | W280: 0 | X280: 0 | Y280: 0 | Z280: 0 | AA280: 0 | AB280: 0 | AC280: 0 | AD280: 0 | AE280: 0 | AF280: 0 | AG280: 0 | AH280: 0 | AI280: 0 | AJ280: 0 | AK280: 0 | AL280: 0 | AM280: 0 | AN280: 0 | AO280: 0 | AP280: 0 | AQ280: 0 | AR280: 0 | AS280: 0 | AT280: 0 | AU280: 0 | AV280: 0 | AW280: 0 | AX280: 0 | AY280: 0 | AZ280: 0 | BA280: 0 | BB280: 0 | BC280: 0 | BD280: 0 | BE280: 0 | BF280: 0 | BG280: 0 | BH280: 0 | BI280: 0 | BJ280: 0 | BK280: 0 | BL280: 0 | BM280: 0 | BN280: 0 | BO280: 0 | BP280: 0 | BQ280: 0 | BR280: 0 | BS280: 0 | BT280: 0 | BU280: 0 | BV280: 0 | BW280: 0 | BX280: 0 | BY280: 0 | BZ280: 0 | CA280: 0 | CB280: 0 | CC280: 0 | CD280: 0 | CE280: 0 | CF280: 0 | CG280: 0 | CH280: 0 | CI280: 0 | CJ280: 0 | CK280: 0 | CL280: 0 | CM280: 0 | CN280: 0 | CO280: 0 | CQ280: End Line
B281: =PL!A51 ->  | C281: =IF(PL!B51="","",PL!B51) ->  | D281: =IF(PL!C51="","",PL!C51) ->  | E281: 2010-07-01 | F281: 2010-12-31 | G281: 2010-B | H281: - | J281: =IF(A281="x",PL!D51,0) -> 0 | L281: 0 | M281: 0 | N281: 0 | O281: 0 | P281: 0 | Q281: 0 | R281: 0 | S281: 0 | T281: 0 | U281: 0 | V281: 0 | W281: 0 | X281: 0 | Y281: 0 | Z281: 0 | AA281: 0 | AB281: 0 | AC281: 0 | AD281: 0 | AE281: 0 | AF281: 0 | AG281: 0 | AH281: 0 | AI281: 0 | AJ281: 0 | AK281: 0 | AL281: 0 | AM281: 0 | AN281: 0 | AO281: 0 | AP281: 0 | AQ281: 0 | AR281: 0 | AS281: 0 | AT281: 0 | AU281: 0 | AV281: 0 | AW281: 0 | AX281: 0 | AY281: 0 | AZ281: 0 | BA281: 0 | BB281: 0 | BC281: 0 | BD281: 0 | BE281: 0 | BF281: 0 | BG281: 0 | BH281: 0 | BI281: 0 | BJ281: 0 | BK281: 0 | BL281: 0 | BM281: 0 | BN281: 0 | BO281: 0 | BP281: 0 | BQ281: 0 | BR281: 0 | BS281: 0 | BT281: 0 | BU281: 0 | BV281: 0 | BW281: 0 | BX281: 0 | BY281: 0 | BZ281: 0 | CA281: 0 | CB281: 0 | CC281: 0 | CD281: 0 | CE281: 0 | CF281: 0 | CG281: 0 | CH281: 0 | CI281: 0 | CJ281: 0 | CK281: 0 | CL281: 0 | CM281: 0 | CN281: 0 | CO281: 0 | CQ281: End Line
B282: =PL!A52 ->  | C282: =IF(PL!B52="","",PL!B52) ->  | D282: =IF(PL!C52="","",PL!C52) ->  | E282: 2011-01-01 | F282: 2011-06-30 | G282: 2011-A | H282: - | J282: =IF(A282="x",PL!D52,0) -> 0 | L282: 0 | M282: 0 | N282: 0 | O282: 0 | P282: 0 | Q282: 0 | R282: 0 | S282: 0 | T282: 0 | U282: 0 | V282: 0 | W282: 0 | X282: 0 | Y282: 0 | Z282: 0 | AA282: 0 | AB282: 0 | AC282: 0 | AD282: 0 | AE282: 0 | AF282: 0 | AG282: 0 | AH282: 0 | AI282: 0 | AJ282: 0 | AK282: 0 | AL282: 0 | AM282: 0 | AN282: 0 | AO282: 0 | AP282: 0 | AQ282: 0 | AR282: 0 | AS282: 0 | AT282: 0 | AU282: 0 | AV282: 0 | AW282: 0 | AX282: 0 | AY282: 0 | AZ282: 0 | BA282: 0 | BB282: 0 | BC282: 0 | BD282: 0 | BE282: 0 | BF282: 0 | BG282: 0 | BH282: 0 | BI282: 0 | BJ282: 0 | BK282: 0 | BL282: 0 | BM282: 0 | BN282: 0 | BO282: 0 | BP282: 0 | BQ282: 0 | BR282: 0 | BS282: 0 | BT282: 0 | BU282: 0 | BV282: 0 | BW282: 0 | BX282: 0 | BY282: 0 | BZ282: 0 | CA282: 0 | CB282: 0 | CC282: 0 | CD282: 0 | CE282: 0 | CF282: 0 | CG282: 0 | CH282: 0 | CI282: 0 | CJ282: 0 | CK282: 0 | CL282: 0 | CM282: 0 | CN282: 0 | CO282: 0 | CQ282: End Line
B283: =PL!A53 ->  | C283: =IF(PL!B53="","",PL!B53) ->  | D283: =IF(PL!C53="","",PL!C53) ->  | E283: 2011-07-01 | F283: 2011-12-31 | G283: 2011-B | H283: - | J283: =IF(A283="x",PL!D53,0) -> 0 | L283: 0 | M283: 0 | N283: 0 | O283: 0 | P283: 0 | Q283: 0 | R283: 0 | S283: 0 | T283: 0 | U283: 0 | V283: 0 | W283: 0 | X283: 0 | Y283: 0 | Z283: 0 | AA283: 0 | AB283: 0 | AC283: 0 | AD283: 0 | AE283: 0 | AF283: 0 | AG283: 0 | AH283: 0 | AI283: 0 | AJ283: 0 | AK283: 0 | AL283: 0 | AM283: 0 | AN283: 0 | AO283: 0 | AP283: 0 | AQ283: 0 | AR283: 0 | AS283: 0 | AT283: 0 | AU283: 0 | AV283: 0 | AW283: 0 | AX283: 0 | AY283: 0 | AZ283: 0 | BA283: 0 | BB283: 0 | BC283: 0 | BD283: 0 | BE283: 0 | BF283: 0 | BG283: 0 | BH283: 0 | BI283: 0 | BJ283: 0 | BK283: 0 | BL283: 0 | BM283: 0 | BN283: 0 | BO283: 0 | BP283: 0 | BQ283: 0 | BR283: 0 | BS283: 0 | BT283: 0 | BU283: 0 | BV283: 0 | BW283: 0 | BX283: 0 | BY283: 0 | BZ283: 0 | CA283: 0 | CB283: 0 | CC283: 0 | CD283: 0 | CE283: 0 | CF283: 0 | CG283: 0 | CH283: 0 | CI283: 0 | CJ283: 0 | CK283: 0 | CL283: 0 | CM283: 0 | CN283: 0 | CO283: 0 | CQ283: End Line
B284: =PL!A54 ->  | C284: =IF(PL!B54="","",PL!B54) ->  | D284: =IF(PL!C54="","",PL!C54) ->  | E284: =G44 -> 2012-01-01 | F284: =H44 -> 2012-06-30 | G284: =K44 -> 2012-A | H284: =VLOOKUP(D284,$E$252:$G$334,3) -> - | J284: =IF(A284="x",PL!D54,0) -> 0 | K284: =IF(C284="","",H284) ->  | L284: =IF(K284=$L$249,J284,0) -> 0 | M284: =IF(K284=$M$249,J284,0) -> 0 | N284: 0 | O284: =IF(K284=$O$249,J284,0) -> 0 | P284: =IF(K284=$P$249,J284,0) -> 0 | Q284: =IF(K284=$Q$249,J284,0) -> 0 | R284: =IF(K284=$R$249,J284,0) -> 0 | S284: =IF(K284=$S$249,J284,0) -> 0 | T284: =IF(K284=$T$249,J284,0) -> 0 | U284: =IF(K284=$U$249,J284,0) -> 0 | V284: =IF(K284=$V$249,J284,0) -> 0 | W284: =IF(K284=$W$249,J284,0) -> 0 | X284: =IF(K284=$X$249,J284,0) -> 0 | Y284: =IF(K284=$Y$249,J284,0) -> 0 | Z284: =IF(K284=$Z$249,J284,0) -> 0 | AA284: =IF(K284=$AA$249,J284,0) -> 0 | AB284: =IF(K284=$AB$249,J284,0) -> 0 | AC284: =IF(K284=$AC$249,J284,0) -> 0 | AD284: =IF(K284=$AD$249,J284,0) -> 0 | AE284: =IF(K284=$AE$249,J284,0) -> 0 | AF284: =IF(K284=$AF$249,J284,0) -> 0 | AG284: =IF(K284=$AG$249,J284,0) -> 0 | AH284: =IF(K284=$AH$249,J284,0) -> 0 | AI284: =IF(K284=$AI$249,J284,0) -> 0 | AJ284: =IF(K284=$AJ$249,J284,0) -> 0 | AK284: =IF(K284=$AK$249,J284,0) -> 0 | AL284: =IF(K284=$AL$249,J284,0) -> 0 | AM284: =IF(K284=$AM$249,J284,0) -> 0 | AN284: =IF(K284=$AN$249,J284,0) -> 0 | AO284: =IF(K284=$AO$249,J284,0) -> 0 | AP284: =IF(K284=$AP$249,J284,0) -> 0 | AQ284: =IF(K284=$AQ$249,J284,0) -> 0 | AR284: =IF(K284=$AR$249,J284,0) -> 0 | AS284: =IF(K284=$AS$249,J284,0) -> 0 | AT284: =IF(K284=$AT$249,J284,0) -> 0 | AU284: =IF(K284=$AU$249,J284,0) -> 0 | AV284: =IF(K284=$AV$249,J284,0) -> 0 | AW284: =IF(K284=$AW$249,J284,0) -> 0 | AX284: =IF(K284=$AX$249,J284,0) -> 0 | AY284: =IF(K284=$AY$249,J284,0) -> 0 | AZ284: =IF(K284=$AZ$249,J284,0) -> 0 | BA284: =IF(K284=$BA$249,J284,0) -> 0 | BB284: =IF(K284=$BB$249,J284,0) -> 0 | BC284: =IF(K284=$BC$249,J284,0) -> 0 | BD284: =IF(K284=$BD$249,J284,0) -> 0 | BE284: =IF(K284=$BE$249,J284,0) -> 0 | BF284: =IF(K284=$BF$249,J284,0) -> 0 | BG284: =IF(K284=$BG$249,J284,0) -> 0 | BH284: =IF(K284=$BH$249,J284,0) -> 0 | BI284: =IF(K284=$BI$249,J284,0) -> 0 | BJ284: =IF(K284=$BJ$249,J284,0) -> 0 | BK284: =IF(K284=$BK$249,J284,0) -> 0 | BL284: =IF(K284=$BL$249,J284,0) -> 0 | BM284: =IF(K284=$BM$249,J284,0) -> 0 | BN284: =IF(K284=$BN$249,J284,0) -> 0 | BO284: =IF(K284=$BO$249,J284,0) -> 0 | BP284: =IF(K284=$BP$249,J284,0) -> 0 | BQ284: =IF(K284=$BQ$249,J284,0) -> 0 | BR284: =IF(K284=$BR$249,J284,0) -> 0 | BS284: =IF(K284=$BS$249,J284,0) -> 0 | BT284: =IF(K284=$BT$249,J284,0) -> 0 | BU284: =IF(K284=$BU$249,J284,0) -> 0 | BV284: =IF(K284=$BV$249,J284,0) -> 0 | BW284: =IF(K284=$BW$249,J284,0) -> 0 | BX284: =IF(K284=$BX$249,J284,0) -> 0 | BY284: =IF(K284=$BY$249,J284,0) -> 0 | BZ284: =IF(K284=$BZ$249,J284,0) -> 0 | CA284: =IF(K284=$CA$249,J284,0) -> 0 | CB284: =IF(K284=$CB$249,J284,0) -> 0 | CC284: =IF(K284=$CC$249,J284,0) -> 0 | CD284: =IF(K284=$CD$249,J284,0) -> 0 | CE284: =IF(K284=$CE$249,J284,0) -> 0 | CF284: =IF(K284=$CF$249,J284,0) -> 0 | CG284: =IF(K284=$CG$249,J284,0) -> 0 | CH284: =IF(K284=$CH$249,J284,0) -> 0 | CI284: =IF(K284=$CI$249,J284,0) -> 0 | CJ284: =IF(K284=$CJ$249,J284,0) -> 0 | CK284: =IF(K284=$CK$249,J284,0) -> 0 | CL284: =IF(K284=$CL$249,J284,0) -> 0 | CM284: =IF(K284=$CM$249,J284,0) -> 0 | CN284: =IF(K284=$CN$249,J284,0) -> 0 | CO284: =IF(K284=$CO$249,J284,0) -> 0 | CQ284: End Line
B285: =PL!A55 ->  | C285: =IF(PL!B55="","",PL!B55) ->  | D285: =IF(PL!C55="","",PL!C55) ->  | E285: 2012-07-01 | F285: 2012-12-31 | G285: 2012-B | H285: - | J285: =IF(A285="x",PL!D55,0) -> 0 | L285: 0 | M285: 0 | N285: 0 | O285: 0 | P285: 0 | Q285: 0 | R285: 0 | S285: 0 | T285: 0 | U285: 0 | V285: 0 | W285: 0 | X285: 0 | Y285: 0 | Z285: 0 | AA285: 0 | AB285: 0 | AC285: 0 | AD285: 0 | AE285: 0 | AF285: 0 | AG285: 0 | AH285: 0 | AI285: 0 | AJ285: 0 | AK285: 0 | AL285: 0 | AM285: 0 | AN285: 0 | AO285: 0 | AP285: 0 | AQ285: 0 | AR285: 0 | AS285: 0 | AT285: 0 | AU285: 0 | AV285: 0 | AW285: 0 | AX285: 0 | AY285: 0 | AZ285: 0 | BA285: 0 | BB285: 0 | BC285: 0 | BD285: 0 | BE285: 0 | BF285: 0 | BG285: 0 | BH285: 0 | BI285: 0 | BJ285: 0 | BK285: 0 | BL285: 0 | BM285: 0 | BN285: 0 | BO285: 0 | BP285: 0 | BQ285: 0 | BR285: 0 | BS285: 0 | BT285: 0 | BU285: 0 | BV285: 0 | BW285: 0 | BX285: 0 | BY285: 0 | BZ285: 0 | CA285: 0 | CB285: 0 | CC285: 0 | CD285: 0 | CE285: 0 | CF285: 0 | CG285: 0 | CH285: 0 | CI285: 0 | CJ285: 0 | CK285: 0 | CL285: 0 | CM285: 0 | CN285: 0 | CO285: 0 | CQ285: End Line
B286: =PL!A56 ->  | C286: =IF(PL!B56="","",PL!B56) ->  | D286: =IF(PL!C56="","",PL!C56) ->  | E286: 2013-01-01 | F286: 2013-06-30 | G286: 2013-A | H286: - | J286: =IF(A286="x",PL!D56,0) -> 0 | L286: 0 | M286: 0 | N286: 0 | O286: 0 | P286: 0 | Q286: 0 | R286: 0 | S286: 0 | T286: 0 | U286: 0 | V286: 0 | W286: 0 | X286: 0 | Y286: 0 | Z286: 0 | AA286: 0 | AB286: 0 | AC286: 0 | AD286: 0 | AE286: 0 | AF286: 0 | AG286: 0 | AH286: 0 | AI286: 0 | AJ286: 0 | AK286: 0 | AL286: 0 | AM286: 0 | AN286: 0 | AO286: 0 | AP286: 0 | AQ286: 0 | AR286: 0 | AS286: 0 | AT286: 0 | AU286: 0 | AV286: 0 | AW286: 0 | AX286: 0 | AY286: 0 | AZ286: 0 | BA286: 0 | BB286: 0 | BC286: 0 | BD286: 0 | BE286: 0 | BF286: 0 | BG286: 0 | BH286: 0 | BI286: 0 | BJ286: 0 | BK286: 0 | BL286: 0 | BM286: 0 | BN286: 0 | BO286: 0 | BP286: 0 | BQ286: 0 | BR286: 0 | BS286: 0 | BT286: 0 | BU286: 0 | BV286: 0 | BW286: 0 | BX286: 0 | BY286: 0 | BZ286: 0 | CA286: 0 | CB286: 0 | CC286: 0 | CD286: 0 | CE286: 0 | CF286: 0 | CG286: 0 | CH286: 0 | CI286: 0 | CJ286: 0 | CK286: 0 | CL286: 0 | CM286: 0 | CN286: 0 | CO286: 0 | CQ286: End Line
B287: =PL!A57 ->  | C287: =IF(PL!B57="","",PL!B57) ->  | D287: =IF(PL!C57="","",PL!C57) ->  | E287: 2013-07-01 | F287: 2013-12-31 | G287: 2013-B | H287: - | J287: =IF(A287="x",PL!D57,0) -> 0 | L287: 0 | M287: 0 | N287: 0 | O287: 0 | P287: 0 | Q287: 0 | R287: 0 | S287: 0 | T287: 0 | U287: 0 | V287: 0 | W287: 0 | X287: 0 | Y287: 0 | Z287: 0 | AA287: 0 | AB287: 0 | AC287: 0 | AD287: 0 | AE287: 0 | AF287: 0 | AG287: 0 | AH287: 0 | AI287: 0 | AJ287: 0 | AK287: 0 | AL287: 0 | AM287: 0 | AN287: 0 | AO287: 0 | AP287: 0 | AQ287: 0 | AR287: 0 | AS287: 0 | AT287: 0 | AU287: 0 | AV287: 0 | AW287: 0 | AX287: 0 | AY287: 0 | AZ287: 0 | BA287: 0 | BB287: 0 | BC287: 0 | BD287: 0 | BE287: 0 | BF287: 0 | BG287: 0 | BH287: 0 | BI287: 0 | BJ287: 0 | BK287: 0 | BL287: 0 | BM287: 0 | BN287: 0 | BO287: 0 | BP287: 0 | BQ287: 0 | BR287: 0 | BS287: 0 | BT287: 0 | BU287: 0 | BV287: 0 | BW287: 0 | BX287: 0 | BY287: 0 | BZ287: 0 | CA287: 0 | CB287: 0 | CC287: 0 | CD287: 0 | CE287: 0 | CF287: 0 | CG287: 0 | CH287: 0 | CI287: 0 | CJ287: 0 | CK287: 0 | CL287: 0 | CM287: 0 | CN287: 0 | CO287: 0 | CQ287: End Line
B288: =PL!A58 ->  | C288: =IF(PL!B58="","",PL!B58) ->  | D288: =IF(PL!C58="","",PL!C58) ->  | E288: 2014-01-01 | F288: 2014-06-30 | G288: 2014-A | H288: - | J288: =IF(A288="x",PL!D58,0) -> 0 | L288: 0 | M288: 0 | N288: 0 | O288: 0 | P288: 0 | Q288: 0 | R288: 0 | S288: 0 | T288: 0 | U288: 0 | V288: 0 | W288: 0 | X288: 0 | Y288: 0 | Z288: 0 | AA288: 0 | AB288: 0 | AC288: 0 | AD288: 0 | AE288: 0 | AF288: 0 | AG288: 0 | AH288: 0 | AI288: 0 | AJ288: 0 | AK288: 0 | AL288: 0 | AM288: 0 | AN288: 0 | AO288: 0 | AP288: 0 | AQ288: 0 | AR288: 0 | AS288: 0 | AT288: 0 | AU288: 0 | AV288: 0 | AW288: 0 | AX288: 0 | AY288: 0 | AZ288: 0 | BA288: 0 | BB288: 0 | BC288: 0 | BD288: 0 | BE288: 0 | BF288: 0 | BG288: 0 | BH288: 0 | BI288: 0 | BJ288: 0 | BK288: 0 | BL288: 0 | BM288: 0 | BN288: 0 | BO288: 0 | BP288: 0 | BQ288: 0 | BR288: 0 | BS288: 0 | BT288: 0 | BU288: 0 | BV288: 0 | BW288: 0 | BX288: 0 | BY288: 0 | BZ288: 0 | CA288: 0 | CB288: 0 | CC288: 0 | CD288: 0 | CE288: 0 | CF288: 0 | CG288: 0 | CH288: 0 | CI288: 0 | CJ288: 0 | CK288: 0 | CL288: 0 | CM288: 0 | CN288: 0 | CO288: 0 | CQ288: End Line
B289: =PL!A59 ->  | C289: =IF(PL!B59="","",PL!B59) ->  | D289: =IF(PL!C59="","",PL!C59) ->  | E289: 2014-07-01 | F289: 2014-12-31 | G289: 2014-B | H289: - | J289: =IF(A289="x",PL!D59,0) -> 0 | L289: 0 | M289: 0 | N289: 0 | O289: 0 | P289: 0 | Q289: 0 | R289: 0 | S289: 0 | T289: 0 | U289: 0 | V289: 0 | W289: 0 | X289: 0 | Y289: 0 | Z289: 0 | AA289: 0 | AB289: 0 | AC289: 0 | AD289: 0 | AE289: 0 | AF289: 0 | AG289: 0 | AH289: 0 | AI289: 0 | AJ289: 0 | AK289: 0 | AL289: 0 | AM289: 0 | AN289: 0 | AO289: 0 | AP289: 0 | AQ289: 0 | AR289: 0 | AS289: 0 | AT289: 0 | AU289: 0 | AV289: 0 | AW289: 0 | AX289: 0 | AY289: 0 | AZ289: 0 | BA289: 0 | BB289: 0 | BC289: 0 | BD289: 0 | BE289: 0 | BF289: 0 | BG289: 0 | BH289: 0 | BI289: 0 | BJ289: 0 | BK289: 0 | BL289: 0 | BM289: 0 | BN289: 0 | BO289: 0 | BP289: 0 | BQ289: 0 | BR289: 0 | BS289: 0 | BT289: 0 | BU289: 0 | BV289: 0 | BW289: 0 | BX289: 0 | BY289: 0 | BZ289: 0 | CA289: 0 | CB289: 0 | CC289: 0 | CD289: 0 | CE289: 0 | CF289: 0 | CG289: 0 | CH289: 0 | CI289: 0 | CJ289: 0 | CK289: 0 | CL289: 0 | CM289: 0 | CN289: 0 | CO289: 0 | CQ289: End Line
B290: =PL!A60 ->  | C290: =IF(PL!B60="","",PL!B60) ->  | D290: =IF(PL!C60="","",PL!C60) ->  | E290: 2015-01-01 | F290: 2015-06-30 | G290: 2015-A | H290: - | J290: =IF(A290="x",PL!D60,0) -> 0 | L290: 0 | M290: 0 | N290: 0 | O290: 0 | P290: 0 | Q290: 0 | R290: 0 | S290: 0 | T290: 0 | U290: 0 | V290: 0 | W290: 0 | X290: 0 | Y290: 0 | Z290: 0 | AA290: 0 | AB290: 0 | AC290: 0 | AD290: 0 | AE290: 0 | AF290: 0 | AG290: 0 | AH290: 0 | AI290: 0 | AJ290: 0 | AK290: 0 | AL290: 0 | AM290: 0 | AN290: 0 | AO290: 0 | AP290: 0 | AQ290: 0 | AR290: 0 | AS290: 0 | AT290: 0 | AU290: 0 | AV290: 0 | AW290: 0 | AX290: 0 | AY290: 0 | AZ290: 0 | BA290: 0 | BB290: 0 | BC290: 0 | BD290: 0 | BE290: 0 | BF290: 0 | BG290: 0 | BH290: 0 | BI290: 0 | BJ290: 0 | BK290: 0 | BL290: 0 | BM290: 0 | BN290: 0 | BO290: 0 | BP290: 0 | BQ290: 0 | BR290: 0 | BS290: 0 | BT290: 0 | BU290: 0 | BV290: 0 | BW290: 0 | BX290: 0 | BY290: 0 | BZ290: 0 | CA290: 0 | CB290: 0 | CC290: 0 | CD290: 0 | CE290: 0 | CF290: 0 | CG290: 0 | CH290: 0 | CI290: 0 | CJ290: 0 | CK290: 0 | CL290: 0 | CM290: 0 | CN290: 0 | CO290: 0 | CQ290: End Line
B291: =PL!A61 ->  | C291: =IF(PL!B61="","",PL!B61) ->  | D291: =IF(PL!C61="","",PL!C61) ->  | E291: 2015-07-01 | F291: 2015-12-31 | G291: 2015-B | H291: - | J291: =IF(A291="x",PL!D61,0) -> 0 | L291: 0 | M291: 0 | N291: 0 | O291: 0 | P291: 0 | Q291: 0 | R291: 0 | S291: 0 | T291: 0 | U291: 0 | V291: 0 | W291: 0 | X291: 0 | Y291: 0 | Z291: 0 | AA291: 0 | AB291: 0 | AC291: 0 | AD291: 0 | AE291: 0 | AF291: 0 | AG291: 0 | AH291: 0 | AI291: 0 | AJ291: 0 | AK291: 0 | AL291: 0 | AM291: 0 | AN291: 0 | AO291: 0 | AP291: 0 | AQ291: 0 | AR291: 0 | AS291: 0 | AT291: 0 | AU291: 0 | AV291: 0 | AW291: 0 | AX291: 0 | AY291: 0 | AZ291: 0 | BA291: 0 | BB291: 0 | BC291: 0 | BD291: 0 | BE291: 0 | BF291: 0 | BG291: 0 | BH291: 0 | BI291: 0 | BJ291: 0 | BK291: 0 | BL291: 0 | BM291: 0 | BN291: 0 | BO291: 0 | BP291: 0 | BQ291: 0 | BR291: 0 | BS291: 0 | BT291: 0 | BU291: 0 | BV291: 0 | BW291: 0 | BX291: 0 | BY291: 0 | BZ291: 0 | CA291: 0 | CB291: 0 | CC291: 0 | CD291: 0 | CE291: 0 | CF291: 0 | CG291: 0 | CH291: 0 | CI291: 0 | CJ291: 0 | CK291: 0 | CL291: 0 | CM291: 0 | CN291: 0 | CO291: 0 | CQ291: End Line
B292: =PL!A62 ->  | C292: =IF(PL!B62="","",PL!B62) ->  | D292: =IF(PL!C62="","",PL!C62) ->  | E292: 2016-01-01 | F292: 2016-06-30 | G292: 2016-A | H292: - | J292: =IF(A292="x",PL!D62,0) -> 0 | L292: 0 | M292: 0 | N292: 0 | O292: 0 | P292: 0 | Q292: 0 | R292: 0 | S292: 0 | T292: 0 | U292: 0 | V292: 0 | W292: 0 | X292: 0 | Y292: 0 | Z292: 0 | AA292: 0 | AB292: 0 | AC292: 0 | AD292: 0 | AE292: 0 | AF292: 0 | AG292: 0 | AH292: 0 | AI292: 0 | AJ292: 0 | AK292: 0 | AL292: 0 | AM292: 0 | AN292: 0 | AO292: 0 | AP292: 0 | AQ292: 0 | AR292: 0 | AS292: 0 | AT292: 0 | AU292: 0 | AV292: 0 | AW292: 0 | AX292: 0 | AY292: 0 | AZ292: 0 | BA292: 0 | BB292: 0 | BC292: 0 | BD292: 0 | BE292: 0 | BF292: 0 | BG292: 0 | BH292: 0 | BI292: 0 | BJ292: 0 | BK292: 0 | BL292: 0 | BM292: 0 | BN292: 0 | BO292: 0 | BP292: 0 | BQ292: 0 | BR292: 0 | BS292: 0 | BT292: 0 | BU292: 0 | BV292: 0 | BW292: 0 | BX292: 0 | BY292: 0 | BZ292: 0 | CA292: 0 | CB292: 0 | CC292: 0 | CD292: 0 | CE292: 0 | CF292: 0 | CG292: 0 | CH292: 0 | CI292: 0 | CJ292: 0 | CK292: 0 | CL292: 0 | CM292: 0 | CN292: 0 | CO292: 0 | CQ292: End Line
B293: =PL!A63 ->  | C293: =IF(PL!B63="","",PL!B63) ->  | D293: =IF(PL!C63="","",PL!C63) ->  | E293: 2016-07-01 | F293: 2016-12-31 | G293: 2016-B | H293: - | J293: =IF(A293="x",PL!D63,0) -> 0 | L293: 0 | M293: 0 | N293: 0 | O293: 0 | P293: 0 | Q293: 0 | R293: 0 | S293: 0 | T293: 0 | U293: 0 | V293: 0 | W293: 0 | X293: 0 | Y293: 0 | Z293: 0 | AA293: 0 | AB293: 0 | AC293: 0 | AD293: 0 | AE293: 0 | AF293: 0 | AG293: 0 | AH293: 0 | AI293: 0 | AJ293: 0 | AK293: 0 | AL293: 0 | AM293: 0 | AN293: 0 | AO293: 0 | AP293: 0 | AQ293: 0 | AR293: 0 | AS293: 0 | AT293: 0 | AU293: 0 | AV293: 0 | AW293: 0 | AX293: 0 | AY293: 0 | AZ293: 0 | BA293: 0 | BB293: 0 | BC293: 0 | BD293: 0 | BE293: 0 | BF293: 0 | BG293: 0 | BH293: 0 | BI293: 0 | BJ293: 0 | BK293: 0 | BL293: 0 | BM293: 0 | BN293: 0 | BO293: 0 | BP293: 0 | BQ293: 0 | BR293: 0 | BS293: 0 | BT293: 0 | BU293: 0 | BV293: 0 | BW293: 0 | BX293: 0 | BY293: 0 | BZ293: 0 | CA293: 0 | CB293: 0 | CC293: 0 | CD293: 0 | CE293: 0 | CF293: 0 | CG293: 0 | CH293: 0 | CI293: 0 | CJ293: 0 | CK293: 0 | CL293: 0 | CM293: 0 | CN293: 0 | CO293: 0 | CQ293: End Line
B294: =PL!A64 ->  | C294: =IF(PL!B64="","",PL!B64) ->  | D294: =IF(PL!C64="","",PL!C64) ->  | E294: 2017-01-01 | F294: 2017-06-30 | G294: 2017-A | H294: - | J294: =IF(A294="x",PL!D64,0) -> 0 | L294: 0 | M294: 0 | N294: 0 | O294: 0 | P294: 0 | Q294: 0 | R294: 0 | S294: 0 | T294: 0 | U294: 0 | V294: 0 | W294: 0 | X294: 0 | Y294: 0 | Z294: 0 | AA294: 0 | AB294: 0 | AC294: 0 | AD294: 0 | AE294: 0 | AF294: 0 | AG294: 0 | AH294: 0 | AI294: 0 | AJ294: 0 | AK294: 0 | AL294: 0 | AM294: 0 | AN294: 0 | AO294: 0 | AP294: 0 | AQ294: 0 | AR294: 0 | AS294: 0 | AT294: 0 | AU294: 0 | AV294: 0 | AW294: 0 | AX294: 0 | AY294: 0 | AZ294: 0 | BA294: 0 | BB294: 0 | BC294: 0 | BD294: 0 | BE294: 0 | BF294: 0 | BG294: 0 | BH294: 0 | BI294: 0 | BJ294: 0 | BK294: 0 | BL294: 0 | BM294: 0 | BN294: 0 | BO294: 0 | BP294: 0 | BQ294: 0 | BR294: 0 | BS294: 0 | BT294: 0 | BU294: 0 | BV294: 0 | BW294: 0 | BX294: 0 | BY294: 0 | BZ294: 0 | CA294: 0 | CB294: 0 | CC294: 0 | CD294: 0 | CE294: 0 | CF294: 0 | CG294: 0 | CH294: 0 | CI294: 0 | CJ294: 0 | CK294: 0 | CL294: 0 | CM294: 0 | CN294: 0 | CO294: 0 | CQ294: End Line
B295: =PL!A65 ->  | C295: =IF(PL!B65="","",PL!B65) ->  | D295: =IF(PL!C65="","",PL!C65) ->  | E295: 2017-07-01 | F295: 2017-12-31 | G295: 2017-B | H295: - | J295: =IF(A295="x",PL!D65,0) -> 0 | L295: 0 | M295: 0 | N295: 0 | O295: 0 | P295: 0 | Q295: 0 | R295: 0 | S295: 0 | T295: 0 | U295: 0 | V295: 0 | W295: 0 | X295: 0 | Y295: 0 | Z295: 0 | AA295: 0 | AB295: 0 | AC295: 0 | AD295: 0 | AE295: 0 | AF295: 0 | AG295: 0 | AH295: 0 | AI295: 0 | AJ295: 0 | AK295: 0 | AL295: 0 | AM295: 0 | AN295: 0 | AO295: 0 | AP295: 0 | AQ295: 0 | AR295: 0 | AS295: 0 | AT295: 0 | AU295: 0 | AV295: 0 | AW295: 0 | AX295: 0 | AY295: 0 | AZ295: 0 | BA295: 0 | BB295: 0 | BC295: 0 | BD295: 0 | BE295: 0 | BF295: 0 | BG295: 0 | BH295: 0 | BI295: 0 | BJ295: 0 | BK295: 0 | BL295: 0 | BM295: 0 | BN295: 0 | BO295: 0 | BP295: 0 | BQ295: 0 | BR295: 0 | BS295: 0 | BT295: 0 | BU295: 0 | BV295: 0 | BW295: 0 | BX295: 0 | BY295: 0 | BZ295: 0 | CA295: 0 | CB295: 0 | CC295: 0 | CD295: 0 | CE295: 0 | CF295: 0 | CG295: 0 | CH295: 0 | CI295: 0 | CJ295: 0 | CK295: 0 | CL295: 0 | CM295: 0 | CN295: 0 | CO295: 0 | CQ295: End Line
B296: =PL!A66 ->  | C296: =IF(PL!B66="","",PL!B66) ->  | D296: =IF(PL!C66="","",PL!C66) ->  | E296: 2018-01-01 | F296: 2018-06-30 | G296: 2018-A | H296: - | J296: =IF(A296="x",PL!D66,0) -> 0 | L296: 0 | M296: 0 | N296: 0 | O296: 0 | P296: 0 | Q296: 0 | R296: 0 | S296: 0 | T296: 0 | U296: 0 | V296: 0 | W296: 0 | X296: 0 | Y296: 0 | Z296: 0 | AA296: 0 | AB296: 0 | AC296: 0 | AD296: 0 | AE296: 0 | AF296: 0 | AG296: 0 | AH296: 0 | AI296: 0 | AJ296: 0 | AK296: 0 | AL296: 0 | AM296: 0 | AN296: 0 | AO296: 0 | AP296: 0 | AQ296: 0 | AR296: 0 | AS296: 0 | AT296: 0 | AU296: 0 | AV296: 0 | AW296: 0 | AX296: 0 | AY296: 0 | AZ296: 0 | BA296: 0 | BB296: 0 | BC296: 0 | BD296: 0 | BE296: 0 | BF296: 0 | BG296: 0 | BH296: 0 | BI296: 0 | BJ296: 0 | BK296: 0 | BL296: 0 | BM296: 0 | BN296: 0 | BO296: 0 | BP296: 0 | BQ296: 0 | BR296: 0 | BS296: 0 | BT296: 0 | BU296: 0 | BV296: 0 | BW296: 0 | BX296: 0 | BY296: 0 | BZ296: 0 | CA296: 0 | CB296: 0 | CC296: 0 | CD296: 0 | CE296: 0 | CF296: 0 | CG296: 0 | CH296: 0 | CI296: 0 | CJ296: 0 | CK296: 0 | CL296: 0 | CM296: 0 | CN296: 0 | CO296: 0 | CQ296: End Line
B297: =PL!A67 ->  | C297: =IF(PL!B67="","",PL!B67) ->  | D297: =IF(PL!C67="","",PL!C67) ->  | E297: 2018-07-01 | F297: 2018-12-31 | G297: 2018-B | H297: - | J297: =IF(A297="x",PL!D67,0) -> 0 | L297: 0 | M297: 0 | N297: 0 | O297: 0 | P297: 0 | Q297: 0 | R297: 0 | S297: 0 | T297: 0 | U297: 0 | V297: 0 | W297: 0 | X297: 0 | Y297: 0 | Z297: 0 | AA297: 0 | AB297: 0 | AC297: 0 | AD297: 0 | AE297: 0 | AF297: 0 | AG297: 0 | AH297: 0 | AI297: 0 | AJ297: 0 | AK297: 0 | AL297: 0 | AM297: 0 | AN297: 0 | AO297: 0 | AP297: 0 | AQ297: 0 | AR297: 0 | AS297: 0 | AT297: 0 | AU297: 0 | AV297: 0 | AW297: 0 | AX297: 0 | AY297: 0 | AZ297: 0 | BA297: 0 | BB297: 0 | BC297: 0 | BD297: 0 | BE297: 0 | BF297: 0 | BG297: 0 | BH297: 0 | BI297: 0 | BJ297: 0 | BK297: 0 | BL297: 0 | BM297: 0 | BN297: 0 | BO297: 0 | BP297: 0 | BQ297: 0 | BR297: 0 | BS297: 0 | BT297: 0 | BU297: 0 | BV297: 0 | BW297: 0 | BX297: 0 | BY297: 0 | BZ297: 0 | CA297: 0 | CB297: 0 | CC297: 0 | CD297: 0 | CE297: 0 | CF297: 0 | CG297: 0 | CH297: 0 | CI297: 0 | CJ297: 0 | CK297: 0 | CL297: 0 | CM297: 0 | CN297: 0 | CO297: 0 | CQ297: End Line
B298: =PL!A68 ->  | C298: =IF(PL!B68="","",PL!B68) ->  | D298: =IF(PL!C68="","",PL!C68) ->  | E298: 2019-01-01 | F298: 2019-06-30 | G298: 2019-A | H298: - | J298: =IF(A298="x",PL!D68,0) -> 0 | L298: 0 | M298: 0 | N298: 0 | O298: 0 | P298: 0 | Q298: 0 | R298: 0 | S298: 0 | T298: 0 | U298: 0 | V298: 0 | W298: 0 | X298: 0 | Y298: 0 | Z298: 0 | AA298: 0 | AB298: 0 | AC298: 0 | AD298: 0 | AE298: 0 | AF298: 0 | AG298: 0 | AH298: 0 | AI298: 0 | AJ298: 0 | AK298: 0 | AL298: 0 | AM298: 0 | AN298: 0 | AO298: 0 | AP298: 0 | AQ298: 0 | AR298: 0 | AS298: 0 | AT298: 0 | AU298: 0 | AV298: 0 | AW298: 0 | AX298: 0 | AY298: 0 | AZ298: 0 | BA298: 0 | BB298: 0 | BC298: 0 | BD298: 0 | BE298: 0 | BF298: 0 | BG298: 0 | BH298: 0 | BI298: 0 | BJ298: 0 | BK298: 0 | BL298: 0 | BM298: 0 | BN298: 0 | BO298: 0 | BP298: 0 | BQ298: 0 | BR298: 0 | BS298: 0 | BT298: 0 | BU298: 0 | BV298: 0 | BW298: 0 | BX298: 0 | BY298: 0 | BZ298: 0 | CA298: 0 | CB298: 0 | CC298: 0 | CD298: 0 | CE298: 0 | CF298: 0 | CG298: 0 | CH298: 0 | CI298: 0 | CJ298: 0 | CK298: 0 | CL298: 0 | CM298: 0 | CN298: 0 | CO298: 0 | CQ298: End Line
B299: =PL!A69 ->  | C299: =IF(PL!B69="","",PL!B69) ->  | D299: =IF(PL!C69="","",PL!C69) ->  | E299: 2019-07-01 | F299: 2019-12-31 | G299: 2019-B | H299: - | J299: =IF(A299="x",PL!D69,0) -> 0 | L299: 0 | M299: 0 | N299: 0 | O299: 0 | P299: 0 | Q299: 0 | R299: 0 | S299: 0 | T299: 0 | U299: 0 | V299: 0 | W299: 0 | X299: 0 | Y299: 0 | Z299: 0 | AA299: 0 | AB299: 0 | AC299: 0 | AD299: 0 | AE299: 0 | AF299: 0 | AG299: 0 | AH299: 0 | AI299: 0 | AJ299: 0 | AK299: 0 | AL299: 0 | AM299: 0 | AN299: 0 | AO299: 0 | AP299: 0 | AQ299: 0 | AR299: 0 | AS299: 0 | AT299: 0 | AU299: 0 | AV299: 0 | AW299: 0 | AX299: 0 | AY299: 0 | AZ299: 0 | BA299: 0 | BB299: 0 | BC299: 0 | BD299: 0 | BE299: 0 | BF299: 0 | BG299: 0 | BH299: 0 | BI299: 0 | BJ299: 0 | BK299: 0 | BL299: 0 | BM299: 0 | BN299: 0 | BO299: 0 | BP299: 0 | BQ299: 0 | BR299: 0 | BS299: 0 | BT299: 0 | BU299: 0 | BV299: 0 | BW299: 0 | BX299: 0 | BY299: 0 | BZ299: 0 | CA299: 0 | CB299: 0 | CC299: 0 | CD299: 0 | CE299: 0 | CF299: 0 | CG299: 0 | CH299: 0 | CI299: 0 | CJ299: 0 | CK299: 0 | CL299: 0 | CM299: 0 | CN299: 0 | CO299: 0 | CQ299: End Line
B300: =PL!A70 ->  | C300: =IF(PL!B70="","",PL!B70) ->  | D300: =IF(PL!C70="","",PL!C70) ->  | E300: 2020-01-01 | F300: 2020-06-30 | G300: 2020-A | H300: - | J300: =IF(A300="x",PL!D70,0) -> 0 | L300: 0 | M300: 0 | N300: 0 | O300: 0 | P300: 0 | Q300: 0 | R300: 0 | S300: 0 | T300: 0 | U300: 0 | V300: 0 | W300: 0 | X300: 0 | Y300: 0 | Z300: 0 | AA300: 0 | AB300: 0 | AC300: 0 | AD300: 0 | AE300: 0 | AF300: 0 | AG300: 0 | AH300: 0 | AI300: 0 | AJ300: 0 | AK300: 0 | AL300: 0 | AM300: 0 | AN300: 0 | AO300: 0 | AP300: 0 | AQ300: 0 | AR300: 0 | AS300: 0 | AT300: 0 | AU300: 0 | AV300: 0 | AW300: 0 | AX300: 0 | AY300: 0 | AZ300: 0 | BA300: 0 | BB300: 0 | BC300: 0 | BD300: 0 | BE300: 0 | BF300: 0 | BG300: 0 | BH300: 0 | BI300: 0 | BJ300: 0 | BK300: 0 | BL300: 0 | BM300: 0 | BN300: 0 | BO300: 0 | BP300: 0 | BQ300: 0 | BR300: 0 | BS300: 0 | BT300: 0 | BU300: 0 | BV300: 0 | BW300: 0 | BX300: 0 | BY300: 0 | BZ300: 0 | CA300: 0 | CB300: 0 | CC300: 0 | CD300: 0 | CE300: 0 | CF300: 0 | CG300: 0 | CH300: 0 | CI300: 0 | CJ300: 0 | CK300: 0 | CL300: 0 | CM300: 0 | CN300: 0 | CO300: 0 | CQ300: End Line
B301: =PL!A71 ->  | C301: =IF(PL!B71="","",PL!B71) ->  | D301: =IF(PL!C71="","",PL!C71) ->  | E301: 2020-07-01 | F301: 2020-12-31 | G301: 2020-B | H301: - | J301: =IF(A301="x",PL!D71,0) -> 0 | L301: 0 | M301: 0 | N301: 0 | O301: 0 | P301: 0 | Q301: 0 | R301: 0 | S301: 0 | T301: 0 | U301: 0 | V301: 0 | W301: 0 | X301: 0 | Y301: 0 | Z301: 0 | AA301: 0 | AB301: 0 | AC301: 0 | AD301: 0 | AE301: 0 | AF301: 0 | AG301: 0 | AH301: 0 | AI301: 0 | AJ301: 0 | AK301: 0 | AL301: 0 | AM301: 0 | AN301: 0 | AO301: 0 | AP301: 0 | AQ301: 0 | AR301: 0 | AS301: 0 | AT301: 0 | AU301: 0 | AV301: 0 | AW301: 0 | AX301: 0 | AY301: 0 | AZ301: 0 | BA301: 0 | BB301: 0 | BC301: 0 | BD301: 0 | BE301: 0 | BF301: 0 | BG301: 0 | BH301: 0 | BI301: 0 | BJ301: 0 | BK301: 0 | BL301: 0 | BM301: 0 | BN301: 0 | BO301: 0 | BP301: 0 | BQ301: 0 | BR301: 0 | BS301: 0 | BT301: 0 | BU301: 0 | BV301: 0 | BW301: 0 | BX301: 0 | BY301: 0 | BZ301: 0 | CA301: 0 | CB301: 0 | CC301: 0 | CD301: 0 | CE301: 0 | CF301: 0 | CG301: 0 | CH301: 0 | CI301: 0 | CJ301: 0 | CK301: 0 | CL301: 0 | CM301: 0 | CN301: 0 | CO301: 0 | CQ301: End Line
B302: =PL!A72 ->  | C302: =IF(PL!B72="","",PL!B72) ->  | D302: =IF(PL!C72="","",PL!C72) ->  | E302: 2021-01-01 | F302: 2021-06-30 | G302: 2021-A | H302: - | J302: =IF(A302="x",PL!D72,0) -> 0 | L302: 0 | M302: 0 | N302: 0 | O302: 0 | P302: 0 | Q302: 0 | R302: 0 | S302: 0 | T302: 0 | U302: 0 | V302: 0 | W302: 0 | X302: 0 | Y302: 0 | Z302: 0 | AA302: 0 | AB302: 0 | AC302: 0 | AD302: 0 | AE302: 0 | AF302: 0 | AG302: 0 | AH302: 0 | AI302: 0 | AJ302: 0 | AK302: 0 | AL302: 0 | AM302: 0 | AN302: 0 | AO302: 0 | AP302: 0 | AQ302: 0 | AR302: 0 | AS302: 0 | AT302: 0 | AU302: 0 | AV302: 0 | AW302: 0 | AX302: 0 | AY302: 0 | AZ302: 0 | BA302: 0 | BB302: 0 | BC302: 0 | BD302: 0 | BE302: 0 | BF302: 0 | BG302: 0 | BH302: 0 | BI302: 0 | BJ302: 0 | BK302: 0 | BL302: 0 | BM302: 0 | BN302: 0 | BO302: 0 | BP302: 0 | BQ302: 0 | BR302: 0 | BS302: 0 | BT302: 0 | BU302: 0 | BV302: 0 | BW302: 0 | BX302: 0 | BY302: 0 | BZ302: 0 | CA302: 0 | CB302: 0 | CC302: 0 | CD302: 0 | CE302: 0 | CF302: 0 | CG302: 0 | CH302: 0 | CI302: 0 | CJ302: 0 | CK302: 0 | CL302: 0 | CM302: 0 | CN302: 0 | CO302: 0 | CQ302: End Line
B303: =PL!A73 ->  | C303: =IF(PL!B73="","",PL!B73) ->  | D303: =IF(PL!C73="","",PL!C73) ->  | E303: 2021-07-01 | F303: 2021-12-31 | G303: 2021-B | H303: - | J303: =IF(A303="x",PL!D73,0) -> 0 | L303: 0 | M303: 0 | N303: 0 | O303: 0 | P303: 0 | Q303: 0 | R303: 0 | S303: 0 | T303: 0 | U303: 0 | V303: 0 | W303: 0 | X303: 0 | Y303: 0 | Z303: 0 | AA303: 0 | AB303: 0 | AC303: 0 | AD303: 0 | AE303: 0 | AF303: 0 | AG303: 0 | AH303: 0 | AI303: 0 | AJ303: 0 | AK303: 0 | AL303: 0 | AM303: 0 | AN303: 0 | AO303: 0 | AP303: 0 | AQ303: 0 | AR303: 0 | AS303: 0 | AT303: 0 | AU303: 0 | AV303: 0 | AW303: 0 | AX303: 0 | AY303: 0 | AZ303: 0 | BA303: 0 | BB303: 0 | BC303: 0 | BD303: 0 | BE303: 0 | BF303: 0 | BG303: 0 | BH303: 0 | BI303: 0 | BJ303: 0 | BK303: 0 | BL303: 0 | BM303: 0 | BN303: 0 | BO303: 0 | BP303: 0 | BQ303: 0 | BR303: 0 | BS303: 0 | BT303: 0 | BU303: 0 | BV303: 0 | BW303: 0 | BX303: 0 | BY303: 0 | BZ303: 0 | CA303: 0 | CB303: 0 | CC303: 0 | CD303: 0 | CE303: 0 | CF303: 0 | CG303: 0 | CH303: 0 | CI303: 0 | CJ303: 0 | CK303: 0 | CL303: 0 | CM303: 0 | CN303: 0 | CO303: 0 | CQ303: End Line
B304: =PL!A74 ->  | C304: =IF(PL!B74="","",PL!B74) ->  | D304: =IF(PL!C74="","",PL!C74) ->  | E304: 2022-01-01 | F304: 2022-06-30 | G304: 2022-A | H304: - | J304: =IF(A304="x",PL!D74,0) -> 0 | L304: 0 | M304: 0 | N304: 0 | O304: 0 | P304: 0 | Q304: 0 | R304: 0 | S304: 0 | T304: 0 | U304: 0 | V304: 0 | W304: 0 | X304: 0 | Y304: 0 | Z304: 0 | AA304: 0 | AB304: 0 | AC304: 0 | AD304: 0 | AE304: 0 | AF304: 0 | AG304: 0 | AH304: 0 | AI304: 0 | AJ304: 0 | AK304: 0 | AL304: 0 | AM304: 0 | AN304: 0 | AO304: 0 | AP304: 0 | AQ304: 0 | AR304: 0 | AS304: 0 | AT304: 0 | AU304: 0 | AV304: 0 | AW304: 0 | AX304: 0 | AY304: 0 | AZ304: 0 | BA304: 0 | BB304: 0 | BC304: 0 | BD304: 0 | BE304: 0 | BF304: 0 | BG304: 0 | BH304: 0 | BI304: 0 | BJ304: 0 | BK304: 0 | BL304: 0 | BM304: 0 | BN304: 0 | BO304: 0 | BP304: 0 | BQ304: 0 | BR304: 0 | BS304: 0 | BT304: 0 | BU304: 0 | BV304: 0 | BW304: 0 | BX304: 0 | BY304: 0 | BZ304: 0 | CA304: 0 | CB304: 0 | CC304: 0 | CD304: 0 | CE304: 0 | CF304: 0 | CG304: 0 | CH304: 0 | CI304: 0 | CJ304: 0 | CK304: 0 | CL304: 0 | CM304: 0 | CN304: 0 | CO304: 0 | CQ304: End Line
B305: =PL!A75 ->  | C305: =IF(PL!B75="","",PL!B75) ->  | D305: =IF(PL!C75="","",PL!C75) ->  | E305: 2022-07-01 | F305: 2022-12-31 | G305: 2022-B | H305: - | J305: =IF(A305="x",PL!D75,0) -> 0 | L305: 0 | M305: 0 | N305: 0 | O305: 0 | P305: 0 | Q305: 0 | R305: 0 | S305: 0 | T305: 0 | U305: 0 | V305: 0 | W305: 0 | X305: 0 | Y305: 0 | Z305: 0 | AA305: 0 | AB305: 0 | AC305: 0 | AD305: 0 | AE305: 0 | AF305: 0 | AG305: 0 | AH305: 0 | AI305: 0 | AJ305: 0 | AK305: 0 | AL305: 0 | AM305: 0 | AN305: 0 | AO305: 0 | AP305: 0 | AQ305: 0 | AR305: 0 | AS305: 0 | AT305: 0 | AU305: 0 | AV305: 0 | AW305: 0 | AX305: 0 | AY305: 0 | AZ305: 0 | BA305: 0 | BB305: 0 | BC305: 0 | BD305: 0 | BE305: 0 | BF305: 0 | BG305: 0 | BH305: 0 | BI305: 0 | BJ305: 0 | BK305: 0 | BL305: 0 | BM305: 0 | BN305: 0 | BO305: 0 | BP305: 0 | BQ305: 0 | BR305: 0 | BS305: 0 | BT305: 0 | BU305: 0 | BV305: 0 | BW305: 0 | BX305: 0 | BY305: 0 | BZ305: 0 | CA305: 0 | CB305: 0 | CC305: 0 | CD305: 0 | CE305: 0 | CF305: 0 | CG305: 0 | CH305: 0 | CI305: 0 | CJ305: 0 | CK305: 0 | CL305: 0 | CM305: 0 | CN305: 0 | CO305: 0 | CQ305: End Line
B306: =PL!A76 ->  | C306: =IF(PL!B76="","",PL!B76) ->  | D306: =IF(PL!C76="","",PL!C76) ->  | E306: 2023-01-01 | F306: 2023-06-30 | G306: 2023-A | H306: - | J306: =IF(A306="x",PL!D76,0) -> 0 | L306: 0 | M306: 0 | N306: 0 | O306: 0 | P306: 0 | Q306: 0 | R306: 0 | S306: 0 | T306: 0 | U306: 0 | V306: 0 | W306: 0 | X306: 0 | Y306: 0 | Z306: 0 | AA306: 0 | AB306: 0 | AC306: 0 | AD306: 0 | AE306: 0 | AF306: 0 | AG306: 0 | AH306: 0 | AI306: 0 | AJ306: 0 | AK306: 0 | AL306: 0 | AM306: 0 | AN306: 0 | AO306: 0 | AP306: 0 | AQ306: 0 | AR306: 0 | AS306: 0 | AT306: 0 | AU306: 0 | AV306: 0 | AW306: 0 | AX306: 0 | AY306: 0 | AZ306: 0 | BA306: 0 | BB306: 0 | BC306: 0 | BD306: 0 | BE306: 0 | BF306: 0 | BG306: 0 | BH306: 0 | BI306: 0 | BJ306: 0 | BK306: 0 | BL306: 0 | BM306: 0 | BN306: 0 | BO306: 0 | BP306: 0 | BQ306: 0 | BR306: 0 | BS306: 0 | BT306: 0 | BU306: 0 | BV306: 0 | BW306: 0 | BX306: 0 | BY306: 0 | BZ306: 0 | CA306: 0 | CB306: 0 | CC306: 0 | CD306: 0 | CE306: 0 | CF306: 0 | CG306: 0 | CH306: 0 | CI306: 0 | CJ306: 0 | CK306: 0 | CL306: 0 | CM306: 0 | CN306: 0 | CO306: 0 | CQ306: End Line
B307: =PL!A77 ->  | C307: =IF(PL!B77="","",PL!B77) ->  | D307: =IF(PL!C77="","",PL!C77) ->  | E307: 2023-07-01 | F307: 2023-08-31 | G307: 2023-B | H307: - | J307: =IF(A307="x",PL!D77,0) -> 0 | L307: 0 | M307: 0 | N307: 0 | O307: 0 | P307: 0 | Q307: 0 | R307: 0 | S307: 0 | T307: 0 | U307: 0 | V307: 0 | W307: 0 | X307: 0 | Y307: 0 | Z307: 0 | AA307: 0 | AB307: 0 | AC307: 0 | AD307: 0 | AE307: 0 | AF307: 0 | AG307: 0 | AH307: 0 | AI307: 0 | AJ307: 0 | AK307: 0 | AL307: 0 | AM307: 0 | AN307: 0 | AO307: 0 | AP307: 0 | AQ307: 0 | AR307: 0 | AS307: 0 | AT307: 0 | AU307: 0 | AV307: 0 | AW307: 0 | AX307: 0 | AY307: 0 | AZ307: 0 | BA307: 0 | BB307: 0 | BC307: 0 | BD307: 0 | BE307: 0 | BF307: 0 | BG307: 0 | BH307: 0 | BI307: 0 | BJ307: 0 | BK307: 0 | BL307: 0 | BM307: 0 | BN307: 0 | BO307: 0 | BP307: 0 | BQ307: 0 | BR307: 0 | BS307: 0 | BT307: 0 | BU307: 0 | BV307: 0 | BW307: 0 | BX307: 0 | BY307: 0 | BZ307: 0 | CA307: 0 | CB307: 0 | CC307: 0 | CD307: 0 | CE307: 0 | CF307: 0 | CG307: 0 | CH307: 0 | CI307: 0 | CJ307: 0 | CK307: 0 | CL307: 0 | CM307: 0 | CN307: 0 | CO307: 0 | CQ307: End Line
B308: =PL!A78 ->  | C308: =IF(PL!B78="","",PL!B78) ->  | D308: =IF(PL!C78="","",PL!C78) ->  | G308: - | H308: - | J308: =IF(A308="x",PL!D78,0) -> 0 | L308: 0 | M308: 0 | N308: 0 | O308: 0 | P308: 0 | Q308: 0 | R308: 0 | S308: 0 | T308: 0 | U308: 0 | V308: 0 | W308: 0 | X308: 0 | Y308: 0 | Z308: 0 | AA308: 0 | AB308: 0 | AC308: 0 | AD308: 0 | AE308: 0 | AF308: 0 | AG308: 0 | AH308: 0 | AI308: 0 | AJ308: 0 | AK308: 0 | AL308: 0 | AM308: 0 | AN308: 0 | AO308: 0 | AP308: 0 | AQ308: 0 | AR308: 0 | AS308: 0 | AT308: 0 | AU308: 0 | AV308: 0 | AW308: 0 | AX308: 0 | AY308: 0 | AZ308: 0 | BA308: 0 | BB308: 0 | BC308: 0 | BD308: 0 | BE308: 0 | BF308: 0 | BG308: 0 | BH308: 0 | BI308: 0 | BJ308: 0 | BK308: 0 | BL308: 0 | BM308: 0 | BN308: 0 | BO308: 0 | BP308: 0 | BQ308: 0 | BR308: 0 | BS308: 0 | BT308: 0 | BU308: 0 | BV308: 0 | BW308: 0 | BX308: 0 | BY308: 0 | BZ308: 0 | CA308: 0 | CB308: 0 | CC308: 0 | CD308: 0 | CE308: 0 | CF308: 0 | CG308: 0 | CH308: 0 | CI308: 0 | CJ308: 0 | CK308: 0 | CL308: 0 | CM308: 0 | CN308: 0 | CO308: 0 | CQ308: End Line
B309: =PL!A79 ->  | C309: =IF(PL!B79="","",PL!B79) ->  | D309: =IF(PL!C79="","",PL!C79) ->  | G309: - | H309: - | J309: =IF(A309="x",PL!D79,0) -> 0 | L309: 0 | M309: 0 | N309: 0 | O309: 0 | P309: 0 | Q309: 0 | R309: 0 | S309: 0 | T309: 0 | U309: 0 | V309: 0 | W309: 0 | X309: 0 | Y309: 0 | Z309: 0 | AA309: 0 | AB309: 0 | AC309: 0 | AD309: 0 | AE309: 0 | AF309: 0 | AG309: 0 | AH309: 0 | AI309: 0 | AJ309: 0 | AK309: 0 | AL309: 0 | AM309: 0 | AN309: 0 | AO309: 0 | AP309: 0 | AQ309: 0 | AR309: 0 | AS309: 0 | AT309: 0 | AU309: 0 | AV309: 0 | AW309: 0 | AX309: 0 | AY309: 0 | AZ309: 0 | BA309: 0 | BB309: 0 | BC309: 0 | BD309: 0 | BE309: 0 | BF309: 0 | BG309: 0 | BH309: 0 | BI309: 0 | BJ309: 0 | BK309: 0 | BL309: 0 | BM309: 0 | BN309: 0 | BO309: 0 | BP309: 0 | BQ309: 0 | BR309: 0 | BS309: 0 | BT309: 0 | BU309: 0 | BV309: 0 | BW309: 0 | BX309: 0 | BY309: 0 | BZ309: 0 | CA309: 0 | CB309: 0 | CC309: 0 | CD309: 0 | CE309: 0 | CF309: 0 | CG309: 0 | CH309: 0 | CI309: 0 | CJ309: 0 | CK309: 0 | CL309: 0 | CM309: 0 | CN309: 0 | CO309: 0 | CQ309: End Line
B310: =PL!A80 ->  | C310: =IF(PL!B80="","",PL!B80) ->  | D310: =IF(PL!C80="","",PL!C80) ->  | G310: - | H310: - | J310: =IF(A310="x",PL!D80,0) -> 0 | L310: 0 | M310: 0 | N310: 0 | O310: 0 | P310: 0 | Q310: 0 | R310: 0 | S310: 0 | T310: 0 | U310: 0 | V310: 0 | W310: 0 | X310: 0 | Y310: 0 | Z310: 0 | AA310: 0 | AB310: 0 | AC310: 0 | AD310: 0 | AE310: 0 | AF310: 0 | AG310: 0 | AH310: 0 | AI310: 0 | AJ310: 0 | AK310: 0 | AL310: 0 | AM310: 0 | AN310: 0 | AO310: 0 | AP310: 0 | AQ310: 0 | AR310: 0 | AS310: 0 | AT310: 0 | AU310: 0 | AV310: 0 | AW310: 0 | AX310: 0 | AY310: 0 | AZ310: 0 | BA310: 0 | BB310: 0 | BC310: 0 | BD310: 0 | BE310: 0 | BF310: 0 | BG310: 0 | BH310: 0 | BI310: 0 | BJ310: 0 | BK310: 0 | BL310: 0 | BM310: 0 | BN310: 0 | BO310: 0 | BP310: 0 | BQ310: 0 | BR310: 0 | BS310: 0 | BT310: 0 | BU310: 0 | BV310: 0 | BW310: 0 | BX310: 0 | BY310: 0 | BZ310: 0 | CA310: 0 | CB310: 0 | CC310: 0 | CD310: 0 | CE310: 0 | CF310: 0 | CG310: 0 | CH310: 0 | CI310: 0 | CJ310: 0 | CK310: 0 | CL310: 0 | CM310: 0 | CN310: 0 | CO310: 0 | CQ310: End Line
B311: =PL!A81 ->  | C311: =IF(PL!B81="","",PL!B81) ->  | D311: =IF(PL!C81="","",PL!C81) ->  | G311: - | H311: - | J311: =IF(A311="x",PL!D81,0) -> 0 | L311: 0 | M311: 0 | N311: 0 | O311: 0 | P311: 0 | Q311: 0 | R311: 0 | S311: 0 | T311: 0 | U311: 0 | V311: 0 | W311: 0 | X311: 0 | Y311: 0 | Z311: 0 | AA311: 0 | AB311: 0 | AC311: 0 | AD311: 0 | AE311: 0 | AF311: 0 | AG311: 0 | AH311: 0 | AI311: 0 | AJ311: 0 | AK311: 0 | AL311: 0 | AM311: 0 | AN311: 0 | AO311: 0 | AP311: 0 | AQ311: 0 | AR311: 0 | AS311: 0 | AT311: 0 | AU311: 0 | AV311: 0 | AW311: 0 | AX311: 0 | AY311: 0 | AZ311: 0 | BA311: 0 | BB311: 0 | BC311: 0 | BD311: 0 | BE311: 0 | BF311: 0 | BG311: 0 | BH311: 0 | BI311: 0 | BJ311: 0 | BK311: 0 | BL311: 0 | BM311: 0 | BN311: 0 | BO311: 0 | BP311: 0 | BQ311: 0 | BR311: 0 | BS311: 0 | BT311: 0 | BU311: 0 | BV311: 0 | BW311: 0 | BX311: 0 | BY311: 0 | BZ311: 0 | CA311: 0 | CB311: 0 | CC311: 0 | CD311: 0 | CE311: 0 | CF311: 0 | CG311: 0 | CH311: 0 | CI311: 0 | CJ311: 0 | CK311: 0 | CL311: 0 | CM311: 0 | CN311: 0 | CO311: 0 | CQ311: End Line
B312: =PL!A82 ->  | C312: =IF(PL!B82="","",PL!B82) ->  | D312: =IF(PL!C82="","",PL!C82) ->  | G312: - | H312: - | J312: =IF(A312="x",PL!D82,0) -> 0 | L312: 0 | M312: 0 | N312: 0 | O312: 0 | P312: 0 | Q312: 0 | R312: 0 | S312: 0 | T312: 0 | U312: 0 | V312: 0 | W312: 0 | X312: 0 | Y312: 0 | Z312: 0 | AA312: 0 | AB312: 0 | AC312: 0 | AD312: 0 | AE312: 0 | AF312: 0 | AG312: 0 | AH312: 0 | AI312: 0 | AJ312: 0 | AK312: 0 | AL312: 0 | AM312: 0 | AN312: 0 | AO312: 0 | AP312: 0 | AQ312: 0 | AR312: 0 | AS312: 0 | AT312: 0 | AU312: 0 | AV312: 0 | AW312: 0 | AX312: 0 | AY312: 0 | AZ312: 0 | BA312: 0 | BB312: 0 | BC312: 0 | BD312: 0 | BE312: 0 | BF312: 0 | BG312: 0 | BH312: 0 | BI312: 0 | BJ312: 0 | BK312: 0 | BL312: 0 | BM312: 0 | BN312: 0 | BO312: 0 | BP312: 0 | BQ312: 0 | BR312: 0 | BS312: 0 | BT312: 0 | BU312: 0 | BV312: 0 | BW312: 0 | BX312: 0 | BY312: 0 | BZ312: 0 | CA312: 0 | CB312: 0 | CC312: 0 | CD312: 0 | CE312: 0 | CF312: 0 | CG312: 0 | CH312: 0 | CI312: 0 | CJ312: 0 | CK312: 0 | CL312: 0 | CM312: 0 | CN312: 0 | CO312: 0 | CQ312: End Line
B313: =PL!A83 ->  | C313: =IF(PL!B83="","",PL!B83) ->  | D313: =IF(PL!C83="","",PL!C83) ->  | G313: - | H313: - | J313: =IF(A313="x",PL!D83,0) -> 0 | L313: 0 | M313: 0 | N313: 0 | O313: 0 | P313: 0 | Q313: 0 | R313: 0 | S313: 0 | T313: 0 | U313: 0 | V313: 0 | W313: 0 | X313: 0 | Y313: 0 | Z313: 0 | AA313: 0 | AB313: 0 | AC313: 0 | AD313: 0 | AE313: 0 | AF313: 0 | AG313: 0 | AH313: 0 | AI313: 0 | AJ313: 0 | AK313: 0 | AL313: 0 | AM313: 0 | AN313: 0 | AO313: 0 | AP313: 0 | AQ313: 0 | AR313: 0 | AS313: 0 | AT313: 0 | AU313: 0 | AV313: 0 | AW313: 0 | AX313: 0 | AY313: 0 | AZ313: 0 | BA313: 0 | BB313: 0 | BC313: 0 | BD313: 0 | BE313: 0 | BF313: 0 | BG313: 0 | BH313: 0 | BI313: 0 | BJ313: 0 | BK313: 0 | BL313: 0 | BM313: 0 | BN313: 0 | BO313: 0 | BP313: 0 | BQ313: 0 | BR313: 0 | BS313: 0 | BT313: 0 | BU313: 0 | BV313: 0 | BW313: 0 | BX313: 0 | BY313: 0 | BZ313: 0 | CA313: 0 | CB313: 0 | CC313: 0 | CD313: 0 | CE313: 0 | CF313: 0 | CG313: 0 | CH313: 0 | CI313: 0 | CJ313: 0 | CK313: 0 | CL313: 0 | CM313: 0 | CN313: 0 | CO313: 0 | CQ313: End Line
B314: =PL!A84 ->  | C314: =IF(PL!B84="","",PL!B84) ->  | D314: =IF(PL!C84="","",PL!C84) ->  | G314: - | H314: - | J314: =IF(A314="x",PL!D84,0) -> 0 | L314: 0 | M314: 0 | N314: 0 | O314: 0 | P314: 0 | Q314: 0 | R314: 0 | S314: 0 | T314: 0 | U314: 0 | V314: 0 | W314: 0 | X314: 0 | Y314: 0 | Z314: 0 | AA314: 0 | AB314: 0 | AC314: 0 | AD314: 0 | AE314: 0 | AF314: 0 | AG314: 0 | AH314: 0 | AI314: 0 | AJ314: 0 | AK314: 0 | AL314: 0 | AM314: 0 | AN314: 0 | AO314: 0 | AP314: 0 | AQ314: 0 | AR314: 0 | AS314: 0 | AT314: 0 | AU314: 0 | AV314: 0 | AW314: 0 | AX314: 0 | AY314: 0 | AZ314: 0 | BA314: 0 | BB314: 0 | BC314: 0 | BD314: 0 | BE314: 0 | BF314: 0 | BG314: 0 | BH314: 0 | BI314: 0 | BJ314: 0 | BK314: 0 | BL314: 0 | BM314: 0 | BN314: 0 | BO314: 0 | BP314: 0 | BQ314: 0 | BR314: 0 | BS314: 0 | BT314: 0 | BU314: 0 | BV314: 0 | BW314: 0 | BX314: 0 | BY314: 0 | BZ314: 0 | CA314: 0 | CB314: 0 | CC314: 0 | CD314: 0 | CE314: 0 | CF314: 0 | CG314: 0 | CH314: 0 | CI314: 0 | CJ314: 0 | CK314: 0 | CL314: 0 | CM314: 0 | CN314: 0 | CO314: 0 | CQ314: End Line
B315: =PL!A85 ->  | C315: =IF(PL!B85="","",PL!B85) ->  | D315: =IF(PL!C85="","",PL!C85) ->  | G315: - | H315: - | J315: =IF(A315="x",PL!D85,0) -> 0 | L315: 0 | M315: 0 | N315: 0 | O315: 0 | P315: 0 | Q315: 0 | R315: 0 | S315: 0 | T315: 0 | U315: 0 | V315: 0 | W315: 0 | X315: 0 | Y315: 0 | Z315: 0 | AA315: 0 | AB315: 0 | AC315: 0 | AD315: 0 | AE315: 0 | AF315: 0 | AG315: 0 | AH315: 0 | AI315: 0 | AJ315: 0 | AK315: 0 | AL315: 0 | AM315: 0 | AN315: 0 | AO315: 0 | AP315: 0 | AQ315: 0 | AR315: 0 | AS315: 0 | AT315: 0 | AU315: 0 | AV315: 0 | AW315: 0 | AX315: 0 | AY315: 0 | AZ315: 0 | BA315: 0 | BB315: 0 | BC315: 0 | BD315: 0 | BE315: 0 | BF315: 0 | BG315: 0 | BH315: 0 | BI315: 0 | BJ315: 0 | BK315: 0 | BL315: 0 | BM315: 0 | BN315: 0 | BO315: 0 | BP315: 0 | BQ315: 0 | BR315: 0 | BS315: 0 | BT315: 0 | BU315: 0 | BV315: 0 | BW315: 0 | BX315: 0 | BY315: 0 | BZ315: 0 | CA315: 0 | CB315: 0 | CC315: 0 | CD315: 0 | CE315: 0 | CF315: 0 | CG315: 0 | CH315: 0 | CI315: 0 | CJ315: 0 | CK315: 0 | CL315: 0 | CM315: 0 | CN315: 0 | CO315: 0 | CQ315: End Line
A316: =IF(AND(D316>=$D$11,D316<=$B$10),"x","") ->  | B316: =PL!A86 ->  | C316: =IF(PL!B86="","",PL!B86) ->  | D316: =IF(PL!C86="","",PL!C86) ->  | E316: =G76 ->  | F316: =H76 ->  | G316: =K76 -> - | H316: =VLOOKUP(D316,$E$252:$G$334,3) -> - | J316: =IF(A316="x",PL!D86,0) -> 0 | K316: =IF(C316="","",H316) ->  | L316: =IF(K316=$L$249,J316,0) -> 0 | M316: =IF(K316=$M$249,J316,0) -> 0 | N316: 0 | O316: =IF(K316=$O$249,J316,0) -> 0 | P316: =IF(K316=$P$249,J316,0) -> 0 | Q316: =IF(K316=$Q$249,J316,0) -> 0 | R316: =IF(K316=$R$249,J316,0) -> 0 | S316: =IF(K316=$S$249,J316,0) -> 0 | T316: =IF(K316=$T$249,J316,0) -> 0 | U316: =IF(K316=$U$249,J316,0) -> 0 | V316: =IF(K316=$V$249,J316,0) -> 0 | W316: =IF(K316=$W$249,J316,0) -> 0 | X316: =IF(K316=$X$249,J316,0) -> 0 | Y316: =IF(K316=$Y$249,J316,0) -> 0 | Z316: =IF(K316=$Z$249,J316,0) -> 0 | AA316: =IF(K316=$AA$249,J316,0) -> 0 | AB316: =IF(K316=$AB$249,J316,0) -> 0 | AC316: =IF(K316=$AC$249,J316,0) -> 0 | AD316: =IF(K316=$AD$249,J316,0) -> 0 | AE316: =IF(K316=$AE$249,J316,0) -> 0 | AF316: =IF(K316=$AF$249,J316,0) -> 0 | AG316: =IF(K316=$AG$249,J316,0) -> 0 | AH316: =IF(K316=$AH$249,J316,0) -> 0 | AI316: =IF(K316=$AI$249,J316,0) -> 0 | AJ316: =IF(K316=$AJ$249,J316,0) -> 0 | AK316: =IF(K316=$AK$249,J316,0) -> 0 | AL316: =IF(K316=$AL$249,J316,0) -> 0 | AM316: =IF(K316=$AM$249,J316,0) -> 0 | AN316: =IF(K316=$AN$249,J316,0) -> 0 | AO316: =IF(K316=$AO$249,J316,0) -> 0 | AP316: =IF(K316=$AP$249,J316,0) -> 0 | AQ316: =IF(K316=$AQ$249,J316,0) -> 0 | AR316: =IF(K316=$AR$249,J316,0) -> 0 | AS316: =IF(K316=$AS$249,J316,0) -> 0 | AT316: =IF(K316=$AT$249,J316,0) -> 0 | AU316: =IF(K316=$AU$249,J316,0) -> 0 | AV316: =IF(K316=$AV$249,J316,0) -> 0 | AW316: =IF(K316=$AW$249,J316,0) -> 0 | AX316: =IF(K316=$AX$249,J316,0) -> 0 | AY316: =IF(K316=$AY$249,J316,0) -> 0 | AZ316: =IF(K316=$AZ$249,J316,0) -> 0 | BA316: =IF(K316=$BA$249,J316,0) -> 0 | BB316: =IF(K316=$BB$249,J316,0) -> 0 | BC316: =IF(K316=$BC$249,J316,0) -> 0 | BD316: =IF(K316=$BD$249,J316,0) -> 0 | BE316: =IF(K316=$BE$249,J316,0) -> 0 | BF316: =IF(K316=$BF$249,J316,0) -> 0 | BG316: =IF(K316=$BG$249,J316,0) -> 0 | BH316: =IF(K316=$BH$249,J316,0) -> 0 | BI316: =IF(K316=$BI$249,J316,0) -> 0 | BJ316: =IF(K316=$BJ$249,J316,0) -> 0 | BK316: =IF(K316=$BK$249,J316,0) -> 0 | BL316: =IF(K316=$BL$249,J316,0) -> 0 | BM316: =IF(K316=$BM$249,J316,0) -> 0 | BN316: =IF(K316=$BN$249,J316,0) -> 0 | BO316: =IF(K316=$BO$249,J316,0) -> 0 | BP316: =IF(K316=$BP$249,J316,0) -> 0 | BQ316: =IF(K316=$BQ$249,J316,0) -> 0 | BR316: =IF(K316=$BR$249,J316,0) -> 0 | BS316: =IF(K316=$BS$249,J316,0) -> 0 | BT316: =IF(K316=$BT$249,J316,0) -> 0 | BU316: =IF(K316=$BU$249,J316,0) -> 0 | BV316: =IF(K316=$BV$249,J316,0) -> 0 | BW316: =IF(K316=$BW$249,J316,0) -> 0 | BX316: =IF(K316=$BX$249,J316,0) -> 0 | BY316: =IF(K316=$BY$249,J316,0) -> 0 | BZ316: =IF(K316=$BZ$249,J316,0) -> 0 | CA316: =IF(K316=$CA$249,J316,0) -> 0 | CB316: =IF(K316=$CB$249,J316,0) -> 0 | CC316: =IF(K316=$CC$249,J316,0) -> 0 | CD316: =IF(K316=$CD$249,J316,0) -> 0 | CE316: =IF(K316=$CE$249,J316,0) -> 0 | CF316: =IF(K316=$CF$249,J316,0) -> 0 | CG316: =IF(K316=$CG$249,J316,0) -> 0 | CH316: =IF(K316=$CH$249,J316,0) -> 0 | CI316: =IF(K316=$CI$249,J316,0) -> 0 | CJ316: =IF(K316=$CJ$249,J316,0) -> 0 | CK316: =IF(K316=$CK$249,J316,0) -> 0 | CL316: =IF(K316=$CL$249,J316,0) -> 0 | CM316: =IF(K316=$CM$249,J316,0) -> 0 | CN316: =IF(K316=$CN$249,J316,0) -> 0 | CO316: =IF(K316=$CO$249,J316,0) -> 0 | CQ316: End Line
B317: =PL!A87 ->  | C317: =IF(PL!B87="","",PL!B87) ->  | D317: =IF(PL!C87="","",PL!C87) ->  | G317: - | H317: - | J317: =IF(A317="x",PL!D87,0) -> 0 | L317: 0 | M317: 0 | N317: =IF(K317=$N$249,J317,0) -> 0 | O317: 0 | P317: 0 | Q317: 0 | R317: 0 | S317: 0 | T317: 0 | U317: 0 | V317: 0 | W317: 0 | X317: 0 | Y317: 0 | Z317: 0 | AA317: 0 | AB317: 0 | AC317: 0 | AD317: 0 | AE317: 0 | AF317: 0 | AG317: 0 | AH317: 0 | AI317: 0 | AJ317: 0 | AK317: 0 | AL317: 0 | AM317: 0 | AN317: 0 | AO317: 0 | AP317: 0 | AQ317: 0 | AR317: 0 | AS317: 0 | AT317: 0 | AU317: 0 | AV317: 0 | AW317: 0 | AX317: 0 | AY317: 0 | AZ317: 0 | BA317: 0 | BB317: 0 | BC317: 0 | BD317: 0 | BE317: 0 | BF317: 0 | BG317: 0 | BH317: 0 | BI317: 0 | BJ317: 0 | BK317: 0 | BL317: 0 | BM317: 0 | BN317: 0 | BO317: 0 | BP317: 0 | BQ317: 0 | BR317: 0 | BS317: 0 | BT317: 0 | BU317: 0 | BV317: 0 | BW317: 0 | BX317: 0 | BY317: 0 | BZ317: 0 | CA317: 0 | CB317: 0 | CC317: 0 | CD317: 0 | CE317: 0 | CF317: 0 | CG317: 0 | CH317: 0 | CI317: 0 | CJ317: 0 | CK317: 0 | CL317: 0 | CM317: 0 | CN317: 0 | CO317: 0 | CQ317: End Line
B318: =PL!A88 ->  | C318: =IF(PL!B88="","",PL!B88) ->  | D318: =IF(PL!C88="","",PL!C88) ->  | G318: - | H318: - | J318: =IF(A318="x",PL!D88,0) -> 0 | L318: 0 | M318: 0 | N318: 0 | O318: 0 | P318: 0 | Q318: 0 | R318: 0 | S318: 0 | T318: 0 | U318: 0 | V318: 0 | W318: 0 | X318: 0 | Y318: 0 | Z318: 0 | AA318: 0 | AB318: 0 | AC318: 0 | AD318: 0 | AE318: 0 | AF318: 0 | AG318: 0 | AH318: 0 | AI318: 0 | AJ318: 0 | AK318: 0 | AL318: 0 | AM318: 0 | AN318: 0 | AO318: 0 | AP318: 0 | AQ318: 0 | AR318: 0 | AS318: 0 | AT318: 0 | AU318: 0 | AV318: 0 | AW318: 0 | AX318: 0 | AY318: 0 | AZ318: 0 | BA318: 0 | BB318: 0 | BC318: 0 | BD318: 0 | BE318: 0 | BF318: 0 | BG318: 0 | BH318: 0 | BI318: 0 | BJ318: 0 | BK318: 0 | BL318: 0 | BM318: 0 | BN318: 0 | BO318: 0 | BP318: 0 | BQ318: 0 | BR318: 0 | BS318: 0 | BT318: 0 | BU318: 0 | BV318: 0 | BW318: 0 | BX318: 0 | BY318: 0 | BZ318: 0 | CA318: 0 | CB318: 0 | CC318: 0 | CD318: 0 | CE318: 0 | CF318: 0 | CG318: 0 | CH318: 0 | CI318: 0 | CJ318: 0 | CK318: 0 | CL318: 0 | CM318: 0 | CN318: 0 | CO318: 0 | CQ318: End Line
B319: =PL!A89 ->  | C319: =IF(PL!B89="","",PL!B89) ->  | D319: =IF(PL!C89="","",PL!C89) ->  | G319: - | H319: - | J319: =IF(A319="x",PL!D89,0) -> 0 | L319: 0 | M319: 0 | N319: 0 | O319: 0 | P319: 0 | Q319: 0 | R319: 0 | S319: 0 | T319: 0 | U319: 0 | V319: 0 | W319: 0 | X319: 0 | Y319: 0 | Z319: 0 | AA319: 0 | AB319: 0 | AC319: 0 | AD319: 0 | AE319: 0 | AF319: 0 | AG319: 0 | AH319: 0 | AI319: 0 | AJ319: 0 | AK319: 0 | AL319: 0 | AM319: 0 | AN319: 0 | AO319: 0 | AP319: 0 | AQ319: 0 | AR319: 0 | AS319: 0 | AT319: 0 | AU319: 0 | AV319: 0 | AW319: 0 | AX319: 0 | AY319: 0 | AZ319: 0 | BA319: 0 | BB319: 0 | BC319: 0 | BD319: 0 | BE319: 0 | BF319: 0 | BG319: 0 | BH319: 0 | BI319: 0 | BJ319: 0 | BK319: 0 | BL319: 0 | BM319: 0 | BN319: 0 | BO319: 0 | BP319: 0 | BQ319: 0 | BR319: 0 | BS319: 0 | BT319: 0 | BU319: 0 | BV319: 0 | BW319: 0 | BX319: 0 | BY319: 0 | BZ319: 0 | CA319: 0 | CB319: 0 | CC319: 0 | CD319: 0 | CE319: 0 | CF319: 0 | CG319: 0 | CH319: 0 | CI319: 0 | CJ319: 0 | CK319: 0 | CL319: 0 | CM319: 0 | CN319: 0 | CO319: 0 | CQ319: End Line
B320: =PL!A90 ->  | C320: =IF(PL!B90="","",PL!B90) ->  | D320: =IF(PL!C90="","",PL!C90) ->  | G320: - | H320: - | J320: =IF(A320="x",PL!D90,0) -> 0 | L320: 0 | M320: 0 | N320: 0 | O320: 0 | P320: 0 | Q320: 0 | R320: 0 | S320: 0 | T320: 0 | U320: 0 | V320: 0 | W320: 0 | X320: 0 | Y320: 0 | Z320: 0 | AA320: 0 | AB320: 0 | AC320: 0 | AD320: 0 | AE320: 0 | AF320: 0 | AG320: 0 | AH320: 0 | AI320: 0 | AJ320: 0 | AK320: 0 | AL320: 0 | AM320: 0 | AN320: 0 | AO320: 0 | AP320: 0 | AQ320: 0 | AR320: 0 | AS320: 0 | AT320: 0 | AU320: 0 | AV320: 0 | AW320: 0 | AX320: 0 | AY320: 0 | AZ320: 0 | BA320: 0 | BB320: 0 | BC320: 0 | BD320: 0 | BE320: 0 | BF320: 0 | BG320: 0 | BH320: 0 | BI320: 0 | BJ320: 0 | BK320: 0 | BL320: 0 | BM320: 0 | BN320: 0 | BO320: 0 | BP320: 0 | BQ320: 0 | BR320: 0 | BS320: 0 | BT320: 0 | BU320: 0 | BV320: 0 | BW320: 0 | BX320: 0 | BY320: 0 | BZ320: 0 | CA320: 0 | CB320: 0 | CC320: 0 | CD320: 0 | CE320: 0 | CF320: 0 | CG320: 0 | CH320: 0 | CI320: 0 | CJ320: 0 | CK320: 0 | CL320: 0 | CM320: 0 | CN320: 0 | CO320: 0 | CQ320: End Line
B321: =PL!A91 ->  | C321: =IF(PL!B91="","",PL!B91) ->  | D321: =IF(PL!C91="","",PL!C91) ->  | G321: - | H321: - | J321: =IF(A321="x",PL!D91,0) -> 0 | L321: 0 | M321: 0 | N321: 0 | O321: 0 | P321: 0 | Q321: 0 | R321: 0 | S321: 0 | T321: 0 | U321: 0 | V321: 0 | W321: 0 | X321: 0 | Y321: 0 | Z321: 0 | AA321: 0 | AB321: 0 | AC321: 0 | AD321: 0 | AE321: 0 | AF321: 0 | AG321: 0 | AH321: 0 | AI321: 0 | AJ321: 0 | AK321: 0 | AL321: 0 | AM321: 0 | AN321: 0 | AO321: 0 | AP321: 0 | AQ321: 0 | AR321: 0 | AS321: 0 | AT321: 0 | AU321: 0 | AV321: 0 | AW321: 0 | AX321: 0 | AY321: 0 | AZ321: 0 | BA321: 0 | BB321: 0 | BC321: 0 | BD321: 0 | BE321: 0 | BF321: 0 | BG321: 0 | BH321: 0 | BI321: 0 | BJ321: 0 | BK321: 0 | BL321: 0 | BM321: 0 | BN321: 0 | BO321: 0 | BP321: 0 | BQ321: 0 | BR321: 0 | BS321: 0 | BT321: 0 | BU321: 0 | BV321: 0 | BW321: 0 | BX321: 0 | BY321: 0 | BZ321: 0 | CA321: 0 | CB321: 0 | CC321: 0 | CD321: 0 | CE321: 0 | CF321: 0 | CG321: 0 | CH321: 0 | CI321: 0 | CJ321: 0 | CK321: 0 | CL321: 0 | CM321: 0 | CN321: 0 | CO321: 0 | CQ321: End Line
B322: =PL!A92 ->  | C322: =IF(PL!B92="","",PL!B92) ->  | D322: =IF(PL!C92="","",PL!C92) ->  | G322: - | H322: - | J322: =IF(A322="x",PL!D92,0) -> 0 | L322: 0 | M322: 0 | N322: 0 | O322: 0 | P322: 0 | Q322: 0 | R322: 0 | S322: 0 | T322: 0 | U322: 0 | V322: 0 | W322: 0 | X322: 0 | Y322: 0 | Z322: 0 | AA322: 0 | AB322: 0 | AC322: 0 | AD322: 0 | AE322: 0 | AF322: 0 | AG322: 0 | AH322: 0 | AI322: 0 | AJ322: 0 | AK322: 0 | AL322: 0 | AM322: 0 | AN322: 0 | AO322: 0 | AP322: 0 | AQ322: 0 | AR322: 0 | AS322: 0 | AT322: 0 | AU322: 0 | AV322: 0 | AW322: 0 | AX322: 0 | AY322: 0 | AZ322: 0 | BA322: 0 | BB322: 0 | BC322: 0 | BD322: 0 | BE322: 0 | BF322: 0 | BG322: 0 | BH322: 0 | BI322: 0 | BJ322: 0 | BK322: 0 | BL322: 0 | BM322: 0 | BN322: 0 | BO322: 0 | BP322: 0 | BQ322: 0 | BR322: 0 | BS322: 0 | BT322: 0 | BU322: 0 | BV322: 0 | BW322: 0 | BX322: 0 | BY322: 0 | BZ322: 0 | CA322: 0 | CB322: 0 | CC322: 0 | CD322: 0 | CE322: 0 | CF322: 0 | CG322: 0 | CH322: 0 | CI322: 0 | CJ322: 0 | CK322: 0 | CL322: 0 | CM322: 0 | CN322: 0 | CO322: 0 | CQ322: End Line
B323: =PL!A93 ->  | C323: =IF(PL!B93="","",PL!B93) ->  | D323: =IF(PL!C93="","",PL!C93) ->  | G323: - | H323: - | J323: =IF(A323="x",PL!D93,0) -> 0 | L323: 0 | M323: 0 | N323: 0 | O323: 0 | P323: 0 | Q323: 0 | R323: 0 | S323: 0 | T323: 0 | U323: 0 | V323: 0 | W323: 0 | X323: 0 | Y323: 0 | Z323: 0 | AA323: 0 | AB323: 0 | AC323: 0 | AD323: 0 | AE323: 0 | AF323: 0 | AG323: 0 | AH323: 0 | AI323: 0 | AJ323: 0 | AK323: 0 | AL323: 0 | AM323: 0 | AN323: 0 | AO323: 0 | AP323: 0 | AQ323: 0 | AR323: 0 | AS323: 0 | AT323: 0 | AU323: 0 | AV323: 0 | AW323: 0 | AX323: 0 | AY323: 0 | AZ323: 0 | BA323: 0 | BB323: 0 | BC323: 0 | BD323: 0 | BE323: 0 | BF323: 0 | BG323: 0 | BH323: 0 | BI323: 0 | BJ323: 0 | BK323: 0 | BL323: 0 | BM323: 0 | BN323: 0 | BO323: 0 | BP323: 0 | BQ323: 0 | BR323: 0 | BS323: 0 | BT323: 0 | BU323: 0 | BV323: 0 | BW323: 0 | BX323: 0 | BY323: 0 | BZ323: 0 | CA323: 0 | CB323: 0 | CC323: 0 | CD323: 0 | CE323: 0 | CF323: 0 | CG323: 0 | CH323: 0 | CI323: 0 | CJ323: 0 | CK323: 0 | CL323: 0 | CM323: 0 | CN323: 0 | CO323: 0 | CQ323: End Line
B324: =PL!A94 ->  | C324: =IF(PL!B94="","",PL!B94) ->  | D324: =IF(PL!C94="","",PL!C94) ->  | G324: - | H324: - | J324: =IF(A324="x",PL!D94,0) -> 0 | L324: 0 | M324: 0 | N324: 0 | O324: 0 | P324: 0 | Q324: 0 | R324: 0 | S324: 0 | T324: 0 | U324: 0 | V324: 0 | W324: 0 | X324: 0 | Y324: 0 | Z324: 0 | AA324: 0 | AB324: 0 | AC324: 0 | AD324: 0 | AE324: 0 | AF324: 0 | AG324: 0 | AH324: 0 | AI324: 0 | AJ324: 0 | AK324: 0 | AL324: 0 | AM324: 0 | AN324: 0 | AO324: 0 | AP324: 0 | AQ324: 0 | AR324: 0 | AS324: 0 | AT324: 0 | AU324: 0 | AV324: 0 | AW324: 0 | AX324: 0 | AY324: 0 | AZ324: 0 | BA324: 0 | BB324: 0 | BC324: 0 | BD324: 0 | BE324: 0 | BF324: 0 | BG324: 0 | BH324: 0 | BI324: 0 | BJ324: 0 | BK324: 0 | BL324: 0 | BM324: 0 | BN324: 0 | BO324: 0 | BP324: 0 | BQ324: 0 | BR324: 0 | BS324: 0 | BT324: 0 | BU324: 0 | BV324: 0 | BW324: 0 | BX324: 0 | BY324: 0 | BZ324: 0 | CA324: 0 | CB324: 0 | CC324: 0 | CD324: 0 | CE324: 0 | CF324: 0 | CG324: 0 | CH324: 0 | CI324: 0 | CJ324: 0 | CK324: 0 | CL324: 0 | CM324: 0 | CN324: 0 | CO324: 0 | CQ324: End Line
B325: =PL!A95 ->  | C325: =IF(PL!B95="","",PL!B95) ->  | D325: =IF(PL!C95="","",PL!C95) ->  | G325: - | H325: - | J325: =IF(A325="x",PL!D95,0) -> 0 | L325: 0 | M325: 0 | N325: 0 | O325: 0 | P325: 0 | Q325: 0 | R325: 0 | S325: 0 | T325: 0 | U325: 0 | V325: 0 | W325: 0 | X325: 0 | Y325: 0 | Z325: 0 | AA325: 0 | AB325: 0 | AC325: 0 | AD325: 0 | AE325: 0 | AF325: 0 | AG325: 0 | AH325: 0 | AI325: 0 | AJ325: 0 | AK325: 0 | AL325: 0 | AM325: 0 | AN325: 0 | AO325: 0 | AP325: 0 | AQ325: 0 | AR325: 0 | AS325: 0 | AT325: 0 | AU325: 0 | AV325: 0 | AW325: 0 | AX325: 0 | AY325: 0 | AZ325: 0 | BA325: 0 | BB325: 0 | BC325: 0 | BD325: 0 | BE325: 0 | BF325: 0 | BG325: 0 | BH325: 0 | BI325: 0 | BJ325: 0 | BK325: 0 | BL325: 0 | BM325: 0 | BN325: 0 | BO325: 0 | BP325: 0 | BQ325: 0 | BR325: 0 | BS325: 0 | BT325: 0 | BU325: 0 | BV325: 0 | BW325: 0 | BX325: 0 | BY325: 0 | BZ325: 0 | CA325: 0 | CB325: 0 | CC325: 0 | CD325: 0 | CE325: 0 | CF325: 0 | CG325: 0 | CH325: 0 | CI325: 0 | CJ325: 0 | CK325: 0 | CL325: 0 | CM325: 0 | CN325: 0 | CO325: 0 | CQ325: End Line
B326: =PL!A96 ->  | C326: =IF(PL!B96="","",PL!B96) ->  | D326: =IF(PL!C96="","",PL!C96) ->  | G326: - | H326: - | J326: =IF(A326="x",PL!D96,0) -> 0 | L326: 0 | M326: 0 | N326: 0 | O326: 0 | P326: 0 | Q326: 0 | R326: 0 | S326: 0 | T326: 0 | U326: 0 | V326: 0 | W326: 0 | X326: 0 | Y326: 0 | Z326: 0 | AA326: 0 | AB326: 0 | AC326: 0 | AD326: 0 | AE326: 0 | AF326: 0 | AG326: 0 | AH326: 0 | AI326: 0 | AJ326: 0 | AK326: 0 | AL326: 0 | AM326: 0 | AN326: 0 | AO326: 0 | AP326: 0 | AQ326: 0 | AR326: 0 | AS326: 0 | AT326: 0 | AU326: 0 | AV326: 0 | AW326: 0 | AX326: 0 | AY326: 0 | AZ326: 0 | BA326: 0 | BB326: 0 | BC326: 0 | BD326: 0 | BE326: 0 | BF326: 0 | BG326: 0 | BH326: 0 | BI326: 0 | BJ326: 0 | BK326: 0 | BL326: 0 | BM326: 0 | BN326: 0 | BO326: 0 | BP326: 0 | BQ326: 0 | BR326: 0 | BS326: 0 | BT326: 0 | BU326: 0 | BV326: 0 | BW326: 0 | BX326: 0 | BY326: 0 | BZ326: 0 | CA326: 0 | CB326: 0 | CC326: 0 | CD326: 0 | CE326: 0 | CF326: 0 | CG326: 0 | CH326: 0 | CI326: 0 | CJ326: 0 | CK326: 0 | CL326: 0 | CM326: 0 | CN326: 0 | CO326: 0 | CQ326: End Line
B327: =PL!A97 ->  | C327: =IF(PL!B97="","",PL!B97) ->  | D327: =IF(PL!C97="","",PL!C97) ->  | G327: - | H327: - | J327: =IF(A327="x",PL!D97,0) -> 0 | L327: 0 | M327: 0 | N327: 0 | O327: 0 | P327: 0 | Q327: 0 | R327: 0 | S327: 0 | T327: 0 | U327: 0 | V327: 0 | W327: 0 | X327: 0 | Y327: 0 | Z327: 0 | AA327: 0 | AB327: 0 | AC327: 0 | AD327: 0 | AE327: 0 | AF327: 0 | AG327: 0 | AH327: 0 | AI327: 0 | AJ327: 0 | AK327: 0 | AL327: 0 | AM327: 0 | AN327: 0 | AO327: 0 | AP327: 0 | AQ327: 0 | AR327: 0 | AS327: 0 | AT327: 0 | AU327: 0 | AV327: 0 | AW327: 0 | AX327: 0 | AY327: 0 | AZ327: 0 | BA327: 0 | BB327: 0 | BC327: 0 | BD327: 0 | BE327: 0 | BF327: 0 | BG327: 0 | BH327: 0 | BI327: 0 | BJ327: 0 | BK327: 0 | BL327: 0 | BM327: 0 | BN327: 0 | BO327: 0 | BP327: 0 | BQ327: 0 | BR327: 0 | BS327: 0 | BT327: 0 | BU327: 0 | BV327: 0 | BW327: 0 | BX327: 0 | BY327: 0 | BZ327: 0 | CA327: 0 | CB327: 0 | CC327: 0 | CD327: 0 | CE327: 0 | CF327: 0 | CG327: 0 | CH327: 0 | CI327: 0 | CJ327: 0 | CK327: 0 | CL327: 0 | CM327: 0 | CN327: 0 | CO327: 0 | CQ327: End Line
B328: =PL!A98 ->  | C328: =IF(PL!B98="","",PL!B98) ->  | D328: =IF(PL!C98="","",PL!C98) ->  | G328: - | H328: - | J328: =IF(A328="x",PL!D98,0) -> 0 | L328: 0 | M328: 0 | N328: 0 | O328: 0 | P328: 0 | Q328: 0 | R328: 0 | S328: 0 | T328: 0 | U328: 0 | V328: 0 | W328: 0 | X328: 0 | Y328: 0 | Z328: 0 | AA328: 0 | AB328: 0 | AC328: 0 | AD328: 0 | AE328: 0 | AF328: 0 | AG328: 0 | AH328: 0 | AI328: 0 | AJ328: 0 | AK328: 0 | AL328: 0 | AM328: 0 | AN328: 0 | AO328: 0 | AP328: 0 | AQ328: 0 | AR328: 0 | AS328: 0 | AT328: 0 | AU328: 0 | AV328: 0 | AW328: 0 | AX328: 0 | AY328: 0 | AZ328: 0 | BA328: 0 | BB328: 0 | BC328: 0 | BD328: 0 | BE328: 0 | BF328: 0 | BG328: 0 | BH328: 0 | BI328: 0 | BJ328: 0 | BK328: 0 | BL328: 0 | BM328: 0 | BN328: 0 | BO328: 0 | BP328: 0 | BQ328: 0 | BR328: 0 | BS328: 0 | BT328: 0 | BU328: 0 | BV328: 0 | BW328: 0 | BX328: 0 | BY328: 0 | BZ328: 0 | CA328: 0 | CB328: 0 | CC328: 0 | CD328: 0 | CE328: 0 | CF328: 0 | CG328: 0 | CH328: 0 | CI328: 0 | CJ328: 0 | CK328: 0 | CL328: 0 | CM328: 0 | CN328: 0 | CO328: 0 | CQ328: End Line
B329: =PL!A99 ->  | C329: =IF(PL!B99="","",PL!B99) ->  | D329: =IF(PL!C99="","",PL!C99) ->  | G329: - | H329: - | J329: =IF(A329="x",PL!D99,0) -> 0 | L329: 0 | M329: 0 | N329: 0 | O329: 0 | P329: 0 | Q329: 0 | R329: 0 | S329: 0 | T329: 0 | U329: 0 | V329: 0 | W329: 0 | X329: 0 | Y329: 0 | Z329: 0 | AA329: 0 | AB329: 0 | AC329: 0 | AD329: 0 | AE329: 0 | AF329: 0 | AG329: 0 | AH329: 0 | AI329: 0 | AJ329: 0 | AK329: 0 | AL329: 0 | AM329: 0 | AN329: 0 | AO329: 0 | AP329: 0 | AQ329: 0 | AR329: 0 | AS329: 0 | AT329: 0 | AU329: 0 | AV329: 0 | AW329: 0 | AX329: 0 | AY329: 0 | AZ329: 0 | BA329: 0 | BB329: 0 | BC329: 0 | BD329: 0 | BE329: 0 | BF329: 0 | BG329: 0 | BH329: 0 | BI329: 0 | BJ329: 0 | BK329: 0 | BL329: 0 | BM329: 0 | BN329: 0 | BO329: 0 | BP329: 0 | BQ329: 0 | BR329: 0 | BS329: 0 | BT329: 0 | BU329: 0 | BV329: 0 | BW329: 0 | BX329: 0 | BY329: 0 | BZ329: 0 | CA329: 0 | CB329: 0 | CC329: 0 | CD329: 0 | CE329: 0 | CF329: 0 | CG329: 0 | CH329: 0 | CI329: 0 | CJ329: 0 | CK329: 0 | CL329: 0 | CM329: 0 | CN329: 0 | CO329: 0 | CQ329: End Line
B330: =PL!A100 ->  | C330: =IF(PL!B100="","",PL!B100) ->  | D330: =IF(PL!C100="","",PL!C100) ->  | G330: - | H330: - | J330: =IF(A330="x",PL!D100,0) -> 0 | L330: 0 | M330: 0 | N330: 0 | O330: 0 | P330: 0 | Q330: 0 | R330: 0 | S330: 0 | T330: 0 | U330: 0 | V330: 0 | W330: 0 | X330: 0 | Y330: 0 | Z330: 0 | AA330: 0 | AB330: 0 | AC330: 0 | AD330: 0 | AE330: 0 | AF330: 0 | AG330: 0 | AH330: 0 | AI330: 0 | AJ330: 0 | AK330: 0 | AL330: 0 | AM330: 0 | AN330: 0 | AO330: 0 | AP330: 0 | AQ330: 0 | AR330: 0 | AS330: 0 | AT330: 0 | AU330: 0 | AV330: 0 | AW330: 0 | AX330: 0 | AY330: 0 | AZ330: 0 | BA330: 0 | BB330: 0 | BC330: 0 | BD330: 0 | BE330: 0 | BF330: 0 | BG330: 0 | BH330: 0 | BI330: 0 | BJ330: 0 | BK330: 0 | BL330: 0 | BM330: 0 | BN330: 0 | BO330: 0 | BP330: 0 | BQ330: 0 | BR330: 0 | BS330: 0 | BT330: 0 | BU330: 0 | BV330: 0 | BW330: 0 | BX330: 0 | BY330: 0 | BZ330: 0 | CA330: 0 | CB330: 0 | CC330: 0 | CD330: 0 | CE330: 0 | CF330: 0 | CG330: 0 | CH330: 0 | CI330: 0 | CJ330: 0 | CK330: 0 | CL330: 0 | CM330: 0 | CN330: 0 | CO330: 0 | CQ330: End Line
B331: =PL!A101 ->  | C331: =IF(PL!B101="","",PL!B101) ->  | D331: =IF(PL!C101="","",PL!C101) ->  | G331: - | H331: - | J331: =IF(A331="x",PL!D101,0) -> 0 | L331: 0 | M331: 0 | N331: 0 | O331: 0 | P331: 0 | Q331: 0 | R331: 0 | S331: 0 | T331: 0 | U331: 0 | V331: 0 | W331: 0 | X331: 0 | Y331: 0 | Z331: 0 | AA331: 0 | AB331: 0 | AC331: 0 | AD331: 0 | AE331: 0 | AF331: 0 | AG331: 0 | AH331: 0 | AI331: 0 | AJ331: 0 | AK331: 0 | AL331: 0 | AM331: 0 | AN331: 0 | AO331: 0 | AP331: 0 | AQ331: 0 | AR331: 0 | AS331: 0 | AT331: 0 | AU331: 0 | AV331: 0 | AW331: 0 | AX331: 0 | AY331: 0 | AZ331: 0 | BA331: 0 | BB331: 0 | BC331: 0 | BD331: 0 | BE331: 0 | BF331: 0 | BG331: 0 | BH331: 0 | BI331: 0 | BJ331: 0 | BK331: 0 | BL331: 0 | BM331: 0 | BN331: 0 | BO331: 0 | BP331: 0 | BQ331: 0 | BR331: 0 | BS331: 0 | BT331: 0 | BU331: 0 | BV331: 0 | BW331: 0 | BX331: 0 | BY331: 0 | BZ331: 0 | CA331: 0 | CB331: 0 | CC331: 0 | CD331: 0 | CE331: 0 | CF331: 0 | CG331: 0 | CH331: 0 | CI331: 0 | CJ331: 0 | CK331: 0 | CL331: 0 | CM331: 0 | CN331: 0 | CO331: 0 | CQ331: End Line
B332: =PL!A102 ->  | C332: =IF(PL!B102="","",PL!B102) ->  | D332: =IF(PL!C102="","",PL!C102) ->  | G332: - | H332: - | J332: =IF(A332="x",PL!D102,0) -> 0 | L332: 0 | M332: 0 | N332: 0 | O332: 0 | P332: 0 | Q332: 0 | R332: 0 | S332: 0 | T332: 0 | U332: 0 | V332: 0 | W332: 0 | X332: 0 | Y332: 0 | Z332: 0 | AA332: 0 | AB332: 0 | AC332: 0 | AD332: 0 | AE332: 0 | AF332: 0 | AG332: 0 | AH332: 0 | AI332: 0 | AJ332: 0 | AK332: 0 | AL332: 0 | AM332: 0 | AN332: 0 | AO332: 0 | AP332: 0 | AQ332: 0 | AR332: 0 | AS332: 0 | AT332: 0 | AU332: 0 | AV332: 0 | AW332: 0 | AX332: 0 | AY332: 0 | AZ332: 0 | BA332: 0 | BB332: 0 | BC332: 0 | BD332: 0 | BE332: 0 | BF332: 0 | BG332: 0 | BH332: 0 | BI332: 0 | BJ332: 0 | BK332: 0 | BL332: 0 | BM332: 0 | BN332: 0 | BO332: 0 | BP332: 0 | BQ332: 0 | BR332: 0 | BS332: 0 | BT332: 0 | BU332: 0 | BV332: 0 | BW332: 0 | BX332: 0 | BY332: 0 | BZ332: 0 | CA332: 0 | CB332: 0 | CC332: 0 | CD332: 0 | CE332: 0 | CF332: 0 | CG332: 0 | CH332: 0 | CI332: 0 | CJ332: 0 | CK332: 0 | CL332: 0 | CM332: 0 | CN332: 0 | CO332: 0 | CQ332: End Line
B333: =PL!A103 ->  | C333: =IF(PL!B103="","",PL!B103) ->  | D333: =IF(PL!C103="","",PL!C103) ->  | G333: - | H333: - | J333: =IF(A333="x",PL!D103,0) -> 0 | L333: 0 | M333: 0 | N333: 0 | O333: 0 | P333: 0 | Q333: 0 | R333: 0 | S333: 0 | T333: 0 | U333: 0 | V333: 0 | W333: 0 | X333: 0 | Y333: 0 | Z333: 0 | AA333: 0 | AB333: 0 | AC333: 0 | AD333: 0 | AE333: 0 | AF333: 0 | AG333: 0 | AH333: 0 | AI333: 0 | AJ333: 0 | AK333: 0 | AL333: 0 | AM333: 0 | AN333: 0 | AO333: 0 | AP333: 0 | AQ333: 0 | AR333: 0 | AS333: 0 | AT333: 0 | AU333: 0 | AV333: 0 | AW333: 0 | AX333: 0 | AY333: 0 | AZ333: 0 | BA333: 0 | BB333: 0 | BC333: 0 | BD333: 0 | BE333: 0 | BF333: 0 | BG333: 0 | BH333: 0 | BI333: 0 | BJ333: 0 | BK333: 0 | BL333: 0 | BM333: 0 | BN333: 0 | BO333: 0 | BP333: 0 | BQ333: 0 | BR333: 0 | BS333: 0 | BT333: 0 | BU333: 0 | BV333: 0 | BW333: 0 | BX333: 0 | BY333: 0 | BZ333: 0 | CA333: 0 | CB333: 0 | CC333: 0 | CD333: 0 | CE333: 0 | CF333: 0 | CG333: 0 | CH333: 0 | CI333: 0 | CJ333: 0 | CK333: 0 | CL333: 0 | CM333: 0 | CN333: 0 | CO333: 0 | CQ333: End Line
B334: =PL!A104 ->  | C334: =IF(PL!B104="","",PL!B104) ->  | D334: =IF(PL!C104="","",PL!C104) ->  | G334: - | H334: - | J334: =IF(A334="x",PL!D104,0) -> 0 | L334: 0 | M334: 0 | N334: 0 | O334: 0 | P334: 0 | Q334: 0 | R334: 0 | S334: 0 | T334: 0 | U334: 0 | V334: 0 | W334: 0 | X334: 0 | Y334: 0 | Z334: 0 | AA334: 0 | AB334: 0 | AC334: 0 | AD334: 0 | AE334: 0 | AF334: 0 | AG334: 0 | AH334: 0 | AI334: 0 | AJ334: 0 | AK334: 0 | AL334: 0 | AM334: 0 | AN334: 0 | AO334: 0 | AP334: 0 | AQ334: 0 | AR334: 0 | AS334: 0 | AT334: 0 | AU334: 0 | AV334: 0 | AW334: 0 | AX334: 0 | AY334: 0 | AZ334: 0 | BA334: 0 | BB334: 0 | BC334: 0 | BD334: 0 | BE334: 0 | BF334: 0 | BG334: 0 | BH334: 0 | BI334: 0 | BJ334: 0 | BK334: 0 | BL334: 0 | BM334: 0 | BN334: 0 | BO334: 0 | BP334: 0 | BQ334: 0 | BR334: 0 | BS334: 0 | BT334: 0 | BU334: 0 | BV334: 0 | BW334: 0 | BX334: 0 | BY334: 0 | BZ334: 0 | CA334: 0 | CB334: 0 | CC334: 0 | CD334: 0 | CE334: 0 | CF334: 0 | CG334: 0 | CH334: 0 | CI334: 0 | CJ334: 0 | CK334: 0 | CL334: 0 | CM334: 0 | CN334: 0 | CO334: 0 | CQ334: End Line
B335: =PL!A105 ->  | C335: =IF(PL!B105="","",PL!B105) ->  | D335: =IF(PL!C105="","",PL!C105) ->  | E335: END LINE | F335: END LINE | G335: END LINE | H335: - | J335: =IF(A335="x",PL!D105,0) -> 0 | L335: 0 | M335: 0 | N335: 0 | O335: 0 | P335: 0 | Q335: 0 | R335: 0 | S335: 0 | T335: 0 | U335: 0 | V335: 0 | W335: 0 | X335: 0 | Y335: 0 | Z335: 0 | AA335: 0 | AB335: 0 | AC335: 0 | AD335: 0 | AE335: 0 | AF335: 0 | AG335: 0 | AH335: 0 | AI335: 0 | AJ335: 0 | AK335: 0 | AL335: 0 | AM335: 0 | AN335: 0 | AO335: 0 | AP335: 0 | AQ335: 0 | AR335: 0 | AS335: 0 | AT335: 0 | AU335: 0 | AV335: 0 | AW335: 0 | AX335: 0 | AY335: 0 | AZ335: 0 | BA335: 0 | BB335: 0 | BC335: 0 | BD335: 0 | BE335: 0 | BF335: 0 | BG335: 0 | BH335: 0 | BI335: 0 | BJ335: 0 | BK335: 0 | BL335: 0 | BM335: 0 | BN335: 0 | BO335: 0 | BP335: 0 | BQ335: 0 | BR335: 0 | BS335: 0 | BT335: 0 | BU335: 0 | BV335: 0 | BW335: 0 | BX335: 0 | BY335: 0 | BZ335: 0 | CA335: 0 | CB335: 0 | CC335: 0 | CD335: 0 | CE335: 0 | CF335: 0 | CG335: 0 | CH335: 0 | CI335: 0 | CJ335: 0 | CK335: 0 | CL335: 0 | CM335: 0 | CN335: 0 | CO335: 0 | CQ335: End Line
B336: =PL!A106 ->  | C336: =IF(PL!B106="","",PL!B106) ->  | D336: =IF(PL!C106="","",PL!C106) ->  | E336: 00:00:00 | F336: 00:00:00 | G336: 0 | H336: =VLOOKUP(D336,$E$252:$G$258,3) ->  | J336: =IF(A336="x",PL!D106,0) -> 0 | L336: 0 | M336: 0 | N336: 0 | O336: 0 | P336: 0 | Q336: 0 | R336: 0 | S336: 0 | T336: 0 | U336: 0 | V336: 0 | W336: 0 | X336: 0 | Y336: 0 | Z336: 0 | AA336: 0 | AB336: 0 | AC336: 0 | AD336: 0 | AE336: 0 | AF336: 0 | AG336: 0 | AH336: 0 | AI336: 0 | AJ336: 0 | AK336: 0 | AL336: 0 | AM336: 0 | AN336: 0 | AO336: 0 | AP336: 0 | AQ336: 0 | AR336: 0 | AS336: 0 | AT336: 0 | AU336: 0 | AV336: 0 | AW336: 0 | AX336: 0 | AY336: 0 | AZ336: 0 | BA336: 0 | BB336: 0 | BC336: 0 | BD336: 0 | BE336: 0 | BF336: 0 | BG336: 0 | BH336: 0 | BI336: 0 | BJ336: 0 | BK336: 0 | BL336: 0 | BM336: 0 | BN336: 0 | BO336: 0 | BP336: 0 | BQ336: 0 | BR336: 0 | BS336: 0 | BT336: 0 | BU336: 0 | BV336: 0 | BW336: 0 | BX336: 0 | BY336: 0 | BZ336: 0 | CA336: 0 | CB336: 0 | CC336: 0 | CD336: 0 | CE336: 0 | CF336: 0 | CG336: 0 | CH336: 0 | CI336: 0 | CJ336: 0 | CK336: 0 | CL336: 0 | CM336: 0 | CN336: 0 | CO336: 0 | CQ336: End Line
B337: =PL!A107 ->  | C337: =IF(PL!B107="","",PL!B107) ->  | D337: =IF(PL!C107="","",PL!C107) ->  | E337: 00:00:00 | F337: 00:00:00 | G337: 0 | J337: =IF(A337="x",PL!D107,0) -> 0 | L337: 0 | M337: 0 | N337: 0 | O337: 0 | P337: 0 | Q337: 0 | R337: 0 | S337: 0 | T337: 0 | U337: 0 | V337: 0 | W337: 0 | X337: 0 | Y337: 0 | Z337: 0 | AA337: 0 | AB337: 0 | AC337: 0 | AD337: 0 | AE337: 0 | AF337: 0 | AG337: 0 | AH337: 0 | AI337: 0 | AJ337: 0 | AK337: 0 | AL337: 0 | AM337: 0 | AN337: 0 | AO337: 0 | AP337: 0 | AQ337: 0 | AR337: 0 | AS337: 0 | AT337: 0 | AU337: 0 | AV337: 0 | AW337: 0 | AX337: 0 | AY337: 0 | AZ337: 0 | BA337: 0 | BB337: 0 | BC337: 0 | BD337: 0 | BE337: 0 | BF337: 0 | BG337: 0 | BH337: 0 | BI337: 0 | BJ337: 0 | BK337: 0 | BL337: 0 | BM337: 0 | BN337: 0 | BO337: 0 | BP337: 0 | BQ337: 0 | BR337: 0 | BS337: 0 | BT337: 0 | BU337: 0 | BV337: 0 | BW337: 0 | BX337: 0 | BY337: 0 | BZ337: 0 | CA337: 0 | CB337: 0 | CC337: 0 | CD337: 0 | CE337: 0 | CF337: 0 | CG337: 0 | CH337: 0 | CI337: 0 | CJ337: 0 | CK337: 0 | CL337: 0 | CM337: 0 | CN337: 0 | CO337: 0 | CQ337: End Line
B338: =PL!A108 ->  | C338: =IF(PL!B108="","",PL!B108) ->  | D338: =IF(PL!C108="","",PL!C108) ->  | E338: 00:00:00 | F338: 00:00:00 | G338: 0 | J338: =IF(A338="x",PL!D108,0) -> 0 | L338: 0 | M338: 0 | N338: 0 | O338: 0 | P338: 0 | Q338: 0 | R338: 0 | S338: 0 | T338: 0 | U338: 0 | V338: 0 | W338: 0 | X338: 0 | Y338: 0 | Z338: 0 | AA338: 0 | AB338: 0 | AC338: 0 | AD338: 0 | AE338: 0 | AF338: 0 | AG338: 0 | AH338: 0 | AI338: 0 | AJ338: 0 | AK338: 0 | AL338: 0 | AM338: 0 | AN338: 0 | AO338: 0 | AP338: 0 | AQ338: 0 | AR338: 0 | AS338: 0 | AT338: 0 | AU338: 0 | AV338: 0 | AW338: 0 | AX338: 0 | AY338: 0 | AZ338: 0 | BA338: 0 | BB338: 0 | BC338: 0 | BD338: 0 | BE338: 0 | BF338: 0 | BG338: 0 | BH338: 0 | BI338: 0 | BJ338: 0 | BK338: 0 | BL338: 0 | BM338: 0 | BN338: 0 | BO338: 0 | BP338: 0 | BQ338: 0 | BR338: 0 | BS338: 0 | BT338: 0 | BU338: 0 | BV338: 0 | BW338: 0 | BX338: 0 | BY338: 0 | BZ338: 0 | CA338: 0 | CB338: 0 | CC338: 0 | CD338: 0 | CE338: 0 | CF338: 0 | CG338: 0 | CH338: 0 | CI338: 0 | CJ338: 0 | CK338: 0 | CL338: 0 | CM338: 0 | CN338: 0 | CO338: 0 | CQ338: End Line
B339: =PL!A109 ->  | C339: =IF(PL!B109="","",PL!B109) ->  | D339: =IF(PL!C109="","",PL!C109) ->  | E339: 00:00:00 | F339: 00:00:00 | G339: 0 | J339: =IF(A339="x",PL!D109,0) -> 0 | L339: 0 | M339: 0 | N339: 0 | O339: 0 | P339: 0 | Q339: 0 | R339: 0 | S339: 0 | T339: 0 | U339: 0 | V339: 0 | W339: 0 | X339: 0 | Y339: 0 | Z339: 0 | AA339: 0 | AB339: 0 | AC339: 0 | AD339: 0 | AE339: 0 | AF339: 0 | AG339: 0 | AH339: 0 | AI339: 0 | AJ339: 0 | AK339: 0 | AL339: 0 | AM339: 0 | AN339: 0 | AO339: 0 | AP339: 0 | AQ339: 0 | AR339: 0 | AS339: 0 | AT339: 0 | AU339: 0 | AV339: 0 | AW339: 0 | AX339: 0 | AY339: 0 | AZ339: 0 | BA339: 0 | BB339: 0 | BC339: 0 | BD339: 0 | BE339: 0 | BF339: 0 | BG339: 0 | BH339: 0 | BI339: 0 | BJ339: 0 | BK339: 0 | BL339: 0 | BM339: 0 | BN339: 0 | BO339: 0 | BP339: 0 | BQ339: 0 | BR339: 0 | BS339: 0 | BT339: 0 | BU339: 0 | BV339: 0 | BW339: 0 | BX339: 0 | BY339: 0 | BZ339: 0 | CA339: 0 | CB339: 0 | CC339: 0 | CD339: 0 | CE339: 0 | CF339: 0 | CG339: 0 | CH339: 0 | CI339: 0 | CJ339: 0 | CK339: 0 | CL339: 0 | CM339: 0 | CN339: 0 | CO339: 0 | CQ339: End Line
B340: =PL!A110 ->  | C340: =IF(PL!B110="","",PL!B110) ->  | D340: =IF(PL!C110="","",PL!C110) ->  | E340: 00:00:00 | F340: 00:00:00 | G340: 0 | J340: =IF(A340="x",PL!D110,0) -> 0 | L340: 0 | M340: 0 | N340: 0 | O340: 0 | P340: 0 | Q340: 0 | R340: 0 | S340: 0 | T340: 0 | U340: 0 | V340: 0 | W340: 0 | X340: 0 | Y340: 0 | Z340: 0 | AA340: 0 | AB340: 0 | AC340: 0 | AD340: 0 | AE340: 0 | AF340: 0 | AG340: 0 | AH340: 0 | AI340: 0 | AJ340: 0 | AK340: 0 | AL340: 0 | AM340: 0 | AN340: 0 | AO340: 0 | AP340: 0 | AQ340: 0 | AR340: 0 | AS340: 0 | AT340: 0 | AU340: 0 | AV340: 0 | AW340: 0 | AX340: 0 | AY340: 0 | AZ340: 0 | BA340: 0 | BB340: 0 | BC340: 0 | BD340: 0 | BE340: 0 | BF340: 0 | BG340: 0 | BH340: 0 | BI340: 0 | BJ340: 0 | BK340: 0 | BL340: 0 | BM340: 0 | BN340: 0 | BO340: 0 | BP340: 0 | BQ340: 0 | BR340: 0 | BS340: 0 | BT340: 0 | BU340: 0 | BV340: 0 | BW340: 0 | BX340: 0 | BY340: 0 | BZ340: 0 | CA340: 0 | CB340: 0 | CC340: 0 | CD340: 0 | CE340: 0 | CF340: 0 | CG340: 0 | CH340: 0 | CI340: 0 | CJ340: 0 | CK340: 0 | CL340: 0 | CM340: 0 | CN340: 0 | CO340: 0 | CQ340: End Line
